Workbook

Sheet Beschr.Tafel (hidden)
A1: Pass-Nr. | B1: Kat. | C1: Senioren 1 | D1: Verein | E1: 1. Rd. | F1: 2. Rd. | G1: 1 - 2 | H1: 3. Rd. | I1: 1 - 3 | J1: 4. Rd. | K1: Ges. | L1: Diff | M1: =CONCATENATE(COUNTIF(A2:A26,">0")," gemeldete Teilnehmer") -> 15 gemeldete Teilnehmer
A2: =+Teilnehmer!B8 -> 67990 | B2: =VLOOKUP(A2,DRL!B$4:G$3494,3,0) -> SM I | C2: =VLOOKUP(A2,DRL!B$4:G$3494,2,0) -> Bohlig, Jörg | D2: =VLOOKUP(A2,DRL!B$4:G$3494,4,0) -> MGC Kahler Sandhasen
A3: =+Teilnehmer!B9 -> 66852 | B3: =VLOOKUP(A3,DRL!B$4:G$3494,3,0) -> SM I | C3: =VLOOKUP(A3,DRL!B$4:G$3494,2,0) -> Cech, Andree | D3: =VLOOKUP(A3,DRL!B$4:G$3494,4,0) -> BGSV Aßlar
A4: =+Teilnehmer!B10 -> 38329 | B4: =VLOOKUP(A4,DRL!B$4:G$3494,3,0) -> SM I | C4: =VLOOKUP(A4,DRL!B$4:G$3494,2,0) -> Dittrich, Michael | D4: =VLOOKUP(A4,DRL!B$4:G$3494,4,0) -> MGC putter Künzell
A5: =+Teilnehmer!B11 -> 37864 | B5: =VLOOKUP(A5,DRL!B$4:G$3494,3,0) -> SM I | C5: =VLOOKUP(A5,DRL!B$4:G$3494,2,0) -> Drebert, Erich | D5: =VLOOKUP(A5,DRL!B$4:G$3494,4,0) -> SG 1886 Weiterstadt
A6: =+Teilnehmer!B12 -> 46823 | B6: =VLOOKUP(A6,DRL!B$4:G$3494,3,0) -> SM I | C6: =VLOOKUP(A6,DRL!B$4:G$3494,2,0) -> Herzog, Ralf | D6: =VLOOKUP(A6,DRL!B$4:G$3494,4,0) -> TSV Pfungstadt
A7: =+Teilnehmer!B13 -> 44929 | B7: =VLOOKUP(A7,DRL!B$4:G$3494,3,0) -> SM I | C7: =VLOOKUP(A7,DRL!B$4:G$3494,2,0) -> Hess, Rainer | D7: =VLOOKUP(A7,DRL!B$4:G$3494,4,0) -> SG Arheilgen
A8: =+Teilnehmer!B14 -> 40541 | B8: =VLOOKUP(A8,DRL!B$4:G$3494,3,0) -> SM I | C8: =VLOOKUP(A8,DRL!B$4:G$3494,2,0) -> Isenbiel, Oliver | D8: =VLOOKUP(A8,DRL!B$4:G$3494,4,0) -> MSC Bensheim-Auerbach
A9: =+Teilnehmer!B15 -> 67793 | B9: =VLOOKUP(A9,DRL!B$4:G$3494,3,0) -> SM I | C9: =VLOOKUP(A9,DRL!B$4:G$3494,2,0) -> Joch, Peter | D9: =VLOOKUP(A9,DRL!B$4:G$3494,4,0) -> MSC Bensheim-Auerbach
A10: =+Teilnehmer!B16 -> 37865 | B10: =VLOOKUP(A10,DRL!B$4:G$3494,3,0) -> SM I | C10: =VLOOKUP(A10,DRL!B$4:G$3494,2,0) -> Mally, Joachim | D10: =VLOOKUP(A10,DRL!B$4:G$3494,4,0) -> MSC Bensheim-Auerbach
A11: =+Teilnehmer!B17 -> 67213 | B11: =VLOOKUP(A11,DRL!B$4:G$3494,3,0) -> SM I | C11: =VLOOKUP(A11,DRL!B$4:G$3494,2,0) -> Paul, Gerd | D11: =VLOOKUP(A11,DRL!B$4:G$3494,4,0) -> MGC Bad Homburg
A12: =+Teilnehmer!B18 -> 66666 | B12: =VLOOKUP(A12,DRL!B$4:G$3494,3,0) -> SM I | C12: =VLOOKUP(A12,DRL!B$4:G$3494,2,0) -> Schneider, Timm | D12: =VLOOKUP(A12,DRL!B$4:G$3494,4,0) -> SG Arheilgen
A13: =+Teilnehmer!B19 -> 48644 | B13: =VLOOKUP(A13,DRL!B$4:G$3494,3,0) -> SM I | C13: =VLOOKUP(A13,DRL!B$4:G$3494,2,0) -> Timm, Axel Eric | D13: =VLOOKUP(A13,DRL!B$4:G$3494,4,0) -> TSV Pfungstadt
A14: =+Teilnehmer!B20 -> 30869 | B14: =VLOOKUP(A14,DRL!B$4:G$3494,3,0) -> SM II | C14: =VLOOKUP(A14,DRL!B$4:G$3494,2,0) -> Träger, Andreas | D14: =VLOOKUP(A14,DRL!B$4:G$3494,4,0) -> MSC Bensheim-Auerbach
A15: =+Teilnehmer!B21 -> 38133 | B15: =VLOOKUP(A15,DRL!B$4:G$3494,3,0) -> SM I | C15: =VLOOKUP(A15,DRL!B$4:G$3494,2,0) -> Tröller, Jürgen | D15: =VLOOKUP(A15,DRL!B$4:G$3494,4,0) -> MSC Bensheim-Auerbach
A16: =+Teilnehmer!B22 -> 67992 | B16: =VLOOKUP(A16,DRL!B$4:G$3494,3,0) -> SM I | C16: =VLOOKUP(A16,DRL!B$4:G$3494,2,0) -> Uhlmann, Torsten | D16: =VLOOKUP(A16,DRL!B$4:G$3494,4,0) -> MGC Kahler Sandhasen
A17: =+Teilnehmer!B23 -> 0 | B17: =VLOOKUP(A17,DRL!B$4:G$3494,3,0) ->  | C17: =VLOOKUP(A17,DRL!B$4:G$3494,2,0) ->  | D17: =VLOOKUP(A17,DRL!B$4:G$3494,4,0) -> 
A18: =+Teilnehmer!B24 -> 0 | B18: =VLOOKUP(A18,DRL!B$4:G$3494,3,0) ->  | C18: =VLOOKUP(A18,DRL!B$4:G$3494,2,0) ->  | D18: =VLOOKUP(A18,DRL!B$4:G$3494,4,0) -> 
A19: =+Teilnehmer!B25 -> 0 | B19: =VLOOKUP(A19,DRL!B$4:G$3494,3,0) ->  | C19: =VLOOKUP(A19,DRL!B$4:G$3494,2,0) ->  | D19: =VLOOKUP(A19,DRL!B$4:G$3494,4,0) -> 
A20: =+Teilnehmer!B26 -> 0 | B20: =VLOOKUP(A20,DRL!B$4:G$3494,3,0) ->  | C20: =VLOOKUP(A20,DRL!B$4:G$3494,2,0) ->  | D20: =VLOOKUP(A20,DRL!B$4:G$3494,4,0) -> 
A21: =+Teilnehmer!B27 -> 0 | B21: =VLOOKUP(A21,DRL!B$4:G$3494,3,0) ->  | C21: =VLOOKUP(A21,DRL!B$4:G$3494,2,0) ->  | D21: =VLOOKUP(A21,DRL!B$4:G$3494,4,0) -> 
A22: =+Teilnehmer!B28 -> 0 | B22: =VLOOKUP(A22,DRL!B$4:G$3494,3,0) ->  | C22: =VLOOKUP(A22,DRL!B$4:G$3494,2,0) ->  | D22: =VLOOKUP(A22,DRL!B$4:G$3494,4,0) -> 
A23: =+Teilnehmer!B29 -> 0 | B23: =VLOOKUP(A23,DRL!B$4:G$3494,3,0) ->  | C23: =VLOOKUP(A23,DRL!B$4:G$3494,2,0) ->  | D23: =VLOOKUP(A23,DRL!B$4:G$3494,4,0) -> 
A24: =+Teilnehmer!B30 -> 0 | B24: =VLOOKUP(A24,DRL!B$4:G$3494,3,0) ->  | C24: =VLOOKUP(A24,DRL!B$4:G$3494,2,0) ->  | D24: =VLOOKUP(A24,DRL!B$4:G$3494,4,0) -> 
A25: =+Teilnehmer!B31 -> 0 | B25: =VLOOKUP(A25,DRL!B$4:G$3494,3,0) ->  | C25: =VLOOKUP(A25,DRL!B$4:G$3494,2,0) ->  | D25: =VLOOKUP(A25,DRL!B$4:G$3494,4,0) -> 
A26: =+Teilnehmer!B32 -> 0 | B26: =VLOOKUP(A26,DRL!B$4:G$3494,3,0) ->  | C26: =VLOOKUP(A26,DRL!B$4:G$3494,2,0) ->  | D26: =VLOOKUP(A26,DRL!B$4:G$3494,4,0) -> 
A27: Pass-Nr. | B27: Kat. | C27: Senioren 2 | D27: Verein | E27: 1. Rd. | F27: 2. Rd. | G27: 1 - 2 | H27: 3. Rd. | I27: 1 - 3 | J27: 4. Rd. | K27: Ges. | L27: Diff | M27: =CONCATENATE(COUNTIF(A28:A57,">0")," gemeldete Teilnehmer") -> 25 gemeldete Teilnehmer
A28: =+Teilnehmer!B41 -> 35779 | B28: =VLOOKUP(A28,DRL!B$4:G$3494,3,0) -> SM II | C28: =VLOOKUP(A28,DRL!B$4:G$3494,2,0) -> Arnold, Günter | D28: =VLOOKUP(A28,DRL!B$4:G$3494,4,0) -> BGSV Aßlar
A29: =+Teilnehmer!B42 -> 22165 | B29: =VLOOKUP(A29,DRL!B$4:G$3494,3,0) -> SM II | C29: =VLOOKUP(A29,DRL!B$4:G$3494,2,0) -> Buchert, Harald | D29: =VLOOKUP(A29,DRL!B$4:G$3494,4,0) -> MSC Bensheim-Auerbach
A30: =+Teilnehmer!B43 -> 66043 | B30: =VLOOKUP(A30,DRL!B$4:G$3494,3,0) -> SM II | C30: =VLOOKUP(A30,DRL!B$4:G$3494,2,0) -> Droste, Peter | D30: =VLOOKUP(A30,DRL!B$4:G$3494,4,0) -> TSV Pfungstadt
A31: =+Teilnehmer!B44 -> 67313 | B31: =VLOOKUP(A31,DRL!B$4:G$3494,3,0) -> SM II | C31: =VLOOKUP(A31,DRL!B$4:G$3494,2,0) -> Effenberger, Thomas | D31: =VLOOKUP(A31,DRL!B$4:G$3494,4,0) -> MGC Bad Homburg
A32: =+Teilnehmer!B45 -> 67059 | B32: =VLOOKUP(A32,DRL!B$4:G$3494,3,0) -> SM II | C32: =VLOOKUP(A32,DRL!B$4:G$3494,2,0) -> Fiedler, Wolfgang | D32: =VLOOKUP(A32,DRL!B$4:G$3494,4,0) -> BGSV Aßlar
A33: =+Teilnehmer!B46 -> 67995 | B33: =VLOOKUP(A33,DRL!B$4:G$3494,3,0) -> SM II | C33: =VLOOKUP(A33,DRL!B$4:G$3494,2,0) -> Flanderka, Wolfgang | D33: =VLOOKUP(A33,DRL!B$4:G$3494,4,0) -> MGC Kahler Sandhasen
A34: =+Teilnehmer!B47 -> 38490 | B34: =VLOOKUP(A34,DRL!B$4:G$3494,3,0) -> SM II | C34: =VLOOKUP(A34,DRL!B$4:G$3494,2,0) -> Frank, Rolf | D34: =VLOOKUP(A34,DRL!B$4:G$3494,4,0) -> BGSV Bad Homburg
A35: =+Teilnehmer!B48 -> 27550 | B35: =VLOOKUP(A35,DRL!B$4:G$3494,3,0) -> SM II | C35: =VLOOKUP(A35,DRL!B$4:G$3494,2,0) -> Fritsch, Hans-Peter | D35: =VLOOKUP(A35,DRL!B$4:G$3494,4,0) -> MSC Bensheim-Auerbach
A36: =+Teilnehmer!B49 -> 67788 | B36: =VLOOKUP(A36,DRL!B$4:G$3494,3,0) -> SM II | C36: =VLOOKUP(A36,DRL!B$4:G$3494,2,0) -> Hartz, Detlef | D36: =VLOOKUP(A36,DRL!B$4:G$3494,4,0) -> BGSV Bad Homburg
A37: =+Teilnehmer!B50 -> 67126 | B37: =VLOOKUP(A37,DRL!B$4:G$3494,3,0) -> SM II | C37: =VLOOKUP(A37,DRL!B$4:G$3494,2,0) -> Heber, Bernd | D37: =VLOOKUP(A37,DRL!B$4:G$3494,4,0) -> SG 1886 Weiterstadt
A38: =+Teilnehmer!B51 -> 50172 | B38: =VLOOKUP(A38,DRL!B$4:G$3494,3,0) -> SM II | C38: =VLOOKUP(A38,DRL!B$4:G$3494,2,0) -> Hilß, Reinhold | D38: =VLOOKUP(A38,DRL!B$4:G$3494,4,0) -> MSC Bensheim-Auerbach
A39: =+Teilnehmer!B52 -> 34878 | B39: =VLOOKUP(A39,DRL!B$4:G$3494,3,0) -> SM II | C39: =VLOOKUP(A39,DRL!B$4:G$3494,2,0) -> Jung, Horst | D39: =VLOOKUP(A39,DRL!B$4:G$3494,4,0) -> MSC Bensheim-Auerbach
A40: =+Teilnehmer!B53 -> 66302 | B40: =VLOOKUP(A40,DRL!B$4:G$3494,3,0) -> SM II | C40: =VLOOKUP(A40,DRL!B$4:G$3494,2,0) -> Kaisr, Alois | D40: =VLOOKUP(A40,DRL!B$4:G$3494,4,0) -> BGSV Aßlar
A41: =+Teilnehmer!B54 -> 38341 | B41: =VLOOKUP(A41,DRL!B$4:G$3494,3,0) -> SM II | C41: =VLOOKUP(A41,DRL!B$4:G$3494,2,0) -> Kantor, Harald | D41: =VLOOKUP(A41,DRL!B$4:G$3494,4,0) -> BGSV Bad Homburg
A42: =+Teilnehmer!B55 -> 24092 | B42: =VLOOKUP(A42,DRL!B$4:G$3494,3,0) -> SM II | C42: =VLOOKUP(A42,DRL!B$4:G$3494,2,0) -> Klee, Hannes | D42: =VLOOKUP(A42,DRL!B$4:G$3494,4,0) -> MSC Bensheim-Auerbach
A43: =+Teilnehmer!B56 -> 35781 | B43: =VLOOKUP(A43,DRL!B$4:G$3494,3,0) -> SM II | C43: =VLOOKUP(A43,DRL!B$4:G$3494,2,0) -> Krieger, Andreas | D43: =VLOOKUP(A43,DRL!B$4:G$3494,4,0) -> BGSV Bad Homburg
A44: =+Teilnehmer!B57 -> 67117 | B44: =VLOOKUP(A44,DRL!B$4:G$3494,3,0) -> SM II | C44: =VLOOKUP(A44,DRL!B$4:G$3494,2,0) -> Meyer, Werner | D44: =VLOOKUP(A44,DRL!B$4:G$3494,4,0) -> SG Arheilgen
A45: =+Teilnehmer!B58 -> 46152 | B45: =VLOOKUP(A45,DRL!B$4:G$3494,3,0) -> SM II | C45: =VLOOKUP(A45,DRL!B$4:G$3494,2,0) -> Nickel, Gerhard | D45: =VLOOKUP(A45,DRL!B$4:G$3494,4,0) -> MGC Wetzlar
A46: =+Teilnehmer!B59 -> 66529 | B46: =VLOOKUP(A46,DRL!B$4:G$3494,3,0) -> SM II | C46: =VLOOKUP(A46,DRL!B$4:G$3494,2,0) -> Probost, Norbert | D46: =VLOOKUP(A46,DRL!B$4:G$3494,4,0) -> MGC Wetzlar
A47: =+Teilnehmer!B60 -> 19330 | B47: =VLOOKUP(A47,DRL!B$4:G$3494,3,0) -> SM II | C47: =VLOOKUP(A47,DRL!B$4:G$3494,2,0) -> Rödiger, Peter | D47: =VLOOKUP(A47,DRL!B$4:G$3494,4,0) -> MGC Wetzlar
A48: =+Teilnehmer!B61 -> 34054 | B48: =VLOOKUP(A48,DRL!B$4:G$3494,3,0) -> SM II | C48: =VLOOKUP(A48,DRL!B$4:G$3494,2,0) -> Rothermel, Dieter | D48: =VLOOKUP(A48,DRL!B$4:G$3494,4,0) -> MSC Bensheim-Auerbach
A49: =+Teilnehmer!B62 -> 67429 | B49: =VLOOKUP(A49,DRL!B$4:G$3494,3,0) -> SM II | C49: =VLOOKUP(A49,DRL!B$4:G$3494,2,0) -> Schmidt, Klaus | D49: =VLOOKUP(A49,DRL!B$4:G$3494,4,0) -> BGSV Aßlar
A50: =+Teilnehmer!B63 -> 22127 | B50: =VLOOKUP(A50,DRL!B$4:G$3494,3,0) -> SM II | C50: =VLOOKUP(A50,DRL!B$4:G$3494,2,0) -> Sic, Zoltan | D50: =VLOOKUP(A50,DRL!B$4:G$3494,4,0) -> MGC Bad Homburg
A51: =+Teilnehmer!B64 -> 34384 | B51: =VLOOKUP(A51,DRL!B$4:G$3494,3,0) -> SM II | C51: =VLOOKUP(A51,DRL!B$4:G$3494,2,0) -> Siebert, Erich | D51: =VLOOKUP(A51,DRL!B$4:G$3494,4,0) -> MGC Wetzlar
A52: =+Teilnehmer!B65 -> 67991 | B52: =VLOOKUP(A52,DRL!B$4:G$3494,3,0) -> SM II | C52: =VLOOKUP(A52,DRL!B$4:G$3494,2,0) -> Weiß, Klaus | D52: =VLOOKUP(A52,DRL!B$4:G$3494,4,0) -> MGC Kahler Sandhasen
A53: =+Teilnehmer!B66 -> 0 | B53: =VLOOKUP(A53,DRL!B$4:G$3494,3,0) ->  | C53: =VLOOKUP(A53,DRL!B$4:G$3494,2,0) ->  | D53: =VLOOKUP(A53,DRL!B$4:G$3494,4,0) -> 
A54: =+Teilnehmer!B67 -> 0 | B54: =VLOOKUP(A54,DRL!B$4:G$3494,3,0) ->  | C54: =VLOOKUP(A54,DRL!B$4:G$3494,2,0) ->  | D54: =VLOOKUP(A54,DRL!B$4:G$3494,4,0) -> 
A55: =+Teilnehmer!B68 -> 0 | B55: =VLOOKUP(A55,DRL!B$4:G$3494,3,0) ->  | C55: =VLOOKUP(A55,DRL!B$4:G$3494,2,0) ->  | D55: =VLOOKUP(A55,DRL!B$4:G$3494,4,0) -> 
A56: =+Teilnehmer!B69 -> 0 | B56: =VLOOKUP(A56,DRL!B$4:G$3494,3,0) ->  | C56: =VLOOKUP(A56,DRL!B$4:G$3494,2,0) ->  | D56: =VLOOKUP(A56,DRL!B$4:G$3494,4,0) -> 
A57: =+Teilnehmer!B70 -> 0 | B57: =VLOOKUP(A57,DRL!B$4:G$3494,3,0) ->  | C57: =VLOOKUP(A57,DRL!B$4:G$3494,2,0) ->  | D57: =VLOOKUP(A57,DRL!B$4:G$3494,4,0) -> 
A58: Pass-Nr. | B58: Kat. | C58: Seniorinnen 1 | D58: Verein | E58: 1. Rd. | F58: 2. Rd. | G58: 1 - 2 | H58: 3. Rd. | I58: 1 - 3 | J58: 4. Rd. | K58: Ges. | L58: Diff | M58: =CONCATENATE(COUNTIF(A59:A67,">0")," gemeldete Teilnehmer") -> 5 gemeldete Teilnehmer
A59: =+Teilnehmer!B78 -> 47324 | B59: =VLOOKUP(A59,DRL!B$4:G$3494,3,0) -> SW I | C59: =VLOOKUP(A59,DRL!B$4:G$3494,2,0) -> Arnold, Simone | D59: =VLOOKUP(A59,DRL!B$4:G$3494,4,0) -> SG Arheilgen
A60: =+Teilnehmer!B79 -> 24314 | B60: =VLOOKUP(A60,DRL!B$4:G$3494,3,0) -> SW I | C60: =VLOOKUP(A60,DRL!B$4:G$3494,2,0) -> Geist, Michaela | D60: =VLOOKUP(A60,DRL!B$4:G$3494,4,0) -> MSC Bensheim-Auerbach
A61: =+Teilnehmer!B80 -> 66636 | B61: =VLOOKUP(A61,DRL!B$4:G$3494,3,0) -> SW I | C61: =VLOOKUP(A61,DRL!B$4:G$3494,2,0) -> Kober, Marion | D61: =VLOOKUP(A61,DRL!B$4:G$3494,4,0) -> MSC Bensheim-Auerbach
A62: =+Teilnehmer!B81 -> 33393 | B62: =VLOOKUP(A62,DRL!B$4:G$3494,3,0) -> SW I | C62: =VLOOKUP(A62,DRL!B$4:G$3494,2,0) -> Parr, Susanne | D62: =VLOOKUP(A62,DRL!B$4:G$3494,4,0) -> MSC Bensheim-Auerbach
A63: =+Teilnehmer!B82 -> 67993 | B63: =VLOOKUP(A63,DRL!B$4:G$3494,3,0) -> SW I | C63: =VLOOKUP(A63,DRL!B$4:G$3494,2,0) -> Uhlmann, Petra | D63: =VLOOKUP(A63,DRL!B$4:G$3494,4,0) -> MGC Kahler Sandhasen
A64: =+Teilnehmer!B83 -> 0 | B64: =VLOOKUP(A64,DRL!B$4:G$3494,3,0) ->  | C64: =VLOOKUP(A64,DRL!B$4:G$3494,2,0) ->  | D64: =VLOOKUP(A64,DRL!B$4:G$3494,4,0) -> 
A65: =+Teilnehmer!B84 -> 0 | B65: =VLOOKUP(A65,DRL!B$4:G$3494,3,0) ->  | C65: =VLOOKUP(A65,DRL!B$4:G$3494,2,0) ->  | D65: =VLOOKUP(A65,DRL!B$4:G$3494,4,0) -> 
A66: =+Teilnehmer!B85 -> 0 | B66: =VLOOKUP(A66,DRL!B$4:G$3494,3,0) ->  | C66: =VLOOKUP(A66,DRL!B$4:G$3494,2,0) ->  | D66: =VLOOKUP(A66,DRL!B$4:G$3494,4,0) -> 
A67: =+Teilnehmer!B86 -> 0 | B67: =VLOOKUP(A67,DRL!B$4:G$3494,3,0) ->  | C67: =VLOOKUP(A67,DRL!B$4:G$3494,2,0) ->  | D67: =VLOOKUP(A67,DRL!B$4:G$3494,4,0) -> 
A68: =+Teilnehmer!B87 -> 0 | B68: =VLOOKUP(A68,DRL!B$4:G$3494,3,0) ->  | C68: =VLOOKUP(A68,DRL!B$4:G$3494,2,0) ->  | D68: =VLOOKUP(A68,DRL!B$4:G$3494,4,0) -> 
A69: Pass-Nr. | B69: Kat. | C69: Seniorinnen 2 | D69: Verein | E69: 1. Rd. | F69: 2. Rd. | G69: 1 - 2 | H69: 3. Rd. | I69: 1 - 3 | J69: 4. Rd. | K69: Ges. | L69: Diff | M69: =CONCATENATE(COUNTIF(A70:A90,">0")," gemeldete Teilnehmer") -> 12 gemeldete Teilnehmer
A70: =+Teilnehmer!B95 -> 35778 | B70: =VLOOKUP(A70,DRL!B$4:G$3494,3,0) -> SW II | C70: =VLOOKUP(A70,DRL!B$4:G$3494,2,0) -> Arnold, Franziska | D70: =VLOOKUP(A70,DRL!B$4:G$3494,4,0) -> BGSV Aßlar
A71: =+Teilnehmer!B96 -> 37249 | B71: =VLOOKUP(A71,DRL!B$4:G$3494,3,0) -> SW II | C71: =VLOOKUP(A71,DRL!B$4:G$3494,2,0) -> Boock, Cornelia | D71: =VLOOKUP(A71,DRL!B$4:G$3494,4,0) -> MSC Bensheim-Auerbach
A72: =+Teilnehmer!B97 -> 40091 | B72: =VLOOKUP(A72,DRL!B$4:G$3494,3,0) -> SW II | C72: =VLOOKUP(A72,DRL!B$4:G$3494,2,0) -> Deck, Monika | D72: =VLOOKUP(A72,DRL!B$4:G$3494,4,0) -> SG Arheilgen
A73: =+Teilnehmer!B98 -> 66163 | B73: =VLOOKUP(A73,DRL!B$4:G$3494,3,0) -> SW II | C73: =VLOOKUP(A73,DRL!B$4:G$3494,2,0) -> Drebert, Clementine | D73: =VLOOKUP(A73,DRL!B$4:G$3494,4,0) -> SG 1886 Weiterstadt
A74: =+Teilnehmer!B99 -> 40148 | B74: =VLOOKUP(A74,DRL!B$4:G$3494,3,0) -> SW II | C74: =VLOOKUP(A74,DRL!B$4:G$3494,2,0) -> Faust, Gabriele | D74: =VLOOKUP(A74,DRL!B$4:G$3494,4,0) -> MSC Bensheim-Auerbach
A75: =+Teilnehmer!B100 -> 68065 | B75: =VLOOKUP(A75,DRL!B$4:G$3494,3,0) -> SW II | C75: =VLOOKUP(A75,DRL!B$4:G$3494,2,0) -> Heber, Heidi | D75: =VLOOKUP(A75,DRL!B$4:G$3494,4,0) -> SG 1886 Weiterstadt
A76: =+Teilnehmer!B101 -> 34053 | B76: =VLOOKUP(A76,DRL!B$4:G$3494,3,0) -> SW II | C76: =VLOOKUP(A76,DRL!B$4:G$3494,2,0) -> Rothermel, Ute | D76: =VLOOKUP(A76,DRL!B$4:G$3494,4,0) -> MSC Bensheim-Auerbach
A77: =+Teilnehmer!B102 -> 67428 | B77: =VLOOKUP(A77,DRL!B$4:G$3494,3,0) -> SW II | C77: =VLOOKUP(A77,DRL!B$4:G$3494,2,0) -> Schmidt, Regina | D77: =VLOOKUP(A77,DRL!B$4:G$3494,4,0) -> BGSV Aßlar
A78: =+Teilnehmer!B103 -> 67224 | B78: =VLOOKUP(A78,DRL!B$4:G$3494,3,0) -> SW II | C78: =VLOOKUP(A78,DRL!B$4:G$3494,2,0) -> Vallot, Kerstin | D78: =VLOOKUP(A78,DRL!B$4:G$3494,4,0) -> BGSV Aßlar
A79: =+Teilnehmer!B104 -> 67787 | B79: =VLOOKUP(A79,DRL!B$4:G$3494,3,0) -> SW II | C79: =VLOOKUP(A79,DRL!B$4:G$3494,2,0) -> Wedel, Carmen | D79: =VLOOKUP(A79,DRL!B$4:G$3494,4,0) -> BGSV Bad Homburg
A80: =+Teilnehmer!B105 -> 68068 | B80: =VLOOKUP(A80,DRL!B$4:G$3494,3,0) -> SW II | C80: =VLOOKUP(A80,DRL!B$4:G$3494,2,0) -> Weiß, Monika | D80: =VLOOKUP(A80,DRL!B$4:G$3494,4,0) -> MGC Kahler Sandhasen
A81: =+Teilnehmer!B106 -> 33708 | B81: =VLOOKUP(A81,DRL!B$4:G$3494,3,0) -> SW II | C81: =VLOOKUP(A81,DRL!B$4:G$3494,2,0) -> Wimmer, Kirsten | D81: =VLOOKUP(A81,DRL!B$4:G$3494,4,0) -> MSC Bensheim-Auerbach
A82: =+Teilnehmer!B107 -> 0 | B82: =VLOOKUP(A82,DRL!B$4:G$3494,3,0) ->  | C82: =VLOOKUP(A82,DRL!B$4:G$3494,2,0) ->  | D82: =VLOOKUP(A82,DRL!B$4:G$3494,4,0) -> 
A83: =+Teilnehmer!B108 -> 0 | B83: =VLOOKUP(A83,DRL!B$4:G$3494,3,0) ->  | C83: =VLOOKUP(A83,DRL!B$4:G$3494,2,0) ->  | D83: =VLOOKUP(A83,DRL!B$4:G$3494,4,0) -> 
A84: =+Teilnehmer!B109 -> 0 | B84: =VLOOKUP(A84,DRL!B$4:G$3494,3,0) ->  | C84: =VLOOKUP(A84,DRL!B$4:G$3494,2,0) ->  | D84: =VLOOKUP(A84,DRL!B$4:G$3494,4,0) -> 
A85: =+Teilnehmer!B110 -> 0 | B85: =VLOOKUP(A85,DRL!B$4:G$3494,3,0) ->  | C85: =VLOOKUP(A85,DRL!B$4:G$3494,2,0) ->  | D85: =VLOOKUP(A85,DRL!B$4:G$3494,4,0) -> 
A86: =+Teilnehmer!B111 -> 0 | B86: =VLOOKUP(A86,DRL!B$4:G$3494,3,0) ->  | C86: =VLOOKUP(A86,DRL!B$4:G$3494,2,0) ->  | D86: =VLOOKUP(A86,DRL!B$4:G$3494,4,0) -> 
A87: =+Teilnehmer!B112 -> 0 | B87: =VLOOKUP(A87,DRL!B$4:G$3494,3,0) ->  | C87: =VLOOKUP(A87,DRL!B$4:G$3494,2,0) ->  | D87: =VLOOKUP(A87,DRL!B$4:G$3494,4,0) -> 
A88: =+Teilnehmer!B1113 -> 0 | B88: =VLOOKUP(A88,DRL!B$4:G$3494,3,0) ->  | C88: =VLOOKUP(A88,DRL!B$4:G$3494,2,0) ->  | D88: =VLOOKUP(A88,DRL!B$4:G$3494,4,0) -> 
A89: =+Teilnehmer!B1114 -> 0 | B89: =VLOOKUP(A89,DRL!B$4:G$3494,3,0) ->  | C89: =VLOOKUP(A89,DRL!B$4:G$3494,2,0) ->  | D89: =VLOOKUP(A89,DRL!B$4:G$3494,4,0) -> 
A90: =+Teilnehmer!B1115 -> 0 | B90: =VLOOKUP(A90,DRL!B$4:G$3494,3,0) ->  | C90: =VLOOKUP(A90,DRL!B$4:G$3494,2,0) ->  | D90: =VLOOKUP(A90,DRL!B$4:G$3494,4,0) -> 
A91: Pass-Nr. | B91: Kat. | C91: Jugend männlich | D91: Verein | E91: 1. Rd. | F91: 2. Rd. | G91: 1 - 2 | H91: 3. Rd. | I91: 1 - 3 | J91: 4. Rd. | K91: Ges. | L91: Diff | M91: =CONCATENATE(COUNTIF(A92:A101,">0")," gemeldete Teilnehmer") -> 2 gemeldete Teilnehmer
A92: =+Teilnehmer!B131 -> 66828 | B92: =VLOOKUP(A92,DRL!B$4:G$3494,3,0) -> JM | C92: =VLOOKUP(A92,DRL!B$4:G$3494,2,0) -> Körner, Nils | D92: =VLOOKUP(A92,DRL!B$4:G$3494,4,0) -> TSV Pfungstadt
A93: =+Teilnehmer!B132 -> 67550 | B93: =VLOOKUP(A93,DRL!B$4:G$3494,3,0) -> JM | C93: =VLOOKUP(A93,DRL!B$4:G$3494,2,0) -> Reim, Leon | D93: =VLOOKUP(A93,DRL!B$4:G$3494,4,0) -> MGC Wetzlar
A94: =+Teilnehmer!B133 -> 0 | B94: =VLOOKUP(A94,DRL!B$4:G$3494,3,0) ->  | C94: =VLOOKUP(A94,DRL!B$4:G$3494,2,0) ->  | D94: =VLOOKUP(A94,DRL!B$4:G$3494,4,0) -> 
A95: =+Teilnehmer!B134 -> 0 | B95: =VLOOKUP(A95,DRL!B$4:G$3494,3,0) ->  | C95: =VLOOKUP(A95,DRL!B$4:G$3494,2,0) ->  | D95: =VLOOKUP(A95,DRL!B$4:G$3494,4,0) -> 
A96: =+Teilnehmer!B135 -> 0 | B96: =VLOOKUP(A96,DRL!B$4:G$3494,3,0) ->  | C96: =VLOOKUP(A96,DRL!B$4:G$3494,2,0) ->  | D96: =VLOOKUP(A96,DRL!B$4:G$3494,4,0) -> 
A97: =+Teilnehmer!B136 -> 0 | B97: =VLOOKUP(A97,DRL!B$4:G$3494,3,0) ->  | C97: =VLOOKUP(A97,DRL!B$4:G$3494,2,0) ->  | D97: =VLOOKUP(A97,DRL!B$4:G$3494,4,0) -> 
A98: =+Teilnehmer!B137 -> 0 | B98: =VLOOKUP(A98,DRL!B$4:G$3494,3,0) ->  | C98: =VLOOKUP(A98,DRL!B$4:G$3494,2,0) ->  | D98: =VLOOKUP(A98,DRL!B$4:G$3494,4,0) -> 
A99: =+Teilnehmer!B138 -> 0 | B99: =VLOOKUP(A99,DRL!B$4:G$3494,3,0) ->  | C99: =VLOOKUP(A99,DRL!B$4:G$3494,2,0) ->  | D99: =VLOOKUP(A99,DRL!B$4:G$3494,4,0) -> 
A100: =+Teilnehmer!B139 -> 0 | B100: =VLOOKUP(A100,DRL!B$4:G$3494,3,0) ->  | C100: =VLOOKUP(A100,DRL!B$4:G$3494,2,0) ->  | D100: =VLOOKUP(A100,DRL!B$4:G$3494,4,0) -> 
A101: =+Teilnehmer!B140 -> 0 | B101: =VLOOKUP(A101,DRL!B$4:G$3494,3,0) ->  | C101: =VLOOKUP(A101,DRL!B$4:G$3494,2,0) ->  | D101: =VLOOKUP(A101,DRL!B$4:G$3494,4,0) -> 
A102: Pass-Nr. | B102: Kat. | C102: Schüler männlich | D102: Verein | E102: 1. Rd. | F102: 2. Rd. | G102: 1 - 2 | H102: 3. Rd. | I102: 1 - 3 | J102: 4. Rd. | K102: Ges. | L102: Diff | M102: =CONCATENATE(COUNTIF(A103:A112,">0")," gemeldete Teilnehmer") -> 3 gemeldete Teilnehmer
A103: =+Teilnehmer!B149 -> 66640 | B103: =VLOOKUP(A103,DRL!B$4:G$3494,3,0) -> SCHM | C103: =VLOOKUP(A103,DRL!B$4:G$3494,2,0) -> Tritsch, Levi | D103: =VLOOKUP(A103,DRL!B$4:G$3494,4,0) -> SG Arheilgen
A104: =+Teilnehmer!B150 -> 67276 | B104: =VLOOKUP(A104,DRL!B$4:G$3494,3,0) -> SCHM | C104: =VLOOKUP(A104,DRL!B$4:G$3494,2,0) -> Weiß, Damon | D104: =VLOOKUP(A104,DRL!B$4:G$3494,4,0) -> BGSV Bad Homburg
A105: =+Teilnehmer!B151 -> 68031 | B105: =VLOOKUP(A105,DRL!B$4:G$3494,3,0) -> SCHM | C105: =VLOOKUP(A105,DRL!B$4:G$3494,2,0) -> Noll, Joshua | D105: =VLOOKUP(A105,DRL!B$4:G$3494,4,0) -> SV 1890 Dreieichenhain
A106: =+Teilnehmer!B152 -> 0 | B106: =VLOOKUP(A106,DRL!B$4:G$3494,3,0) ->  | C106: =VLOOKUP(A106,DRL!B$4:G$3494,2,0) ->  | D106: =VLOOKUP(A106,DRL!B$4:G$3494,4,0) -> 
A107: =+Teilnehmer!B153 -> 0 | B107: =VLOOKUP(A107,DRL!B$4:G$3494,3,0) ->  | C107: =VLOOKUP(A107,DRL!B$4:G$3494,2,0) ->  | D107: =VLOOKUP(A107,DRL!B$4:G$3494,4,0) -> 
A108: =+Teilnehmer!B154 -> 0 | B108: =VLOOKUP(A108,DRL!B$4:G$3494,3,0) ->  | C108: =VLOOKUP(A108,DRL!B$4:G$3494,2,0) ->  | D108: =VLOOKUP(A108,DRL!B$4:G$3494,4,0) -> 
A109: =+Teilnehmer!B155 -> 0 | B109: =VLOOKUP(A109,DRL!B$4:G$3494,3,0) ->  | C109: =VLOOKUP(A109,DRL!B$4:G$3494,2,0) ->  | D109: =VLOOKUP(A109,DRL!B$4:G$3494,4,0) -> 
A110: =+Teilnehmer!B156 -> 0 | B110: =VLOOKUP(A110,DRL!B$4:G$3494,3,0) ->  | C110: =VLOOKUP(A110,DRL!B$4:G$3494,2,0) ->  | D110: =VLOOKUP(A110,DRL!B$4:G$3494,4,0) -> 
A111: =+Teilnehmer!B157 -> 0 | B111: =VLOOKUP(A111,DRL!B$4:G$3494,3,0) ->  | C111: =VLOOKUP(A111,DRL!B$4:G$3494,2,0) ->  | D111: =VLOOKUP(A111,DRL!B$4:G$3494,4,0) -> 
A112: =+Teilnehmer!B158 -> 0 | B112: =VLOOKUP(A112,DRL!B$4:G$3494,3,0) ->  | C112: =VLOOKUP(A112,DRL!B$4:G$3494,2,0) ->  | D112: =VLOOKUP(A112,DRL!B$4:G$3494,4,0) -> 
A113: Pass-Nr. | B113: Kat. | C113: Jugend weiblich | D113: Verein | E113: 1. Rd. | F113: 2. Rd. | G113: 1 - 2 | H113: 3. Rd. | I113: 1 - 3 | J113: 4. Rd. | K113: Ges. | L113: Diff | M113: =CONCATENATE(COUNTIF(A114:A118,">0")," gemeldete Teilnehmer") -> 1 gemeldete Teilnehmer
A114: =+Teilnehmer!B166 -> 67538 | B114: =VLOOKUP(A114,DRL!B$4:G$3494,3,0) -> JW | C114: =VLOOKUP(A114,DRL!B$4:G$3494,2,0) -> Schüßler, Sophie | D114: =VLOOKUP(A114,DRL!B$4:G$3494,4,0) -> MSC Bensheim-Auerbach
A115: =+Teilnehmer!B167 -> 0 | B115: =VLOOKUP(A115,DRL!B$4:G$3494,3,0) ->  | C115: =VLOOKUP(A115,DRL!B$4:G$3494,2,0) ->  | D115: =VLOOKUP(A115,DRL!B$4:G$3494,4,0) -> 
A116: =+Teilnehmer!B168 -> 0 | B116: =VLOOKUP(A116,DRL!B$4:G$3494,3,0) ->  | C116: =VLOOKUP(A116,DRL!B$4:G$3494,2,0) ->  | D116: =VLOOKUP(A116,DRL!B$4:G$3494,4,0) -> 
A117: =+Teilnehmer!B169 -> 0 | B117: =VLOOKUP(A117,DRL!B$4:G$3494,3,0) ->  | C117: =VLOOKUP(A117,DRL!B$4:G$3494,2,0) ->  | D117: =VLOOKUP(A117,DRL!B$4:G$3494,4,0) -> 
A118: =+Teilnehmer!B170 -> 0 | B118: =VLOOKUP(A118,DRL!B$4:G$3494,3,0) ->  | C118: =VLOOKUP(A118,DRL!B$4:G$3494,2,0) ->  | D118: =VLOOKUP(A118,DRL!B$4:G$3494,4,0) -> 
A119: Pass-Nr. | B119: Kat. | C119: Schüler weiblich | D119: Verein | E119: 1. Rd. | F119: 2. Rd. | G119: 1 - 2 | H119: 3. Rd. | I119: 1 - 3 | J119: 4. Rd. | K119: Ges. | L119: Diff | M119: =CONCATENATE(COUNTIF(A120:A124,">0")," gemeldete Teilnehmer") -> 1 gemeldete Teilnehmer
A120: =+Teilnehmer!B179 -> 68080 | B120: =VLOOKUP(A120,DRL!B$4:G$3494,3,0) -> SCHW | C120: =VLOOKUP(A120,DRL!B$4:G$3494,2,0) -> Wittstadt, Ida | D120: =VLOOKUP(A120,DRL!B$4:G$3494,4,0) -> SG Arheilgen
A121: =+Teilnehmer!B180 -> 0 | B121: =VLOOKUP(A121,DRL!B$4:G$3494,3,0) ->  | C121: =VLOOKUP(A121,DRL!B$4:G$3494,2,0) ->  | D121: =VLOOKUP(A121,DRL!B$4:G$3494,4,0) -> 
A122: =+Teilnehmer!B181 -> 0 | B122: =VLOOKUP(A122,DRL!B$4:G$3494,3,0) ->  | C122: =VLOOKUP(A122,DRL!B$4:G$3494,2,0) ->  | D122: =VLOOKUP(A122,DRL!B$4:G$3494,4,0) -> 
A123: =+Teilnehmer!B182 -> 0 | B123: =VLOOKUP(A123,DRL!B$4:G$3494,3,0) ->  | C123: =VLOOKUP(A123,DRL!B$4:G$3494,2,0) ->  | D123: =VLOOKUP(A123,DRL!B$4:G$3494,4,0) -> 
A124: =+Teilnehmer!B183 -> 0 | B124: =VLOOKUP(A124,DRL!B$4:G$3494,3,0) ->  | C124: =VLOOKUP(A124,DRL!B$4:G$3494,2,0) ->  | D124: =VLOOKUP(A124,DRL!B$4:G$3494,4,0) -> 
A125: Pass-Nr. | B125: Kat. | C125: Allg. Klasse Herren | D125: Verein | E125: 1. Rd. | F125: 2. Rd. | G125: 1 - 2 | H125: 3. Rd. | I125: 1 - 3 | J125: 4. Rd. | K125: Ges. | L125: Diff | M125: =CONCATENATE(COUNTIF(A126:A145,">0")," gemeldete Teilnehmer") -> 15 gemeldete Teilnehmer
A126: =+Teilnehmer!B192 -> 35780 | B126: =VLOOKUP(A126,DRL!B$4:G$3494,3,0) -> H | C126: =VLOOKUP(A126,DRL!B$4:G$3494,2,0) -> Arnold, Mark | D126: =VLOOKUP(A126,DRL!B$4:G$3494,4,0) -> SG Arheilgen
A127: =+Teilnehmer!B193 -> 25206 | B127: =VLOOKUP(A127,DRL!B$4:G$3494,3,0) -> SM I | C127: =VLOOKUP(A127,DRL!B$4:G$3494,2,0) -> Giebenhain, Thomas | D127: =VLOOKUP(A127,DRL!B$4:G$3494,4,0) -> MSC Bensheim-Auerbach
A128: =+Teilnehmer!B194 -> 68105 | B128: =VLOOKUP(A128,DRL!B$4:G$3494,3,0) -> SM I | C128: =VLOOKUP(A128,DRL!B$4:G$3494,2,0) -> Haase, Oliver | D128: =VLOOKUP(A128,DRL!B$4:G$3494,4,0) -> MSC Bensheim-Auerbach
A129: =+Teilnehmer!B195 -> 67248 | B129: =VLOOKUP(A129,DRL!B$4:G$3494,3,0) -> H | C129: =VLOOKUP(A129,DRL!B$4:G$3494,2,0) -> Hudert, Luca | D129: =VLOOKUP(A129,DRL!B$4:G$3494,4,0) -> BGSV Bad Homburg
A130: =+Teilnehmer!B196 -> 67792 | B130: =VLOOKUP(A130,DRL!B$4:G$3494,3,0) -> H | C130: =VLOOKUP(A130,DRL!B$4:G$3494,2,0) -> Joch, Niklas | D130: =VLOOKUP(A130,DRL!B$4:G$3494,4,0) -> MSC Bensheim-Auerbach
A131: =+Teilnehmer!B197 -> 65955 | B131: =VLOOKUP(A131,DRL!B$4:G$3494,3,0) -> H | C131: =VLOOKUP(A131,DRL!B$4:G$3494,2,0) -> Klotz, Sascha | D131: =VLOOKUP(A131,DRL!B$4:G$3494,4,0) -> BGSV Aßlar
A132: =+Teilnehmer!B198 -> 67381 | B132: =VLOOKUP(A132,DRL!B$4:G$3494,3,0) -> H | C132: =VLOOKUP(A132,DRL!B$4:G$3494,2,0) -> Koch, Dennis | D132: =VLOOKUP(A132,DRL!B$4:G$3494,4,0) -> BGSV Bad Homburg
A133: =+Teilnehmer!B199 -> 67612 | B133: =VLOOKUP(A133,DRL!B$4:G$3494,3,0) -> H | C133: =VLOOKUP(A133,DRL!B$4:G$3494,2,0) -> Mähler, Rudolf | D133: =VLOOKUP(A133,DRL!B$4:G$3494,4,0) -> SG Arheilgen
A134: =+Teilnehmer!B200 -> 67730 | B134: =VLOOKUP(A134,DRL!B$4:G$3494,3,0) -> H | C134: =VLOOKUP(A134,DRL!B$4:G$3494,2,0) -> Mally, Brain | D134: =VLOOKUP(A134,DRL!B$4:G$3494,4,0) -> MSC Bensheim-Auerbach
A135: =+Teilnehmer!B201 -> 38005 | B135: =VLOOKUP(A135,DRL!B$4:G$3494,3,0) -> H | C135: =VLOOKUP(A135,DRL!B$4:G$3494,2,0) -> Nickel, Dustin | D135: =VLOOKUP(A135,DRL!B$4:G$3494,4,0) -> MGC Wetzlar
A136: =+Teilnehmer!B202 -> 26809 | B136: =VLOOKUP(A136,DRL!B$4:G$3494,3,0) -> SM II | C136: =VLOOKUP(A136,DRL!B$4:G$3494,2,0) -> Pester, Manfred | D136: =VLOOKUP(A136,DRL!B$4:G$3494,4,0) -> TSV Pfungstadt
A137: =+Teilnehmer!B203 -> 66410 | B137: =VLOOKUP(A137,DRL!B$4:G$3494,3,0) -> H | C137: =VLOOKUP(A137,DRL!B$4:G$3494,2,0) -> Rinker, Lukas | D137: =VLOOKUP(A137,DRL!B$4:G$3494,4,0) -> MGC Wetzlar
A138: =+Teilnehmer!B204 -> 67042 | B138: =VLOOKUP(A138,DRL!B$4:G$3494,3,0) -> H | C138: =VLOOKUP(A138,DRL!B$4:G$3494,2,0) -> Stübiger, Connor | D138: =VLOOKUP(A138,DRL!B$4:G$3494,4,0) -> BGSV Aßlar
A139: =+Teilnehmer!B205 -> 38201 | B139: =VLOOKUP(A139,DRL!B$4:G$3494,3,0) -> H | C139: =VLOOKUP(A139,DRL!B$4:G$3494,2,0) -> Winter, Simon Leon | D139: =VLOOKUP(A139,DRL!B$4:G$3494,4,0) -> MGC Wetzlar
A140: =+Teilnehmer!B206 -> 66515 | B140: =VLOOKUP(A140,DRL!B$4:G$3494,3,0) -> SM I | C140: =VLOOKUP(A140,DRL!B$4:G$3494,2,0) -> Wonka, Hans Joachim | D140: =VLOOKUP(A140,DRL!B$4:G$3494,4,0) -> TSV Pfungstadt
A141: =+Teilnehmer!B207 -> 0 | B141: =VLOOKUP(A141,DRL!B$4:G$3494,3,0) ->  | C141: =VLOOKUP(A141,DRL!B$4:G$3494,2,0) ->  | D141: =VLOOKUP(A141,DRL!B$4:G$3494,4,0) -> 
A142: =+Teilnehmer!B208 -> 0 | B142: =VLOOKUP(A142,DRL!B$4:G$3494,3,0) ->  | C142: =VLOOKUP(A142,DRL!B$4:G$3494,2,0) ->  | D142: =VLOOKUP(A142,DRL!B$4:G$3494,4,0) -> 
A143: =+Teilnehmer!B209 -> 0 | B143: =VLOOKUP(A143,DRL!B$4:G$3494,3,0) ->  | C143: =VLOOKUP(A143,DRL!B$4:G$3494,2,0) ->  | D143: =VLOOKUP(A143,DRL!B$4:G$3494,4,0) -> 
A144: =+Teilnehmer!B210 -> 0 | B144: =VLOOKUP(A144,DRL!B$4:G$3494,3,0) ->  | C144: =VLOOKUP(A144,DRL!B$4:G$3494,2,0) ->  | D144: =VLOOKUP(A144,DRL!B$4:G$3494,4,0) -> 
A145: =+Teilnehmer!B211 -> 0 | B145: =VLOOKUP(A145,DRL!B$4:G$3494,3,0) ->  | C145: =VLOOKUP(A145,DRL!B$4:G$3494,2,0) ->  | D145: =VLOOKUP(A145,DRL!B$4:G$3494,4,0) -> 
A146: Pass-Nr. | B146: Kat. | C146: Allg. Klasse Damen | D146: Verein | E146: 1. Rd. | F146: 2. Rd. | G146: 1 - 2 | H146: 3. Rd. | I146: 1 - 3 | J146: 4. Rd. | K146: Ges. | L146: Diff | M146: =CONCATENATE(COUNTIF(A147:A155,">0")," gemeldete Teilnehmer") -> 3 gemeldete Teilnehmer
A147: =+Teilnehmer!B220 -> 67789 | B147: =VLOOKUP(A147,DRL!B$4:G$3494,3,0) -> D | C147: =VLOOKUP(A147,DRL!B$4:G$3494,2,0) -> Hawryluk, Stefanie | D147: =VLOOKUP(A147,DRL!B$4:G$3494,4,0) -> BGSV Aßlar
A148: =+Teilnehmer!B221 -> 42429 | B148: =VLOOKUP(A148,DRL!B$4:G$3494,3,0) -> SW II | C148: =VLOOKUP(A148,DRL!B$4:G$3494,2,0) -> Krumay, Patricia | D148: =VLOOKUP(A148,DRL!B$4:G$3494,4,0) -> TSV Pfungstadt
A149: =+Teilnehmer!B222 -> 67347 | B149: =VLOOKUP(A149,DRL!B$4:G$3494,3,0) -> D | C149: =VLOOKUP(A149,DRL!B$4:G$3494,2,0) -> Schüßler, Jana | D149: =VLOOKUP(A149,DRL!B$4:G$3494,4,0) -> MSC Bensheim-Auerbach
A150: =+Teilnehmer!B223 -> 0 | B150: =VLOOKUP(A150,DRL!B$4:G$3494,3,0) ->  | C150: =VLOOKUP(A150,DRL!B$4:G$3494,2,0) ->  | D150: =VLOOKUP(A150,DRL!B$4:G$3494,4,0) -> 
A151: =+Teilnehmer!B224 -> 0 | B151: =VLOOKUP(A151,DRL!B$4:G$3494,3,0) ->  | C151: =VLOOKUP(A151,DRL!B$4:G$3494,2,0) ->  | D151: =VLOOKUP(A151,DRL!B$4:G$3494,4,0) -> 
A152: =+Teilnehmer!B225 -> 0 | B152: =VLOOKUP(A152,DRL!B$4:G$3494,3,0) ->  | C152: =VLOOKUP(A152,DRL!B$4:G$3494,2,0) ->  | D152: =VLOOKUP(A152,DRL!B$4:G$3494,4,0) -> 
A153: =+Teilnehmer!B226 -> 0 | B153: =VLOOKUP(A153,DRL!B$4:G$3494,3,0) ->  | C153: =VLOOKUP(A153,DRL!B$4:G$3494,2,0) ->  | D153: =VLOOKUP(A153,DRL!B$4:G$3494,4,0) -> 
A154: =+Teilnehmer!B227 -> 0 | B154: =VLOOKUP(A154,DRL!B$4:G$3494,3,0) ->  | C154: =VLOOKUP(A154,DRL!B$4:G$3494,2,0) ->  | D154: =VLOOKUP(A154,DRL!B$4:G$3494,4,0) -> 
A155: =+Teilnehmer!B228 -> 0 | B155: =VLOOKUP(A155,DRL!B$4:G$3494,3,0) ->  | C155: =VLOOKUP(A155,DRL!B$4:G$3494,2,0) ->  | D155: =VLOOKUP(A155,DRL!B$4:G$3494,4,0) -> 
C156: Rundenfarben | E156: 1. Rd. | F156: 2. Rd. | G156: 1 - 2 | H156: 3. Rd. | I156: 1 - 3 | J156: 4. Rd. | K156: Ges.
C157: Farben Miniatur | D157: blau grün rot schwarz | E157: 18 - 19 20 - 24 25 - 29 30 > | F157: 18 - 19 20 - 24 25 - 29 30 > | G157: 36 - 39 40 - 49 50 - 59 60 > | H157: 18 - 19 20 - 24 25 - 29 30 > | I157: 54 - 59 60 - 74 75 - 89 90 > | J157: 18 - 19 20 - 24 25 - 29 30 > | K157: 72 - 79 80 - 99 100 - 129 120 >
C158: Farben Beton | D158: blau grün rot schwarz | E158: 18 - 24 25 - 29 30 - 35 36 > | F158: 18 - 24 25 - 29 30 - 35 36 > | G158: 36 - 49 50 - 59 60 - 71 72 > | H158: 18 - 24 25 - 29 30 - 35 36 > | I158: 54 - 74 75 - 89 90 - 107 108 > | J158: 18 - 24 25 - 29 30 - 35 36 > | K158: 72 - 99 100 - 119 120 - 143 144 >

Sheet Teilnehmer (hidden)
D2: Wettbewerb: | E2: Senioren-Rangliste | F2: Saison: | G2: 2024 | I2: =CONCATENATE("Senioren - Liga ",G2) -> Senioren - Liga 2024
E3: Teilnehmerliste | J3: Teilnehmerliste | M3: Spielorte und Daten | S3: Rundenfarben | Y3: Wettbewerb: | Z3: Senioren-Rangliste
D4: Kat: | E4: Sm I | J4: Mannschaften | Z4: Jugend-Rangliste
B5: =COUNTIF(B8:B32,">0") -> 15 | C5: DRL | L5: Anzahl | Z5: D/H-Rangliste
A6: Nr | B6: Pass # | C6: =DRL!E1 -> 2024-01-01 | E6: Name, Vorname | F6: Kat. | G6: Verein | I6: Nr | J6: Mannschaft | K6: Kürzel | L6: Mannschaften | M6: Spieltag | N6: Ort | O6: System | P6: Termin | Q6: Abkürzung | U6: Miniaturgolf | V6: Beton | W6: Filz
L7: =COUNTIF(L8:L23,"WAHR") -> 7 | S7: 1 Runde | Y7: Kat: | Z7: Sm I
A8: 1 | B8: 67990 | C8: =IF(B8="","",VLOOKUP($B8,DRL!$B$4:$G$4400,6,FALSE)) -> 108.796 | E8: =IF($B8="",CONCATENATE("ZSM1_",$A8),VLOOKUP($B8,DRL!$B$4:$G$4400,2,FALSE)) -> Bohlig, Jörg | F8: =IF($B8="",$A8,VLOOKUP($B8,DRL!$B$4:$G$4400,3,FALSE)) -> SM I | G8: =IF($B8="",CONCATENATE("ZSM1_",$A8),VLOOKUP($B8,DRL!$B$4:$G$4400,4,FALSE)) -> MGC Kahler Sandhasen | I8: 1 | J8: SG Arheilgen | K8: A1 | L8: =ISTEXT(K8) -> TRUE | M8: 1 | N8: Pfungstadt | O8: Miniaturgolf | P8: 2024-03-24 | Q8: Pfu | S8: Blau | T8: < | U8: 20 | V8: 25 | W8: 30 | Z8: Sm II
A9: 2 | B9: 66852 | C9: =IF(B9="","",VLOOKUP($B9,DRL!$B$4:$G$4400,6,FALSE)) -> 101.653 | E9: =IF($B9="",CONCATENATE("ZSM1_",$A9),VLOOKUP($B9,DRL!$B$4:$G$4400,2,FALSE)) -> Cech, Andree | F9: =IF($B9="",$A9,VLOOKUP($B9,DRL!$B$4:$G$4400,3,FALSE)) -> SM I | G9: =IF($B9="",CONCATENATE("ZSM1_",$A9),VLOOKUP($B9,DRL!$B$4:$G$4400,4,FALSE)) -> BGSV Aßlar | I9: 2 | J9: BGSV Aßlar | K9: ß1 | L9: TRUE | M9: 2 | N9: Wetzlar | O9: Miniaturgolf | P9: 2024-04-21 | Q9: Wetz | S9: Grün | T9: < | U9: 25 | V9: 30 | W9: 36 | Z9: Sw I
A10: 3 | B10: 38329 | C10: =IF(B10="","",VLOOKUP($B10,DRL!$B$4:$G$4400,6,FALSE)) -> 102.222 | E10: =IF($B10="",CONCATENATE("ZSM1_",$A10),VLOOKUP($B10,DRL!$B$4:$G$4400,2,FALSE)) -> Dittrich, Michael | F10: =IF($B10="",$A10,VLOOKUP($B10,DRL!$B$4:$G$4400,3,FALSE)) -> SM I | G10: =IF($B10="",CONCATENATE("ZSM1_",$A10),VLOOKUP($B10,DRL!$B$4:$G$4400,4,FALSE)) -> MGC putter Künzell | I10: 3 | J10: MSC Bensheim-A.1 | K10: B1 | L10: TRUE | M10: 3 | N10: Kirdorf | O10: Beton | P10: 2024-05-05 | Q10: Kir | S10: Rot | T10: < | U10: 30 | V10: 36 | W10: 40 | Z10: Sw II
A11: 4 | B11: 37864 | C11: =IF(B11="","",VLOOKUP($B11,DRL!$B$4:$G$4400,6,FALSE)) -> 110.371 | E11: =IF($B11="",CONCATENATE("ZSM1_",$A11),VLOOKUP($B11,DRL!$B$4:$G$4400,2,FALSE)) -> Drebert, Erich | F11: =IF($B11="",$A11,VLOOKUP($B11,DRL!$B$4:$G$4400,3,FALSE)) -> SM I | G11: =IF($B11="",CONCATENATE("ZSM1_",$A11),VLOOKUP($B11,DRL!$B$4:$G$4400,4,FALSE)) -> SG 1886 Weiterstadt | I11: 4 | J11: MSC Bensheim-A.2 | K11: B2 | L11: TRUE | M11: 4 | N11: Kahl | O11: Miniaturgolf | P11: 2024-06-02 | Q11: Kahl | S11: Schwarz | T11: >= | U11: 30 | V11: 36 | W11: 40 | Z11: Schm
A12: 5 | B12: 46823 | C12: =IF(B12="","",VLOOKUP($B12,DRL!$B$4:$G$4400,6,FALSE)) -> 101.574 | E12: =IF($B12="",CONCATENATE("ZSM1_",$A12),VLOOKUP($B12,DRL!$B$4:$G$4400,2,FALSE)) -> Herzog, Ralf | F12: =IF($B12="",$A12,VLOOKUP($B12,DRL!$B$4:$G$4400,3,FALSE)) -> SM I | G12: =IF($B12="",CONCATENATE("ZSM1_",$A12),VLOOKUP($B12,DRL!$B$4:$G$4400,4,FALSE)) -> TSV Pfungstadt | I12: 5 | J12: MSC Bensheim-A.3 | K12: B3 | L12: TRUE | Z12: Schw
A13: 6 | B13: 44929 | C13: =IF(B13="","",VLOOKUP($B13,DRL!$B$4:$G$4400,6,FALSE)) -> 99.673 | E13: =IF($B13="",CONCATENATE("ZSM1_",$A13),VLOOKUP($B13,DRL!$B$4:$G$4400,2,FALSE)) -> Hess, Rainer | F13: =IF($B13="",$A13,VLOOKUP($B13,DRL!$B$4:$G$4400,3,FALSE)) -> SM I | G13: =IF($B13="",CONCATENATE("ZSM1_",$A13),VLOOKUP($B13,DRL!$B$4:$G$4400,4,FALSE)) -> SG Arheilgen | I13: 6 | J13: MGC Kahler Sandhasen | K13: K1 | L13: TRUE | S13: 2 Runden | Z13: Jm
A14: 7 | B14: 40541 | C14: =IF(B14="","",VLOOKUP($B14,DRL!$B$4:$G$4400,6,FALSE)) -> 98.672 | E14: =IF($B14="",CONCATENATE("ZSM1_",$A14),VLOOKUP($B14,DRL!$B$4:$G$4400,2,FALSE)) -> Isenbiel, Oliver | F14: =IF($B14="",$A14,VLOOKUP($B14,DRL!$B$4:$G$4400,3,FALSE)) -> SM I | G14: =IF($B14="",CONCATENATE("ZSM1_",$A14),VLOOKUP($B14,DRL!$B$4:$G$4400,4,FALSE)) -> MSC Bensheim-Auerbach | I14: 7 | J14: SG Weiterstadt | K14: W1 | L14: TRUE | M14: Veranstalter | S14: Blau | T14: < | U14: =U8*2 -> 40 | V14: 50 | W14: 60 | Z14: Jw
A15: 8 | B15: 67793 | C15: =IF(B15="","",VLOOKUP($B15,DRL!$B$4:$G$4400,6,FALSE)) -> 101.492 | E15: =IF($B15="",CONCATENATE("ZSM1_",$A15),VLOOKUP($B15,DRL!$B$4:$G$4400,2,FALSE)) -> Joch, Peter | F15: =IF($B15="",$A15,VLOOKUP($B15,DRL!$B$4:$G$4400,3,FALSE)) -> SM I | G15: =IF($B15="",CONCATENATE("ZSM1_",$A15),VLOOKUP($B15,DRL!$B$4:$G$4400,4,FALSE)) -> MSC Bensheim-Auerbach | I15: 8 | J15: Ma 8 | L15: FALSE | M15: 1 | N15: TSV Pfungstadt | S15: Grün | T15: < | U15: 50 | V15: 60 | W15: 72 | Z15: D
A16: 9 | B16: 37865 | C16: =IF(B16="","",VLOOKUP($B16,DRL!$B$4:$G$4400,6,FALSE)) -> 102.155 | E16: =IF($B16="",CONCATENATE("ZSM1_",$A16),VLOOKUP($B16,DRL!$B$4:$G$4400,2,FALSE)) -> Mally, Joachim | F16: =IF($B16="",$A16,VLOOKUP($B16,DRL!$B$4:$G$4400,3,FALSE)) -> SM I | G16: =IF($B16="",CONCATENATE("ZSM1_",$A16),VLOOKUP($B16,DRL!$B$4:$G$4400,4,FALSE)) -> MSC Bensheim-Auerbach | I16: 9 | J16: Ma 9 | L16: FALSE | M16: 2 | N16: MGC Wetzlar | S16: Rot | T16: < | U16: =U10*2 -> 60 | V16: 72 | W16: 80 | Z16: H
A17: 10 | B17: 67213 | C17: =IF(B17="","",VLOOKUP($B17,DRL!$B$4:$G$4400,6,FALSE)) -> 107.561 | E17: =IF($B17="",CONCATENATE("ZSM1_",$A17),VLOOKUP($B17,DRL!$B$4:$G$4400,2,FALSE)) -> Paul, Gerd | F17: =IF($B17="",$A17,VLOOKUP($B17,DRL!$B$4:$G$4400,3,FALSE)) -> SM I | G17: =IF($B17="",CONCATENATE("ZSM1_",$A17),VLOOKUP($B17,DRL!$B$4:$G$4400,4,FALSE)) -> MGC Bad Homburg | I17: 10 | J17: Ma 10 | L17: FALSE | M17: 3 | N17: MGC Bad Homburg | S17: Schwarz | T17: >= | U17: 60 | V17: 72 | W17: 80
A18: 11 | B18: 66666 | C18: =IF(B18="","",VLOOKUP($B18,DRL!$B$4:$G$4400,6,FALSE)) -> 105.096 | E18: =IF($B18="",CONCATENATE("ZSM1_",$A18),VLOOKUP($B18,DRL!$B$4:$G$4400,2,FALSE)) -> Schneider, Timm | F18: =IF($B18="",$A18,VLOOKUP($B18,DRL!$B$4:$G$4400,3,FALSE)) -> SM I | G18: =IF($B18="",CONCATENATE("ZSM1_",$A18),VLOOKUP($B18,DRL!$B$4:$G$4400,4,FALSE)) -> SG Arheilgen | I18: 11 | J18: Ma 11 | L18: FALSE | M18: 4 | N18: MGC Kahler Sandhasen
A19: 12 | B19: 48644 | C19: =IF(B19="","",VLOOKUP($B19,DRL!$B$4:$G$4400,6,FALSE)) -> 101.891 | E19: =IF($B19="",CONCATENATE("ZSM1_",$A19),VLOOKUP($B19,DRL!$B$4:$G$4400,2,FALSE)) -> Timm, Axel Eric | F19: =IF($B19="",$A19,VLOOKUP($B19,DRL!$B$4:$G$4400,3,FALSE)) -> SM I | G19: =IF($B19="",CONCATENATE("ZSM1_",$A19),VLOOKUP($B19,DRL!$B$4:$G$4400,4,FALSE)) -> TSV Pfungstadt | I19: 12 | J19: Ma 12 | L19: FALSE | S19: 3 Runden
A20: 13 | B20: 30869 | C20: =IF(B20="","",VLOOKUP($B20,DRL!$B$4:$G$4400,6,FALSE)) -> 100.43 | E20: =IF($B20="",CONCATENATE("ZSM1_",$A20),VLOOKUP($B20,DRL!$B$4:$G$4400,2,FALSE)) -> Träger, Andreas | F20: =IF($B20="",$A20,VLOOKUP($B20,DRL!$B$4:$G$4400,3,FALSE)) -> SM II | G20: =IF($B20="",CONCATENATE("ZSM1_",$A20),VLOOKUP($B20,DRL!$B$4:$G$4400,4,FALSE)) -> MSC Bensheim-Auerbach | I20: 13 | J20: Ma 13 | L20: FALSE | S20: Blau | T20: < | U20: =U8*3 -> 60 | V20: 75 | W20: 90
A21: 14 | B21: 38133 | C21: =IF(B21="","",VLOOKUP($B21,DRL!$B$4:$G$4400,6,FALSE)) -> 106.24 | E21: =IF($B21="",CONCATENATE("ZSM1_",$A21),VLOOKUP($B21,DRL!$B$4:$G$4400,2,FALSE)) -> Tröller, Jürgen | F21: =IF($B21="",$A21,VLOOKUP($B21,DRL!$B$4:$G$4400,3,FALSE)) -> SM I | G21: =IF($B21="",CONCATENATE("ZSM1_",$A21),VLOOKUP($B21,DRL!$B$4:$G$4400,4,FALSE)) -> MSC Bensheim-Auerbach | I21: 14 | J21: Ma 14 | L21: FALSE | S21: Grün | T21: < | U21: 75 | V21: 90 | W21: 108
A22: 15 | B22: 67992 | C22: =IF(B22="","",VLOOKUP($B22,DRL!$B$4:$G$4400,6,FALSE)) -> 105.246 | E22: =IF($B22="",CONCATENATE("ZSM1_",$A22),VLOOKUP($B22,DRL!$B$4:$G$4400,2,FALSE)) -> Uhlmann, Torsten | F22: =IF($B22="",$A22,VLOOKUP($B22,DRL!$B$4:$G$4400,3,FALSE)) -> SM I | G22: =IF($B22="",CONCATENATE("ZSM1_",$A22),VLOOKUP($B22,DRL!$B$4:$G$4400,4,FALSE)) -> MGC Kahler Sandhasen | I22: 15 | J22: Ma 15 | L22: FALSE | S22: Rot | T22: < | U22: =U10*3 -> 90 | V22: 108 | W22: 120
A23: 16 | C23: =IF(B23="","",VLOOKUP($B23,DRL!$B$4:$G$4400,6,FALSE)) ->  | E23: =IF($B23="",CONCATENATE("ZSM1_",$A23),VLOOKUP($B23,DRL!$B$4:$G$4400,2,FALSE)) -> ZSM1_16 | F23: =IF($B23="",$A23,VLOOKUP($B23,DRL!$B$4:$G$4400,3,FALSE)) -> 16 | G23: =IF($B23="",CONCATENATE("ZSM1_",$A23),VLOOKUP($B23,DRL!$B$4:$G$4400,4,FALSE)) -> ZSM1_16 | I23: 16 | J23: Ma 16 | L23: FALSE | S23: Schwarz | T23: >= | U23: 90 | V23: 108 | W23: 120
A24: 17 | C24: =IF(B24="","",VLOOKUP($B24,DRL!$B$4:$G$4400,6,FALSE)) ->  | E24: =IF($B24="",CONCATENATE("ZSM1_",$A24),VLOOKUP($B24,DRL!$B$4:$G$4400,2,FALSE)) -> ZSM1_17 | F24: =IF($B24="",$A24,VLOOKUP($B24,DRL!$B$4:$G$4400,3,FALSE)) -> 17 | G24: =IF($B24="",CONCATENATE("ZSM1_",$A24),VLOOKUP($B24,DRL!$B$4:$G$4400,4,FALSE)) -> ZSM1_17
A25: 18 | C25: =IF(B25="","",VLOOKUP($B25,DRL!$B$4:$G$4400,6,FALSE)) ->  | E25: =IF($B25="",CONCATENATE("ZSM1_",$A25),VLOOKUP($B25,DRL!$B$4:$G$4400,2,FALSE)) -> ZSM1_18 | F25: =IF($B25="",$A25,VLOOKUP($B25,DRL!$B$4:$G$4400,3,FALSE)) -> 18 | G25: =IF($B25="",CONCATENATE("ZSM1_",$A25),VLOOKUP($B25,DRL!$B$4:$G$4400,4,FALSE)) -> ZSM1_18 | S25: 4 Runden
A26: 19 | C26: =IF(B26="","",VLOOKUP($B26,DRL!$B$4:$G$4400,6,FALSE)) ->  | E26: =IF($B26="",CONCATENATE("ZSM1_",$A26),VLOOKUP($B26,DRL!$B$4:$G$4400,2,FALSE)) -> ZSM1_19 | F26: =IF($B26="",$A26,VLOOKUP($B26,DRL!$B$4:$G$4400,3,FALSE)) -> 19 | G26: =IF($B26="",CONCATENATE("ZSM1_",$A26),VLOOKUP($B26,DRL!$B$4:$G$4400,4,FALSE)) -> ZSM1_19 | S26: Blau | T26: < | U26: =U8*4 -> 80 | V26: 100 | W26: 120
A27: 20 | C27: =IF(B27="","",VLOOKUP($B27,DRL!$B$4:$G$4400,6,FALSE)) ->  | E27: =IF($B27="",CONCATENATE("ZSM1_",$A27),VLOOKUP($B27,DRL!$B$4:$G$4400,2,FALSE)) -> ZSM1_20 | F27: =IF($B27="",$A27,VLOOKUP($B27,DRL!$B$4:$G$4400,3,FALSE)) -> 20 | G27: =IF($B27="",CONCATENATE("ZSM1_",$A27),VLOOKUP($B27,DRL!$B$4:$G$4400,4,FALSE)) -> ZSM1_20 | S27: Grün | T27: < | U27: 100 | V27: 120 | W27: 144
A28: 21 | C28: =IF(B28="","",VLOOKUP($B28,DRL!$B$4:$G$4400,6,FALSE)) ->  | E28: =IF($B28="",CONCATENATE("ZSM1_",$A28),VLOOKUP($B28,DRL!$B$4:$G$4400,2,FALSE)) -> ZSM1_21 | F28: =IF($B28="",$A28,VLOOKUP($B28,DRL!$B$4:$G$4400,3,FALSE)) -> 21 | G28: =IF($B28="",CONCATENATE("ZSM1_",$A28),VLOOKUP($B28,DRL!$B$4:$G$4400,4,FALSE)) -> ZSM1_21 | S28: Rot | T28: < | U28: =U10*4 -> 120 | V28: 144 | W28: 160
A29: 22 | C29: =IF(B29="","",VLOOKUP($B29,DRL!$B$4:$G$4400,6,FALSE)) ->  | E29: =IF($B29="",CONCATENATE("ZSM1_",$A29),VLOOKUP($B29,DRL!$B$4:$G$4400,2,FALSE)) -> ZSM1_22 | F29: =IF($B29="",$A29,VLOOKUP($B29,DRL!$B$4:$G$4400,3,FALSE)) -> 22 | G29: =IF($B29="",CONCATENATE("ZSM1_",$A29),VLOOKUP($B29,DRL!$B$4:$G$4400,4,FALSE)) -> ZSM1_22 | S29: Schwarz | T29: >= | U29: 120 | V29: 144 | W29: 160
A30: 23 | C30: =IF(B30="","",VLOOKUP($B30,DRL!$B$4:$G$4400,6,FALSE)) ->  | E30: =IF($B30="",CONCATENATE("ZSM1_",$A30),VLOOKUP($B30,DRL!$B$4:$G$4400,2,FALSE)) -> ZSM1_23 | F30: =IF($B30="",$A30,VLOOKUP($B30,DRL!$B$4:$G$4400,3,FALSE)) -> 23 | G30: =IF($B30="",CONCATENATE("ZSM1_",$A30),VLOOKUP($B30,DRL!$B$4:$G$4400,4,FALSE)) -> ZSM1_23
A31: 24 | C31: =IF(B31="","",VLOOKUP($B31,DRL!$B$4:$G$4400,6,FALSE)) ->  | E31: =IF($B31="",CONCATENATE("ZSM1_",$A31),VLOOKUP($B31,DRL!$B$4:$G$4400,2,FALSE)) -> ZSM1_24 | F31: =IF($B31="",$A31,VLOOKUP($B31,DRL!$B$4:$G$4400,3,FALSE)) -> 24 | G31: =IF($B31="",CONCATENATE("ZSM1_",$A31),VLOOKUP($B31,DRL!$B$4:$G$4400,4,FALSE)) -> ZSM1_24
A32: 25 | C32: =IF(B32="","",VLOOKUP($B32,DRL!$B$4:$G$4400,6,FALSE)) ->  | E32: =IF($B32="",CONCATENATE("ZSM1_",$A32),VLOOKUP($B32,DRL!$B$4:$G$4400,2,FALSE)) -> ZSM1_25 | F32: =IF($B32="",$A32,VLOOKUP($B32,DRL!$B$4:$G$4400,3,FALSE)) -> 25 | G32: =IF($B32="",CONCATENATE("ZSM1_",$A32),VLOOKUP($B32,DRL!$B$4:$G$4400,4,FALSE)) -> ZSM1_25
D35: Wettbewerb: | E35: =E2 -> Senioren-Rangliste | F35: Saison: | G35: =G2 -> 2024
E36: =E3 -> Teilnehmerliste
D37: Kat: | E37: Sm II
B38: =COUNTIF(B41:B70,">0") -> 25 | C38: =C$5 -> DRL
A39: =A$6 -> Nr | B39: Pass # | C39: 2024-01-01 | E39: Name, Vorname | F39: Kat. | G39: Verein
A41: 1 | B41: 35779 | C41: =IF(B41="","",VLOOKUP($B41,DRL!$B$4:$G$4400,6,FALSE)) -> 102.782 | E41: =IF($B41="",CONCATENATE("ZSM2_",$A41),VLOOKUP($B41,DRL!$B$4:$G$4400,2,FALSE)) -> Arnold, Günter | F41: =IF($B41="",$A41,VLOOKUP($B41,DRL!$B$4:$G$4400,3,FALSE)) -> SM II | G41: =IF($B41="",CONCATENATE("ZSM2_",$A41),VLOOKUP($B41,DRL!$B$4:$G$4400,4,FALSE)) -> BGSV Aßlar
A42: 2 | B42: 22165 | C42: =IF(B42="","",VLOOKUP($B42,DRL!$B$4:$G$4400,6,FALSE)) -> 100.91 | E42: =IF($B42="",CONCATENATE("ZSM2_",$A42),VLOOKUP($B42,DRL!$B$4:$G$4400,2,FALSE)) -> Buchert, Harald | F42: =IF($B42="",$A42,VLOOKUP($B42,DRL!$B$4:$G$4400,3,FALSE)) -> SM II | G42: =IF($B42="",CONCATENATE("ZSM2_",$A42),VLOOKUP($B42,DRL!$B$4:$G$4400,4,FALSE)) -> MSC Bensheim-Auerbach
A43: 3 | B43: 66043 | C43: =IF(B43="","",VLOOKUP($B43,DRL!$B$4:$G$4400,6,FALSE)) -> 100.399 | E43: =IF($B43="",CONCATENATE("ZSM2_",$A43),VLOOKUP($B43,DRL!$B$4:$G$4400,2,FALSE)) -> Droste, Peter | F43: =IF($B43="",$A43,VLOOKUP($B43,DRL!$B$4:$G$4400,3,FALSE)) -> SM II | G43: =IF($B43="",CONCATENATE("ZSM2_",$A43),VLOOKUP($B43,DRL!$B$4:$G$4400,4,FALSE)) -> TSV Pfungstadt
A44: 4 | B44: 67313 | C44: =IF(B44="","",VLOOKUP($B44,DRL!$B$4:$G$4400,6,FALSE)) -> 110.874 | E44: =IF($B44="",CONCATENATE("ZSM2_",$A44),VLOOKUP($B44,DRL!$B$4:$G$4400,2,FALSE)) -> Effenberger, Thomas | F44: =IF($B44="",$A44,VLOOKUP($B44,DRL!$B$4:$G$4400,3,FALSE)) -> SM II | G44: =IF($B44="",CONCATENATE("ZSM2_",$A44),VLOOKUP($B44,DRL!$B$4:$G$4400,4,FALSE)) -> MGC Bad Homburg
A45: 5 | B45: 67059 | C45: =IF(B45="","",VLOOKUP($B45,DRL!$B$4:$G$4400,6,FALSE)) -> 103.911 | E45: =IF($B45="",CONCATENATE("ZSM2_",$A45),VLOOKUP($B45,DRL!$B$4:$G$4400,2,FALSE)) -> Fiedler, Wolfgang | F45: =IF($B45="",$A45,VLOOKUP($B45,DRL!$B$4:$G$4400,3,FALSE)) -> SM II | G45: =IF($B45="",CONCATENATE("ZSM2_",$A45),VLOOKUP($B45,DRL!$B$4:$G$4400,4,FALSE)) -> BGSV Aßlar
A46: 6 | B46: 67995 | C46: =IF(B46="","",VLOOKUP($B46,DRL!$B$4:$G$4400,6,FALSE)) -> 106.656 | E46: =IF($B46="",CONCATENATE("ZSM2_",$A46),VLOOKUP($B46,DRL!$B$4:$G$4400,2,FALSE)) -> Flanderka, Wolfgang | F46: =IF($B46="",$A46,VLOOKUP($B46,DRL!$B$4:$G$4400,3,FALSE)) -> SM II | G46: =IF($B46="",CONCATENATE("ZSM2_",$A46),VLOOKUP($B46,DRL!$B$4:$G$4400,4,FALSE)) -> MGC Kahler Sandhasen
A47: 7 | B47: 38490 | C47: =IF(B47="","",VLOOKUP($B47,DRL!$B$4:$G$4400,6,FALSE)) -> 102.003 | E47: =IF($B47="",CONCATENATE("ZSM2_",$A47),VLOOKUP($B47,DRL!$B$4:$G$4400,2,FALSE)) -> Frank, Rolf | F47: =IF($B47="",$A47,VLOOKUP($B47,DRL!$B$4:$G$4400,3,FALSE)) -> SM II | G47: =IF($B47="",CONCATENATE("ZSM2_",$A47),VLOOKUP($B47,DRL!$B$4:$G$4400,4,FALSE)) -> BGSV Bad Homburg
A48: 8 | B48: 27550 | C48: =IF(B48="","",VLOOKUP($B48,DRL!$B$4:$G$4400,6,FALSE)) -> 100.86 | E48: =IF($B48="",CONCATENATE("ZSM2_",$A48),VLOOKUP($B48,DRL!$B$4:$G$4400,2,FALSE)) -> Fritsch, Hans-Peter | F48: =IF($B48="",$A48,VLOOKUP($B48,DRL!$B$4:$G$4400,3,FALSE)) -> SM II | G48: =IF($B48="",CONCATENATE("ZSM2_",$A48),VLOOKUP($B48,DRL!$B$4:$G$4400,4,FALSE)) -> MSC Bensheim-Auerbach
A49: 9 | B49: 67788 | C49: =IF(B49="","",VLOOKUP($B49,DRL!$B$4:$G$4400,6,FALSE)) -> 112.732 | E49: =IF($B49="",CONCATENATE("ZSM2_",$A49),VLOOKUP($B49,DRL!$B$4:$G$4400,2,FALSE)) -> Hartz, Detlef | F49: =IF($B49="",$A49,VLOOKUP($B49,DRL!$B$4:$G$4400,3,FALSE)) -> SM II | G49: =IF($B49="",CONCATENATE("ZSM2_",$A49),VLOOKUP($B49,DRL!$B$4:$G$4400,4,FALSE)) -> BGSV Bad Homburg
A50: 10 | B50: 67126 | C50: =IF(B50="","",VLOOKUP($B50,DRL!$B$4:$G$4400,6,FALSE)) -> 999 | E50: =IF($B50="",CONCATENATE("ZSM2_",$A50),VLOOKUP($B50,DRL!$B$4:$G$4400,2,FALSE)) -> Heber, Bernd | F50: =IF($B50="",$A50,VLOOKUP($B50,DRL!$B$4:$G$4400,3,FALSE)) -> SM II | G50: =IF($B50="",CONCATENATE("ZSM2_",$A50),VLOOKUP($B50,DRL!$B$4:$G$4400,4,FALSE)) -> SG 1886 Weiterstadt
A51: 11 | B51: 50172 | C51: =IF(B51="","",VLOOKUP($B51,DRL!$B$4:$G$4400,6,FALSE)) -> 98.878 | E51: =IF($B51="",CONCATENATE("ZSM2_",$A51),VLOOKUP($B51,DRL!$B$4:$G$4400,2,FALSE)) -> Hilß, Reinhold | F51: =IF($B51="",$A51,VLOOKUP($B51,DRL!$B$4:$G$4400,3,FALSE)) -> SM II | G51: =IF($B51="",CONCATENATE("ZSM2_",$A51),VLOOKUP($B51,DRL!$B$4:$G$4400,4,FALSE)) -> MSC Bensheim-Auerbach
A52: 12 | B52: 34878 | C52: =IF(B52="","",VLOOKUP($B52,DRL!$B$4:$G$4400,6,FALSE)) -> 99.67 | E52: =IF($B52="",CONCATENATE("ZSM2_",$A52),VLOOKUP($B52,DRL!$B$4:$G$4400,2,FALSE)) -> Jung, Horst | F52: =IF($B52="",$A52,VLOOKUP($B52,DRL!$B$4:$G$4400,3,FALSE)) -> SM II | G52: =IF($B52="",CONCATENATE("ZSM2_",$A52),VLOOKUP($B52,DRL!$B$4:$G$4400,4,FALSE)) -> MSC Bensheim-Auerbach
A53: 13 | B53: 66302 | C53: =IF(B53="","",VLOOKUP($B53,DRL!$B$4:$G$4400,6,FALSE)) -> 103.004 | E53: =IF($B53="",CONCATENATE("ZSM2_",$A53),VLOOKUP($B53,DRL!$B$4:$G$4400,2,FALSE)) -> Kaisr, Alois | F53: =IF($B53="",$A53,VLOOKUP($B53,DRL!$B$4:$G$4400,3,FALSE)) -> SM II | G53: =IF($B53="",CONCATENATE("ZSM2_",$A53),VLOOKUP($B53,DRL!$B$4:$G$4400,4,FALSE)) -> BGSV Aßlar
A54: 14 | B54: 38341 | C54: =IF(B54="","",VLOOKUP($B54,DRL!$B$4:$G$4400,6,FALSE)) -> 107.725 | E54: =IF($B54="",CONCATENATE("ZSM2_",$A54),VLOOKUP($B54,DRL!$B$4:$G$4400,2,FALSE)) -> Kantor, Harald | F54: =IF($B54="",$A54,VLOOKUP($B54,DRL!$B$4:$G$4400,3,FALSE)) -> SM II | G54: =IF($B54="",CONCATENATE("ZSM2_",$A54),VLOOKUP($B54,DRL!$B$4:$G$4400,4,FALSE)) -> BGSV Bad Homburg
A55: 15 | B55: 24092 | C55: =IF(B55="","",VLOOKUP($B55,DRL!$B$4:$G$4400,6,FALSE)) -> 98.789 | E55: =IF($B55="",CONCATENATE("ZSM2_",$A55),VLOOKUP($B55,DRL!$B$4:$G$4400,2,FALSE)) -> Klee, Hannes | F55: =IF($B55="",$A55,VLOOKUP($B55,DRL!$B$4:$G$4400,3,FALSE)) -> SM II | G55: =IF($B55="",CONCATENATE("ZSM2_",$A55),VLOOKUP($B55,DRL!$B$4:$G$4400,4,FALSE)) -> MSC Bensheim-Auerbach
A56: 16 | B56: 35781 | C56: =IF(B56="","",VLOOKUP($B56,DRL!$B$4:$G$4400,6,FALSE)) -> 100.823 | E56: =IF($B56="",CONCATENATE("ZSM2_",$A56),VLOOKUP($B56,DRL!$B$4:$G$4400,2,FALSE)) -> Krieger, Andreas | F56: =IF($B56="",$A56,VLOOKUP($B56,DRL!$B$4:$G$4400,3,FALSE)) -> SM II | G56: =IF($B56="",CONCATENATE("ZSM2_",$A56),VLOOKUP($B56,DRL!$B$4:$G$4400,4,FALSE)) -> BGSV Bad Homburg
A57: 17 | B57: 67117 | C57: =IF(B57="","",VLOOKUP($B57,DRL!$B$4:$G$4400,6,FALSE)) -> 103.568 | E57: =IF($B57="",CONCATENATE("ZSM2_",$A57),VLOOKUP($B57,DRL!$B$4:$G$4400,2,FALSE)) -> Meyer, Werner | F57: =IF($B57="",$A57,VLOOKUP($B57,DRL!$B$4:$G$4400,3,FALSE)) -> SM II | G57: =IF($B57="",CONCATENATE("ZSM2_",$A57),VLOOKUP($B57,DRL!$B$4:$G$4400,4,FALSE)) -> SG Arheilgen
A58: 18 | B58: 46152 | C58: =IF(B58="","",VLOOKUP($B58,DRL!$B$4:$G$4400,6,FALSE)) -> 104.016 | E58: =IF($B58="",CONCATENATE("ZSM2_",$A58),VLOOKUP($B58,DRL!$B$4:$G$4400,2,FALSE)) -> Nickel, Gerhard | F58: =IF($B58="",$A58,VLOOKUP($B58,DRL!$B$4:$G$4400,3,FALSE)) -> SM II | G58: =IF($B58="",CONCATENATE("ZSM2_",$A58),VLOOKUP($B58,DRL!$B$4:$G$4400,4,FALSE)) -> MGC Wetzlar
A59: 19 | B59: 66529 | C59: =IF(B59="","",VLOOKUP($B59,DRL!$B$4:$G$4400,6,FALSE)) -> 111.212 | E59: =IF($B59="",CONCATENATE("ZSM2_",$A59),VLOOKUP($B59,DRL!$B$4:$G$4400,2,FALSE)) -> Probost, Norbert | F59: =IF($B59="",$A59,VLOOKUP($B59,DRL!$B$4:$G$4400,3,FALSE)) -> SM II | G59: =IF($B59="",CONCATENATE("ZSM2_",$A59),VLOOKUP($B59,DRL!$B$4:$G$4400,4,FALSE)) -> MGC Wetzlar
A60: 20 | B60: 19330 | C60: =IF(B60="","",VLOOKUP($B60,DRL!$B$4:$G$4400,6,FALSE)) -> 109.133 | E60: =IF($B60="",CONCATENATE("ZSM2_",$A60),VLOOKUP($B60,DRL!$B$4:$G$4400,2,FALSE)) -> Rödiger, Peter | F60: =IF($B60="",$A60,VLOOKUP($B60,DRL!$B$4:$G$4400,3,FALSE)) -> SM II | G60: =IF($B60="",CONCATENATE("ZSM2_",$A60),VLOOKUP($B60,DRL!$B$4:$G$4400,4,FALSE)) -> MGC Wetzlar
A61: 21 | B61: 34054 | C61: =IF(B61="","",VLOOKUP($B61,DRL!$B$4:$G$4400,6,FALSE)) -> 101.571 | E61: =IF($B61="",CONCATENATE("ZSM2_",$A61),VLOOKUP($B61,DRL!$B$4:$G$4400,2,FALSE)) -> Rothermel, Dieter | F61: =IF($B61="",$A61,VLOOKUP($B61,DRL!$B$4:$G$4400,3,FALSE)) -> SM II | G61: =IF($B61="",CONCATENATE("ZSM2_",$A61),VLOOKUP($B61,DRL!$B$4:$G$4400,4,FALSE)) -> MSC Bensheim-Auerbach
A62: 22 | B62: 67429 | C62: =IF(B62="","",VLOOKUP($B62,DRL!$B$4:$G$4400,6,FALSE)) -> 106.701 | E62: =IF($B62="",CONCATENATE("ZSM2_",$A62),VLOOKUP($B62,DRL!$B$4:$G$4400,2,FALSE)) -> Schmidt, Klaus | F62: =IF($B62="",$A62,VLOOKUP($B62,DRL!$B$4:$G$4400,3,FALSE)) -> SM II | G62: =IF($B62="",CONCATENATE("ZSM2_",$A62),VLOOKUP($B62,DRL!$B$4:$G$4400,4,FALSE)) -> BGSV Aßlar
A63: 23 | B63: 22127 | C63: =IF(B63="","",VLOOKUP($B63,DRL!$B$4:$G$4400,6,FALSE)) -> 107.643 | E63: =IF($B63="",CONCATENATE("ZSM2_",$A63),VLOOKUP($B63,DRL!$B$4:$G$4400,2,FALSE)) -> Sic, Zoltan | F63: =IF($B63="",$A63,VLOOKUP($B63,DRL!$B$4:$G$4400,3,FALSE)) -> SM II | G63: =IF($B63="",CONCATENATE("ZSM2_",$A63),VLOOKUP($B63,DRL!$B$4:$G$4400,4,FALSE)) -> MGC Bad Homburg
A64: 24 | B64: 34384 | C64: =IF(B64="","",VLOOKUP($B64,DRL!$B$4:$G$4400,6,FALSE)) -> 106.992 | E64: =IF($B64="",CONCATENATE("ZSM2_",$A64),VLOOKUP($B64,DRL!$B$4:$G$4400,2,FALSE)) -> Siebert, Erich | F64: =IF($B64="",$A64,VLOOKUP($B64,DRL!$B$4:$G$4400,3,FALSE)) -> SM II | G64: =IF($B64="",CONCATENATE("ZSM2_",$A64),VLOOKUP($B64,DRL!$B$4:$G$4400,4,FALSE)) -> MGC Wetzlar
A65: 25 | B65: 67991 | C65: =IF(B65="","",VLOOKUP($B65,DRL!$B$4:$G$4400,6,FALSE)) -> 118.471 | E65: =IF($B65="",CONCATENATE("ZSM2_",$A65),VLOOKUP($B65,DRL!$B$4:$G$4400,2,FALSE)) -> Weiß, Klaus | F65: =IF($B65="",$A65,VLOOKUP($B65,DRL!$B$4:$G$4400,3,FALSE)) -> SM II | G65: =IF($B65="",CONCATENATE("ZSM2_",$A65),VLOOKUP($B65,DRL!$B$4:$G$4400,4,FALSE)) -> MGC Kahler Sandhasen
A66: 26 | C66: =IF(B66="","",VLOOKUP($B66,DRL!$B$4:$G$4400,6,FALSE)) ->  | E66: =IF($B66="",CONCATENATE("ZSM2_",$A66),VLOOKUP($B66,DRL!$B$4:$G$4400,2,FALSE)) -> ZSM2_26 | F66: =IF($B66="",$A66,VLOOKUP($B66,DRL!$B$4:$G$4400,3,FALSE)) -> 26 | G66: =IF($B66="",CONCATENATE("ZSM2_",$A66),VLOOKUP($B66,DRL!$B$4:$G$4400,4,FALSE)) -> ZSM2_26
A67: 27 | C67: =IF(B67="","",VLOOKUP($B67,DRL!$B$4:$G$4400,6,FALSE)) ->  | E67: =IF($B67="",CONCATENATE("ZSM2_",$A67),VLOOKUP($B67,DRL!$B$4:$G$4400,2,FALSE)) -> ZSM2_27 | F67: =IF($B67="",$A67,VLOOKUP($B67,DRL!$B$4:$G$4400,3,FALSE)) -> 27 | G67: =IF($B67="",CONCATENATE("ZSM2_",$A67),VLOOKUP($B67,DRL!$B$4:$G$4400,4,FALSE)) -> ZSM2_27
A68: 28 | C68: =IF(B68="","",VLOOKUP($B68,DRL!$B$4:$G$4400,6,FALSE)) ->  | E68: =IF($B68="",CONCATENATE("ZSM2_",$A68),VLOOKUP($B68,DRL!$B$4:$G$4400,2,FALSE)) -> ZSM2_28 | F68: =IF($B68="",$A68,VLOOKUP($B68,DRL!$B$4:$G$4400,3,FALSE)) -> 28 | G68: =IF($B68="",CONCATENATE("ZSM2_",$A68),VLOOKUP($B68,DRL!$B$4:$G$4400,4,FALSE)) -> ZSM2_28
A69: 29 | C69: =IF(B69="","",VLOOKUP($B69,DRL!$B$4:$G$4400,6,FALSE)) ->  | E69: =IF($B69="",CONCATENATE("ZSM2_",$A69),VLOOKUP($B69,DRL!$B$4:$G$4400,2,FALSE)) -> ZSM2_29 | F69: =IF($B69="",$A69,VLOOKUP($B69,DRL!$B$4:$G$4400,3,FALSE)) -> 29 | G69: =IF($B69="",CONCATENATE("ZSM2_",$A69),VLOOKUP($B69,DRL!$B$4:$G$4400,4,FALSE)) -> ZSM2_29
A70: 30 | E70: =IF($B70="",CONCATENATE("ZSM2_",$A70),VLOOKUP($B70,DRL!$B$4:$G$4400,2,FALSE)) -> ZSM2_30 | F70: =IF($B70="",$A70,VLOOKUP($B70,DRL!$B$4:$G$4400,3,FALSE)) -> 30 | G70: =IF($B70="",CONCATENATE("ZSM2_",$A70),VLOOKUP($B70,DRL!$B$4:$G$4400,4,FALSE)) -> ZSM2_30
D72: Wettbewerb: | E72: =E2 -> Senioren-Rangliste | F72: Saison: | G72: =G2 -> 2024
E73: =E3 -> Teilnehmerliste
D74: Kat: | E74: Sw I
B75: =COUNTIF(B78:B87,">0") -> 5 | C75: =C$5 -> DRL
A76: =A$6 -> Nr | B76: Pass # | C76: 2024-01-01 | E76: Name, Vorname | F76: Kat. | G76: Verein
A78: 1 | B78: 47324 | C78: =IF(B78="","",VLOOKUP($B78,DRL!$B$4:$G$4400,6,FALSE)) -> 101.028 | E78: =IF($B78="",CONCATENATE("ZSW1_",$A78),VLOOKUP($B78,DRL!$B$4:$G$4400,2,FALSE)) -> Arnold, Simone | F78: =IF($B78="",$A78,VLOOKUP($B78,DRL!$B$4:$G$4400,3,FALSE)) -> SW I | G78: =IF($B78="",CONCATENATE("ZSW1_",$A78),VLOOKUP($B78,DRL!$B$4:$G$4400,4,FALSE)) -> SG Arheilgen
A79: 2 | B79: 24314 | C79: =IF(B79="","",VLOOKUP($B79,DRL!$B$4:$G$4400,6,FALSE)) -> 102.244 | E79: =IF($B79="",CONCATENATE("ZSW1_",$A79),VLOOKUP($B79,DRL!$B$4:$G$4400,2,FALSE)) -> Geist, Michaela | F79: =IF($B79="",$A79,VLOOKUP($B79,DRL!$B$4:$G$4400,3,FALSE)) -> SW I | G79: =IF($B79="",CONCATENATE("ZSW1_",$A79),VLOOKUP($B79,DRL!$B$4:$G$4400,4,FALSE)) -> MSC Bensheim-Auerbach
A80: 3 | B80: 66636 | C80: =IF(B80="","",VLOOKUP($B80,DRL!$B$4:$G$4400,6,FALSE)) -> 106.237 | E80: =IF($B80="",CONCATENATE("ZSW1_",$A80),VLOOKUP($B80,DRL!$B$4:$G$4400,2,FALSE)) -> Kober, Marion | F80: =IF($B80="",$A80,VLOOKUP($B80,DRL!$B$4:$G$4400,3,FALSE)) -> SW I | G80: =IF($B80="",CONCATENATE("ZSW1_",$A80),VLOOKUP($B80,DRL!$B$4:$G$4400,4,FALSE)) -> MSC Bensheim-Auerbach
A81: 4 | B81: 33393 | C81: =IF(B81="","",VLOOKUP($B81,DRL!$B$4:$G$4400,6,FALSE)) -> 101.284 | E81: =IF($B81="",CONCATENATE("ZSW1_",$A81),VLOOKUP($B81,DRL!$B$4:$G$4400,2,FALSE)) -> Parr, Susanne | F81: =IF($B81="",$A81,VLOOKUP($B81,DRL!$B$4:$G$4400,3,FALSE)) -> SW I | G81: =IF($B81="",CONCATENATE("ZSW1_",$A81),VLOOKUP($B81,DRL!$B$4:$G$4400,4,FALSE)) -> MSC Bensheim-Auerbach
A82: 5 | B82: 67993 | C82: =IF(B82="","",VLOOKUP($B82,DRL!$B$4:$G$4400,6,FALSE)) -> 108.483 | E82: =IF($B82="",CONCATENATE("ZSW1_",$A82),VLOOKUP($B82,DRL!$B$4:$G$4400,2,FALSE)) -> Uhlmann, Petra | F82: =IF($B82="",$A82,VLOOKUP($B82,DRL!$B$4:$G$4400,3,FALSE)) -> SW I | G82: =IF($B82="",CONCATENATE("ZSW1_",$A82),VLOOKUP($B82,DRL!$B$4:$G$4400,4,FALSE)) -> MGC Kahler Sandhasen
A83: 6 | C83: =IF(B83="","",VLOOKUP($B83,DRL!$B$4:$G$4400,6,FALSE)) ->  | E83: =IF($B83="",CONCATENATE("ZSW1_",$A83),VLOOKUP($B83,DRL!$B$4:$G$4400,2,FALSE)) -> ZSW1_6 | F83: =IF($B83="",$A83,VLOOKUP($B83,DRL!$B$4:$G$4400,3,FALSE)) -> 6 | G83: =IF($B83="",CONCATENATE("ZSW1_",$A83),VLOOKUP($B83,DRL!$B$4:$G$4400,4,FALSE)) -> ZSW1_6
A84: 7 | C84: =IF(B84="","",VLOOKUP($B84,DRL!$B$4:$G$4400,6,FALSE)) ->  | E84: =IF($B84="",CONCATENATE("ZSW1_",$A84),VLOOKUP($B84,DRL!$B$4:$G$4400,2,FALSE)) -> ZSW1_7 | F84: =IF($B84="",$A84,VLOOKUP($B84,DRL!$B$4:$G$4400,3,FALSE)) -> 7 | G84: =IF($B84="",CONCATENATE("ZSW1_",$A84),VLOOKUP($B84,DRL!$B$4:$G$4400,4,FALSE)) -> ZSW1_7
A85: 8 | C85: =IF(B85="","",VLOOKUP($B85,DRL!$B$4:$G$4400,6,FALSE)) ->  | E85: =IF($B85="",CONCATENATE("ZSW1_",$A85),VLOOKUP($B85,DRL!$B$4:$G$4400,2,FALSE)) -> ZSW1_8 | F85: =IF($B85="",$A85,VLOOKUP($B85,DRL!$B$4:$G$4400,3,FALSE)) -> 8 | G85: =IF($B85="",CONCATENATE("ZSW1_",$A85),VLOOKUP($B85,DRL!$B$4:$G$4400,4,FALSE)) -> ZSW1_8
A86: 9 | C86: =IF(B86="","",VLOOKUP($B86,DRL!$B$4:$G$4400,6,FALSE)) ->  | E86: =IF($B86="",CONCATENATE("ZSW1_",$A86),VLOOKUP($B86,DRL!$B$4:$G$4400,2,FALSE)) -> ZSW1_9 | F86: =IF($B86="",$A86,VLOOKUP($B86,DRL!$B$4:$G$4400,3,FALSE)) -> 9 | G86: =IF($B86="",CONCATENATE("ZSW1_",$A86),VLOOKUP($B86,DRL!$B$4:$G$4400,4,FALSE)) -> ZSW1_9
A87: 10 | C87: =IF(B87="","",VLOOKUP($B87,DRL!$B$4:$G$4400,6,FALSE)) ->  | E87: =IF($B87="",CONCATENATE("ZSW1_",$A87),VLOOKUP($B87,DRL!$B$4:$G$4400,2,FALSE)) -> ZSW1_10 | F87: =IF($B87="",$A87,VLOOKUP($B87,DRL!$B$4:$G$4400,3,FALSE)) -> 10 | G87: =IF($B87="",CONCATENATE("ZSW1_",$A87),VLOOKUP($B87,DRL!$B$4:$G$4400,4,FALSE)) -> ZSW1_10
D89: Wettbewerb: | E89: =E2 -> Senioren-Rangliste | F89: Saison: | G89: =G2 -> 2024
E90: =E3 -> Teilnehmerliste
D91: Kat: | E91: Sw II
B92: =COUNTIF(B95:B109,">0") -> 12 | C92: =C$5 -> DRL
A93: =A$6 -> Nr | B93: Pass # | C93: 2024-01-01 | E93: Name, Vorname | F93: Kat. | G93: Verein
A95: 1 | B95: 35778 | C95: =IF(B95="","",VLOOKUP($B95,DRL!$B$4:$G$4400,6,FALSE)) -> 104.841 | E95: =IF($B95="",CONCATENATE("ZSW2_",$A95),VLOOKUP($B95,DRL!$B$4:$G$4400,2,FALSE)) -> Arnold, Franziska | F95: =IF($B95="",$A95,VLOOKUP($B95,DRL!$B$4:$G$4400,3,FALSE)) -> SW II | G95: =IF($B95="",CONCATENATE("ZSW2_",$A95),VLOOKUP($B95,DRL!$B$4:$G$4400,4,FALSE)) -> BGSV Aßlar
A96: 2 | B96: 37249 | C96: =IF(B96="","",VLOOKUP($B96,DRL!$B$4:$G$4400,6,FALSE)) -> 108.084 | E96: =IF($B96="",CONCATENATE("ZSW2_",$A96),VLOOKUP($B96,DRL!$B$4:$G$4400,2,FALSE)) -> Boock, Cornelia | F96: =IF($B96="",$A96,VLOOKUP($B96,DRL!$B$4:$G$4400,3,FALSE)) -> SW II | G96: =IF($B96="",CONCATENATE("ZSW2_",$A96),VLOOKUP($B96,DRL!$B$4:$G$4400,4,FALSE)) -> MSC Bensheim-Auerbach
A97: 3 | B97: 40091 | C97: =IF(B97="","",VLOOKUP($B97,DRL!$B$4:$G$4400,6,FALSE)) -> 106.345 | E97: =IF($B97="",CONCATENATE("ZSW2_",$A97),VLOOKUP($B97,DRL!$B$4:$G$4400,2,FALSE)) -> Deck, Monika | F97: =IF($B97="",$A97,VLOOKUP($B97,DRL!$B$4:$G$4400,3,FALSE)) -> SW II | G97: =IF($B97="",CONCATENATE("ZSW2_",$A97),VLOOKUP($B97,DRL!$B$4:$G$4400,4,FALSE)) -> SG Arheilgen
A98: 4 | B98: 66163 | C98: =IF(B98="","",VLOOKUP($B98,DRL!$B$4:$G$4400,6,FALSE)) -> 106.768 | E98: =IF($B98="",CONCATENATE("ZSW2_",$A98),VLOOKUP($B98,DRL!$B$4:$G$4400,2,FALSE)) -> Drebert, Clementine | F98: =IF($B98="",$A98,VLOOKUP($B98,DRL!$B$4:$G$4400,3,FALSE)) -> SW II | G98: =IF($B98="",CONCATENATE("ZSW2_",$A98),VLOOKUP($B98,DRL!$B$4:$G$4400,4,FALSE)) -> SG 1886 Weiterstadt
A99: 5 | B99: 40148 | C99: =IF(B99="","",VLOOKUP($B99,DRL!$B$4:$G$4400,6,FALSE)) -> 104.906 | E99: =IF($B99="",CONCATENATE("ZSW2_",$A99),VLOOKUP($B99,DRL!$B$4:$G$4400,2,FALSE)) -> Faust, Gabriele | F99: =IF($B99="",$A99,VLOOKUP($B99,DRL!$B$4:$G$4400,3,FALSE)) -> SW II | G99: =IF($B99="",CONCATENATE("ZSW2_",$A99),VLOOKUP($B99,DRL!$B$4:$G$4400,4,FALSE)) -> MSC Bensheim-Auerbach
A100: 6 | B100: 68065 | C100: =IF(B100="","",VLOOKUP($B100,DRL!$B$4:$G$4400,6,FALSE)) -> 999 | E100: =IF($B100="",CONCATENATE("ZSW2_",$A100),VLOOKUP($B100,DRL!$B$4:$G$4400,2,FALSE)) -> Heber, Heidi | F100: =IF($B100="",$A100,VLOOKUP($B100,DRL!$B$4:$G$4400,3,FALSE)) -> SW II | G100: =IF($B100="",CONCATENATE("ZSW2_",$A100),VLOOKUP($B100,DRL!$B$4:$G$4400,4,FALSE)) -> SG 1886 Weiterstadt
A101: 7 | B101: 34053 | C101: =IF(B101="","",VLOOKUP($B101,DRL!$B$4:$G$4400,6,FALSE)) -> 101.566 | E101: =IF($B101="",CONCATENATE("ZSW2_",$A101),VLOOKUP($B101,DRL!$B$4:$G$4400,2,FALSE)) -> Rothermel, Ute | F101: =IF($B101="",$A101,VLOOKUP($B101,DRL!$B$4:$G$4400,3,FALSE)) -> SW II | G101: =IF($B101="",CONCATENATE("ZSW2_",$A101),VLOOKUP($B101,DRL!$B$4:$G$4400,4,FALSE)) -> MSC Bensheim-Auerbach
A102: 8 | B102: 67428 | C102: =IF(B102="","",VLOOKUP($B102,DRL!$B$4:$G$4400,6,FALSE)) -> 112.584 | E102: =IF($B102="",CONCATENATE("ZSW2_",$A102),VLOOKUP($B102,DRL!$B$4:$G$4400,2,FALSE)) -> Schmidt, Regina | F102: =IF($B102="",$A102,VLOOKUP($B102,DRL!$B$4:$G$4400,3,FALSE)) -> SW II | G102: =IF($B102="",CONCATENATE("ZSW2_",$A102),VLOOKUP($B102,DRL!$B$4:$G$4400,4,FALSE)) -> BGSV Aßlar
A103: 9 | B103: 67224 | C103: =IF(B103="","",VLOOKUP($B103,DRL!$B$4:$G$4400,6,FALSE)) -> 109.27 | E103: =IF($B103="",CONCATENATE("ZSW2_",$A103),VLOOKUP($B103,DRL!$B$4:$G$4400,2,FALSE)) -> Vallot, Kerstin | F103: =IF($B103="",$A103,VLOOKUP($B103,DRL!$B$4:$G$4400,3,FALSE)) -> SW II | G103: =IF($B103="",CONCATENATE("ZSW2_",$A103),VLOOKUP($B103,DRL!$B$4:$G$4400,4,FALSE)) -> BGSV Aßlar
A104: 10 | B104: 67787 | C104: =IF(B104="","",VLOOKUP($B104,DRL!$B$4:$G$4400,6,FALSE)) -> 104.316 | E104: =IF($B104="",CONCATENATE("ZSW2_",$A104),VLOOKUP($B104,DRL!$B$4:$G$4400,2,FALSE)) -> Wedel, Carmen | F104: =IF($B104="",$A104,VLOOKUP($B104,DRL!$B$4:$G$4400,3,FALSE)) -> SW II | G104: =IF($B104="",CONCATENATE("ZSW2_",$A104),VLOOKUP($B104,DRL!$B$4:$G$4400,4,FALSE)) -> BGSV Bad Homburg
A105: 11 | B105: 68068 | C105: =IF(B105="","",VLOOKUP($B105,DRL!$B$4:$G$4400,6,FALSE)) -> 120.009 | E105: =IF($B105="",CONCATENATE("ZSW2_",$A105),VLOOKUP($B105,DRL!$B$4:$G$4400,2,FALSE)) -> Weiß, Monika | F105: =IF($B105="",$A105,VLOOKUP($B105,DRL!$B$4:$G$4400,3,FALSE)) -> SW II | G105: =IF($B105="",CONCATENATE("ZSW2_",$A105),VLOOKUP($B105,DRL!$B$4:$G$4400,4,FALSE)) -> MGC Kahler Sandhasen
A106: 12 | B106: 33708 | C106: =IF(B106="","",VLOOKUP($B106,DRL!$B$4:$G$4400,6,FALSE)) -> 113.84 | E106: =IF($B106="",CONCATENATE("ZSW2_",$A106),VLOOKUP($B106,DRL!$B$4:$G$4400,2,FALSE)) -> Wimmer, Kirsten | F106: =IF($B106="",$A106,VLOOKUP($B106,DRL!$B$4:$G$4400,3,FALSE)) -> SW II | G106: =IF($B106="",CONCATENATE("ZSW2_",$A106),VLOOKUP($B106,DRL!$B$4:$G$4400,4,FALSE)) -> MSC Bensheim-Auerbach
A107: 13 | C107: =IF(B107="","",VLOOKUP($B107,DRL!$B$4:$G$4400,6,FALSE)) ->  | E107: =IF($B107="",CONCATENATE("ZSW2_",$A107),VLOOKUP($B107,DRL!$B$4:$G$4400,2,FALSE)) -> ZSW2_13 | F107: =IF($B107="",$A107,VLOOKUP($B107,DRL!$B$4:$G$4400,3,FALSE)) -> 13 | G107: =IF($B107="",CONCATENATE("ZSW2_",$A107),VLOOKUP($B107,DRL!$B$4:$G$4400,4,FALSE)) -> ZSW2_13
A108: 14 | C108: =IF(B108="","",VLOOKUP($B108,DRL!$B$4:$G$4400,6,FALSE)) ->  | E108: =IF($B108="",CONCATENATE("ZSW2_",$A108),VLOOKUP($B108,DRL!$B$4:$G$4400,2,FALSE)) -> ZSW2_14 | F108: =IF($B108="",$A108,VLOOKUP($B108,DRL!$B$4:$G$4400,3,FALSE)) -> 14 | G108: =IF($B108="",CONCATENATE("ZSW2_",$A108),VLOOKUP($B108,DRL!$B$4:$G$4400,4,FALSE)) -> ZSW2_14
A109: 15 | C109: =IF(B109="","",VLOOKUP($B109,DRL!$B$4:$G$4400,6,FALSE)) ->  | E109: =IF($B109="",CONCATENATE("ZSW2_",$A109),VLOOKUP($B109,DRL!$B$4:$G$4400,2,FALSE)) -> ZSW2_15 | F109: =IF($B109="",$A109,VLOOKUP($B109,DRL!$B$4:$G$4400,3,FALSE)) -> 15 | G109: =IF($B109="",CONCATENATE("ZSW2_",$A109),VLOOKUP($B109,DRL!$B$4:$G$4400,4,FALSE)) -> ZSW2_15
D125: Wettbewerb: | E125: Jugend-Rangliste | F125: Saison: | G125: =G2 -> 2024 | I125: =CONCATENATE("Jugend - Liga ",G125) -> Jugend - Liga 2024
E126: Teilnehmerliste | J126: Teilnehmerliste | M126: Spielorte und Daten | S126: Rundenfarben
D127: Kat: | E127: Jm | J127: Mannschaften
B128: =COUNTIF(B131:B140,">0") -> 2 | C128: DRL | L128: Anzahl
A129: Nr | B129: Pass # | C129: =[1]DRL!E119 -> MSC Bensheim-Auerbach | D129: Markierung | E129: Name, Vorname | F129: Kat. | G129: Verein | I129: Nr | J129: Jugend-Mannschaft | K129: Kürzel | L129: Jugend-Mannsch | M129: Spieltag | N129: Ort | O129: System | P129: Termin | Q129: Abkürzung | U129: Miniaturgolf | V129: Beton | W129: Filz
L130: =COUNTIF(L131:L136,"WAHR") -> 0 | M130: Jugend/AK | S130: 1 Runde
A131: 1 | B131: 66828 | C131: =IF(B131="","",VLOOKUP($B131,DRL!$B$4:$G$4400,6,FALSE)) -> 105.859 | E131: =IF($B131="",CONCATENATE("ZJM_",$A131),VLOOKUP($B131,DRL!$B$4:$G$4400,2,FALSE)) -> Körner, Nils | F131: =IF($B131="",$A131,VLOOKUP($B131,DRL!$B$4:$G$4400,3,FALSE)) -> JM | G131: =IF($B131="",CONCATENATE("ZJM_",$A131),VLOOKUP($B131,DRL!$B$4:$G$4400,4,FALSE)) -> TSV Pfungstadt | I131: 1 | J131: Jugend-Mannschaft 1 | L131: =ISTEXT(K131) -> FALSE | M131: 1 | N131: Pfungstadt | O131: Miniaturgolf | P131: 2024-03-24 | Q131: Pfu | S131: Blau | T131: < | U131: 20 | V131: 25 | W131: 30
A132: 2 | B132: 67550 | C132: =IF(B132="","",VLOOKUP($B132,DRL!$B$4:$G$4400,6,FALSE)) -> 108.327 | E132: =IF($B132="",CONCATENATE("ZJM_",$A132),VLOOKUP($B132,DRL!$B$4:$G$4400,2,FALSE)) -> Reim, Leon | F132: =IF($B132="",$A132,VLOOKUP($B132,DRL!$B$4:$G$4400,3,FALSE)) -> JM | G132: =IF($B132="",CONCATENATE("ZJM_",$A132),VLOOKUP($B132,DRL!$B$4:$G$4400,4,FALSE)) -> MGC Wetzlar | I132: 2 | J132: Jugend-Mannschaft 2 | L132: FALSE | M132: 2 | N132: Wetzlar | O132: Miniaturgolf | P132: 2024-04-21 | Q132: Wetz | S132: Grün | T132: < | U132: 25 | V132: 30 | W132: 36
A133: 3 | C133: =IF(B133="","",VLOOKUP($B133,DRL!$B$4:$G$4400,6,FALSE)) ->  | E133: =IF($B133="",CONCATENATE("ZJM_",$A133),VLOOKUP($B133,DRL!$B$4:$G$4400,2,FALSE)) -> ZJM_3 | F133: =IF($B133="",$A133,VLOOKUP($B133,DRL!$B$4:$G$4400,3,FALSE)) -> 3 | G133: =IF($B133="",CONCATENATE("ZJM_",$A133),VLOOKUP($B133,DRL!$B$4:$G$4400,4,FALSE)) -> ZJM_3 | I133: 3 | J133: Jugend-Mannschaft 3 | L133: FALSE | M133: 3 | N133: Kirdorf | O133: Beton | P133: 2024-05-05 | Q133: Kir | S133: Rot | T133: < | U133: 30 | V133: 36 | W133: 40
A134: 4 | C134: =IF(B134="","",VLOOKUP($B134,DRL!$B$4:$G$4400,6,FALSE)) ->  | E134: =IF($B134="",CONCATENATE("ZJM_",$A134),VLOOKUP($B134,DRL!$B$4:$G$4400,2,FALSE)) -> ZJM_4 | F134: =IF($B134="",$A134,VLOOKUP($B134,DRL!$B$4:$G$4400,3,FALSE)) -> 4 | G134: =IF($B134="",CONCATENATE("ZJM_",$A134),VLOOKUP($B134,DRL!$B$4:$G$4400,4,FALSE)) -> ZJM_4 | I134: 4 | J134: Jugend-Mannschaft 4 | L134: FALSE | M134: 4 | N134: Kahl | O134: Miniaturgolf | P134: 2024-06-02 | Q134: Kahl | S134: Schwarz | T134: >= | U134: 30 | V134: 36 | W134: 40
A135: 5 | C135: =IF(B135="","",VLOOKUP($B135,DRL!$B$4:$G$4400,6,FALSE)) ->  | E135: =IF($B135="",CONCATENATE("ZJM_",$A135),VLOOKUP($B135,DRL!$B$4:$G$4400,2,FALSE)) -> ZJM_5 | F135: =IF($B135="",$A135,VLOOKUP($B135,DRL!$B$4:$G$4400,3,FALSE)) -> 5 | G135: =IF($B135="",CONCATENATE("ZJM_",$A135),VLOOKUP($B135,DRL!$B$4:$G$4400,4,FALSE)) -> ZJM_5 | I135: 5 | J135: Jugend-Mannschaft 5 | L135: FALSE
A136: 6 | C136: =IF(B136="","",VLOOKUP($B136,DRL!$B$4:$G$4400,6,FALSE)) ->  | E136: =IF($B136="",CONCATENATE("ZJM_",$A136),VLOOKUP($B136,DRL!$B$4:$G$4400,2,FALSE)) -> ZJM_6 | F136: =IF($B136="",$A136,VLOOKUP($B136,DRL!$B$4:$G$4400,3,FALSE)) -> 6 | G136: =IF($B136="",CONCATENATE("ZJM_",$A136),VLOOKUP($B136,DRL!$B$4:$G$4400,4,FALSE)) -> ZJM_6 | I136: 6 | J136: Jugend-Mannschaft 6 | L136: FALSE | S136: 2 Runden
A137: 7 | C137: =IF(B137="","",VLOOKUP($B137,DRL!$B$4:$G$4400,6,FALSE)) ->  | E137: =IF($B137="",CONCATENATE("ZJM_",$A137),VLOOKUP($B137,DRL!$B$4:$G$4400,2,FALSE)) -> ZJM_7 | F137: =IF($B137="",$A137,VLOOKUP($B137,DRL!$B$4:$G$4400,3,FALSE)) -> 7 | G137: =IF($B137="",CONCATENATE("ZJM_",$A137),VLOOKUP($B137,DRL!$B$4:$G$4400,4,FALSE)) -> ZJM_7 | L137: Anzahl | S137: Blau | T137: < | U137: =U131*2 -> 40 | V137: 50 | W137: 60
A138: 8 | C138: =IF(B138="","",VLOOKUP($B138,DRL!$B$4:$G$4400,6,FALSE)) ->  | E138: =IF($B138="",CONCATENATE("ZJM_",$A138),VLOOKUP($B138,DRL!$B$4:$G$4400,2,FALSE)) -> ZJM_8 | F138: =IF($B138="",$A138,VLOOKUP($B138,DRL!$B$4:$G$4400,3,FALSE)) -> 8 | G138: =IF($B138="",CONCATENATE("ZJM_",$A138),VLOOKUP($B138,DRL!$B$4:$G$4400,4,FALSE)) -> ZJM_8 | I138: Nr | J138: Schüler-Mannschaft | K138: Kürzel | L138: Schüler-Mannsch | M138: 1 | N138: TSV Pfungstadt | S138: Grün | T138: < | U138: =U132*2 -> 50 | V138: 60 | W138: 72
A139: 9 | C139: =IF(B139="","",VLOOKUP($B139,DRL!$B$4:$G$4400,6,FALSE)) ->  | E139: =IF($B139="",CONCATENATE("ZJM_",$A139),VLOOKUP($B139,DRL!$B$4:$G$4400,2,FALSE)) -> ZJM_9 | F139: =IF($B139="",$A139,VLOOKUP($B139,DRL!$B$4:$G$4400,3,FALSE)) -> 9 | G139: =IF($B139="",CONCATENATE("ZJM_",$A139),VLOOKUP($B139,DRL!$B$4:$G$4400,4,FALSE)) -> ZJM_9 | L139: =COUNTIF(L140:L145,"WAHR") -> 0 | M139: 2 | N139: MGC Wetzlar | S139: Rot | T139: < | U139: =U133*2 -> 60 | V139: 72 | W139: 80
A140: 10 | C140: =IF(B140="","",VLOOKUP($B140,DRL!$B$4:$G$4400,6,FALSE)) ->  | E140: =IF($B140="",CONCATENATE("ZJM_",$A140),VLOOKUP($B140,DRL!$B$4:$G$4400,2,FALSE)) -> ZJM_10 | F140: =IF($B140="",$A140,VLOOKUP($B140,DRL!$B$4:$G$4400,3,FALSE)) -> 10 | G140: =IF($B140="",CONCATENATE("ZJM_",$A140),VLOOKUP($B140,DRL!$B$4:$G$4400,4,FALSE)) -> ZJM_10 | I140: 1 | J140: Schüler-Mannschaft 1 | L140: FALSE | M140: 3 | N140: MGC Bad Homburg | S140: Schwarz | T140: >= | U140: =U134*2 -> 60 | V140: 72 | W140: 80
I141: 2 | J141: Schüler-Mannschaft 2 | L141: FALSE | M141: 4 | N141: MGC Kahler Sandhasen
I142: 3 | J142: Schüler-Mannschaft 3 | L142: FALSE | S142: 3 Runden
D143: Wettbewerb: | E143: =E125 -> Jugend-Rangliste | F143: Saison: | G143: =G125 -> 2024 | I143: 4 | J143: Schüler-Mannschaft 4 | L143: FALSE | S143: Blau | T143: < | U143: =U131*3 -> 60 | V143: 75 | W143: 90
E144: =E126 -> Teilnehmerliste | I144: 5 | J144: Schüler-Mannschaft 5 | L144: FALSE | S144: Grün | T144: < | U144: =U132*3 -> 75 | V144: 90 | W144: 108
D145: Kat: | E145: Schm | I145: 6 | J145: Schüler-Mannschaft 6 | L145: FALSE | S145: Rot | T145: < | U145: =U133*3 -> 90 | V145: 108 | W145: 120
B146: =COUNTIF(B149:B158,">0") -> 3 | C146: =C$5 -> DRL | S146: Schwarz | T146: >= | U146: =U134*3 -> 90 | V146: 108 | W146: 120
A147: =A$6 -> Nr | B147: Pass # | C147: 2024-01-01 | D147: Markierung | E147: Name, Vorname | F147: Kat. | G147: Verein
S148: 4 Runden
A149: 1 | B149: 66640 | C149: =IF(B149="","",VLOOKUP($B149,DRL!$B$4:$G$4400,6,FALSE)) -> 98.872 | E149: =IF($B149="",CONCATENATE("ZSCHM_",$A149),VLOOKUP($B149,DRL!$B$4:$G$4400,2,FALSE)) -> Tritsch, Levi | F149: =IF($B149="",$A149,VLOOKUP($B149,DRL!$B$4:$G$4400,3,FALSE)) -> SCHM | G149: =IF($B149="",CONCATENATE("ZSCHM_",$A149),VLOOKUP($B149,DRL!$B$4:$G$4400,4,FALSE)) -> SG Arheilgen | S149: Blau | T149: < | U149: =U131*4 -> 80 | V149: 100 | W149: 120
A150: 2 | B150: 67276 | C150: =IF(B150="","",VLOOKUP($B150,DRL!$B$4:$G$4400,6,FALSE)) -> 101.686 | E150: =IF($B150="",CONCATENATE("ZSCHM_",$A150),VLOOKUP($B150,DRL!$B$4:$G$4400,2,FALSE)) -> Weiß, Damon | F150: =IF($B150="",$A150,VLOOKUP($B150,DRL!$B$4:$G$4400,3,FALSE)) -> SCHM | G150: =IF($B150="",CONCATENATE("ZSCHM_",$A150),VLOOKUP($B150,DRL!$B$4:$G$4400,4,FALSE)) -> BGSV Bad Homburg | S150: Grün | T150: < | U150: =U132*4 -> 100 | V150: 120 | W150: 144
A151: 3 | B151: 68031 | C151: =IF(B151="","",VLOOKUP($B151,DRL!$B$4:$G$4400,6,FALSE)) -> 109.526 | E151: =IF($B151="",CONCATENATE("ZSCHM_",$A151),VLOOKUP($B151,DRL!$B$4:$G$4400,2,FALSE)) -> Noll, Joshua | F151: =IF($B151="",$A151,VLOOKUP($B151,DRL!$B$4:$G$4400,3,FALSE)) -> SCHM | G151: =IF($B151="",CONCATENATE("ZSCHM_",$A151),VLOOKUP($B151,DRL!$B$4:$G$4400,4,FALSE)) -> SV 1890 Dreieichenhain | S151: Rot | T151: < | U151: =U133*4 -> 120 | V151: 144 | W151: 160
A152: 4 | C152: =IF(B152="","",VLOOKUP($B152,DRL!$B$4:$G$4400,6,FALSE)) ->  | E152: =IF($B152="",CONCATENATE("ZSCHM_",$A152),VLOOKUP($B152,DRL!$B$4:$G$4400,2,FALSE)) -> ZSCHM_4 | F152: =IF($B152="",$A152,VLOOKUP($B152,DRL!$B$4:$G$4400,3,FALSE)) -> 4 | G152: =IF($B152="",CONCATENATE("ZSCHM_",$A152),VLOOKUP($B152,DRL!$B$4:$G$4400,4,FALSE)) -> ZSCHM_4 | S152: Schwarz | T152: >= | U152: =U134*4 -> 120 | V152: 144 | W152: 160
A153: 5 | C153: =IF(B153="","",VLOOKUP($B153,DRL!$B$4:$G$4400,6,FALSE)) ->  | E153: =IF($B153="",CONCATENATE("ZSCHM_",$A153),VLOOKUP($B153,DRL!$B$4:$G$4400,2,FALSE)) -> ZSCHM_5 | F153: =IF($B153="",$A153,VLOOKUP($B153,DRL!$B$4:$G$4400,3,FALSE)) -> 5 | G153: =IF($B153="",CONCATENATE("ZSCHM_",$A153),VLOOKUP($B153,DRL!$B$4:$G$4400,4,FALSE)) -> ZSCHM_5
A154: 6 | C154: =IF(B154="","",VLOOKUP($B154,DRL!$B$4:$G$4400,6,FALSE)) ->  | E154: =IF($B154="",CONCATENATE("ZSCHM_",$A154),VLOOKUP($B154,DRL!$B$4:$G$4400,2,FALSE)) -> ZSCHM_6 | F154: =IF($B154="",$A154,VLOOKUP($B154,DRL!$B$4:$G$4400,3,FALSE)) -> 6 | G154: =IF($B154="",CONCATENATE("ZSCHM_",$A154),VLOOKUP($B154,DRL!$B$4:$G$4400,4,FALSE)) -> ZSCHM_6
A155: 7 | C155: =IF(B155="","",VLOOKUP($B155,DRL!$B$4:$G$4400,6,FALSE)) ->  | E155: =IF($B155="",CONCATENATE("ZSCHM_",$A155),VLOOKUP($B155,DRL!$B$4:$G$4400,2,FALSE)) -> ZSCHM_7 | F155: =IF($B155="",$A155,VLOOKUP($B155,DRL!$B$4:$G$4400,3,FALSE)) -> 7 | G155: =IF($B155="",CONCATENATE("ZSCHM_",$A155),VLOOKUP($B155,DRL!$B$4:$G$4400,4,FALSE)) -> ZSCHM_7
A156: 8 | C156: =IF(B156="","",VLOOKUP($B156,DRL!$B$4:$G$4400,6,FALSE)) ->  | E156: =IF($B156="",CONCATENATE("ZSCHM_",$A156),VLOOKUP($B156,DRL!$B$4:$G$4400,2,FALSE)) -> ZSCHM_8 | F156: =IF($B156="",$A156,VLOOKUP($B156,DRL!$B$4:$G$4400,3,FALSE)) -> 8 | G156: =IF($B156="",CONCATENATE("ZSCHM_",$A156),VLOOKUP($B156,DRL!$B$4:$G$4400,4,FALSE)) -> ZSCHM_8
A157: 9 | C157: =IF(B157="","",VLOOKUP($B157,DRL!$B$4:$G$4400,6,FALSE)) ->  | E157: =IF($B157="",CONCATENATE("ZSCHM_",$A157),VLOOKUP($B157,DRL!$B$4:$G$4400,2,FALSE)) -> ZSCHM_9 | F157: =IF($B157="",$A157,VLOOKUP($B157,DRL!$B$4:$G$4400,3,FALSE)) -> 9 | G157: =IF($B157="",CONCATENATE("ZSCHM_",$A157),VLOOKUP($B157,DRL!$B$4:$G$4400,4,FALSE)) -> ZSCHM_9
A158: 10 | C158: =IF(B158="","",VLOOKUP($B158,DRL!$B$4:$G$4400,6,FALSE)) ->  | E158: =IF($B158="",CONCATENATE("ZSCHM_",$A158),VLOOKUP($B158,DRL!$B$4:$G$4400,2,FALSE)) -> ZSCHM_10 | F158: =IF($B158="",$A158,VLOOKUP($B158,DRL!$B$4:$G$4400,3,FALSE)) -> 10 | G158: =IF($B158="",CONCATENATE("ZSCHM_",$A158),VLOOKUP($B158,DRL!$B$4:$G$4400,4,FALSE)) -> ZSCHM_10
D160: Wettbewerb: | E160: =E125 -> Jugend-Rangliste | F160: Saison: | G160: =G125 -> 2024
E161: =E126 -> Teilnehmerliste
D162: Kat: | E162: Jw
B163: =COUNTIF(B166:B170,">0") -> 1 | C163: =C$5 -> DRL
A164: =A$6 -> Nr | B164: Pass # | C164: 2024-01-01 | D164: Markierung | E164: Name, Vorname | F164: Kat. | G164: Verein
A166: 1 | B166: 67538 | C166: =IF(B166="","",VLOOKUP($B166,DRL!$B$4:$G$4400,6,FALSE)) -> 106.438 | E166: =IF($B166="",CONCATENATE("ZJW_",$A166),VLOOKUP($B166,DRL!$B$4:$G$4400,2,FALSE)) -> Schüßler, Sophie | F166: =IF($B166="",$A166,VLOOKUP($B166,DRL!$B$4:$G$4400,3,FALSE)) -> JW | G166: =IF($B166="",CONCATENATE("ZJW_",$A166),VLOOKUP($B166,DRL!$B$4:$G$4400,4,FALSE)) -> MSC Bensheim-Auerbach
A167: 2 | C167: =IF(B167="","",VLOOKUP($B167,DRL!$B$4:$G$4400,6,FALSE)) ->  | E167: =IF($B167="",CONCATENATE("ZJW_",$A167),VLOOKUP($B167,DRL!$B$4:$G$4400,2,FALSE)) -> ZJW_2 | F167: =IF($B167="",$A167,VLOOKUP($B167,DRL!$B$4:$G$4400,3,FALSE)) -> 2 | G167: =IF($B167="",CONCATENATE("ZJW_",$A167),VLOOKUP($B167,DRL!$B$4:$G$4400,4,FALSE)) -> ZJW_2
A168: 3 | C168: =IF(B168="","",VLOOKUP($B168,DRL!$B$4:$G$4400,6,FALSE)) ->  | E168: =IF($B168="",CONCATENATE("ZJW_",$A168),VLOOKUP($B168,DRL!$B$4:$G$4400,2,FALSE)) -> ZJW_3 | F168: =IF($B168="",$A168,VLOOKUP($B168,DRL!$B$4:$G$4400,3,FALSE)) -> 3 | G168: =IF($B168="",CONCATENATE("ZJW_",$A168),VLOOKUP($B168,DRL!$B$4:$G$4400,4,FALSE)) -> ZJW_3
A169: 4 | C169: =IF(B169="","",VLOOKUP($B169,DRL!$B$4:$G$4400,6,FALSE)) ->  | E169: =IF($B169="",CONCATENATE("ZJW_",$A169),VLOOKUP($B169,DRL!$B$4:$G$4400,2,FALSE)) -> ZJW_4 | F169: =IF($B169="",$A169,VLOOKUP($B169,DRL!$B$4:$G$4400,3,FALSE)) -> 4 | G169: =IF($B169="",CONCATENATE("ZJW_",$A169),VLOOKUP($B169,DRL!$B$4:$G$4400,4,FALSE)) -> ZJW_4
A170: 5 | C170: =IF(B170="","",VLOOKUP($B170,DRL!$B$4:$G$4400,6,FALSE)) ->  | E170: =IF($B170="",CONCATENATE("ZJW_",$A170),VLOOKUP($B170,DRL!$B$4:$G$4400,2,FALSE)) -> ZJW_5 | F170: =IF($B170="",$A170,VLOOKUP($B170,DRL!$B$4:$G$4400,3,FALSE)) -> 5 | G170: =IF($B170="",CONCATENATE("ZJW_",$A170),VLOOKUP($B170,DRL!$B$4:$G$4400,4,FALSE)) -> ZJW_5
D173: Wettbewerb: | E173: =E125 -> Jugend-Rangliste | F173: Saison: | G173: =G125 -> 2024
E174: =E126 -> Teilnehmerliste
D175: Kat: | E175: Schw
B176: =COUNTIF(B179:B183,">0") -> 1 | C176: =C$5 -> DRL
A177: =A$6 -> Nr | B177: Pass # | C177: 2024-01-01 | D177: Markierung | E177: Name, Vorname | F177: Kat. | G177: Verein
A179: 1 | B179: 68080 | C179: =IF(B179="","",VLOOKUP($B179,DRL!$B$4:$G$4400,6,FALSE)) -> 115.602 | E179: =IF($B179="",CONCATENATE("ZSCHW_",$A179),VLOOKUP($B179,DRL!$B$4:$G$4400,2,FALSE)) -> Wittstadt, Ida | F179: =IF($B179="",$A179,VLOOKUP($B179,DRL!$B$4:$G$4400,3,FALSE)) -> SCHW | G179: =IF($B179="",CONCATENATE("ZSCHW_",$A179),VLOOKUP($B179,DRL!$B$4:$G$4400,4,FALSE)) -> SG Arheilgen
A180: 2 | C180: =IF(B180="","",VLOOKUP($B180,DRL!$B$4:$G$4400,6,FALSE)) ->  | E180: =IF($B180="",CONCATENATE("ZSCHW_",$A180),VLOOKUP($B180,DRL!$B$4:$G$4400,2,FALSE)) -> ZSCHW_2 | F180: =IF($B180="",$A180,VLOOKUP($B180,DRL!$B$4:$G$4400,3,FALSE)) -> 2 | G180: =IF($B180="",CONCATENATE("ZSCHW_",$A180),VLOOKUP($B180,DRL!$B$4:$G$4400,4,FALSE)) -> ZSCHW_2
A181: 3 | C181: =IF(B181="","",VLOOKUP($B181,DRL!$B$4:$G$4400,6,FALSE)) ->  | E181: =IF($B181="",CONCATENATE("ZSCHW_",$A181),VLOOKUP($B181,DRL!$B$4:$G$4400,2,FALSE)) -> ZSCHW_3 | F181: =IF($B181="",$A181,VLOOKUP($B181,DRL!$B$4:$G$4400,3,FALSE)) -> 3 | G181: =IF($B181="",CONCATENATE("ZSCHW_",$A181),VLOOKUP($B181,DRL!$B$4:$G$4400,4,FALSE)) -> ZSCHW_3
A182: 4 | C182: =IF(B182="","",VLOOKUP($B182,DRL!$B$4:$G$4400,6,FALSE)) ->  | E182: =IF($B182="",CONCATENATE("ZSCHW_",$A182),VLOOKUP($B182,DRL!$B$4:$G$4400,2,FALSE)) -> ZSCHW_4 | F182: =IF($B182="",$A182,VLOOKUP($B182,DRL!$B$4:$G$4400,3,FALSE)) -> 4 | G182: =IF($B182="",CONCATENATE("ZSCHW_",$A182),VLOOKUP($B182,DRL!$B$4:$G$4400,4,FALSE)) -> ZSCHW_4
A183: 5 | C183: =IF(B183="","",VLOOKUP($B183,DRL!$B$4:$G$4400,6,FALSE)) ->  | E183: =IF($B183="",CONCATENATE("ZSCHW_",$A183),VLOOKUP($B183,DRL!$B$4:$G$4400,2,FALSE)) -> ZSCHW_5 | F183: =IF($B183="",$A183,VLOOKUP($B183,DRL!$B$4:$G$4400,3,FALSE)) -> 5 | G183: =IF($B183="",CONCATENATE("ZSCHW_",$A183),VLOOKUP($B183,DRL!$B$4:$G$4400,4,FALSE)) -> ZSCHW_5
D186: Wettbewerb: | E186: Allg.Klasse-Rangliste | F186: Saison: | G186: =G125 -> 2024
E187: Teilnehmerliste
D188: Kat: | E188: H
B189: =COUNTIF(B192:B211,">0") -> 15 | C189: DRL
A190: Nr | B190: Pass # | C190: =C$6 -> 2024-01-01 | D190: Markierung | E190: Name, Vorname | F190: Kat. | G190: Verein
A192: 1 | B192: 35780 | C192: =IF(B192="","",VLOOKUP($B192,DRL!$B$4:$G$4400,6,FALSE)) -> 99.923 | E192: =IF($B192="",CONCATENATE("ZH_",$A192),VLOOKUP($B192,DRL!$B$4:$G$4400,2,FALSE)) -> Arnold, Mark | F192: =IF($B192="",$A192,VLOOKUP($B192,DRL!$B$4:$G$4400,3,FALSE)) -> H | G192: =IF($B192="",CONCATENATE("ZH_",$A192),VLOOKUP($B192,DRL!$B$4:$G$4400,4,FALSE)) -> SG Arheilgen
A193: 2 | B193: 25206 | C193: =IF(B193="","",VLOOKUP($B193,DRL!$B$4:$G$4400,6,FALSE)) -> 97.446 | E193: =IF($B193="",CONCATENATE("ZH_",$A193),VLOOKUP($B193,DRL!$B$4:$G$4400,2,FALSE)) -> Giebenhain, Thomas | F193: =IF($B193="",$A193,VLOOKUP($B193,DRL!$B$4:$G$4400,3,FALSE)) -> SM I | G193: =IF($B193="",CONCATENATE("ZH_",$A193),VLOOKUP($B193,DRL!$B$4:$G$4400,4,FALSE)) -> MSC Bensheim-Auerbach
A194: 3 | B194: 68105 | C194: =IF(B194="","",VLOOKUP($B194,DRL!$B$4:$G$4400,6,FALSE)) -> 999 | E194: =IF($B194="",CONCATENATE("ZH_",$A194),VLOOKUP($B194,DRL!$B$4:$G$4400,2,FALSE)) -> Haase, Oliver | F194: =IF($B194="",$A194,VLOOKUP($B194,DRL!$B$4:$G$4400,3,FALSE)) -> SM I | G194: =IF($B194="",CONCATENATE("ZH_",$A194),VLOOKUP($B194,DRL!$B$4:$G$4400,4,FALSE)) -> MSC Bensheim-Auerbach
A195: 4 | B195: 67248 | C195: =IF(B195="","",VLOOKUP($B195,DRL!$B$4:$G$4400,6,FALSE)) -> 99.536 | E195: =IF($B195="",CONCATENATE("ZH_",$A195),VLOOKUP($B195,DRL!$B$4:$G$4400,2,FALSE)) -> Hudert, Luca | F195: =IF($B195="",$A195,VLOOKUP($B195,DRL!$B$4:$G$4400,3,FALSE)) -> H | G195: =IF($B195="",CONCATENATE("ZH_",$A195),VLOOKUP($B195,DRL!$B$4:$G$4400,4,FALSE)) -> BGSV Bad Homburg
A196: 5 | B196: 67792 | C196: =IF(B196="","",VLOOKUP($B196,DRL!$B$4:$G$4400,6,FALSE)) -> 101.733 | E196: =IF($B196="",CONCATENATE("ZH_",$A196),VLOOKUP($B196,DRL!$B$4:$G$4400,2,FALSE)) -> Joch, Niklas | F196: =IF($B196="",$A196,VLOOKUP($B196,DRL!$B$4:$G$4400,3,FALSE)) -> H | G196: =IF($B196="",CONCATENATE("ZH_",$A196),VLOOKUP($B196,DRL!$B$4:$G$4400,4,FALSE)) -> MSC Bensheim-Auerbach
A197: 6 | B197: 65955 | C197: =IF(B197="","",VLOOKUP($B197,DRL!$B$4:$G$4400,6,FALSE)) -> 102.114 | E197: =IF($B197="",CONCATENATE("ZH_",$A197),VLOOKUP($B197,DRL!$B$4:$G$4400,2,FALSE)) -> Klotz, Sascha | F197: =IF($B197="",$A197,VLOOKUP($B197,DRL!$B$4:$G$4400,3,FALSE)) -> H | G197: =IF($B197="",CONCATENATE("ZH_",$A197),VLOOKUP($B197,DRL!$B$4:$G$4400,4,FALSE)) -> BGSV Aßlar
A198: 7 | B198: 67381 | C198: =IF(B198="","",VLOOKUP($B198,DRL!$B$4:$G$4400,6,FALSE)) -> 99.347 | E198: =IF($B198="",CONCATENATE("ZH_",$A198),VLOOKUP($B198,DRL!$B$4:$G$4400,2,FALSE)) -> Koch, Dennis | F198: =IF($B198="",$A198,VLOOKUP($B198,DRL!$B$4:$G$4400,3,FALSE)) -> H | G198: =IF($B198="",CONCATENATE("ZH_",$A198),VLOOKUP($B198,DRL!$B$4:$G$4400,4,FALSE)) -> BGSV Bad Homburg
A199: 8 | B199: 67612 | C199: =IF(B199="","",VLOOKUP($B199,DRL!$B$4:$G$4400,6,FALSE)) -> 108.605 | E199: =IF($B199="",CONCATENATE("ZH_",$A199),VLOOKUP($B199,DRL!$B$4:$G$4400,2,FALSE)) -> Mähler, Rudolf | F199: =IF($B199="",$A199,VLOOKUP($B199,DRL!$B$4:$G$4400,3,FALSE)) -> H | G199: =IF($B199="",CONCATENATE("ZH_",$A199),VLOOKUP($B199,DRL!$B$4:$G$4400,4,FALSE)) -> SG Arheilgen
A200: 9 | B200: 67730 | C200: =IF(B200="","",VLOOKUP($B200,DRL!$B$4:$G$4400,6,FALSE)) -> 104.884 | E200: =IF($B200="",CONCATENATE("ZH_",$A200),VLOOKUP($B200,DRL!$B$4:$G$4400,2,FALSE)) -> Mally, Brain | F200: =IF($B200="",$A200,VLOOKUP($B200,DRL!$B$4:$G$4400,3,FALSE)) -> H | G200: =IF($B200="",CONCATENATE("ZH_",$A200),VLOOKUP($B200,DRL!$B$4:$G$4400,4,FALSE)) -> MSC Bensheim-Auerbach
A201: 10 | B201: 38005 | C201: =IF(B201="","",VLOOKUP($B201,DRL!$B$4:$G$4400,6,FALSE)) -> 101.292 | E201: =IF($B201="",CONCATENATE("ZH_",$A201),VLOOKUP($B201,DRL!$B$4:$G$4400,2,FALSE)) -> Nickel, Dustin | F201: =IF($B201="",$A201,VLOOKUP($B201,DRL!$B$4:$G$4400,3,FALSE)) -> H | G201: =IF($B201="",CONCATENATE("ZH_",$A201),VLOOKUP($B201,DRL!$B$4:$G$4400,4,FALSE)) -> MGC Wetzlar
A202: 11 | B202: 26809 | C202: =IF(B202="","",VLOOKUP($B202,DRL!$B$4:$G$4400,6,FALSE)) -> 99.839 | E202: =IF($B202="",CONCATENATE("ZH_",$A202),VLOOKUP($B202,DRL!$B$4:$G$4400,2,FALSE)) -> Pester, Manfred | F202: =IF($B202="",$A202,VLOOKUP($B202,DRL!$B$4:$G$4400,3,FALSE)) -> SM II | G202: =IF($B202="",CONCATENATE("ZH_",$A202),VLOOKUP($B202,DRL!$B$4:$G$4400,4,FALSE)) -> TSV Pfungstadt
A203: 12 | B203: 66410 | C203: =IF(B203="","",VLOOKUP($B203,DRL!$B$4:$G$4400,6,FALSE)) -> 103.887 | E203: =IF($B203="",CONCATENATE("ZH_",$A203),VLOOKUP($B203,DRL!$B$4:$G$4400,2,FALSE)) -> Rinker, Lukas | F203: =IF($B203="",$A203,VLOOKUP($B203,DRL!$B$4:$G$4400,3,FALSE)) -> H | G203: =IF($B203="",CONCATENATE("ZH_",$A203),VLOOKUP($B203,DRL!$B$4:$G$4400,4,FALSE)) -> MGC Wetzlar
A204: 13 | B204: 67042 | C204: =IF(B204="","",VLOOKUP($B204,DRL!$B$4:$G$4400,6,FALSE)) -> 103.49 | E204: =IF($B204="",CONCATENATE("ZH_",$A204),VLOOKUP($B204,DRL!$B$4:$G$4400,2,FALSE)) -> Stübiger, Connor | F204: =IF($B204="",$A204,VLOOKUP($B204,DRL!$B$4:$G$4400,3,FALSE)) -> H | G204: =IF($B204="",CONCATENATE("ZH_",$A204),VLOOKUP($B204,DRL!$B$4:$G$4400,4,FALSE)) -> BGSV Aßlar
A205: 14 | B205: 38201 | C205: =IF(B205="","",VLOOKUP($B205,DRL!$B$4:$G$4400,6,FALSE)) -> 105.372 | E205: =IF($B205="",CONCATENATE("ZH_",$A205),VLOOKUP($B205,DRL!$B$4:$G$4400,2,FALSE)) -> Winter, Simon Leon | F205: =IF($B205="",$A205,VLOOKUP($B205,DRL!$B$4:$G$4400,3,FALSE)) -> H | G205: =IF($B205="",CONCATENATE("ZH_",$A205),VLOOKUP($B205,DRL!$B$4:$G$4400,4,FALSE)) -> MGC Wetzlar
A206: 15 | B206: 66515 | C206: =IF(B206="","",VLOOKUP($B206,DRL!$B$4:$G$4400,6,FALSE)) -> 102.28 | E206: =IF($B206="",CONCATENATE("ZH_",$A206),VLOOKUP($B206,DRL!$B$4:$G$4400,2,FALSE)) -> Wonka, Hans Joachim | F206: =IF($B206="",$A206,VLOOKUP($B206,DRL!$B$4:$G$4400,3,FALSE)) -> SM I | G206: =IF($B206="",CONCATENATE("ZH_",$A206),VLOOKUP($B206,DRL!$B$4:$G$4400,4,FALSE)) -> TSV Pfungstadt
A207: 16 | C207: =IF(B207="","",VLOOKUP($B207,DRL!$B$4:$G$4400,6,FALSE)) ->  | E207: =IF($B207="",CONCATENATE("ZH_",$A207),VLOOKUP($B207,DRL!$B$4:$G$4400,2,FALSE)) -> ZH_16 | F207: =IF($B207="",$A207,VLOOKUP($B207,DRL!$B$4:$G$4400,3,FALSE)) -> 16 | G207: =IF($B207="",CONCATENATE("ZH_",$A207),VLOOKUP($B207,DRL!$B$4:$G$4400,4,FALSE)) -> ZH_16
A208: 17 | C208: =IF(B208="","",VLOOKUP($B208,DRL!$B$4:$G$4400,6,FALSE)) ->  | E208: =IF($B208="",CONCATENATE("ZH_",$A208),VLOOKUP($B208,DRL!$B$4:$G$4400,2,FALSE)) -> ZH_17 | F208: =IF($B208="",$A208,VLOOKUP($B208,DRL!$B$4:$G$4400,3,FALSE)) -> 17 | G208: =IF($B208="",CONCATENATE("ZH_",$A208),VLOOKUP($B208,DRL!$B$4:$G$4400,4,FALSE)) -> ZH_17
A209: 18 | C209: =IF(B209="","",VLOOKUP($B209,DRL!$B$4:$G$4400,6,FALSE)) ->  | E209: =IF($B209="",CONCATENATE("ZH_",$A209),VLOOKUP($B209,DRL!$B$4:$G$4400,2,FALSE)) -> ZH_18 | F209: =IF($B209="",$A209,VLOOKUP($B209,DRL!$B$4:$G$4400,3,FALSE)) -> 18 | G209: =IF($B209="",CONCATENATE("ZH_",$A209),VLOOKUP($B209,DRL!$B$4:$G$4400,4,FALSE)) -> ZH_18
A210: 19 | C210: =IF(B210="","",VLOOKUP($B210,DRL!$B$4:$G$4400,6,FALSE)) ->  | E210: =IF($B210="",CONCATENATE("ZH_",$A210),VLOOKUP($B210,DRL!$B$4:$G$4400,2,FALSE)) -> ZH_19 | F210: =IF($B210="",$A210,VLOOKUP($B210,DRL!$B$4:$G$4400,3,FALSE)) -> 19 | G210: =IF($B210="",CONCATENATE("ZH_",$A210),VLOOKUP($B210,DRL!$B$4:$G$4400,4,FALSE)) -> ZH_19
A211: 20 | C211: =IF(B211="","",VLOOKUP($B211,DRL!$B$4:$G$4400,6,FALSE)) ->  | E211: =IF($B211="",CONCATENATE("ZH_",$A211),VLOOKUP($B211,DRL!$B$4:$G$4400,2,FALSE)) -> ZH_20 | F211: =IF($B211="",$A211,VLOOKUP($B211,DRL!$B$4:$G$4400,3,FALSE)) -> 20 | G211: =IF($B211="",CONCATENATE("ZH_",$A211),VLOOKUP($B211,DRL!$B$4:$G$4400,4,FALSE)) -> ZH_20
D214: Wettbewerb: | E214: =E186 -> Allg.Klasse-Rangliste | F214: Saison: | G214: =G186 -> 2024
E215: =E187 -> Teilnehmerliste
D216: Kat: | E216: D
B217: =COUNTIF(B220:B229,">0") -> 3 | C217: =C$5 -> DRL
A218: =A$6 -> Nr | B218: Pass # | C218: 2024-01-01 | D218: Markierung | E218: Name, Vorname | F218: Kat. | G218: Verein
A220: 1 | B220: 67789 | C220: =IF(B220="","",VLOOKUP($B220,DRL!$B$4:$G$4400,6,FALSE)) -> 104.478 | E220: =IF($B220="",CONCATENATE("ZD_",$A220),VLOOKUP($B220,DRL!$B$4:$G$4400,2,FALSE)) -> Hawryluk, Stefanie | F220: =IF($B220="",$A220,VLOOKUP($B220,DRL!$B$4:$G$4400,3,FALSE)) -> D | G220: =IF($B220="",CONCATENATE("ZD_",$A220),VLOOKUP($B220,DRL!$B$4:$G$4400,4,FALSE)) -> BGSV Aßlar
A221: 2 | B221: 42429 | C221: =IF(B221="","",VLOOKUP($B221,DRL!$B$4:$G$4400,6,FALSE)) -> 101.089 | E221: =IF($B221="",CONCATENATE("ZD_",$A221),VLOOKUP($B221,DRL!$B$4:$G$4400,2,FALSE)) -> Krumay, Patricia | F221: =IF($B221="",$A221,VLOOKUP($B221,DRL!$B$4:$G$4400,3,FALSE)) -> SW II | G221: =IF($B221="",CONCATENATE("ZD_",$A221),VLOOKUP($B221,DRL!$B$4:$G$4400,4,FALSE)) -> TSV Pfungstadt
A222: 3 | B222: 67347 | C222: =IF(B222="","",VLOOKUP($B222,DRL!$B$4:$G$4400,6,FALSE)) -> 111.118 | E222: =IF($B222="",CONCATENATE("ZD_",$A222),VLOOKUP($B222,DRL!$B$4:$G$4400,2,FALSE)) -> Schüßler, Jana | F222: =IF($B222="",$A222,VLOOKUP($B222,DRL!$B$4:$G$4400,3,FALSE)) -> D | G222: =IF($B222="",CONCATENATE("ZD_",$A222),VLOOKUP($B222,DRL!$B$4:$G$4400,4,FALSE)) -> MSC Bensheim-Auerbach
A223: 4 | C223: =IF(B223="","",VLOOKUP($B223,DRL!$B$4:$G$4400,6,FALSE)) ->  | E223: =IF($B223="",CONCATENATE("ZD_",$A223),VLOOKUP($B223,DRL!$B$4:$G$4400,2,FALSE)) -> ZD_4 | F223: =IF($B223="",$A223,VLOOKUP($B223,DRL!$B$4:$G$4400,3,FALSE)) -> 4 | G223: =IF($B223="",CONCATENATE("ZD_",$A223),VLOOKUP($B223,DRL!$B$4:$G$4400,4,FALSE)) -> ZD_4
A224: 5 | C224: =IF(B224="","",VLOOKUP($B224,DRL!$B$4:$G$4400,6,FALSE)) ->  | E224: =IF($B224="",CONCATENATE("ZD_",$A224),VLOOKUP($B224,DRL!$B$4:$G$4400,2,FALSE)) -> ZD_5 | F224: =IF($B224="",$A224,VLOOKUP($B224,DRL!$B$4:$G$4400,3,FALSE)) -> 5 | G224: =IF($B224="",CONCATENATE("ZD_",$A224),VLOOKUP($B224,DRL!$B$4:$G$4400,4,FALSE)) -> ZD_5
A225: 6 | C225: =IF(B225="","",VLOOKUP($B225,DRL!$B$4:$G$4400,6,FALSE)) ->  | E225: =IF($B225="",CONCATENATE("ZD_",$A225),VLOOKUP($B225,DRL!$B$4:$G$4400,2,FALSE)) -> ZD_6 | F225: =IF($B225="",$A225,VLOOKUP($B225,DRL!$B$4:$G$4400,3,FALSE)) -> 6 | G225: =IF($B225="",CONCATENATE("ZD_",$A225),VLOOKUP($B225,DRL!$B$4:$G$4400,4,FALSE)) -> ZD_6
A226: 7 | C226: =IF(B226="","",VLOOKUP($B226,DRL!$B$4:$G$4400,6,FALSE)) ->  | E226: =IF($B226="",CONCATENATE("ZD_",$A226),VLOOKUP($B226,DRL!$B$4:$G$4400,2,FALSE)) -> ZD_7 | F226: =IF($B226="",$A226,VLOOKUP($B226,DRL!$B$4:$G$4400,3,FALSE)) -> 7 | G226: =IF($B226="",CONCATENATE("ZD_",$A226),VLOOKUP($B226,DRL!$B$4:$G$4400,4,FALSE)) -> ZD_7
A227: 8 | C227: =IF(B227="","",VLOOKUP($B227,DRL!$B$4:$G$4400,6,FALSE)) ->  | E227: =IF($B227="",CONCATENATE("ZD_",$A227),VLOOKUP($B227,DRL!$B$4:$G$4400,2,FALSE)) -> ZD_8 | F227: =IF($B227="",$A227,VLOOKUP($B227,DRL!$B$4:$G$4400,3,FALSE)) -> 8 | G227: =IF($B227="",CONCATENATE("ZD_",$A227),VLOOKUP($B227,DRL!$B$4:$G$4400,4,FALSE)) -> ZD_8
A228: 9 | C228: =IF(B228="","",VLOOKUP($B228,DRL!$B$4:$G$4400,6,FALSE)) ->  | E228: =IF($B228="",CONCATENATE("ZD_",$A228),VLOOKUP($B228,DRL!$B$4:$G$4400,2,FALSE)) -> ZD_9 | F228: =IF($B228="",$A228,VLOOKUP($B228,DRL!$B$4:$G$4400,3,FALSE)) -> 9 | G228: =IF($B228="",CONCATENATE("ZD_",$A228),VLOOKUP($B228,DRL!$B$4:$G$4400,4,FALSE)) -> ZD_9
A229: 10 | C229: =IF(B229="","",VLOOKUP($B229,DRL!$B$4:$G$4400,6,FALSE)) ->  | E229: =IF($B229="",CONCATENATE("ZD_",$A229),VLOOKUP($B229,DRL!$B$4:$G$4400,2,FALSE)) -> ZD_10 | F229: =IF($B229="",$A229,VLOOKUP($B229,DRL!$B$4:$G$4400,3,FALSE)) -> 10 | G229: =IF($B229="",CONCATENATE("ZD_",$A229),VLOOKUP($B229,DRL!$B$4:$G$4400,4,FALSE)) -> ZD_10
D232: Spalte D
D233: _nur Mannsch.
D234: Kader
D235: DKM
D236: DKM+1
... 5 more rows

Sheet Ausschreibungsergänzung
A1: Auszüge aus der Ausschreibungsergänzung für den HBSV-Ranglistenspielbetrieb in der Saison 2024
A2: ....
A3: Vorbemerkung: Die Zahl der Teilnehmer/innen an den Ranglisten der Allgemeinen Klasse und der Jugend sinkt seit Jahren und rechtfertigt es aus finanzieller Sicht nicht mehr, hierfür eine Anlage zu sperren. Im Rahmen der Vollversammlung des HBSV 2023 wurde der Vorschlag zum Zusammenlegen aller Ranglisten bereits ausführlich besprochen und diskutiert. Es wurde vereinbart, sich zuvor noch die Saison 2023 anzuschauen.Leider hat sich der oben beschriebene Sachstand nicht verbessert. Der LSaS entscheidet daher einstimmig, die Ranglisten ab 2024 zunächst für 2 Jahre zusammenzulegen und sich danach erneut über die Situation zu unterhalten. Erst dann erfolgt auch ggf. eine Änderung der Generalausschreibung. Folgende Rahmenbedingungen wurden durch den LSaS beschlossen: Die Ranglistenspieltage beginnen systemunabhängig künftig um 09:00 Uhr Die Regularien der Generalausschreibung aus 2023 für die einzelnen Kategorien bleiben bestehen (Teilnahmeberechtigung, Austragungsmodus, Spielgruppen, Qualifikation für DM Kombi und System, …) Ausnahme: spätester Meldetermin für alle Kategorien ist am 10.03.2024 – Nachmeldungen im Saisonverlauf sind nur im Bereich der Schüler/Jugendlichen möglich.
A14: Je nach gemeldeter Teilnehmerzahl am 10.03.2023 findet die Rangliste 2024 dann an allen 4 Spieltagen in folgendem Rundenumfang und Ablauf statt (auch wenn an einzelnen Spielta- gen weniger Teilnehmer am Start sind): Bis 70 gemeldete Teilnehmer – 4 Runden 71 – 90 gemeldete Teilnehmer – 4 Runden mit Massenstart Ab 91 gemeldete Teilnehmer – 3 Runden mit Massenstart Der Massenstart wird mit der Kategorie der Schüler/Jugendlichen und den Einzelspielern der Allgemeinen Klasse und der Senioren durchgeführt – damit bleibt der Mannschaftswettbewerb im Seniorenbereich davon unberührt. ....
A27: Durchführung in der Saison 2024 Es wurden insgesamt 81 Teilnehmer*innen gemeldet. Verteilung auf die Kategorien: • 6 Schüler m/w und Jugendspieler*innen • 18 Teilnehmer der Allgemeinen Klasse • 51 Aktive der Senioren*innenkategorien Die Zahl der gemeldeten Teilnehmer*innen legt den Rundenumfang und Ablauf für die komplette Saison 2024 fest. 71 – 90 gemeldete Teilnehmer → 4 Runden mit Massenstart ... Durchführung des Massenstarts: Der Massenstart wird mit folgenden Kategorien durchgeführt: • Schüler*innen und Jugend • Allgemeine Klasse • Einzelspieler*innen der Senioren*innenkategorien Es werden nur die ungeraden Bahnen belegt. Im Massenstart wechseln die Kategorien Schüler/Jugend/Allgemeine Klasse sich mit den Kategorien der Senioren*innen von Spieltag zu Spieltag ab. • Spieltage 1 und 3 – Schüler/Jugend/Allgemeine Klasse spielen vor • Spieltage 2 und 4 – Senioren*innenkategorien spielen vor
A54: Protokollführung: Die Massenstartteilnehmer spielen zuerst eine Teilrunde und tragen die Ergebnisse in die Spalte für Runde 4 ein. Die Startbahn wird von der Turnierleitung markiert. Die Protokolle werden nach Bahn 18 bei der Turnierleitung abgegeben. In der Folge spielen sie ihre kompletten Runden 1 - 3 um am Ende die angefangene 4. Runde fertig zu spielen. Damit ist sichergestellt, dass die Turnierleitung von Beginn an einen Ergebnisaushang erstellen kann und der Vergleich mit den Spieler*innen, die nicht im Massenstart gestartet sind, durchgängig möglich ist. Die im Massenstart startenden Teilnehmer*innen müssen lediglich darauf achten, dass sie ihre erste Teilrunde in die Spalte für die 4.Runde eintragen und nicht in die Spalte für Runde 1. Bei einer Verkürzung des Spieltages aufgrund der Witterungsverhältnisse könnte so auch bereits mit der 2. und 3.Runde die begonnene Teilrunde aufgefüllt werden
A71: Vorbemerkungen zur Bildung der Startgruppen mit Gültigkeit für alle Spieltage: Die Kategorien Schüler/Jugend und Allgemeine Klasse können in einer gemeinsamen Startgruppe spielen, nie aber gemischt mit einem Spieler der Seniorenkategorien. Startgruppen: Am 1.Spieltag werden die Startgruppen kategorienübergreifend gelost • Schüler/Jugend und Allgemeine Klasse gemeinsam • Senioren*innenkategorien Ab dem 2.Spieltag wird kategorienübergreifend nach Stand gespielt. Nach dem zweiten Spieltag wird ein Streicher berücksichtigt.

Sheet Auslosung Spieltag 1
B1: =CONCATENATE("geloste Tabelle für den 1.Spieltag in ",Teilnehmer!N8) -> geloste Tabelle für den 1.Spieltag in Pfungstadt | K1: Teilnehmende Mannschaften
A2: Rang | B2: Mannschaft | D2: Schläge | E2: Schnitt | G2: Punkte
A3: 1 | K3: SG Arheilgen
A4: 2 | K4: BGSV Aßlar
A5: 3 | K5: MSC Bensheim-A 1
A6: 4 | K6: MSC Bensheim-A 2
A7: 5 | K7: MSC Bensheim-A 3
A8: 6 | K8: MGC Kahler Sandhasen
A9: 7 | K9: SG Weiterstadt
A10: 8
A11: 9
A12: 10
B21: SG Arheilgen
B22: BGSV Aßlar
B23: MSC Bensheim-A 1
B24: MSC Bensheim-A 2
B25: MSC Bensheim-A 3
B26: MGC Kahler Sandhasen
B27: SG Weiterstadt

Sheet Aushang
B1: =Teilnehmer!I2 -> Senioren - Liga 2024 | G1: =IF(BestSpt1Sm1=0,"1",Startliste!E1) -> 1 | H1: . Spieltag
B3: M a n n s c h a f t : | D3: =Teilnehmer!J8 -> SG Arheilgen | O3: 1 | P3: 2 | Q3: 3 | R3: 4
A4: Start | B4: Name / Vorname | E4: Übertrag | G4: Übertrag | I4: Übertrag | M4: Einzel- ergebnisse
A5: Nr. | C5: 1. Runde | E5: 2. Runde | G5: 3. Runde | I5: 4. Runde
A6: 1 | B6: =IF($G$1="1",O6,IF($G$1=2,P6,IF($G$1=3,Q6,R6))) ->  | O6: =M_1!$C25 ->  | P6: =M_2!$C25 ->  | Q6: =M_3!$C25 ->  | R6: =M_4!$C25 -> 
A7: 2 | B7: =IF($G$1="1",O7,IF($G$1=2,P7,IF($G$1=3,Q7,R7))) ->  | O7: =M_1!$C26 ->  | P7: =M_2!$C26 ->  | Q7: =M_3!$C26 ->  | R7: =M_4!$C26 -> 
A8: 3 | B8: =IF($G$1="1",O8,IF($G$1=2,P8,IF($G$1=3,Q8,R8))) ->  | O8: =M_1!$C27 ->  | P8: =M_2!$C27 ->  | Q8: =M_3!$C27 ->  | R8: =M_4!$C27 -> 
A9: 4 | B9: =IF($G$1="1",O9,IF($G$1=2,P9,IF($G$1=3,Q9,R9))) ->  | O9: =M_1!$C28 ->  | P9: =M_2!$C28 ->  | Q9: =M_3!$C28 ->  | R9: =M_4!$C28 -> 
B10: Rundenergebnisse:
B11: Gesamtergebnis:
B13: Mannschaftsführer | H13: Platz | I13: Schlagzahl | J13: Punkte
G14: Tabelle ALT : | H14: =IF($G$1=2,$O14,IF($G$1=3,$O15,IF($G$1=4,$O16,""))) ->  | I14: =IF($G$1=2,$P14,IF($G$1=3,$P15,IF($G$1=4,$P16,""))) ->  | J14: =IF($G$1=2,$Q14,IF($G$1=3,$Q15,IF($G$1=4,$Q16,""))) ->  | O14: =VLOOKUP($D$3,M_1!$M$6:$X$21,12,FALSE) -> 1 | P14: =VLOOKUP($D$3,M_1!$M$6:$X$21,7,FALSE) -> 988 | Q14: =VLOOKUP($D$3,M_1!$M$6:$X$21,9,FALSE) -> 12
G15: Tagesergebnis : | O15: =VLOOKUP($D$3,M_2!$M$6:$X$21,12,FALSE) -> 1 | P15: =VLOOKUP($D$3,M_2!$M$6:$X$21,7,FALSE) -> 1976 | Q15: =VLOOKUP($D$3,M_2!$M$6:$X$21,9,FALSE) -> 24
G16: Tabelle NEU : | O16: =VLOOKUP($D$3,M_3!$M$6:$X$21,12,FALSE) -> 1 | P16: =VLOOKUP($D$3,M_3!$M$6:$X$21,7,FALSE) -> 2964 | Q16: =VLOOKUP($D$3,M_3!$M$6:$X$21,9,FALSE) -> 36
B18: =$B$1 -> Senioren - Liga 2024 | G18: =$G$1 -> 1 | H18: . Spieltag
B20: M a n n s c h a f t : | D20: =Teilnehmer!J9 -> BGSV Aßlar
A21: Start | B21: Name / Vorname | E21: Übertrag | G21: Übertrag | I21: Übertrag | M21: Einzel- ergebnisse
A22: Nr. | C22: 1. Runde | E22: 2. Runde | G22: 3. Runde | I22: 4. Runde
A23: 1 | B23: =IF($G$1="1",O23,IF($G$1=2,P23,IF($G$1=3,Q23,R23))) ->  | O23: =M_1!$M25 ->  | P23: =M_2!$M25 ->  | Q23: =M_3!$M25 ->  | R23: =M_4!$M25 -> 
A24: 2 | B24: =IF($G$1="1",O24,IF($G$1=2,P24,IF($G$1=3,Q24,R24))) ->  | O24: =M_1!$M26 ->  | P24: =M_2!$M26 ->  | Q24: =M_3!$M26 ->  | R24: =M_4!$M26 -> 
A25: 3 | B25: =IF($G$1="1",O25,IF($G$1=2,P25,IF($G$1=3,Q25,R25))) ->  | O25: =M_1!$M27 ->  | P25: =M_2!$M27 ->  | Q25: =M_3!$M27 ->  | R25: =M_4!$M27 -> 
A26: 4 | B26: =IF($G$1="1",O26,IF($G$1=2,P26,IF($G$1=3,Q26,R26))) ->  | O26: =M_1!$M28 ->  | P26: =M_2!$M28 ->  | Q26: =M_3!$M28 ->  | R26: =M_4!$M28 -> 
B27: Rundenergebnisse:
B28: Gesamtergebnis:
B30: Mannschaftsführer | H30: Platz | I30: Schlagzahl | J30: Punkte
G31: Tabelle ALT : | H31: =IF($G$1=2,$O31,IF($G$1=3,$O32,IF($G$1=4,$O33,""))) ->  | I31: =IF($G$1=2,$P31,IF($G$1=3,$P32,IF($G$1=4,$P33,""))) ->  | J31: =IF($G$1=2,$Q31,IF($G$1=3,$Q32,IF($G$1=4,$Q33,""))) ->  | O31: =VLOOKUP($D$20,M_1!$M$6:$X$21,12,FALSE) -> 2 | P31: =VLOOKUP($D$20,M_1!$M$6:$X$21,7,FALSE) -> 989 | Q31: =VLOOKUP($D$20,M_1!$M$6:$X$21,9,FALSE) -> 10
G32: Tagesergebnis : | O32: =VLOOKUP($D$20,M_2!$M$6:$X$21,12,FALSE) -> 2 | P32: =VLOOKUP($D$20,M_2!$M$6:$X$21,7,FALSE) -> 1978 | Q32: =VLOOKUP($D$20,M_2!$M$6:$X$21,9,FALSE) -> 20
G33: Tabelle NEU : | O33: =VLOOKUP($D$20,M_3!$M$6:$X$21,12,FALSE) -> 2 | P33: =VLOOKUP($D$20,M_3!$M$6:$X$21,7,FALSE) -> 2967 | Q33: =VLOOKUP($D$20,M_3!$M$6:$X$21,9,FALSE) -> 30
B35: =$B$1 -> Senioren - Liga 2024 | G35: =$G$1 -> 1 | H35: . Spieltag
B37: M a n n s c h a f t : | D37: =Teilnehmer!J10 -> MSC Bensheim-A.1
A38: Start | B38: Name / Vorname | E38: Übertrag | G38: Übertrag | I38: Übertrag | M38: Einzel- ergebnisse
A39: Nr. | C39: 1. Runde | E39: 2. Runde | G39: 3. Runde | I39: 4. Runde
A40: 1 | B40: =IF($G$1="1",O40,IF($G$1=2,P40,IF($G$1=3,Q40,R40))) ->  | O40: =M_1!$C32 ->  | P40: =M_2!$C32 ->  | Q40: =M_3!$C32 ->  | R40: =M_4!$C32 -> 
A41: 2 | B41: =IF($G$1="1",O41,IF($G$1=2,P41,IF($G$1=3,Q41,R41))) ->  | O41: =M_1!$C33 ->  | P41: =M_2!$C33 ->  | Q41: =M_3!$C33 ->  | R41: =M_4!$C33 -> 
A42: 3 | O42: =M_1!$C34 ->  | P42: =M_2!$C34 ->  | Q42: =M_3!$C34 ->  | R42: =M_4!$C34 -> 
A43: 4 | O43: =M_1!$C35 ->  | P43: =M_2!$C35 ->  | Q43: =M_3!$C35 ->  | R43: =M_4!$C35 -> 
B44: Rundenergebnisse:
B45: Gesamtergebnis:
B47: Mannschaftsführer | H47: Platz | I47: Schlagzahl | J47: Punkte
G48: Tabelle ALT : | H48: =IF($G$1=2,$O48,IF($G$1=3,$O49,IF($G$1=4,$O50,""))) ->  | I48: =IF($G$1=2,$P48,IF($G$1=3,$P49,IF($G$1=4,$P50,""))) ->  | J48: =IF($G$1=2,$Q48,IF($G$1=3,$Q49,IF($G$1=4,$Q50,""))) ->  | O48: =VLOOKUP($D$37,M_1!$M$6:$X$21,12,FALSE) -> 3 | P48: =VLOOKUP($D$37,M_1!$M$6:$X$21,7,FALSE) -> 990 | Q48: =VLOOKUP($D$37,M_1!$M$6:$X$21,9,FALSE) -> 8
G49: Tagesergebnis : | O49: =VLOOKUP($D$37,M_2!$M$6:$X$21,12,FALSE) -> 3 | P49: =VLOOKUP($D$37,M_2!$M$6:$X$21,7,FALSE) -> 1980 | Q49: =VLOOKUP($D$37,M_2!$M$6:$X$21,9,FALSE) -> 16
G50: Tabelle NEU : | O50: =VLOOKUP($D$37,M_3!$M$6:$X$21,12,FALSE) -> 3 | P50: =VLOOKUP($D$37,M_3!$M$6:$X$21,7,FALSE) -> 2970 | Q50: =VLOOKUP($D$37,M_3!$M$6:$X$21,9,FALSE) -> 24
B52: =$B$1 -> Senioren - Liga 2024 | G52: =$G$1 -> 1 | H52: . Spieltag
B54: M a n n s c h a f t : | D54: =Teilnehmer!J11 -> MSC Bensheim-A.2
A55: Start | B55: Name / Vorname | E55: Übertrag | G55: Übertrag | I55: Übertrag | M55: Einzel- ergebnisse
A56: Nr. | C56: 1. Runde | E56: 2. Runde | G56: 3. Runde | I56: 4. Runde
A57: 1 | B57: =IF($G$1="1",O57,IF($G$1=2,P57,IF($G$1=3,Q57,R57))) ->  | O57: =M_1!$M32 ->  | P57: =M_2!$M32 ->  | Q57: =M_3!$M32 ->  | R57: =M_4!$M32 -> 
A58: 2 | B58: =IF($G$1="1",O58,IF($G$1=2,P58,IF($G$1=3,Q58,R58))) ->  | O58: =M_1!$M33 ->  | P58: =M_2!$M33 ->  | Q58: =M_3!$M33 ->  | R58: =M_4!$M33 -> 
A59: 3 | B59: =IF($G$1="1",O59,IF($G$1=2,P59,IF($G$1=3,Q59,R59))) ->  | O59: =M_1!$M34 ->  | P59: =M_2!$M34 ->  | Q59: =M_3!$M34 ->  | R59: =M_4!$M34 -> 
A60: 4 | B60: =IF($G$1="1",O60,IF($G$1=2,P60,IF($G$1=3,Q60,R60))) ->  | O60: =M_1!$M35 ->  | P60: =M_2!$M35 ->  | Q60: =M_3!$M35 ->  | R60: =M_4!$M35 -> 
B61: Rundenergebnisse:
B62: Gesamtergebnis:
B64: Mannschaftsführer | H64: Platz | I64: Schlagzahl | J64: Punkte
G65: Tabelle ALT : | H65: =IF($G$1=2,$O65,IF($G$1=3,$O66,IF($G$1=4,$O67,""))) ->  | I65: =IF($G$1=2,$P65,IF($G$1=3,$P66,IF($G$1=4,$P67,""))) ->  | J65: =IF($G$1=2,$Q65,IF($G$1=3,$Q66,IF($G$1=4,$Q67,""))) ->  | O65: =VLOOKUP($D$54,M_1!$M$6:$X$21,12,FALSE) -> 4 | P65: =VLOOKUP($D$54,M_1!$M$6:$X$21,7,FALSE) -> 991 | Q65: =VLOOKUP($D$54,M_1!$M$6:$X$21,9,FALSE) -> 6
G66: Tagesergebnis : | O66: =VLOOKUP($D$54,M_2!$M$6:$X$21,12,FALSE) -> 4 | P66: =VLOOKUP($D$54,M_2!$M$6:$X$21,7,FALSE) -> 1982 | Q66: =VLOOKUP($D$54,M_2!$M$6:$X$21,9,FALSE) -> 12
G67: Tabelle NEU : | O67: =VLOOKUP($D$54,M_3!$M$6:$X$21,12,FALSE) -> 4 | P67: =VLOOKUP($D$54,M_3!$M$6:$X$21,7,FALSE) -> 2973 | Q67: =VLOOKUP($D$54,M_3!$M$6:$X$21,9,FALSE) -> 18
B69: =$B$1 -> Senioren - Liga 2024 | G69: =$G$1 -> 1 | H69: . Spieltag
B71: M a n n s c h a f t : | D71: =Teilnehmer!J12 -> MSC Bensheim-A.3
A72: Start | B72: Name / Vorname | E72: Übertrag | G72: Übertrag | I72: Übertrag | M72: Einzel- ergebnisse
A73: Nr. | C73: 1. Runde | E73: 2. Runde | G73: 3. Runde | I73: 4. Runde
A74: 1 | B74: =IF($G$1="1",O74,IF($G$1=2,P74,IF($G$1=3,Q74,R74))) ->  | O74: =M_1!$C39 ->  | P74: =M_2!$C39 ->  | Q74: =M_3!$C39 ->  | R74: =M_4!$C39 -> 
A75: 2 | B75: =IF($G$1="1",O75,IF($G$1=2,P75,IF($G$1=3,Q75,R75))) ->  | O75: =M_1!$C40 ->  | P75: =M_2!$C40 ->  | Q75: =M_3!$C40 ->  | R75: =M_4!$C40 -> 
A76: 3 | B76: =IF($G$1="1",O76,IF($G$1=2,P76,IF($G$1=3,Q76,R76))) ->  | O76: =M_1!$C41 ->  | P76: =M_2!$C41 ->  | Q76: =M_3!$C41 ->  | R76: =M_4!$C41 -> 
A77: 4 | B77: =IF($G$1="1",O77,IF($G$1=2,P77,IF($G$1=3,Q77,R77))) ->  | O77: =M_1!$C42 ->  | P77: =M_2!$C42 ->  | Q77: =M_3!$C42 ->  | R77: =M_4!$C42 -> 
B78: Rundenergebnisse:
B79: Gesamtergebnis:
B81: Mannschaftsführer | H81: Platz | I81: Schlagzahl | J81: Punkte
G82: Tabelle ALT : | H82: =IF($G$1=2,$O82,IF($G$1=3,$O83,IF($G$1=4,$O84,""))) ->  | I82: =IF($G$1=2,$P82,IF($G$1=3,$P83,IF($G$1=4,$P84,""))) ->  | J82: =IF($G$1=2,$Q82,IF($G$1=3,$Q83,IF($G$1=4,$Q84,""))) ->  | O82: =VLOOKUP($D$71,M_1!$M$6:$X$21,12,FALSE) -> 5 | P82: =VLOOKUP($D$71,M_1!$M$6:$X$21,7,FALSE) -> 992 | Q82: =VLOOKUP($D$71,M_1!$M$6:$X$21,9,FALSE) -> 4
G83: Tagesergebnis : | O83: =VLOOKUP($D$71,M_2!$M$6:$X$21,12,FALSE) -> 5 | P83: =VLOOKUP($D$71,M_2!$M$6:$X$21,7,FALSE) -> 1984 | Q83: =VLOOKUP($D$71,M_2!$M$6:$X$21,9,FALSE) -> 8
G84: Tabelle NEU : | O84: =VLOOKUP($D$71,M_3!$M$6:$X$21,12,FALSE) -> 5 | P84: =VLOOKUP($D$71,M_3!$M$6:$X$21,7,FALSE) -> 2976 | Q84: =VLOOKUP($D$71,M_3!$M$6:$X$21,9,FALSE) -> 12
B86: =$B$1 -> Senioren - Liga 2024 | G86: =$G$1 -> 1 | H86: . Spieltag
B88: M a n n s c h a f t : | D88: =Teilnehmer!J13 -> MGC Kahler Sandhasen
A89: Start | B89: Name / Vorname | E89: Übertrag | G89: Übertrag | I89: Übertrag | M89: Einzel- ergebnisse
A90: Nr. | C90: 1. Runde | E90: 2. Runde | G90: 3. Runde | I90: 4. Runde
A91: 1 | B91: =IF($G$1="1",O91,IF($G$1=2,P91,IF($G$1=3,Q91,R91))) ->  | O91: =M_1!$M39 ->  | P91: =M_2!$M39 ->  | Q91: =M_3!$M39 ->  | R91: =M_4!$M39 -> 
A92: 2 | B92: =IF($G$1="1",O92,IF($G$1=2,P92,IF($G$1=3,Q92,R92))) ->  | O92: =M_1!$M40 ->  | P92: =M_2!$M40 ->  | Q92: =M_3!$M40 ->  | R92: =M_4!$M40 -> 
A93: 3 | B93: =IF($G$1="1",O93,IF($G$1=2,P93,IF($G$1=3,Q93,R93))) ->  | O93: =M_1!$M41 ->  | P93: =M_2!$M41 ->  | Q93: =M_3!$M41 ->  | R93: =M_4!$M41 -> 
A94: 4 | B94: =IF($G$1="1",O94,IF($G$1=2,P94,IF($G$1=3,Q94,R94))) ->  | O94: =M_1!$M42 ->  | P94: =M_2!$M42 ->  | Q94: =M_3!$M42 ->  | R94: =M_4!$M42 -> 
B95: Rundenergebnisse:
B96: Gesamtergebnis:
B98: Mannschaftsführer | H98: Platz | I98: Schlagzahl | J98: Punkte
G99: Tabelle ALT : | H99: =IF($G$1=2,$O99,IF($G$1=3,$O100,IF($G$1=4,$O101,""))) ->  | I99: =IF($G$1=2,$P99,IF($G$1=3,$P100,IF($G$1=4,$P101,""))) ->  | J99: =IF($G$1=2,$Q99,IF($G$1=3,$Q100,IF($G$1=4,$Q101,""))) ->  | O99: =VLOOKUP($D$88,M_1!$M$6:$X$21,12,FALSE) -> 6 | P99: =VLOOKUP($D$88,M_1!$M$6:$X$21,7,FALSE) -> 993 | Q99: =VLOOKUP($D$88,M_1!$M$6:$X$21,9,FALSE) -> 2
G100: Tagesergebnis : | O100: =VLOOKUP($D$88,M_2!$M$6:$X$21,12,FALSE) -> 6 | P100: =VLOOKUP($D$88,M_2!$M$6:$X$21,7,FALSE) -> 1986 | Q100: =VLOOKUP($D$88,M_2!$M$6:$X$21,9,FALSE) -> 4
G101: Tabelle NEU : | O101: =VLOOKUP($D$88,M_3!$M$6:$X$21,12,FALSE) -> 6 | P101: =VLOOKUP($D$88,M_3!$M$6:$X$21,7,FALSE) -> 2979 | Q101: =VLOOKUP($D$88,M_3!$M$6:$X$21,9,FALSE) -> 6
B103: =$B$1 -> Senioren - Liga 2024 | G103: =$G$1 -> 1 | H103: . Spieltag
B105: M a n n s c h a f t : | D105: =Teilnehmer!J14 -> SG Weiterstadt
A106: Start | B106: Name / Vorname | E106: Übertrag | G106: Übertrag | I106: Übertrag | M106: Einzel- ergebnisse
A107: Nr. | C107: 1. Runde | E107: 2. Runde | G107: 3. Runde | I107: 4. Runde
A108: 1 | B108: =IF($G$1="1",O108,IF($G$1=2,P108,IF($G$1=3,Q108,R108))) ->  | O108: =M_1!$C46 ->  | P108: =M_2!$C46 ->  | Q108: =M_3!$C46 ->  | R108: =M_4!$C46 -> 
A109: 2 | B109: =IF($G$1="1",O109,IF($G$1=2,P109,IF($G$1=3,Q109,R109))) ->  | O109: =M_1!$C47 ->  | P109: =M_2!$C47 ->  | Q109: =M_3!$C47 ->  | R109: =M_4!$C47 -> 
A110: 3 | B110: =IF($G$1="1",O110,IF($G$1=2,P110,IF($G$1=3,Q110,R110))) ->  | O110: =M_1!$C48 ->  | P110: =M_2!$C48 ->  | Q110: =M_3!$C48 ->  | R110: =M_4!$C48 -> 
A111: 4 | B111: =IF($G$1="1",O111,IF($G$1=2,P111,IF($G$1=3,Q111,R111))) ->  | O111: =M_1!$C49 ->  | P111: =M_2!$C49 ->  | Q111: =M_3!$C49 ->  | R111: =M_4!$C49 -> 
B112: Rundenergebnisse:
B113: Gesamtergebnis:
B115: Mannschaftsführer | H115: Platz | I115: Schlagzahl | J115: Punkte
G116: Tabelle ALT : | H116: =IF($G$1=2,$O116,IF($G$1=3,$O117,IF($G$1=4,$O118,""))) ->  | I116: =IF($G$1=2,$P116,IF($G$1=3,$P117,IF($G$1=4,$P118,""))) ->  | J116: =IF($G$1=2,$Q116,IF($G$1=3,$Q117,IF($G$1=4,$Q118,""))) ->  | O116: =VLOOKUP($D$105,M_1!$M$6:$X$21,12,FALSE) -> 7 | P116: =VLOOKUP($D$105,M_1!$M$6:$X$21,7,FALSE) -> 994 | Q116: =VLOOKUP($D$105,M_1!$M$6:$X$21,9,FALSE) -> 0
G117: Tagesergebnis : | O117: =VLOOKUP($D$105,M_2!$M$6:$X$21,12,FALSE) -> 7 | P117: =VLOOKUP($D$105,M_2!$M$6:$X$21,7,FALSE) -> 1988 | Q117: =VLOOKUP($D$105,M_2!$M$6:$X$21,9,FALSE) -> 0
G118: Tabelle NEU : | O118: =VLOOKUP($D$105,M_3!$M$6:$X$21,12,FALSE) -> 7 | P118: =VLOOKUP($D$105,M_3!$M$6:$X$21,7,FALSE) -> 2982 | Q118: =VLOOKUP($D$105,M_3!$M$6:$X$21,9,FALSE) -> 0
B120: =$B$1 -> Senioren - Liga 2024 | G120: =$G$1 -> 1 | H120: . Spieltag
B122: M a n n s c h a f t : | D122: =Teilnehmer!J15 -> Ma 8
A123: Start | B123: Name / Vorname | E123: Übertrag | G123: Übertrag | I123: Übertrag | M123: Einzel- ergebnisse
A124: Nr. | C124: 1. Runde | E124: 2. Runde | G124: 3. Runde | I124: 4. Runde
A125: 1 | B125: =IF($G$1="1",O125,IF($G$1=2,P125,IF($G$1=3,Q125,R125))) ->  | O125: =M_1!$M46 ->  | P125: =M_2!$M46 ->  | Q125: =M_3!$M46 ->  | R125: =M_4!$M46 -> 
A126: 2 | B126: =IF($G$1="1",O126,IF($G$1=2,P126,IF($G$1=3,Q126,R126))) ->  | O126: =M_1!$M47 ->  | P126: =M_2!$M47 ->  | Q126: =M_3!$M47 ->  | R126: =M_4!$M47 -> 
A127: 3 | B127: =IF($G$1="1",O127,IF($G$1=2,P127,IF($G$1=3,Q127,R127))) ->  | O127: =M_1!$M48 ->  | P127: =M_2!$M48 ->  | Q127: =M_3!$M48 ->  | R127: =M_4!$M48 -> 
A128: 4 | B128: =IF($G$1="1",O128,IF($G$1=2,P128,IF($G$1=3,Q128,R128))) ->  | O128: =M_1!$M49 ->  | P128: =M_2!$M49 ->  | Q128: =M_3!$M49 ->  | R128: =M_4!$M49 -> 
B129: Rundenergebnisse:
B130: Gesamtergebnis:
B132: Mannschaftsführer | H132: Platz | I132: Schlagzahl | J132: Punkte
G133: Tabelle ALT : | H133: =IF($G$1=2,$O133,IF($G$1=3,$O134,IF($G$1=4,$O135,""))) ->  | I133: =IF($G$1=2,$P133,IF($G$1=3,$P134,IF($G$1=4,$P135,""))) ->  | J133: =IF($G$1=2,$Q133,IF($G$1=3,$Q134,IF($G$1=4,$Q135,""))) ->  | O133: =VLOOKUP($D$122,M_1!$M$6:$X$21,12,FALSE) -> 8 | P133: =VLOOKUP($D$122,M_1!$M$6:$X$21,7,FALSE) -> 995 | Q133: =VLOOKUP($D$122,M_1!$M$6:$X$21,9,FALSE) -> -2
G134: Tagesergebnis : | O134: =VLOOKUP($D$122,M_2!$M$6:$X$21,12,FALSE) -> 8 | P134: =VLOOKUP($D$122,M_2!$M$6:$X$21,7,FALSE) -> 1990 | Q134: =VLOOKUP($D$122,M_2!$M$6:$X$21,9,FALSE) -> -4
G135: Tabelle NEU : | O135: =VLOOKUP($D$122,M_3!$M$6:$X$21,12,FALSE) -> 8 | P135: =VLOOKUP($D$122,M_3!$M$6:$X$21,7,FALSE) -> 2985 | Q135: =VLOOKUP($D$122,M_3!$M$6:$X$21,9,FALSE) -> -6
B137: =$B$1 -> Senioren - Liga 2024 | G137: =$G$1 -> 1 | H137: . Spieltag
B139: M a n n s c h a f t : | D139: =Teilnehmer!J16 -> Ma 9
A140: Start | B140: Name / Vorname | E140: Übertrag | G140: Übertrag | I140: Übertrag | M140: Einzel- ergebnisse
A141: Nr. | C141: 1. Runde | E141: 2. Runde | G141: 3. Runde | I141: 4. Runde
A142: 1 | B142: =IF($G$1="1",O142,IF($G$1=2,P142,IF($G$1=3,Q142,R142))) ->  | O142: =M_1!$C53 ->  | P142: =M_2!$C53 ->  | Q142: =M_3!$C53 ->  | R142: =M_4!$C53 -> 
A143: 2 | B143: =IF($G$1="1",O143,IF($G$1=2,P143,IF($G$1=3,Q143,R143))) ->  | O143: =M_1!$C54 ->  | P143: =M_2!$C54 ->  | Q143: =M_3!$C54 ->  | R143: =M_4!$C54 -> 
A144: 3 | B144: =IF($G$1="1",O144,IF($G$1=2,P144,IF($G$1=3,Q144,R144))) ->  | O144: =M_1!$C55 ->  | P144: =M_2!$C55 ->  | Q144: =M_3!$C55 ->  | R144: =M_4!$C55 -> 
A145: 4 | B145: =IF($G$1="1",O145,IF($G$1=2,P145,IF($G$1=3,Q145,R145))) ->  | O145: =M_1!$C56 ->  | P145: =M_2!$C56 ->  | Q145: =M_3!$C56 ->  | R145: =M_4!$C56 -> 
B146: Rundenergebnisse:
B147: Gesamtergebnis:
B149: Mannschaftsführer | H149: Platz | I149: Schlagzahl | J149: Punkte
G150: Tabelle ALT : | H150: =IF($G$1=2,$O150,IF($G$1=3,$O151,IF($G$1=4,$O152,""))) ->  | I150: =IF($G$1=2,$P150,IF($G$1=3,$P151,IF($G$1=4,$P152,""))) ->  | J150: =IF($G$1=2,$Q150,IF($G$1=3,$Q151,IF($G$1=4,$Q152,""))) ->  | O150: =VLOOKUP($D$139,M_1!$M$6:$X$21,12,FALSE) -> 9 | P150: =VLOOKUP($D$139,M_1!$M$6:$X$21,7,FALSE) -> 996 | Q150: =VLOOKUP($D$139,M_1!$M$6:$X$21,9,FALSE) -> -4
G151: Tagesergebnis : | O151: =VLOOKUP($D$139,M_2!$M$6:$X$21,12,FALSE) -> 9 | P151: =VLOOKUP($D$139,M_2!$M$6:$X$21,7,FALSE) -> 1992 | Q151: =VLOOKUP($D$139,M_2!$M$6:$X$21,9,FALSE) -> -8
G152: Tabelle NEU : | O152: =VLOOKUP($D$139,M_3!$M$6:$X$21,12,FALSE) -> 9 | P152: =VLOOKUP($D$139,M_3!$M$6:$X$21,7,FALSE) -> 2988 | Q152: =VLOOKUP($D$139,M_3!$M$6:$X$21,9,FALSE) -> -12
B154: =$B$1 -> Senioren - Liga 2024 | G154: =$G$1 -> 1 | H154: . Spieltag
B156: M a n n s c h a f t : | D156: =Teilnehmer!J17 -> Ma 10
A157: Start | B157: Name / Vorname | E157: Übertrag | G157: Übertrag | I157: Übertrag | M157: Einzel- ergebnisse
A158: Nr. | C158: 1. Runde | E158: 2. Runde | G158: 3. Runde | I158: 4. Runde
A159: 1 | B159: =IF($G$1="1",O159,IF($G$1=2,P159,IF($G$1=3,Q159,R159))) ->  | O159: =M_1!$M53 ->  | P159: =M_2!$M53 ->  | Q159: =M_3!$M53 ->  | R159: =M_4!$M53 -> 
A160: 2 | B160: =IF($G$1="1",O160,IF($G$1=2,P160,IF($G$1=3,Q160,R160))) ->  | O160: =M_1!$M54 ->  | P160: =M_2!$M54 ->  | Q160: =M_3!$M54 ->  | R160: =M_4!$M54 -> 
A161: 3 | B161: =IF($G$1="1",O161,IF($G$1=2,P161,IF($G$1=3,Q161,R161))) ->  | O161: =M_1!$M55 ->  | P161: =M_2!$M55 ->  | Q161: =M_3!$M55 ->  | R161: =M_4!$M55 -> 
A162: 4 | B162: =IF($G$1="1",O162,IF($G$1=2,P162,IF($G$1=3,Q162,R162))) ->  | O162: =M_1!$M56 ->  | P162: =M_2!$M56 ->  | Q162: =M_3!$M56 ->  | R162: =M_4!$M56 -> 
B163: Rundenergebnisse:
B164: Gesamtergebnis:
B166: Mannschaftsführer | H166: Platz | I166: Schlagzahl | J166: Punkte
G167: Tabelle ALT : | H167: =IF($G$1=2,$O167,IF($G$1=3,$O168,IF($G$1=4,$O169,""))) ->  | I167: =IF($G$1=2,$P167,IF($G$1=3,$P168,IF($G$1=4,$P169,""))) ->  | J167: =IF($G$1=2,$Q167,IF($G$1=3,$Q168,IF($G$1=4,$Q169,""))) ->  | O167: =VLOOKUP($D$156,M_1!$M$6:$X$21,12,FALSE) -> 10 | P167: =VLOOKUP($D$156,M_1!$M$6:$X$21,7,FALSE) -> 997 | Q167: =VLOOKUP($D$156,M_1!$M$6:$X$21,9,FALSE) -> -6
G168: Tagesergebnis : | O168: =VLOOKUP($D$156,M_2!$M$6:$X$21,12,FALSE) -> 10 | P168: =VLOOKUP($D$156,M_2!$M$6:$X$21,7,FALSE) -> 1994 | Q168: =VLOOKUP($D$156,M_2!$M$6:$X$21,9,FALSE) -> -12
G169: Tabelle NEU : | O169: =VLOOKUP($D$156,M_3!$M$6:$X$21,12,FALSE) -> 10 | P169: =VLOOKUP($D$156,M_3!$M$6:$X$21,7,FALSE) -> 2991 | Q169: =VLOOKUP($D$156,M_3!$M$6:$X$21,9,FALSE) -> -18
B171: =$B$1 -> Senioren - Liga 2024 | G171: =$G$1 -> 1 | H171: . Spieltag
B173: M a n n s c h a f t :
A174: Start | B174: Name / Vorname | E174: Übertrag | G174: Übertrag | I174: Übertrag | M174: Einzel- ergebnisse
A175: Nr. | C175: 1. Runde | E175: 2. Runde | G175: 3. Runde | I175: 4. Runde
A176: 1
A177: 2
A178: 3
A179: 4
B180: Rundenergebnisse:
B181: Gesamtergebnis:
B183: Mannschaftsführer | H183: Platz | I183: Schlagzahl | J183: Punkte
G184: Tabelle ALT : | H184: =VLOOKUP($D173,M_3!$M$6:$X$21,12,FALSE) ->  | I184: =VLOOKUP($D173,M_3!$M$6:$X$21,7,FALSE) ->  | J184: =VLOOKUP($D173,M_3!$M$6:$X$21,9,FALSE) -> 
G185: Tagesergebnis :
G186: Tabelle NEU :
B188: =$B$1 -> Senioren - Liga 2024 | G188: =$G$1 -> 1 | H188: . Spieltag
B190: M a n n s c h a f t :
A191: Start | B191: Name / Vorname | E191: Übertrag | G191: Übertrag | I191: Übertrag | M191: Einzel- ergebnisse
A192: Nr. | C192: 1. Runde | E192: 2. Runde | G192: 3. Runde | I192: 4. Runde
A193: 1
A194: 2
A195: 3
A196: 4
B197: Rundenergebnisse:
B198: Gesamtergebnis:
B200: Mannschaftsführer | H200: Platz | I200: Schlagzahl | J200: Punkte
G201: Tabelle ALT : | H201: =VLOOKUP($D190,M_3!$M$6:$X$21,12,FALSE) ->  | I201: =VLOOKUP($D190,M_3!$M$6:$X$21,7,FALSE) ->  | J201: =VLOOKUP($D190,M_3!$M$6:$X$21,9,FALSE) -> 
G202: Tagesergebnis :
G203: Tabelle NEU :

Sheet Startliste_Spt1
C1: Spieltag: | E1: 1 | G1: Beim ersten Spieltag muß die Tabelle gelost und hier eingetragen werden >> | J1: Geloste Tabelle vor dem 1. Spieltag | L1: Vereinsnamen nach der Auslosung rüberkopieren ! | M1: Teilnehmende Mannschaften
B2: =Teilnehmer!E2 -> Senioren-Rangliste | J2: 1 | M2: SG Arheilgen
B3: =CONCATENATE(E1,". Spieltag in ",VLOOKUP($E$1,Teilnehmer!$M$8:$N$13,2,FALSE)) -> 1. Spieltag in Pfungstadt | J3: 2 | M3: BGSV Aßlar
J4: 3 | M4: MSC Bensheim-A 1
B5: Schiedsgericht | J5: 4 | M5: MSC Bensheim-A 2
J6: 5 | M6: MSC Bensheim-A 3
B7: OS: | C7: Name OS | D7: =IF(BestSpt1Sm2=0,Teilnehmer!P8,VLOOKUP(Startliste!$E$1,Teilnehmer!$M$8:$Q$11,4,FALSE)) -> 45375 | E7: MSC Bensheim - A. | J7: 6 | M7: MGC Kahler Sandhasen
B8: S: | C8: Name S1 | E8: BGSV Bad Homburg | J8: 7 | M8: SG Weiterstadt
B9: S: | C9: Name S2 | E9: SG Arheilgen | J9: 8
J10: 9
B11: TL: | C11: Name TL | E11: TSV Pfungstadt | J11: 10 | K11: Ma 10
J12: 11 | K12: Ma 11
A13: Start- bahn | B13: Start gruppe | E13: Startliste | H13: 9 Mannschaften | J13: 12 | K13: Ma 12
E14: Massenstart | J14: 13 | K14: Ma 13
A15: 17 | B15: 1. | C15: Einzelspieler 1 | E15: Einzelspieler 2 | G15: Einzelspieler 3 | J15: 14 | K15: Ma 14
C16: Verein Einzelsp 1 | E16: Verein Einzelsp 2 | G16: Verein Einzelsp 3 | J16: 15 | K16: Ma 15
A17: 15 | B17: 2. | C17: Einzelspieler 4 | E17: Einzelspieler 5 | G17: Einzelspieler 6 | J17: 16 | K17: Ma 16
C18: Verein Einzelsp 4 | E18: Verein Einzelsp 5 | G18: Verein Einzelsp 6 | M18: Aktuelle Mannschaftsaufstellung | Q18: Spt_1 | U18: Spt_2 | Y18: Spt_3 | AC18: Spt_4
A19: 13 | B19: 3. | C19: Einzelspieler 7 | E19: Einzelspieler 8 | G19: Einzelspieler 9 | J19: Tabelle nach letztem Spieltag | L19: Kürzel | M19: 1 | N19: 2 | O19: 3 | P19: 4 | Q19: 1 | R19: 2 | S19: 3 | T19: 4 | U19: 1 | V19: 2 | W19: 3 | X19: 4 | Y19: 1 | Z19: 2 | AA19: 3 | AB19: 4 | AC19: 1 | AD19: 2 | AE19: 3 | AF19: 4
C20: Verein Einzelsp 7 | E20: Verein Einzelsp 8 | G20: Verein Einzelsp 9
A21: 11 | B21: 4. | C21: Einzelspieler 10 | E21: Einzelspieler 11 | G21: Einzelspieler 12 | J21: 1 | K21: =K2 -> 0 | L21: =VLOOKUP($K21,Teilnehmer!$J$8:$K$23,2,FALSE) ->  | M21: =IF($E$1=1,Q21,IF($E$1=2,U21,IF($E$1=3,Y21,IF($E$1=4,AC21,"")))) ->  | N21: =IF($E$1=1,R21,IF($E$1=2,V21,IF($E$1=3,Z21,IF($E$1=4,AD21,"")))) ->  | O21: =IF($E$1=1,S21,IF($E$1=2,W21,IF($E$1=3,AA21,IF($E$1=4,AE21,"")))) ->  | P21: =IF($E$1=1,T21,IF($E$1=2,X21,IF($E$1=3,AB21,IF($E$1=4,AF21,"")))) ->  | Q21: =VLOOKUP(CONCATENATE($L21,Q$19),Spt_1!$C$8:$H$105,3,FALSE) ->  | R21: =VLOOKUP(CONCATENATE($L21,R$19),Spt_1!$C$8:$H$105,3,FALSE) ->  | S21: =VLOOKUP(CONCATENATE($L21,S$19),Spt_1!$C$8:$H$105,3,FALSE) ->  | T21: =VLOOKUP(CONCATENATE($L21,T$19),Spt_1!$C$8:$H$105,3,FALSE) ->  | U21: =VLOOKUP(CONCATENATE($L21,U$19),Spt_2!$C$8:$H$105,3,FALSE) ->  | V21: =VLOOKUP(CONCATENATE($L21,V$19),Spt_2!$C$8:$H$105,3,FALSE) ->  | W21: =VLOOKUP(CONCATENATE($L21,W$19),Spt_2!$C$8:$H$105,3,FALSE) ->  | X21: =VLOOKUP(CONCATENATE($L21,X$19),Spt_2!$C$8:$H$105,3,FALSE) ->  | Y21: =VLOOKUP(CONCATENATE($L21,Y$19),Spt_3!$C$8:$H$100,3,FALSE) ->  | Z21: =VLOOKUP(CONCATENATE($L21,Z$19),Spt_3!$C$8:$H$100,3,FALSE) ->  | AA21: =VLOOKUP(CONCATENATE($L21,AA$19),Spt_3!$C$8:$H$100,3,FALSE) ->  | AB21: =VLOOKUP(CONCATENATE($L21,AB$19),Spt_3!$C$8:$H$100,3,FALSE) ->  | AC21: =VLOOKUP(CONCATENATE($L21,AC$19),Spt_4!$C$8:$H$105,3,FALSE) ->  | AD21: =VLOOKUP(CONCATENATE($L21,AD$19),Spt_4!$C$8:$H$105,3,FALSE) ->  | AE21: =VLOOKUP(CONCATENATE($L21,AE$19),Spt_4!$C$8:$H$105,3,FALSE) ->  | AF21: =VLOOKUP(CONCATENATE($L21,AF$19),Spt_4!$C$8:$H$105,3,FALSE) -> 
C22: Verein Einzelsp 10 | E22: Verein Einzelsp 11 | G22: Verein Einzelsp 12
A23: 9 | B23: 5. | C23: Einzelspieler 13 | E23: Einzelspieler 14 | G23: Einzelspieler 15 | J23: 2 | K23: =K3 -> 0 | L23: ß1 | Q23: =VLOOKUP(CONCATENATE($L23,Q$19),Spt_1!$C$8:$H$105,3,FALSE) ->  | R23: =VLOOKUP(CONCATENATE($L23,R$19),Spt_1!$C$8:$H$105,3,FALSE) ->  | S23: =VLOOKUP(CONCATENATE($L23,S$19),Spt_1!$C$8:$H$105,3,FALSE) ->  | T23: =VLOOKUP(CONCATENATE($L23,T$19),Spt_1!$C$8:$H$105,3,FALSE) ->  | U23: =VLOOKUP(CONCATENATE($L23,U$19),Spt_2!$C$8:$H$105,3,FALSE) ->  | V23: =VLOOKUP(CONCATENATE($L23,V$19),Spt_2!$C$8:$H$105,3,FALSE) ->  | W23: =VLOOKUP(CONCATENATE($L23,W$19),Spt_2!$C$8:$H$105,3,FALSE) ->  | X23: =VLOOKUP(CONCATENATE($L23,X$19),Spt_2!$C$8:$H$105,3,FALSE) ->  | Y23: =VLOOKUP(CONCATENATE($L23,Y$19),Spt_3!$C$8:$H$100,3,FALSE) ->  | Z23: =VLOOKUP(CONCATENATE($L23,Z$19),Spt_3!$C$8:$H$100,3,FALSE) ->  | AA23: =VLOOKUP(CONCATENATE($L23,AA$19),Spt_3!$C$8:$H$100,3,FALSE) ->  | AB23: =VLOOKUP(CONCATENATE($L23,AB$19),Spt_3!$C$8:$H$100,3,FALSE) ->  | AC23: =VLOOKUP(CONCATENATE($L23,AC$19),Spt_4!$C$8:$H$105,3,FALSE) ->  | AD23: =VLOOKUP(CONCATENATE($L23,AD$19),Spt_4!$C$8:$H$105,3,FALSE) ->  | AE23: =VLOOKUP(CONCATENATE($L23,AE$19),Spt_4!$C$8:$H$105,3,FALSE) ->  | AF23: =VLOOKUP(CONCATENATE($L23,AF$19),Spt_4!$C$8:$H$105,3,FALSE) -> 
C24: Verein Einzelsp 13 | E24: Verein Einzelsp 14 | G24: Verein Einzelsp 15
A25: 7 | B25: 6. | C25: Einzelspieler 16 | E25: Einzelspieler 17 | G25: Einzelspieler 18 | J25: 3 | K25: =K4 -> 0 | L25: B1 | Q25: =VLOOKUP(CONCATENATE($L25,Q$19),Spt_1!$C$8:$H$105,3,FALSE) ->  | R25: =VLOOKUP(CONCATENATE($L25,R$19),Spt_1!$C$8:$H$105,3,FALSE) ->  | S25: =VLOOKUP(CONCATENATE($L25,S$19),Spt_1!$C$8:$H$105,3,FALSE) ->  | T25: =VLOOKUP(CONCATENATE($L25,T$19),Spt_1!$C$8:$H$105,3,FALSE) ->  | U25: =VLOOKUP(CONCATENATE($L25,U$19),Spt_2!$C$8:$H$105,3,FALSE) ->  | V25: =VLOOKUP(CONCATENATE($L25,V$19),Spt_2!$C$8:$H$105,3,FALSE) ->  | W25: =VLOOKUP(CONCATENATE($L25,W$19),Spt_2!$C$8:$H$105,3,FALSE) ->  | X25: =VLOOKUP(CONCATENATE($L25,X$19),Spt_2!$C$8:$H$105,3,FALSE) ->  | Y25: =VLOOKUP(CONCATENATE($L25,Y$19),Spt_3!$C$8:$H$100,3,FALSE) ->  | Z25: =VLOOKUP(CONCATENATE($L25,Z$19),Spt_3!$C$8:$H$100,3,FALSE) ->  | AA25: =VLOOKUP(CONCATENATE($L25,AA$19),Spt_3!$C$8:$H$100,3,FALSE) ->  | AB25: =VLOOKUP(CONCATENATE($L25,AB$19),Spt_3!$C$8:$H$100,3,FALSE) ->  | AC25: =VLOOKUP(CONCATENATE($L25,AC$19),Spt_4!$C$8:$H$105,3,FALSE) ->  | AD25: =VLOOKUP(CONCATENATE($L25,AD$19),Spt_4!$C$8:$H$105,3,FALSE) ->  | AE25: =VLOOKUP(CONCATENATE($L25,AE$19),Spt_4!$C$8:$H$105,3,FALSE) ->  | AF25: =VLOOKUP(CONCATENATE($L25,AF$19),Spt_4!$C$8:$H$105,3,FALSE) -> 
C26: Verein Einzelsp 16 | E26: Verein Einzelsp 17 | G26: Verein Einzelsp 18
A27: 5 | B27: 7. | C27: Einzelspieler 19 | E27: Einzelspieler 20 | G27: Einzelspieler 21 | J27: 4 | K27: =K5 -> 0 | L27: B2 | Q27: =VLOOKUP(CONCATENATE($L27,Q$19),Spt_1!$C$8:$H$105,3,FALSE) ->  | R27: =VLOOKUP(CONCATENATE($L27,R$19),Spt_1!$C$8:$H$105,3,FALSE) ->  | S27: =VLOOKUP(CONCATENATE($L27,S$19),Spt_1!$C$8:$H$105,3,FALSE) ->  | T27: =VLOOKUP(CONCATENATE($L27,T$19),Spt_1!$C$8:$H$105,3,FALSE) ->  | U27: =VLOOKUP(CONCATENATE($L27,U$19),Spt_2!$C$8:$H$105,3,FALSE) ->  | V27: =VLOOKUP(CONCATENATE($L27,V$19),Spt_2!$C$8:$H$105,3,FALSE) ->  | W27: =VLOOKUP(CONCATENATE($L27,W$19),Spt_2!$C$8:$H$105,3,FALSE) ->  | X27: =VLOOKUP(CONCATENATE($L27,X$19),Spt_2!$C$8:$H$105,3,FALSE) ->  | Y27: =VLOOKUP(CONCATENATE($L27,Y$19),Spt_3!$C$8:$H$100,3,FALSE) ->  | Z27: =VLOOKUP(CONCATENATE($L27,Z$19),Spt_3!$C$8:$H$100,3,FALSE) ->  | AA27: =VLOOKUP(CONCATENATE($L27,AA$19),Spt_3!$C$8:$H$100,3,FALSE) ->  | AB27: =VLOOKUP(CONCATENATE($L27,AB$19),Spt_3!$C$8:$H$100,3,FALSE) ->  | AC27: =VLOOKUP(CONCATENATE($L27,AC$19),Spt_4!$C$8:$H$105,3,FALSE) ->  | AD27: =VLOOKUP(CONCATENATE($L27,AD$19),Spt_4!$C$8:$H$105,3,FALSE) ->  | AE27: =VLOOKUP(CONCATENATE($L27,AE$19),Spt_4!$C$8:$H$105,3,FALSE) ->  | AF27: =VLOOKUP(CONCATENATE($L27,AF$19),Spt_4!$C$8:$H$105,3,FALSE) -> 
C28: Verein Einzelsp 19 | E28: Verein Einzelsp 20 | G28: Verein Einzelsp 21
A29: 3 | B29: 8. | C29: Einzelspieler 22 | E29: Einzelspieler 23 | G29: Einzelspieler 24 | J29: 5 | K29: =K6 -> 0 | L29: B3 | Q29: =VLOOKUP(CONCATENATE($L29,Q$19),Spt_1!$C$8:$H$105,3,FALSE) ->  | R29: =VLOOKUP(CONCATENATE($L29,R$19),Spt_1!$C$8:$H$105,3,FALSE) ->  | S29: =VLOOKUP(CONCATENATE($L29,S$19),Spt_1!$C$8:$H$105,3,FALSE) ->  | T29: =VLOOKUP(CONCATENATE($L29,T$19),Spt_1!$C$8:$H$105,3,FALSE) ->  | U29: =VLOOKUP(CONCATENATE($L29,U$19),Spt_2!$C$8:$H$105,3,FALSE) ->  | V29: =VLOOKUP(CONCATENATE($L29,V$19),Spt_2!$C$8:$H$105,3,FALSE) ->  | W29: =VLOOKUP(CONCATENATE($L29,W$19),Spt_2!$C$8:$H$105,3,FALSE) ->  | X29: =VLOOKUP(CONCATENATE($L29,X$19),Spt_2!$C$8:$H$105,3,FALSE) ->  | Y29: =VLOOKUP(CONCATENATE($L29,Y$19),Spt_3!$C$8:$H$100,3,FALSE) ->  | Z29: =VLOOKUP(CONCATENATE($L29,Z$19),Spt_3!$C$8:$H$100,3,FALSE) ->  | AA29: =VLOOKUP(CONCATENATE($L29,AA$19),Spt_3!$C$8:$H$100,3,FALSE) ->  | AB29: =VLOOKUP(CONCATENATE($L29,AB$19),Spt_3!$C$8:$H$100,3,FALSE) ->  | AC29: =VLOOKUP(CONCATENATE($L29,AC$19),Spt_4!$C$8:$H$105,3,FALSE) ->  | AD29: =VLOOKUP(CONCATENATE($L29,AD$19),Spt_4!$C$8:$H$105,3,FALSE) ->  | AE29: =VLOOKUP(CONCATENATE($L29,AE$19),Spt_4!$C$8:$H$105,3,FALSE) ->  | AF29: =VLOOKUP(CONCATENATE($L29,AF$19),Spt_4!$C$8:$H$105,3,FALSE) -> 
C30: Verein Einzelsp 22 | E30: Verein Einzelsp 23 | G30: Verein Einzelsp 24
A31: 1 | B31: 9. | C31: Einzelspieler 25 | E31: Einzelspieler 26 | G31: Einzelspieler 27 | J31: 6 | K31: =K7 -> 0 | L31: =VLOOKUP($K31,Teilnehmer!$J$8:$K$23,2,FALSE) ->  | Q31: =VLOOKUP(CONCATENATE($L31,Q$19),Spt_1!$C$8:$H$105,3,FALSE) ->  | R31: =VLOOKUP(CONCATENATE($L31,R$19),Spt_1!$C$8:$H$105,3,FALSE) ->  | S31: =VLOOKUP(CONCATENATE($L31,S$19),Spt_1!$C$8:$H$105,3,FALSE) ->  | T31: =VLOOKUP(CONCATENATE($L31,T$19),Spt_1!$C$8:$H$105,3,FALSE) ->  | U31: =VLOOKUP(CONCATENATE($L31,U$19),Spt_2!$C$8:$H$105,3,FALSE) ->  | V31: =VLOOKUP(CONCATENATE($L31,V$19),Spt_2!$C$8:$H$105,3,FALSE) ->  | W31: =VLOOKUP(CONCATENATE($L31,W$19),Spt_2!$C$8:$H$105,3,FALSE) ->  | X31: =VLOOKUP(CONCATENATE($L31,X$19),Spt_2!$C$8:$H$105,3,FALSE) ->  | Y31: =VLOOKUP(CONCATENATE($L31,Y$19),Spt_3!$C$8:$H$100,3,FALSE) ->  | Z31: =VLOOKUP(CONCATENATE($L31,Z$19),Spt_3!$C$8:$H$100,3,FALSE) ->  | AA31: =VLOOKUP(CONCATENATE($L31,AA$19),Spt_3!$C$8:$H$100,3,FALSE) ->  | AB31: =VLOOKUP(CONCATENATE($L31,AB$19),Spt_3!$C$8:$H$100,3,FALSE) ->  | AC31: =VLOOKUP(CONCATENATE($L31,AC$19),Spt_4!$C$8:$H$105,3,FALSE) ->  | AD31: =VLOOKUP(CONCATENATE($L31,AD$19),Spt_4!$C$8:$H$105,3,FALSE) ->  | AE31: =VLOOKUP(CONCATENATE($L31,AE$19),Spt_4!$C$8:$H$105,3,FALSE) ->  | AF31: =VLOOKUP(CONCATENATE($L31,AF$19),Spt_4!$C$8:$H$105,3,FALSE) -> 
C32: Verein Einzelsp 25 | E32: Verein Einzelsp 26 | G32: Verein Einzelsp 27
A33: 1 | B33: 10. | C33: Einzelspieler 28 | E33: Einzelspieler 29 | G33: Einzelspieler 30 | J33: 7 | K33: =K8 -> 0 | L33: =VLOOKUP($K33,Teilnehmer!$J$8:$K$23,2,FALSE) ->  | Q33: =VLOOKUP(CONCATENATE($L33,Q$19),Spt_1!$C$8:$H$105,3,FALSE) ->  | R33: =VLOOKUP(CONCATENATE($L33,R$19),Spt_1!$C$8:$H$105,3,FALSE) ->  | S33: =VLOOKUP(CONCATENATE($L33,S$19),Spt_1!$C$8:$H$105,3,FALSE) ->  | T33: =VLOOKUP(CONCATENATE($L33,T$19),Spt_1!$C$8:$H$105,3,FALSE) ->  | U33: =VLOOKUP(CONCATENATE($L33,U$19),Spt_2!$C$8:$H$105,3,FALSE) ->  | V33: =VLOOKUP(CONCATENATE($L33,V$19),Spt_2!$C$8:$H$105,3,FALSE) ->  | W33: =VLOOKUP(CONCATENATE($L33,W$19),Spt_2!$C$8:$H$105,3,FALSE) ->  | X33: =VLOOKUP(CONCATENATE($L33,X$19),Spt_2!$C$8:$H$105,3,FALSE) ->  | Y33: =VLOOKUP(CONCATENATE($L33,Y$19),Spt_3!$C$8:$H$100,3,FALSE) ->  | Z33: =VLOOKUP(CONCATENATE($L33,Z$19),Spt_3!$C$8:$H$100,3,FALSE) ->  | AA33: =VLOOKUP(CONCATENATE($L33,AA$19),Spt_3!$C$8:$H$100,3,FALSE) ->  | AB33: =VLOOKUP(CONCATENATE($L33,AB$19),Spt_3!$C$8:$H$100,3,FALSE) ->  | AC33: =VLOOKUP(CONCATENATE($L33,AC$19),Spt_4!$C$8:$H$105,3,FALSE) ->  | AD33: =VLOOKUP(CONCATENATE($L33,AD$19),Spt_4!$C$8:$H$105,3,FALSE) ->  | AE33: =VLOOKUP(CONCATENATE($L33,AE$19),Spt_4!$C$8:$H$105,3,FALSE) ->  | AF33: =VLOOKUP(CONCATENATE($L33,AF$19),Spt_4!$C$8:$H$105,3,FALSE) -> 
C34: Verein Einzelsp 28 | E34: Verein Einzelsp 29 | G34: Verein Einzelsp 30
A35: 1 | B35: 11. | C35: Einzelspieler 31 | E35: Einzelspieler 32 | G35: Einzelspieler 33 | J35: 8 | K35: =K9 -> 0 | L35: =VLOOKUP($K35,Teilnehmer!$J$8:$K$23,2,FALSE) ->  | Q35: =VLOOKUP(CONCATENATE($L35,Q$19),Spt_1!$C$8:$H$105,3,FALSE) ->  | R35: =VLOOKUP(CONCATENATE($L35,R$19),Spt_1!$C$8:$H$105,3,FALSE) ->  | S35: =VLOOKUP(CONCATENATE($L35,S$19),Spt_1!$C$8:$H$105,3,FALSE) ->  | T35: =VLOOKUP(CONCATENATE($L35,T$19),Spt_1!$C$8:$H$105,3,FALSE) ->  | U35: =VLOOKUP(CONCATENATE($L35,U$19),Spt_2!$C$8:$H$105,3,FALSE) ->  | V35: =VLOOKUP(CONCATENATE($L35,V$19),Spt_2!$C$8:$H$105,3,FALSE) ->  | W35: =VLOOKUP(CONCATENATE($L35,W$19),Spt_2!$C$8:$H$105,3,FALSE) ->  | X35: =VLOOKUP(CONCATENATE($L35,X$19),Spt_2!$C$8:$H$105,3,FALSE) ->  | Y35: =VLOOKUP(CONCATENATE($L35,Y$19),Spt_3!$C$8:$H$100,3,FALSE) ->  | Z35: =VLOOKUP(CONCATENATE($L35,Z$19),Spt_3!$C$8:$H$100,3,FALSE) ->  | AA35: =VLOOKUP(CONCATENATE($L35,AA$19),Spt_3!$C$8:$H$100,3,FALSE) ->  | AB35: =VLOOKUP(CONCATENATE($L35,AB$19),Spt_3!$C$8:$H$100,3,FALSE) ->  | AC35: =VLOOKUP(CONCATENATE($L35,AC$19),Spt_4!$C$8:$H$105,3,FALSE) ->  | AD35: =VLOOKUP(CONCATENATE($L35,AD$19),Spt_4!$C$8:$H$105,3,FALSE) ->  | AE35: =VLOOKUP(CONCATENATE($L35,AE$19),Spt_4!$C$8:$H$105,3,FALSE) ->  | AF35: =VLOOKUP(CONCATENATE($L35,AF$19),Spt_4!$C$8:$H$105,3,FALSE) -> 
C36: Verein Einzelsp 31 | E36: Verein Einzelsp 32 | G36: Verein Einzelsp 33
A37: 1 | B37: 12. | C37: Einzelspieler 34 | E37: Einzelspieler 35 | G37: Einzelspieler 36 | J37: 9 | K37: =K10 -> 0 | L37: =VLOOKUP($K37,Teilnehmer!$J$8:$K$23,2,FALSE) ->  | Q37: =VLOOKUP(CONCATENATE($L37,Q$19),Spt_1!$C$8:$H$105,3,FALSE) ->  | R37: =VLOOKUP(CONCATENATE($L37,R$19),Spt_1!$C$8:$H$105,3,FALSE) ->  | S37: =VLOOKUP(CONCATENATE($L37,S$19),Spt_1!$C$8:$H$105,3,FALSE) ->  | T37: =VLOOKUP(CONCATENATE($L37,T$19),Spt_1!$C$8:$H$105,3,FALSE) ->  | U37: =VLOOKUP(CONCATENATE($L37,U$19),Spt_2!$C$8:$H$105,3,FALSE) ->  | V37: =VLOOKUP(CONCATENATE($L37,V$19),Spt_2!$C$8:$H$105,3,FALSE) ->  | W37: =VLOOKUP(CONCATENATE($L37,W$19),Spt_2!$C$8:$H$105,3,FALSE) ->  | X37: =VLOOKUP(CONCATENATE($L37,X$19),Spt_2!$C$8:$H$105,3,FALSE) ->  | Y37: =VLOOKUP(CONCATENATE($L37,Y$19),Spt_3!$C$8:$H$100,3,FALSE) ->  | Z37: =VLOOKUP(CONCATENATE($L37,Z$19),Spt_3!$C$8:$H$100,3,FALSE) ->  | AA37: =VLOOKUP(CONCATENATE($L37,AA$19),Spt_3!$C$8:$H$100,3,FALSE) ->  | AB37: =VLOOKUP(CONCATENATE($L37,AB$19),Spt_3!$C$8:$H$100,3,FALSE) ->  | AC37: =VLOOKUP(CONCATENATE($L37,AC$19),Spt_4!$C$8:$H$105,3,FALSE) ->  | AD37: =VLOOKUP(CONCATENATE($L37,AD$19),Spt_4!$C$8:$H$105,3,FALSE) ->  | AE37: =VLOOKUP(CONCATENATE($L37,AE$19),Spt_4!$C$8:$H$105,3,FALSE) ->  | AF37: =VLOOKUP(CONCATENATE($L37,AF$19),Spt_4!$C$8:$H$105,3,FALSE) -> 
C38: Verein Einzelsp 34 | E38: Verein Einzelsp 35 | G38: Verein Einzelsp 36
A39: 1 | B39: 13. | C39: Einzelspieler 37 | E39: Einzelspieler 38 | G39: Einzelspieler 39 | J39: 10 | K39: =K11 -> Ma 10 | L39: =VLOOKUP($K39,Teilnehmer!$J$8:$K$23,2,FALSE) -> 0 | Q39: =VLOOKUP(CONCATENATE($L39,Q$19),Spt_1!$C$8:$H$105,3,FALSE) ->  | R39: =VLOOKUP(CONCATENATE($L39,R$19),Spt_1!$C$8:$H$105,3,FALSE) ->  | S39: =VLOOKUP(CONCATENATE($L39,S$19),Spt_1!$C$8:$H$105,3,FALSE) ->  | T39: =VLOOKUP(CONCATENATE($L39,T$19),Spt_1!$C$8:$H$105,3,FALSE) ->  | U39: =VLOOKUP(CONCATENATE($L39,U$19),Spt_2!$C$8:$H$105,3,FALSE) ->  | V39: =VLOOKUP(CONCATENATE($L39,V$19),Spt_2!$C$8:$H$105,3,FALSE) ->  | W39: =VLOOKUP(CONCATENATE($L39,W$19),Spt_2!$C$8:$H$105,3,FALSE) ->  | X39: =VLOOKUP(CONCATENATE($L39,X$19),Spt_2!$C$8:$H$105,3,FALSE) ->  | Y39: =VLOOKUP(CONCATENATE($L39,Y$19),Spt_3!$C$8:$H$100,3,FALSE) ->  | Z39: =VLOOKUP(CONCATENATE($L39,Z$19),Spt_3!$C$8:$H$100,3,FALSE) ->  | AA39: =VLOOKUP(CONCATENATE($L39,AA$19),Spt_3!$C$8:$H$100,3,FALSE) ->  | AB39: =VLOOKUP(CONCATENATE($L39,AB$19),Spt_3!$C$8:$H$100,3,FALSE) ->  | AC39: =VLOOKUP(CONCATENATE($L39,AC$19),Spt_4!$C$8:$H$105,3,FALSE) ->  | AD39: =VLOOKUP(CONCATENATE($L39,AD$19),Spt_4!$C$8:$H$105,3,FALSE) ->  | AE39: =VLOOKUP(CONCATENATE($L39,AE$19),Spt_4!$C$8:$H$105,3,FALSE) ->  | AF39: =VLOOKUP(CONCATENATE($L39,AF$19),Spt_4!$C$8:$H$105,3,FALSE) -> 
C40: Verein Einzelsp 37 | E40: Verein Einzelsp 38 | G40: Verein Einzelsp 39
A41: 1 | B41: 14. | C41: Einzelspieler 40 | E41: Einzelspieler 41 | G41: Einzelspieler 42 | J41: 11 | K41: =K12 -> Ma 11 | L41: =VLOOKUP($K41,Teilnehmer!$J$8:$K$23,2,FALSE) -> 0 | Q41: =VLOOKUP(CONCATENATE($L41,Q$19),Spt_1!$C$8:$H$105,3,FALSE) ->  | R41: =VLOOKUP(CONCATENATE($L41,R$19),Spt_1!$C$8:$H$105,3,FALSE) ->  | S41: =VLOOKUP(CONCATENATE($L41,S$19),Spt_1!$C$8:$H$105,3,FALSE) ->  | T41: =VLOOKUP(CONCATENATE($L41,T$19),Spt_1!$C$8:$H$105,3,FALSE) ->  | U41: =VLOOKUP(CONCATENATE($L41,U$19),Spt_2!$C$8:$H$105,3,FALSE) ->  | V41: =VLOOKUP(CONCATENATE($L41,V$19),Spt_2!$C$8:$H$105,3,FALSE) ->  | W41: =VLOOKUP(CONCATENATE($L41,W$19),Spt_2!$C$8:$H$105,3,FALSE) ->  | X41: =VLOOKUP(CONCATENATE($L41,X$19),Spt_2!$C$8:$H$105,3,FALSE) ->  | Y41: =VLOOKUP(CONCATENATE($L41,Y$19),Spt_3!$C$8:$H$100,3,FALSE) ->  | Z41: =VLOOKUP(CONCATENATE($L41,Z$19),Spt_3!$C$8:$H$100,3,FALSE) ->  | AA41: =VLOOKUP(CONCATENATE($L41,AA$19),Spt_3!$C$8:$H$100,3,FALSE) ->  | AB41: =VLOOKUP(CONCATENATE($L41,AB$19),Spt_3!$C$8:$H$100,3,FALSE) ->  | AC41: =VLOOKUP(CONCATENATE($L41,AC$19),Spt_4!$C$8:$H$105,3,FALSE) ->  | AD41: =VLOOKUP(CONCATENATE($L41,AD$19),Spt_4!$C$8:$H$105,3,FALSE) ->  | AE41: =VLOOKUP(CONCATENATE($L41,AE$19),Spt_4!$C$8:$H$105,3,FALSE) ->  | AF41: =VLOOKUP(CONCATENATE($L41,AF$19),Spt_4!$C$8:$H$105,3,FALSE) -> 
C42: Verein Einzelsp 40 | E42: Verein Einzelsp 41 | G42: Verein Einzelsp 42
A43: 1 | B43: 15. | C43: Einzelspieler 43 | E43: Einzelspieler 44 | G43: Einzelspieler 45 | J43: 12 | K43: =K13 -> Ma 12 | L43: =VLOOKUP($K43,Teilnehmer!$J$8:$K$23,2,FALSE) -> 0 | Q43: =VLOOKUP(CONCATENATE($L43,Q$19),Spt_1!$C$8:$H$105,3,FALSE) ->  | R43: =VLOOKUP(CONCATENATE($L43,R$19),Spt_1!$C$8:$H$105,3,FALSE) ->  | S43: =VLOOKUP(CONCATENATE($L43,S$19),Spt_1!$C$8:$H$105,3,FALSE) ->  | T43: =VLOOKUP(CONCATENATE($L43,T$19),Spt_1!$C$8:$H$105,3,FALSE) ->  | U43: =VLOOKUP(CONCATENATE($L43,U$19),Spt_2!$C$8:$H$105,3,FALSE) ->  | V43: =VLOOKUP(CONCATENATE($L43,V$19),Spt_2!$C$8:$H$105,3,FALSE) ->  | W43: =VLOOKUP(CONCATENATE($L43,W$19),Spt_2!$C$8:$H$105,3,FALSE) ->  | X43: =VLOOKUP(CONCATENATE($L43,X$19),Spt_2!$C$8:$H$105,3,FALSE) ->  | Y43: =VLOOKUP(CONCATENATE($L43,Y$19),Spt_3!$C$8:$H$100,3,FALSE) ->  | Z43: =VLOOKUP(CONCATENATE($L43,Z$19),Spt_3!$C$8:$H$100,3,FALSE) ->  | AA43: =VLOOKUP(CONCATENATE($L43,AA$19),Spt_3!$C$8:$H$100,3,FALSE) ->  | AB43: =VLOOKUP(CONCATENATE($L43,AB$19),Spt_3!$C$8:$H$100,3,FALSE) ->  | AC43: =VLOOKUP(CONCATENATE($L43,AC$19),Spt_4!$C$8:$H$105,3,FALSE) ->  | AD43: =VLOOKUP(CONCATENATE($L43,AD$19),Spt_4!$C$8:$H$105,3,FALSE) ->  | AE43: =VLOOKUP(CONCATENATE($L43,AE$19),Spt_4!$C$8:$H$105,3,FALSE) ->  | AF43: =VLOOKUP(CONCATENATE($L43,AF$19),Spt_4!$C$8:$H$105,3,FALSE) -> 
C44: Verein Einzelsp 43 | E44: Verein Einzelsp 44 | G44: Verein Einzelsp 45
A45: 1 | B45: 16. | C45: Einzelspieler 46 | E45: Einzelspieler 47 | G45: Einzelspieler 48 | J45: 13 | K45: =K14 -> Ma 13 | L45: =VLOOKUP($K45,Teilnehmer!$J$8:$K$23,2,FALSE) -> 0 | M45: =IF($E$1=1,Q45,IF($E$1=2,U45,IF($E$1=3,Y45,IF($E$1=4,AC45,"")))) ->  | N45: =IF($E$1=1,R45,IF($E$1=2,V45,IF($E$1=3,Z45,IF($E$1=4,AD45,"")))) ->  | O45: =IF($E$1=1,S45,IF($E$1=2,W45,IF($E$1=3,AA45,IF($E$1=4,AE45,"")))) ->  | P45: =IF($E$1=1,T45,IF($E$1=2,X45,IF($E$1=3,AB45,IF($E$1=4,AF45,"")))) ->  | Q45: =VLOOKUP(CONCATENATE($L45,Q$19),Spt_1!$C$8:$H$105,3,FALSE) ->  | R45: =VLOOKUP(CONCATENATE($L45,R$19),Spt_1!$C$8:$H$105,3,FALSE) ->  | S45: =VLOOKUP(CONCATENATE($L45,S$19),Spt_1!$C$8:$H$105,3,FALSE) ->  | T45: =VLOOKUP(CONCATENATE($L45,T$19),Spt_1!$C$8:$H$105,3,FALSE) ->  | U45: =VLOOKUP(CONCATENATE($L45,U$19),Spt_2!$C$8:$H$105,3,FALSE) ->  | V45: =VLOOKUP(CONCATENATE($L45,V$19),Spt_2!$C$8:$H$105,3,FALSE) ->  | W45: =VLOOKUP(CONCATENATE($L45,W$19),Spt_2!$C$8:$H$105,3,FALSE) ->  | X45: =VLOOKUP(CONCATENATE($L45,X$19),Spt_2!$C$8:$H$105,3,FALSE) ->  | Y45: =VLOOKUP(CONCATENATE($L45,Y$19),Spt_3!$C$8:$H$100,3,FALSE) ->  | Z45: =VLOOKUP(CONCATENATE($L45,Z$19),Spt_3!$C$8:$H$100,3,FALSE) ->  | AA45: =VLOOKUP(CONCATENATE($L45,AA$19),Spt_3!$C$8:$H$100,3,FALSE) ->  | AB45: =VLOOKUP(CONCATENATE($L45,AB$19),Spt_3!$C$8:$H$100,3,FALSE) ->  | AC45: =VLOOKUP(CONCATENATE($L45,AC$19),Spt_4!$C$8:$H$105,3,FALSE) ->  | AD45: =VLOOKUP(CONCATENATE($L45,AD$19),Spt_4!$C$8:$H$105,3,FALSE) ->  | AE45: =VLOOKUP(CONCATENATE($L45,AE$19),Spt_4!$C$8:$H$105,3,FALSE) ->  | AF45: =VLOOKUP(CONCATENATE($L45,AF$19),Spt_4!$C$8:$H$105,3,FALSE) -> 
C46: Verein Einzelsp 46 | E46: Verein Einzelsp 47 | G46: Verein Einzelsp 48
A47: 1 | B47: 17. | C47: Einzelspieler 49 | E47: Einzelspieler 50 | G47: Einzelspieler 51 | J47: 14 | K47: =K15 -> Ma 14 | L47: =VLOOKUP($K47,Teilnehmer!$J$8:$K$23,2,FALSE) -> 0 | M47: =IF($E$1=1,Q47,IF($E$1=2,U47,IF($E$1=3,Y47,IF($E$1=4,AC47,"")))) ->  | N47: =IF($E$1=1,R47,IF($E$1=2,V47,IF($E$1=3,Z47,IF($E$1=4,AD47,"")))) ->  | O47: =IF($E$1=1,S47,IF($E$1=2,W47,IF($E$1=3,AA47,IF($E$1=4,AE47,"")))) ->  | P47: =IF($E$1=1,T47,IF($E$1=2,X47,IF($E$1=3,AB47,IF($E$1=4,AF47,"")))) ->  | Q47: =VLOOKUP(CONCATENATE($L47,Q$19),Spt_1!$C$8:$H$105,3,FALSE) ->  | R47: =VLOOKUP(CONCATENATE($L47,R$19),Spt_1!$C$8:$H$105,3,FALSE) ->  | S47: =VLOOKUP(CONCATENATE($L47,S$19),Spt_1!$C$8:$H$105,3,FALSE) ->  | T47: =VLOOKUP(CONCATENATE($L47,T$19),Spt_1!$C$8:$H$105,3,FALSE) ->  | U47: =VLOOKUP(CONCATENATE($L47,U$19),Spt_2!$C$8:$H$105,3,FALSE) ->  | V47: =VLOOKUP(CONCATENATE($L47,V$19),Spt_2!$C$8:$H$105,3,FALSE) ->  | W47: =VLOOKUP(CONCATENATE($L47,W$19),Spt_2!$C$8:$H$105,3,FALSE) ->  | X47: =VLOOKUP(CONCATENATE($L47,X$19),Spt_2!$C$8:$H$105,3,FALSE) ->  | Y47: =VLOOKUP(CONCATENATE($L47,Y$19),Spt_3!$C$8:$H$100,3,FALSE) ->  | Z47: =VLOOKUP(CONCATENATE($L47,Z$19),Spt_3!$C$8:$H$100,3,FALSE) ->  | AA47: =VLOOKUP(CONCATENATE($L47,AA$19),Spt_3!$C$8:$H$100,3,FALSE) ->  | AB47: =VLOOKUP(CONCATENATE($L47,AB$19),Spt_3!$C$8:$H$100,3,FALSE) ->  | AC47: =VLOOKUP(CONCATENATE($L47,AC$19),Spt_4!$C$8:$H$105,3,FALSE) ->  | AD47: =VLOOKUP(CONCATENATE($L47,AD$19),Spt_4!$C$8:$H$105,3,FALSE) ->  | AE47: =VLOOKUP(CONCATENATE($L47,AE$19),Spt_4!$C$8:$H$105,3,FALSE) ->  | AF47: =VLOOKUP(CONCATENATE($L47,AF$19),Spt_4!$C$8:$H$105,3,FALSE) -> 
C48: Verein Einzelsp 49 | E48: Verein Einzelsp 50 | G48: Verein Einzelsp 51
A49: 1 | B49: 18. | C49: Einzelspieler 52 | E49: Einzelspieler 53 | G49: Einzelspieler 54 | J49: 15 | K49: =K16 -> Ma 15 | L49: =VLOOKUP($K49,Teilnehmer!$J$8:$K$23,2,FALSE) -> 0 | M49: =IF($E$1=1,Q49,IF($E$1=2,U49,IF($E$1=3,Y49,IF($E$1=4,AC49,"")))) ->  | N49: =IF($E$1=1,R49,IF($E$1=2,V49,IF($E$1=3,Z49,IF($E$1=4,AD49,"")))) ->  | O49: =IF($E$1=1,S49,IF($E$1=2,W49,IF($E$1=3,AA49,IF($E$1=4,AE49,"")))) ->  | P49: =IF($E$1=1,T49,IF($E$1=2,X49,IF($E$1=3,AB49,IF($E$1=4,AF49,"")))) ->  | Q49: =VLOOKUP(CONCATENATE($L49,Q$19),Spt_1!$C$8:$H$105,3,FALSE) ->  | R49: =VLOOKUP(CONCATENATE($L49,R$19),Spt_1!$C$8:$H$105,3,FALSE) ->  | S49: =VLOOKUP(CONCATENATE($L49,S$19),Spt_1!$C$8:$H$105,3,FALSE) ->  | T49: =VLOOKUP(CONCATENATE($L49,T$19),Spt_1!$C$8:$H$105,3,FALSE) ->  | U49: =VLOOKUP(CONCATENATE($L49,U$19),Spt_2!$C$8:$H$105,3,FALSE) ->  | V49: =VLOOKUP(CONCATENATE($L49,V$19),Spt_2!$C$8:$H$105,3,FALSE) ->  | W49: =VLOOKUP(CONCATENATE($L49,W$19),Spt_2!$C$8:$H$105,3,FALSE) ->  | X49: =VLOOKUP(CONCATENATE($L49,X$19),Spt_2!$C$8:$H$105,3,FALSE) ->  | Y49: =VLOOKUP(CONCATENATE($L49,Y$19),Spt_3!$C$8:$H$100,3,FALSE) ->  | Z49: =VLOOKUP(CONCATENATE($L49,Z$19),Spt_3!$C$8:$H$100,3,FALSE) ->  | AA49: =VLOOKUP(CONCATENATE($L49,AA$19),Spt_3!$C$8:$H$100,3,FALSE) ->  | AB49: =VLOOKUP(CONCATENATE($L49,AB$19),Spt_3!$C$8:$H$100,3,FALSE) ->  | AC49: =VLOOKUP(CONCATENATE($L49,AC$19),Spt_4!$C$8:$H$105,3,FALSE) ->  | AD49: =VLOOKUP(CONCATENATE($L49,AD$19),Spt_4!$C$8:$H$105,3,FALSE) ->  | AE49: =VLOOKUP(CONCATENATE($L49,AE$19),Spt_4!$C$8:$H$105,3,FALSE) ->  | AF49: =VLOOKUP(CONCATENATE($L49,AF$19),Spt_4!$C$8:$H$105,3,FALSE) -> 
C50: Verein Einzelsp 52 | E50: Verein Einzelsp 53 | G50: Verein Einzelsp 54
A51: 1 | B51: 19. | C51: =+m9s1 ->  | E51: =+m8s1 ->  | G51: =+m7s1 ->  | J51: 16 | K51: =K17 -> Ma 16 | L51: =VLOOKUP($K51,Teilnehmer!$J$8:$K$23,2,FALSE) -> 0 | M51: =IF($E$1=1,Q51,IF($E$1=2,U51,IF($E$1=3,Y51,IF($E$1=4,AC51,"")))) ->  | N51: =IF($E$1=1,R51,IF($E$1=2,V51,IF($E$1=3,Z51,IF($E$1=4,AD51,"")))) ->  | O51: =IF($E$1=1,S51,IF($E$1=2,W51,IF($E$1=3,AA51,IF($E$1=4,AE51,"")))) ->  | P51: =IF($E$1=1,T51,IF($E$1=2,X51,IF($E$1=3,AB51,IF($E$1=4,AF51,"")))) ->  | Q51: =VLOOKUP(CONCATENATE($L51,Q$19),Spt_1!$C$8:$H$105,3,FALSE) ->  | R51: =VLOOKUP(CONCATENATE($L51,R$19),Spt_1!$C$8:$H$105,3,FALSE) ->  | S51: =VLOOKUP(CONCATENATE($L51,S$19),Spt_1!$C$8:$H$105,3,FALSE) ->  | T51: =VLOOKUP(CONCATENATE($L51,T$19),Spt_1!$C$8:$H$105,3,FALSE) ->  | U51: =VLOOKUP(CONCATENATE($L51,U$19),Spt_2!$C$8:$H$105,3,FALSE) ->  | V51: =VLOOKUP(CONCATENATE($L51,V$19),Spt_2!$C$8:$H$105,3,FALSE) ->  | W51: =VLOOKUP(CONCATENATE($L51,W$19),Spt_2!$C$8:$H$105,3,FALSE) ->  | X51: =VLOOKUP(CONCATENATE($L51,X$19),Spt_2!$C$8:$H$105,3,FALSE) ->  | Y51: =VLOOKUP(CONCATENATE($L51,Y$19),Spt_3!$C$8:$H$100,3,FALSE) ->  | Z51: =VLOOKUP(CONCATENATE($L51,Z$19),Spt_3!$C$8:$H$100,3,FALSE) ->  | AA51: =VLOOKUP(CONCATENATE($L51,AA$19),Spt_3!$C$8:$H$100,3,FALSE) ->  | AB51: =VLOOKUP(CONCATENATE($L51,AB$19),Spt_3!$C$8:$H$100,3,FALSE) ->  | AC51: =VLOOKUP(CONCATENATE($L51,AC$19),Spt_4!$C$8:$H$105,3,FALSE) ->  | AD51: =VLOOKUP(CONCATENATE($L51,AD$19),Spt_4!$C$8:$H$105,3,FALSE) ->  | AE51: =VLOOKUP(CONCATENATE($L51,AE$19),Spt_4!$C$8:$H$105,3,FALSE) ->  | AF51: =VLOOKUP(CONCATENATE($L51,AF$19),Spt_4!$C$8:$H$105,3,FALSE) -> 
C52: =CONCATENATE(+_ma9," / Sp1") -> 0 / Sp1 | E52: =CONCATENATE(+_ma8," / Sp1") -> 0 / Sp1 | G52: =CONCATENATE(+_ma7," / Sp1") -> 0 / Sp1
A53: 1 | B53: 20. | C53: =m6s1 ->  | E53: =+m5s1 ->  | G53: =+m4s1 -> 
C54: =CONCATENATE(+_ma6," / Sp1") -> 0 / Sp1 | E54: =CONCATENATE(+_ma5," / Sp1") -> 0 / Sp1 | G54: =CONCATENATE(+_ma4," / Sp1") -> 0 / Sp1
A55: 1 | B55: 21. | C55: =+m3s1 ->  | E55: =+m2s1 ->  | G55: =+m1s1 -> 
C56: =CONCATENATE(+_ma3," / Sp1") -> 0 / Sp1 | E56: =CONCATENATE(+_ma2," / Sp1") -> 0 / Sp1 | G56: =CONCATENATE(+_ma1," / Sp1") -> 0 / Sp1
A57: 1 | B57: 22. | C57: =+m9s2 ->  | E57: =+m8s2 ->  | G57: =+m7s2 -> 
C58: =CONCATENATE(+_ma9," / Sp2") -> 0 / Sp2 | E58: =CONCATENATE(+_ma8," / Sp2") -> 0 / Sp2 | G58: =CONCATENATE(+_ma7," / Sp2") -> 0 / Sp2
A59: 1 | B59: 23. | C59: =+m6s2 ->  | E59: =+m5s2 ->  | G59: =+m4s2 -> 
C60: =CONCATENATE(+_ma6," / Sp2") -> 0 / Sp2 | E60: =CONCATENATE(+_ma5," / Sp2") -> 0 / Sp2 | G60: =CONCATENATE(+_ma4," / Sp2") -> 0 / Sp2
A61: 1 | B61: 24. | C61: =+m3s2 ->  | E61: =+m2s2 ->  | G61: =+m1s2 -> 
C62: =CONCATENATE(+_ma3," / Sp2") -> 0 / Sp2 | E62: =CONCATENATE(+_ma2," / Sp2") -> 0 / Sp2 | G62: =CONCATENATE(+_ma1," / Sp2") -> 0 / Sp2
A63: 1 | B63: 25. | C63: =+m9s3 ->  | E63: =+m8s3 ->  | G63: =+m7s3 -> 
C64: =CONCATENATE(+_ma9," / Sp3") -> 0 / Sp3 | E64: =CONCATENATE(+_ma8," / Sp3") -> 0 / Sp3 | G64: =CONCATENATE(+_ma7," / Sp3") -> 0 / Sp3
A65: 1 | B65: 26. | C65: =+m6s3 ->  | E65: =+m5s3 ->  | G65: =+m4s3 -> 
C66: =CONCATENATE(+_ma6," / Sp3") -> 0 / Sp3 | E66: =CONCATENATE(+_ma5," / Sp3") -> 0 / Sp3 | G66: =CONCATENATE(+_ma4," / Sp3") -> 0 / Sp3
A67: 1 | B67: 27. | C67: =+m3s3 ->  | E67: =+m2s3 ->  | G67: =+m1s3 -> 
C68: =CONCATENATE(+_ma3," / Sp3") -> 0 / Sp3 | E68: =CONCATENATE(+_ma2," / Sp3") -> 0 / Sp3 | G68: =CONCATENATE(+_ma1," / Sp3") -> 0 / Sp3
A69: 1 | B69: 28. | C69: =+m9s4 ->  | E69: =+m8s4 ->  | G69: =+m7s4 -> 
C70: =CONCATENATE(+_ma9," / Sp4") -> 0 / Sp4 | E70: =CONCATENATE(+_ma8," / Sp4") -> 0 / Sp4 | G70: =CONCATENATE(+_ma7," / Sp4") -> 0 / Sp4
A71: 1 | B71: 29. | C71: =+m6s4 ->  | E71: =+m5s4 ->  | G71: =+m4s4 -> 
C72: =CONCATENATE(+_ma6," / Sp4") -> 0 / Sp4 | E72: =CONCATENATE(+_ma5," / Sp4") -> 0 / Sp4 | G72: =CONCATENATE(+_ma4," / Sp4") -> 0 / Sp4
A73: 1 | B73: 30. | C73: =+m3s4 ->  | E73: =+m2s4 ->  | G73: =+m1S4 -> 
C74: =CONCATENATE(+_ma3," / Sp4") -> 0 / Sp4 | E74: =CONCATENATE(+_ma2," / Sp4") -> 0 / Sp4 | G74: =CONCATENATE(+_ma1," / Sp4") -> 0 / Sp4
A76: Start- bahn | B76: Start gruppe | E76: Startliste | H76: 8 Mannschaften
E77: Massenstart
A78: 17 | B78: 1. | C78: Einzelspieler 1 | E78: Einzelspieler 2 | G78: Einzelspieler 3
C79: Verein Einzelsp 1 | E79: Verein Einzelsp 2 | G79: Verein Einzelsp 3
A80: 15 | B80: 2. | C80: Einzelspieler 4 | E80: Einzelspieler 5 | G80: Einzelspieler 6
C81: Verein Einzelsp 4 | E81: Verein Einzelsp 5 | G81: Verein Einzelsp 6
A82: 13 | B82: 3. | C82: Einzelspieler 7 | E82: Einzelspieler 8 | G82: Einzelspieler 9
C83: Verein Einzelsp 7 | E83: Verein Einzelsp 8 | G83: Verein Einzelsp 9
A84: 11 | B84: 4. | C84: Einzelspieler 10 | E84: Einzelspieler 11 | G84: Einzelspieler 12
C85: Verein Einzelsp 10 | E85: Verein Einzelsp 11 | G85: Verein Einzelsp 12
A86: 9 | B86: 5. | C86: Einzelspieler 13 | E86: Einzelspieler 14 | G86: Einzelspieler 15
C87: Verein Einzelsp 13 | E87: Verein Einzelsp 14 | G87: Verein Einzelsp 15
A88: 7 | B88: 6. | C88: Einzelspieler 16 | E88: Einzelspieler 17 | G88: Einzelspieler 18
C89: Verein Einzelsp 16 | E89: Verein Einzelsp 17 | G89: Verein Einzelsp 18
A90: 5 | B90: 7. | C90: Einzelspieler 19 | E90: Einzelspieler 20 | G90: Einzelspieler 21
C91: Verein Einzelsp 19 | E91: Verein Einzelsp 20 | G91: Verein Einzelsp 21
A92: 3 | B92: 8. | C92: Einzelspieler 22 | E92: Einzelspieler 23 | G92: Einzelspieler 24
C93: Verein Einzelsp 22 | E93: Verein Einzelsp 23 | G93: Verein Einzelsp 24
A94: 1 | B94: 9. | C94: Einzelspieler 25 | E94: Einzelspieler 26 | G94: Einzelspieler 27
C95: Verein Einzelsp 25 | E95: Verein Einzelsp 26 | G95: Verein Einzelsp 27
A96: 1 | B96: 10. | C96: Einzelspieler 28 | E96: Einzelspieler 29 | G96: Einzelspieler 30
C97: Verein Einzelsp 28 | E97: Verein Einzelsp 29 | G97: Verein Einzelsp 30
A98: 1 | B98: 11. | C98: Einzelspieler 31 | E98: Einzelspieler 32 | G98: Einzelspieler 33
C99: Verein Einzelsp 31 | E99: Verein Einzelsp 32 | G99: Verein Einzelsp 33
A100: 1 | B100: 12. | C100: Einzelspieler 34 | E100: Einzelspieler 35 | G100: Einzelspieler 36
C101: Verein Einzelsp 34 | E101: Verein Einzelsp 35 | G101: Verein Einzelsp 36
A102: 1 | B102: 13. | C102: Einzelspieler 37 | E102: Einzelspieler 38 | G102: Einzelspieler 39
C103: Verein Einzelsp 37 | E103: Verein Einzelsp 38 | G103: Verein Einzelsp 39
A104: 1 | B104: 14. | C104: Einzelspieler 40 | E104: Einzelspieler 41 | G104: Einzelspieler 42
C105: Verein Einzelsp 40 | E105: Verein Einzelsp 41 | G105: Verein Einzelsp 42
A106: 1 | B106: 15. | C106: Einzelspieler 43 | E106: Einzelspieler 44 | G106: Einzelspieler 45
C107: Verein Einzelsp 43 | E107: Verein Einzelsp 44 | G107: Verein Einzelsp 45
A108: 1 | B108: 16. | C108: Einzelspieler 46 | E108: Einzelspieler 47 | G108: Einzelspieler 48
C109: Verein Einzelsp 46 | E109: Verein Einzelsp 47 | G109: Verein Einzelsp 48
A110: 1 | B110: 17. | C110: Einzelspieler 49 | E110: Einzelspieler 50 | G110: Einzelspieler 51
C111: Verein Einzelsp 49 | E111: Verein Einzelsp 50 | G111: Verein Einzelsp 51
A112: 1 | B112: 18. | C112: Einzelspieler 52 | E112: Einzelspieler 53 | G112: Einzelspieler 54
C113: Verein Einzelsp 52 | E113: Verein Einzelsp 53 | G113: Verein Einzelsp 54
A114: 1 | B114: 19. | C114: Einzelspieler 55 | E114: Einzelspieler 56 | G114: Einzelspieler 57
C115: Verein Einzelsp 55 | E115: Verein Einzelsp 56 | G115: Verein Einzelsp 57
A116: 1 | B116: 20. | C116: =+m8s1 ->  | E116: =+m7s1 ->  | G116: =+m6s1 -> 
C117: =CONCATENATE(+_ma8," / Sp1") -> 0 / Sp1 | E117: =CONCATENATE(+_ma7," / Sp1") -> 0 / Sp1 | G117: =CONCATENATE(+_ma6," / Sp1") -> 0 / Sp1
A118: 1 | B118: 21. | C118: =+m5s1 ->  | E118: =+m4s1 ->  | G118: =+m3s1 -> 
C119: =CONCATENATE(+_ma5," / Sp1") -> 0 / Sp1 | E119: =CONCATENATE(+_ma4," / Sp1") -> 0 / Sp1 | G119: =CONCATENATE(+_ma3," / Sp1") -> 0 / Sp1
A120: 1 | B120: 22. | C120: =+m2s1 ->  | E120: =+m1s1 ->  | G120: =+m8s2 -> 
C121: =CONCATENATE(+_ma2," / Sp1") -> 0 / Sp1 | E121: =CONCATENATE(+_ma1," / Sp1") -> 0 / Sp1 | G121: =CONCATENATE(+_ma8," / Sp2") -> 0 / Sp2
A122: 1 | B122: 23. | C122: =m7s2 ->  | E122: =+m6s2 ->  | G122: =+m5s2 -> 
C123: =CONCATENATE(+_ma7," / Sp2") -> 0 / Sp2 | E123: =CONCATENATE(+_ma6," / Sp2") -> 0 / Sp2 | G123: =CONCATENATE(+_ma5," / Sp2") -> 0 / Sp2
A124: 1 | B124: 24. | C124: =+m4s2 ->  | E124: =+m3s2 ->  | G124: =+m22s2 -> 
C125: =CONCATENATE(+_ma4," / Sp2") -> 0 / Sp2 | E125: =CONCATENATE(+_ma3," / Sp2") -> 0 / Sp2 | G125: =CONCATENATE(+_ma2," / Sp2") -> 0 / Sp2
A126: 1 | B126: 25. | C126: =+m1s2 ->  | E126: =m8s3 ->  | G126: =+m7s3 -> 
C127: =CONCATENATE(+_ma1," / Sp2") -> 0 / Sp2 | E127: =CONCATENATE(+_ma8," / Sp3") -> 0 / Sp3 | G127: =CONCATENATE(+_ma7," / Sp3") -> 0 / Sp3
A128: 1 | B128: 26. | C128: =m6s3 ->  | E128: =+m5s3 ->  | G128: =+m4s3 -> 
C129: =CONCATENATE(+_ma6," / Sp3") -> 0 / Sp3 | E129: =CONCATENATE(+_ma5," / Sp3") -> 0 / Sp3 | G129: =CONCATENATE(+_ma4," / Sp3") -> 0 / Sp3
A130: 1 | B130: 27. | C130: =m3s3 ->  | E130: =+m2s3 ->  | G130: =+m1s3 -> 
C131: =CONCATENATE(+_ma3," / Sp3") -> 0 / Sp3 | E131: =CONCATENATE(+_ma2," / Sp3") -> 0 / Sp3 | G131: =CONCATENATE(+_ma1," / Sp3") -> 0 / Sp3
A132: 1 | B132: 28. | C132: =m8s4 ->  | E132: =+m7s4 ->  | G132: =+m6s4 -> 
C133: =CONCATENATE(+_ma8," / Sp4") -> 0 / Sp4 | E133: =CONCATENATE(+_ma7," / Sp4") -> 0 / Sp4 | G133: =CONCATENATE(+_ma6," / Sp4") -> 0 / Sp4
A134: 1 | B134: 29. | C134: =+m5s4 ->  | E134: =m4s4 ->  | G134: =m3s4 -> 
C135: =CONCATENATE(+_ma5," / Sp4") -> 0 / Sp4 | E135: =CONCATENATE(+_ma4," / Sp4") -> 0 / Sp4 | G135: =CONCATENATE(+_ma3," / Sp4") -> 0 / Sp4
A136: 1 | B136: 30. | C136: =+m2s4 ->  | E136: =+m1S4 -> 
C137: =CONCATENATE(+_ma2," / Sp4") -> 0 / Sp4 | E137: =CONCATENATE(+_ma1," / Sp4") -> 0 / Sp4
A139: Start- bahn | B139: Start gruppe | E139: Startliste | H139: 7 Mannschaften
E140: Massenstart
A141: 17 | B141: 1. | C141: Einzelspieler 1 | E141: Einzelspieler 2 | G141: Einzelspieler 3
C142: Verein Einzelsp 1 | E142: Verein Einzelsp 2 | G142: Verein Einzelsp 3
A143: 15 | B143: 2. | C143: Einzelspieler 4 | E143: Einzelspieler 5 | G143: Einzelspieler 6
C144: Verein Einzelsp 4 | E144: Verein Einzelsp 5 | G144: Verein Einzelsp 6
A145: 13 | B145: 3. | C145: Einzelspieler 7 | E145: Einzelspieler 8 | G145: Einzelspieler 9
C146: Verein Einzelsp 7 | E146: Verein Einzelsp 8 | G146: Verein Einzelsp 9
A147: 11 | B147: 4. | C147: Einzelspieler 10 | E147: Einzelspieler 11 | G147: Einzelspieler 12
C148: Verein Einzelsp 10 | E148: Verein Einzelsp 11 | G148: Verein Einzelsp 12
A149: 9 | B149: 5. | C149: Einzelspieler 13 | E149: Einzelspieler 14 | G149: Einzelspieler 15
C150: Verein Einzelsp 13 | E150: Verein Einzelsp 14 | G150: Verein Einzelsp 15
A151: 7 | B151: 6. | C151: Einzelspieler 16 | E151: Einzelspieler 17 | G151: Einzelspieler 18
C152: Verein Einzelsp 16 | E152: Verein Einzelsp 17 | G152: Verein Einzelsp 18
A153: 5 | B153: 7. | C153: Einzelspieler 19 | E153: Einzelspieler 20 | G153: Einzelspieler 21
C154: Verein Einzelsp 19 | E154: Verein Einzelsp 20 | G154: Verein Einzelsp 21
A155: 3 | B155: 8. | C155: Einzelspieler 22 | E155: Einzelspieler 23 | G155: Einzelspieler 24
C156: Verein Einzelsp 22 | E156: Verein Einzelsp 23 | G156: Verein Einzelsp 24
A157: 1 | B157: 9. | C157: Einzelspieler 25 | E157: Einzelspieler 26 | G157: Einzelspieler 27
C158: Verein Einzelsp 25 | E158: Verein Einzelsp 26 | G158: Verein Einzelsp 27
A159: 1 | B159: 10. | C159: Einzelspieler 28 | E159: Einzelspieler 29 | G159: Einzelspieler 30
C160: Verein Einzelsp 28 | E160: Verein Einzelsp 29 | G160: Verein Einzelsp 30
A161: 1 | B161: 11. | C161: Einzelspieler 31 | E161: Einzelspieler 32 | G161: Einzelspieler 33
C162: Verein Einzelsp 31 | E162: Verein Einzelsp 32 | G162: Verein Einzelsp 33
A163: 1 | B163: 12. | C163: Einzelspieler 34 | E163: Einzelspieler 35 | G163: Einzelspieler 36
C164: Verein Einzelsp 34 | E164: Verein Einzelsp 35 | G164: Verein Einzelsp 36
A165: 1 | B165: 13. | C165: Einzelspieler 37 | E165: Einzelspieler 38 | G165: Einzelspieler 39
C166: Verein Einzelsp 37 | E166: Verein Einzelsp 38 | G166: Verein Einzelsp 39
A167: 1 | B167: 14. | C167: Einzelspieler 40 | E167: Einzelspieler 41 | G167: Einzelspieler 42
C168: Verein Einzelsp 40 | E168: Verein Einzelsp 41 | G168: Verein Einzelsp 42
A169: 1 | B169: 15. | C169: Einzelspieler 43 | E169: Einzelspieler 44 | G169: Einzelspieler 45
C170: Verein Einzelsp 43 | E170: Verein Einzelsp 44 | G170: Verein Einzelsp 45
A171: 1 | B171: 16. | C171: Einzelspieler 46 | E171: Einzelspieler 47 | G171: Einzelspieler 48
C172: Verein Einzelsp 46 | E172: Verein Einzelsp 47 | G172: Verein Einzelsp 48
A173: 1 | B173: 17. | C173: Einzelspieler 49 | E173: Einzelspieler 50 | G173: Einzelspieler 51
C174: Verein Einzelsp 49 | E174: Verein Einzelsp 50 | G174: Verein Einzelsp 51
A175: 1 | B175: 18. | C175: Einzelspieler 52 | E175: Einzelspieler 53 | G175: Einzelspieler 54
C176: Verein Einzelsp 52 | E176: Verein Einzelsp 53 | G176: Verein Einzelsp 54
A177: 1 | B177: 19. | C177: Einzelspieler 55 | E177: Einzelspieler 56 | G177: Einzelspieler 57
C178: Verein Einzelsp 55 | E178: Verein Einzelsp 56 | G178: Verein Einzelsp 57
A179: 1 | B179: 20. | C179: Einzelspieler 58 | E179: Einzelspieler 59 | G179: Einzelspieler 60
C180: Verein Einzelsp 58 | E180: Verein Einzelsp 59 | G180: Verein Einzelsp 60
A181: 1 | B181: 21. | E181: =+m7s1 ->  | G181: =+m6s1 -> 
E182: =CONCATENATE(+_ma7," / Sp1") -> 0 / Sp1 | G182: =CONCATENATE(+_ma6," / Sp1") -> 0 / Sp1
A183: 1 | B183: 22. | E183: =m5s1 ->  | G183: =+m4s1 -> 
E184: =CONCATENATE(+_ma5," / Sp1") -> 0 / Sp1 | G184: =CONCATENATE(+_ma4," / Sp1") -> 0 / Sp1
A185: 1 | B185: 23. | C185: =+m3s1 ->  | E185: =+m2s1 ->  | G185: =+m1s1 -> 
C186: =CONCATENATE(+_ma3," / Sp1") -> 0 / Sp1 | E186: =CONCATENATE(+_ma2," / Sp1") -> 0 / Sp1 | G186: =CONCATENATE(+_ma1," / Sp1") -> 0 / Sp1
A187: 1 | B187: 24. | C187: =+m7s2 ->  | E187: =+m6s2 ->  | G187: =+m5s2 -> 
C188: =CONCATENATE(+_ma7," / Sp2") -> 0 / Sp2 | E188: =CONCATENATE(+_ma6," / Sp2") -> 0 / Sp2 | G188: =CONCATENATE(+_ma5," / Sp2") -> 0 / Sp2
A189: 1 | B189: 25. | C189: =m4s2 ->  | E189: =+m3s2 ->  | G189: =+m2s2 -> 
C190: =CONCATENATE(+_ma4," / Sp2") -> 0 / Sp2 | E190: =CONCATENATE(+_ma3," / Sp2") -> 0 / Sp2 | G190: =CONCATENATE(+_ma2," / Sp2") -> 0 / Sp2
A191: 1 | B191: 26. | C191: =m1s2 ->  | E191: =+m7s3 ->  | G191: =+m6s3 -> 
C192: =CONCATENATE(+_ma1," / Sp2") -> 0 / Sp2 | E192: =CONCATENATE(+_ma7," / Sp3") -> 0 / Sp3 | G192: =CONCATENATE(+_ma6," / Sp3") -> 0 / Sp3
A193: 1 | B193: 27. | C193: =+m5s3 ->  | E193: =+m4s3 ->  | G193: =+m3s3 -> 
C194: =CONCATENATE(+_ma5," / Sp3") -> 0 / Sp3 | E194: =CONCATENATE(+_ma4," / Sp3") -> 0 / Sp3 | G194: =CONCATENATE(+_ma3," / Sp3") -> 0 / Sp3
A195: 1 | B195: 28. | C195: =+m2s3 ->  | E195: =+m1s3 ->  | G195: =+m7s4 -> 
C196: =CONCATENATE(+_ma2," / Sp3") -> 0 / Sp3 | E196: =CONCATENATE(+_ma1," / Sp3") -> 0 / Sp3 | G196: =CONCATENATE(+_ma7," / Sp4") -> 0 / Sp4
A197: 1 | B197: 29. | C197: =+m6s4 ->  | E197: =+m5s4 ->  | G197: =+m4s4 -> 
C198: =CONCATENATE(+_ma6," / Sp4") -> 0 / Sp4 | E198: =CONCATENATE(+_ma5," / Sp4") -> 0 / Sp4 | G198: =CONCATENATE(+_ma4," / Sp4") -> 0 / Sp4
A199: 1 | B199: 30. | C199: =+m3s4 ->  | E199: =+m2s4 ->  | G199: =+m1S4 -> 
C200: =CONCATENATE(+_ma3," / Sp4") -> 0 / Sp4 | E200: =CONCATENATE(+_ma2," / Sp4") -> 0 / Sp4 | G200: =CONCATENATE(+_ma1," / Sp4") -> 0 / Sp4
A202: Start- bahn | B202: Start gruppe | E202: Startliste | H202: 10 Mannschaften
E203: Massenstart
... 60 more rows

Sheet Hilfe_Startliste
I2: Teilnehmer am Spieltag
D3: Grundeinstellung Startliste | H3: lfd Nr | I3: Pass # | J3: Spt1 | K3: Rang Spt1 | L3: Spt2 | M3: Rang Spt2 | N3: Spt3 | O3: Rang Spt3 | P3: Spt4 | Q3: Rang Spt4 | R3: Name | S3: Verein | T3: Wert Spt1 | U3: Wert Spt2 | V3: Wert Spt3 | W3: Wert Spt4
A4: 1. | B4: Einzelspieler 1 | D4: Einzelspieler 2 | F4: Einzelspieler 3 | H4: 1 | I4: =Teilnehmer!B8 -> 67990 | J4: =VLOOKUP($I4,Spt_1!$B$8:$C$229,2,FALSE) -> 0 | K4: =IF($T4>=999,"",RANK($T4,$T$4:$T$83,1)) ->  | L4: =VLOOKUP($I4,Spt_2!$B$8:$C$229,2,FALSE) -> 0 | M4: =IF($U4>=999,"",RANK($U4,$U$4:$U$83,1)) ->  | N4: =VLOOKUP($I4,Spt_3!$B$8:$C$229,2,FALSE) -> 0 | O4: =IF($V4>=999,"",RANK($V4,$V$4:$V$83,1)) ->  | P4: =VLOOKUP($I4,Spt_4!$B$8:$C$229,2,FALSE) -> 0 | Q4: =IF($W4>=999,"",RANK($W4,$W$4:$W$83,1)) ->  | R4: =IF($I4=0,CONCATENATE("ZSM1_",$H4),VLOOKUP($I4,DRL!$B$4:$G$4400,2,FALSE)) -> Bohlig, Jörg | S4: =IF($I4=0,CONCATENATE("ZSM1_",$H4),VLOOKUP($I4,DRL!$B$4:$G$4400,4,FALSE)) -> MGC Kahler Sandhasen | T4: =IF($J4="x",VLOOKUP($I4,Ges_HBSV!$B$4:$AI$255,31,FALSE),999)+$X4 -> 999.0001 | X4: 0.0001
B5: Verein Einzelsp 1 | D5: Verein Einzelsp 2 | F5: Verein Einzelsp 3 | H5: 2 | I5: =Teilnehmer!B9 -> 66852 | J5: =VLOOKUP($I5,Spt_1!$B$8:$C$229,2,FALSE) -> 0 | K5: =IF($T5>=999,"",RANK($T5,$T$4:$T$83,1)) ->  | L5: =VLOOKUP($I5,Spt_2!$B$8:$C$229,2,FALSE) -> 0 | M5: =IF($U5>=999,"",RANK($U5,$U$4:$U$83,1)) ->  | N5: =VLOOKUP($I5,Spt_3!$B$8:$C$229,2,FALSE) -> 0 | O5: =IF($V5>=999,"",RANK($V5,$V$4:$V$83,1)) ->  | P5: =VLOOKUP($I5,Spt_4!$B$8:$C$229,2,FALSE) -> 0 | Q5: =IF($W5>=999,"",RANK($W5,$W$4:$W$83,1)) ->  | R5: =IF($I5=0,CONCATENATE("ZSM1_",$H5),VLOOKUP($I5,DRL!$B$4:$G$4400,2,FALSE)) -> Cech, Andree | S5: =IF($I5=0,CONCATENATE("ZSM1_",$H5),VLOOKUP($I5,DRL!$B$4:$G$4400,4,FALSE)) -> BGSV Aßlar | T5: =IF($J5="x",VLOOKUP($I5,Ges_HBSV!$B$4:$AI$255,31,FALSE),999)+$X5 -> 999.0002 | X5: 0.0002
A6: 2. | B6: Einzelspieler 4 | D6: Einzelspieler 5 | F6: Einzelspieler 6 | H6: 3 | I6: =Teilnehmer!B10 -> 38329 | J6: =VLOOKUP($I6,Spt_1!$B$8:$C$229,2,FALSE) -> 0 | L6: =VLOOKUP($I6,Spt_2!$B$8:$C$229,2,FALSE) -> 0 | N6: =VLOOKUP($I6,Spt_3!$B$8:$C$229,2,FALSE) -> 0 | P6: =VLOOKUP($I6,Spt_4!$B$8:$C$229,2,FALSE) -> 0 | R6: =IF($I6=0,CONCATENATE("ZSM1_",$H6),VLOOKUP($I6,DRL!$B$4:$G$4400,2,FALSE)) -> Dittrich, Michael | S6: =IF($I6=0,CONCATENATE("ZSM1_",$H6),VLOOKUP($I6,DRL!$B$4:$G$4400,4,FALSE)) -> MGC putter Künzell | T6: =IF($J6="x",VLOOKUP($I6,Ges_HBSV!$B$4:$AI$255,31,FALSE),999)+$X6 -> 999.0003 | X6: 0.0003
B7: Verein Einzelsp 4 | D7: Verein Einzelsp 5 | F7: Verein Einzelsp 6 | H7: 4 | I7: =Teilnehmer!B11 -> 37864 | J7: =VLOOKUP($I7,Spt_1!$B$8:$C$229,2,FALSE) -> 0 | L7: =VLOOKUP($I7,Spt_2!$B$8:$C$229,2,FALSE) -> 0 | N7: =VLOOKUP($I7,Spt_3!$B$8:$C$229,2,FALSE) -> 0 | P7: =VLOOKUP($I7,Spt_4!$B$8:$C$229,2,FALSE) -> 0 | R7: =IF($I7=0,CONCATENATE("ZSM1_",$H7),VLOOKUP($I7,DRL!$B$4:$G$4400,2,FALSE)) -> Drebert, Erich | S7: =IF($I7=0,CONCATENATE("ZSM1_",$H7),VLOOKUP($I7,DRL!$B$4:$G$4400,4,FALSE)) -> SG 1886 Weiterstadt | T7: =IF($J7="x",VLOOKUP($I7,Ges_HBSV!$B$4:$AI$255,31,FALSE),999)+$X7 -> 999.0004 | X7: 0.0004
A8: 3. | B8: Einzelspieler 7 | D8: Einzelspieler 8 | F8: Einzelspieler 9 | H8: 5 | I8: =Teilnehmer!B12 -> 46823 | J8: =VLOOKUP($I8,Spt_1!$B$8:$C$229,2,FALSE) -> 0 | L8: =VLOOKUP($I8,Spt_2!$B$8:$C$229,2,FALSE) -> 0 | N8: =VLOOKUP($I8,Spt_3!$B$8:$C$229,2,FALSE) -> 0 | P8: =VLOOKUP($I8,Spt_4!$B$8:$C$229,2,FALSE) -> 0 | R8: =IF($I8=0,CONCATENATE("ZSM1_",$H8),VLOOKUP($I8,DRL!$B$4:$G$4400,2,FALSE)) -> Herzog, Ralf | S8: =IF($I8=0,CONCATENATE("ZSM1_",$H8),VLOOKUP($I8,DRL!$B$4:$G$4400,4,FALSE)) -> TSV Pfungstadt | T8: =IF($J8="x",VLOOKUP($I8,Ges_HBSV!$B$4:$AI$255,31,FALSE),999)+$X8 -> 999.0005 | X8: 0.0005
B9: Verein Einzelsp 7 | D9: Verein Einzelsp 8 | F9: Verein Einzelsp 9 | H9: 6 | I9: =Teilnehmer!B13 -> 44929 | J9: =VLOOKUP($I9,Spt_1!$B$8:$C$229,2,FALSE) -> 0 | L9: =VLOOKUP($I9,Spt_2!$B$8:$C$229,2,FALSE) -> 0 | N9: =VLOOKUP($I9,Spt_3!$B$8:$C$229,2,FALSE) -> 0 | P9: =VLOOKUP($I9,Spt_4!$B$8:$C$229,2,FALSE) -> 0 | R9: =IF($I9=0,CONCATENATE("ZSM1_",$H9),VLOOKUP($I9,DRL!$B$4:$G$4400,2,FALSE)) -> Hess, Rainer | S9: =IF($I9=0,CONCATENATE("ZSM1_",$H9),VLOOKUP($I9,DRL!$B$4:$G$4400,4,FALSE)) -> SG Arheilgen | T9: =IF($J9="x",VLOOKUP($I9,Ges_HBSV!$B$4:$AI$255,31,FALSE),999)+$X9 -> 999.0006 | X9: 0.0006
A10: 4. | B10: Einzelspieler 10 | D10: Einzelspieler 11 | F10: Einzelspieler 12 | H10: 7 | I10: =Teilnehmer!B14 -> 40541 | J10: =VLOOKUP($I10,Spt_1!$B$8:$C$229,2,FALSE) -> 0 | L10: =VLOOKUP($I10,Spt_2!$B$8:$C$229,2,FALSE) -> 0 | N10: =VLOOKUP($I10,Spt_3!$B$8:$C$229,2,FALSE) -> 0 | P10: =VLOOKUP($I10,Spt_4!$B$8:$C$229,2,FALSE) -> 0 | R10: =IF($I10=0,CONCATENATE("ZSM1_",$H10),VLOOKUP($I10,DRL!$B$4:$G$4400,2,FALSE)) -> Isenbiel, Oliver | S10: =IF($I10=0,CONCATENATE("ZSM1_",$H10),VLOOKUP($I10,DRL!$B$4:$G$4400,4,FALSE)) -> MSC Bensheim-Auerbach | T10: =IF($J10="x",VLOOKUP($I10,Ges_HBSV!$B$4:$AI$255,31,FALSE),999)+$X10 -> 999.0007 | X10: 0.0007
B11: Verein Einzelsp 10 | D11: Verein Einzelsp 11 | F11: Verein Einzelsp 12 | H11: 8 | I11: =Teilnehmer!B15 -> 67793 | J11: =VLOOKUP($I11,Spt_1!$B$8:$C$229,2,FALSE) -> 0 | L11: =VLOOKUP($I11,Spt_2!$B$8:$C$229,2,FALSE) -> 0 | N11: =VLOOKUP($I11,Spt_3!$B$8:$C$229,2,FALSE) -> 0 | P11: =VLOOKUP($I11,Spt_4!$B$8:$C$229,2,FALSE) -> 0 | R11: =IF($I11=0,CONCATENATE("ZSM1_",$H11),VLOOKUP($I11,DRL!$B$4:$G$4400,2,FALSE)) -> Joch, Peter | S11: =IF($I11=0,CONCATENATE("ZSM1_",$H11),VLOOKUP($I11,DRL!$B$4:$G$4400,4,FALSE)) -> MSC Bensheim-Auerbach | T11: =IF($J11="x",VLOOKUP($I11,Ges_HBSV!$B$4:$AI$255,31,FALSE),999)+$X11 -> 999.0008 | X11: 0.0008
A12: 5. | B12: Einzelspieler 13 | D12: Einzelspieler 14 | F12: Einzelspieler 15 | H12: 9 | I12: =Teilnehmer!B16 -> 37865 | J12: =VLOOKUP($I12,Spt_1!$B$8:$C$229,2,FALSE) -> 0 | L12: =VLOOKUP($I12,Spt_2!$B$8:$C$229,2,FALSE) -> 0 | N12: =VLOOKUP($I12,Spt_3!$B$8:$C$229,2,FALSE) -> 0 | P12: =VLOOKUP($I12,Spt_4!$B$8:$C$229,2,FALSE) -> 0 | R12: =IF($I12=0,CONCATENATE("ZSM1_",$H12),VLOOKUP($I12,DRL!$B$4:$G$4400,2,FALSE)) -> Mally, Joachim | S12: =IF($I12=0,CONCATENATE("ZSM1_",$H12),VLOOKUP($I12,DRL!$B$4:$G$4400,4,FALSE)) -> MSC Bensheim-Auerbach | T12: =IF($J12="x",VLOOKUP($I12,Ges_HBSV!$B$4:$AI$255,31,FALSE),999)+$X12 -> 999.0009 | X12: 0.0009
B13: Verein Einzelsp 13 | D13: Verein Einzelsp 14 | F13: Verein Einzelsp 15 | H13: 10 | I13: =Teilnehmer!B17 -> 67213 | J13: =VLOOKUP($I13,Spt_1!$B$8:$C$229,2,FALSE) -> 0 | L13: =VLOOKUP($I13,Spt_2!$B$8:$C$229,2,FALSE) -> 0 | N13: =VLOOKUP($I13,Spt_3!$B$8:$C$229,2,FALSE) -> 0 | P13: =VLOOKUP($I13,Spt_4!$B$8:$C$229,2,FALSE) -> 0 | R13: =IF($I13=0,CONCATENATE("ZSM1_",$H13),VLOOKUP($I13,DRL!$B$4:$G$4400,2,FALSE)) -> Paul, Gerd | S13: =IF($I13=0,CONCATENATE("ZSM1_",$H13),VLOOKUP($I13,DRL!$B$4:$G$4400,4,FALSE)) -> MGC Bad Homburg | T13: =IF($J13="x",VLOOKUP($I13,Ges_HBSV!$B$4:$AI$255,31,FALSE),999)+$X13 -> 999.001 | X13: 0.001
A14: 6. | B14: Einzelspieler 16 | D14: Einzelspieler 17 | F14: Einzelspieler 18 | H14: 11 | I14: =Teilnehmer!B18 -> 66666 | J14: =VLOOKUP($I14,Spt_1!$B$8:$C$229,2,FALSE) -> 0 | L14: =VLOOKUP($I14,Spt_2!$B$8:$C$229,2,FALSE) -> 0 | N14: =VLOOKUP($I14,Spt_3!$B$8:$C$229,2,FALSE) -> 0 | P14: =VLOOKUP($I14,Spt_4!$B$8:$C$229,2,FALSE) -> 0 | R14: =IF($I14=0,CONCATENATE("ZSM1_",$H14),VLOOKUP($I14,DRL!$B$4:$G$4400,2,FALSE)) -> Schneider, Timm | S14: =IF($I14=0,CONCATENATE("ZSM1_",$H14),VLOOKUP($I14,DRL!$B$4:$G$4400,4,FALSE)) -> SG Arheilgen | T14: =IF($J14="x",VLOOKUP($I14,Ges_HBSV!$B$4:$AI$255,31,FALSE),999)+$X14 -> 999.0011 | X14: 0.0011
B15: Verein Einzelsp 16 | D15: Verein Einzelsp 17 | F15: Verein Einzelsp 18 | H15: 12 | I15: =Teilnehmer!B19 -> 48644 | J15: =VLOOKUP($I15,Spt_1!$B$8:$C$229,2,FALSE) -> 0 | L15: =VLOOKUP($I15,Spt_2!$B$8:$C$229,2,FALSE) -> 0 | N15: =VLOOKUP($I15,Spt_3!$B$8:$C$229,2,FALSE) -> 0 | P15: =VLOOKUP($I15,Spt_4!$B$8:$C$229,2,FALSE) -> 0 | R15: =IF($I15=0,CONCATENATE("ZSM1_",$H15),VLOOKUP($I15,DRL!$B$4:$G$4400,2,FALSE)) -> Timm, Axel Eric | S15: =IF($I15=0,CONCATENATE("ZSM1_",$H15),VLOOKUP($I15,DRL!$B$4:$G$4400,4,FALSE)) -> TSV Pfungstadt | T15: =IF($J15="x",VLOOKUP($I15,Ges_HBSV!$B$4:$AI$255,31,FALSE),999)+$X15 -> 999.0012 | X15: 0.0012
A16: 7. | B16: Einzelspieler 19 | D16: Einzelspieler 20 | F16: Einzelspieler 21 | H16: 13 | I16: =Teilnehmer!B20 -> 30869 | J16: =VLOOKUP($I16,Spt_1!$B$8:$C$229,2,FALSE) -> 0 | L16: =VLOOKUP($I16,Spt_2!$B$8:$C$229,2,FALSE) -> 0 | N16: =VLOOKUP($I16,Spt_3!$B$8:$C$229,2,FALSE) -> 0 | P16: =VLOOKUP($I16,Spt_4!$B$8:$C$229,2,FALSE) -> 0 | R16: =IF($I16=0,CONCATENATE("ZSM1_",$H16),VLOOKUP($I16,DRL!$B$4:$G$4400,2,FALSE)) -> Träger, Andreas | S16: =IF($I16=0,CONCATENATE("ZSM1_",$H16),VLOOKUP($I16,DRL!$B$4:$G$4400,4,FALSE)) -> MSC Bensheim-Auerbach | T16: =IF($J16="x",VLOOKUP($I16,Ges_HBSV!$B$4:$AI$255,31,FALSE),999)+$X16 -> 999.0013 | X16: 0.0013
B17: Verein Einzelsp 19 | D17: Verein Einzelsp 20 | F17: Verein Einzelsp 21 | H17: 14 | I17: =Teilnehmer!B21 -> 38133 | J17: =VLOOKUP($I17,Spt_1!$B$8:$C$229,2,FALSE) -> 0 | L17: =VLOOKUP($I17,Spt_2!$B$8:$C$229,2,FALSE) -> 0 | N17: =VLOOKUP($I17,Spt_3!$B$8:$C$229,2,FALSE) -> 0 | P17: =VLOOKUP($I17,Spt_4!$B$8:$C$229,2,FALSE) -> 0 | R17: =IF($I17=0,CONCATENATE("ZSM1_",$H17),VLOOKUP($I17,DRL!$B$4:$G$4400,2,FALSE)) -> Tröller, Jürgen | S17: =IF($I17=0,CONCATENATE("ZSM1_",$H17),VLOOKUP($I17,DRL!$B$4:$G$4400,4,FALSE)) -> MSC Bensheim-Auerbach | T17: =IF($J17="x",VLOOKUP($I17,Ges_HBSV!$B$4:$AI$255,31,FALSE),999)+$X17 -> 999.0014 | X17: 0.0014
A18: 8. | B18: Einzelspieler 22 | D18: Einzelspieler 23 | F18: Einzelspieler 24 | H18: 15 | I18: =Teilnehmer!B22 -> 67992 | J18: =VLOOKUP($I18,Spt_1!$B$8:$C$229,2,FALSE) -> 0 | L18: =VLOOKUP($I18,Spt_2!$B$8:$C$229,2,FALSE) -> 0 | N18: =VLOOKUP($I18,Spt_3!$B$8:$C$229,2,FALSE) -> 0 | P18: =VLOOKUP($I18,Spt_4!$B$8:$C$229,2,FALSE) -> 0 | R18: =IF($I18=0,CONCATENATE("ZSM1_",$H18),VLOOKUP($I18,DRL!$B$4:$G$4400,2,FALSE)) -> Uhlmann, Torsten | S18: =IF($I18=0,CONCATENATE("ZSM1_",$H18),VLOOKUP($I18,DRL!$B$4:$G$4400,4,FALSE)) -> MGC Kahler Sandhasen | T18: =IF($J18="x",VLOOKUP($I18,Ges_HBSV!$B$4:$AI$255,31,FALSE),999)+$X18 -> 999.0015 | X18: 0.0015
B19: Verein Einzelsp 22 | D19: Verein Einzelsp 23 | F19: Verein Einzelsp 24 | H19: 16 | I19: =Teilnehmer!B23 -> 0 | J19: =VLOOKUP($I19,Spt_1!$B$8:$C$229,2,FALSE) -> 0 | L19: =VLOOKUP($I19,Spt_2!$B$8:$C$229,2,FALSE) -> 0 | N19: =VLOOKUP($I19,Spt_3!$B$8:$C$229,2,FALSE) -> 0 | P19: =VLOOKUP($I19,Spt_4!$B$8:$C$229,2,FALSE) -> 0 | R19: =IF($I19=0,CONCATENATE("ZSM1_",$H19),VLOOKUP($I19,DRL!$B$4:$G$4400,2,FALSE)) -> ZSM1_16 | S19: =IF($I19=0,CONCATENATE("ZSM1_",$H19),VLOOKUP($I19,DRL!$B$4:$G$4400,4,FALSE)) -> ZSM1_16 | T19: =IF($J19="x",VLOOKUP($I19,Ges_HBSV!$B$4:$AI$255,31,FALSE),999)+$X19 -> 999.0016 | X19: 0.0016
A20: 9. | B20: Einzelspieler 25 | D20: Einzelspieler 26 | F20: Einzelspieler 27 | H20: 17 | I20: =Teilnehmer!B24 -> 0 | J20: =VLOOKUP($I20,Spt_1!$B$8:$C$229,2,FALSE) -> 0 | L20: =VLOOKUP($I20,Spt_2!$B$8:$C$229,2,FALSE) -> 0 | N20: =VLOOKUP($I20,Spt_3!$B$8:$C$229,2,FALSE) -> 0 | P20: =VLOOKUP($I20,Spt_4!$B$8:$C$229,2,FALSE) -> 0 | R20: =IF($I20=0,CONCATENATE("ZSM1_",$H20),VLOOKUP($I20,DRL!$B$4:$G$4400,2,FALSE)) -> ZSM1_17 | S20: =IF($I20=0,CONCATENATE("ZSM1_",$H20),VLOOKUP($I20,DRL!$B$4:$G$4400,4,FALSE)) -> ZSM1_17 | T20: =IF($J20="x",VLOOKUP($I20,Ges_HBSV!$B$4:$AI$255,31,FALSE),999)+$X20 -> 999.0017 | X20: 0.0017
B21: Verein Einzelsp 25 | D21: Verein Einzelsp 26 | F21: Verein Einzelsp 27 | H21: 18 | I21: =Teilnehmer!B25 -> 0 | J21: =VLOOKUP($I21,Spt_1!$B$8:$C$229,2,FALSE) -> 0 | L21: =VLOOKUP($I21,Spt_2!$B$8:$C$229,2,FALSE) -> 0 | N21: =VLOOKUP($I21,Spt_3!$B$8:$C$229,2,FALSE) -> 0 | P21: =VLOOKUP($I21,Spt_4!$B$8:$C$229,2,FALSE) -> 0 | R21: =IF($I21=0,CONCATENATE("ZSM1_",$H21),VLOOKUP($I21,DRL!$B$4:$G$4400,2,FALSE)) -> ZSM1_18 | S21: =IF($I21=0,CONCATENATE("ZSM1_",$H21),VLOOKUP($I21,DRL!$B$4:$G$4400,4,FALSE)) -> ZSM1_18 | T21: =IF($J21="x",VLOOKUP($I21,Ges_HBSV!$B$4:$AI$255,31,FALSE),999)+$X21 -> 999.0018 | X21: 0.0018
A22: 10. | B22: Einzelspieler 28 | D22: Einzelspieler 29 | F22: Einzelspieler 30 | H22: 19 | I22: =Teilnehmer!B26 -> 0 | J22: =VLOOKUP($I22,Spt_1!$B$8:$C$229,2,FALSE) -> 0 | L22: =VLOOKUP($I22,Spt_2!$B$8:$C$229,2,FALSE) -> 0 | N22: =VLOOKUP($I22,Spt_3!$B$8:$C$229,2,FALSE) -> 0 | P22: =VLOOKUP($I22,Spt_4!$B$8:$C$229,2,FALSE) -> 0 | R22: =IF($I22=0,CONCATENATE("ZSM1_",$H22),VLOOKUP($I22,DRL!$B$4:$G$4400,2,FALSE)) -> ZSM1_19 | S22: =IF($I22=0,CONCATENATE("ZSM1_",$H22),VLOOKUP($I22,DRL!$B$4:$G$4400,4,FALSE)) -> ZSM1_19 | T22: =IF($J22="x",VLOOKUP($I22,Ges_HBSV!$B$4:$AI$255,31,FALSE),999)+$X22 -> 999.0019 | X22: 0.0019
B23: Verein Einzelsp 28 | D23: Verein Einzelsp 29 | F23: Verein Einzelsp 30 | H23: 20 | I23: =Teilnehmer!B27 -> 0 | J23: =VLOOKUP($I23,Spt_1!$B$8:$C$229,2,FALSE) -> 0 | L23: =VLOOKUP($I23,Spt_2!$B$8:$C$229,2,FALSE) -> 0 | N23: =VLOOKUP($I23,Spt_3!$B$8:$C$229,2,FALSE) -> 0 | P23: =VLOOKUP($I23,Spt_4!$B$8:$C$229,2,FALSE) -> 0 | R23: =IF($I23=0,CONCATENATE("ZSM1_",$H23),VLOOKUP($I23,DRL!$B$4:$G$4400,2,FALSE)) -> ZSM1_20 | S23: =IF($I23=0,CONCATENATE("ZSM1_",$H23),VLOOKUP($I23,DRL!$B$4:$G$4400,4,FALSE)) -> ZSM1_20 | T23: =IF($J23="x",VLOOKUP($I23,Ges_HBSV!$B$4:$AI$255,31,FALSE),999)+$X23 -> 999.002 | X23: 0.002
A24: 11. | B24: Einzelspieler 31 | D24: Einzelspieler 32 | F24: Einzelspieler 33 | H24: 21 | I24: =Teilnehmer!B28 -> 0 | J24: =VLOOKUP($I24,Spt_1!$B$8:$C$229,2,FALSE) -> 0 | L24: =VLOOKUP($I24,Spt_2!$B$8:$C$229,2,FALSE) -> 0 | N24: =VLOOKUP($I24,Spt_3!$B$8:$C$229,2,FALSE) -> 0 | P24: =VLOOKUP($I24,Spt_4!$B$8:$C$229,2,FALSE) -> 0 | R24: =IF($I24=0,CONCATENATE("ZSM1_",$H24),VLOOKUP($I24,DRL!$B$4:$G$4400,2,FALSE)) -> ZSM1_21 | S24: =IF($I24=0,CONCATENATE("ZSM1_",$H24),VLOOKUP($I24,DRL!$B$4:$G$4400,4,FALSE)) -> ZSM1_21 | T24: =IF($J24="x",VLOOKUP($I24,Ges_HBSV!$B$4:$AI$255,31,FALSE),999)+$X24 -> 999.0021 | X24: 0.0021
B25: Verein Einzelsp 31 | D25: Verein Einzelsp 32 | F25: Verein Einzelsp 33 | H25: 22 | I25: =Teilnehmer!B29 -> 0 | J25: =VLOOKUP($I25,Spt_1!$B$8:$C$229,2,FALSE) -> 0 | L25: =VLOOKUP($I25,Spt_2!$B$8:$C$229,2,FALSE) -> 0 | N25: =VLOOKUP($I25,Spt_3!$B$8:$C$229,2,FALSE) -> 0 | P25: =VLOOKUP($I25,Spt_4!$B$8:$C$229,2,FALSE) -> 0 | R25: =IF($I25=0,CONCATENATE("ZSM1_",$H25),VLOOKUP($I25,DRL!$B$4:$G$4400,2,FALSE)) -> ZSM1_22 | S25: =IF($I25=0,CONCATENATE("ZSM1_",$H25),VLOOKUP($I25,DRL!$B$4:$G$4400,4,FALSE)) -> ZSM1_22 | T25: =IF($J25="x",VLOOKUP($I25,Ges_HBSV!$B$4:$AI$255,31,FALSE),999)+$X25 -> 999.0022 | X25: 0.0022
A26: 12. | B26: Einzelspieler 34 | D26: Einzelspieler 35 | F26: Einzelspieler 36 | H26: 23 | I26: =Teilnehmer!B30 -> 0 | J26: =VLOOKUP($I26,Spt_1!$B$8:$C$229,2,FALSE) -> 0 | L26: =VLOOKUP($I26,Spt_2!$B$8:$C$229,2,FALSE) -> 0 | N26: =VLOOKUP($I26,Spt_3!$B$8:$C$229,2,FALSE) -> 0 | P26: =VLOOKUP($I26,Spt_4!$B$8:$C$229,2,FALSE) -> 0 | R26: =IF($I26=0,CONCATENATE("ZSM1_",$H26),VLOOKUP($I26,DRL!$B$4:$G$4400,2,FALSE)) -> ZSM1_23 | S26: =IF($I26=0,CONCATENATE("ZSM1_",$H26),VLOOKUP($I26,DRL!$B$4:$G$4400,4,FALSE)) -> ZSM1_23 | T26: =IF($J26="x",VLOOKUP($I26,Ges_HBSV!$B$4:$AI$255,31,FALSE),999)+$X26 -> 999.0023 | X26: 0.0023
B27: Verein Einzelsp 34 | D27: Verein Einzelsp 35 | F27: Verein Einzelsp 36 | H27: 24 | I27: =Teilnehmer!B31 -> 0 | J27: =VLOOKUP($I27,Spt_1!$B$8:$C$229,2,FALSE) -> 0 | L27: =VLOOKUP($I27,Spt_2!$B$8:$C$229,2,FALSE) -> 0 | N27: =VLOOKUP($I27,Spt_3!$B$8:$C$229,2,FALSE) -> 0 | P27: =VLOOKUP($I27,Spt_4!$B$8:$C$229,2,FALSE) -> 0 | R27: =IF($I27=0,CONCATENATE("ZSM1_",$H27),VLOOKUP($I27,DRL!$B$4:$G$4400,2,FALSE)) -> ZSM1_24 | S27: =IF($I27=0,CONCATENATE("ZSM1_",$H27),VLOOKUP($I27,DRL!$B$4:$G$4400,4,FALSE)) -> ZSM1_24 | T27: =IF($J27="x",VLOOKUP($I27,Ges_HBSV!$B$4:$AI$255,31,FALSE),999)+$X27 -> 999.0024 | X27: 0.0024
A28: 13. | B28: Einzelspieler 37 | D28: Einzelspieler 38 | F28: Einzelspieler 39 | H28: 25 | I28: =Teilnehmer!B32 -> 0 | J28: =VLOOKUP($I28,Spt_1!$B$8:$C$229,2,FALSE) -> 0 | L28: =VLOOKUP($I28,Spt_2!$B$8:$C$229,2,FALSE) -> 0 | N28: =VLOOKUP($I28,Spt_3!$B$8:$C$229,2,FALSE) -> 0 | P28: =VLOOKUP($I28,Spt_4!$B$8:$C$229,2,FALSE) -> 0 | R28: =IF($I28=0,CONCATENATE("ZSM1_",$H28),VLOOKUP($I28,DRL!$B$4:$G$4400,2,FALSE)) -> ZSM1_25 | S28: =IF($I28=0,CONCATENATE("ZSM1_",$H28),VLOOKUP($I28,DRL!$B$4:$G$4400,4,FALSE)) -> ZSM1_25 | T28: =IF($J28="x",VLOOKUP($I28,Ges_HBSV!$B$4:$AI$255,31,FALSE),999)+$X28 -> 999.0025 | X28: 0.0025
B29: Verein Einzelsp 37 | D29: Verein Einzelsp 38 | F29: Verein Einzelsp 39 | H29: 101 | I29: =Teilnehmer!B41 -> 35779 | J29: =VLOOKUP($I29,Spt_1!$B$8:$C$229,2,FALSE) -> 0 | L29: =VLOOKUP($I29,Spt_2!$B$8:$C$229,2,FALSE) -> 0 | N29: =VLOOKUP($I29,Spt_3!$B$8:$C$229,2,FALSE) -> 0 | P29: =VLOOKUP($I29,Spt_4!$B$8:$C$229,2,FALSE) -> 0 | R29: =IF($I29=0,CONCATENATE("ZSM2_",$H29),VLOOKUP($I29,DRL!$B$4:$G$4400,2,FALSE)) -> Arnold, Günter | S29: =IF($I29=0,CONCATENATE("ZSM2_",$H29),VLOOKUP($I29,DRL!$B$4:$G$4400,4,FALSE)) -> BGSV Aßlar | T29: =IF($J29="x",VLOOKUP($I29,Ges_HBSV!$B$4:$AI$255,31,FALSE),999)+$X29 -> 999.0026 | X29: 0.0026
A30: 14. | B30: Einzelspieler 40 | D30: Einzelspieler 41 | F30: Einzelspieler 42 | H30: 102 | I30: =Teilnehmer!B42 -> 22165 | J30: =VLOOKUP($I30,Spt_1!$B$8:$C$229,2,FALSE) -> 0 | L30: =VLOOKUP($I30,Spt_2!$B$8:$C$229,2,FALSE) -> 0 | N30: =VLOOKUP($I30,Spt_3!$B$8:$C$229,2,FALSE) -> 0 | P30: =VLOOKUP($I30,Spt_4!$B$8:$C$229,2,FALSE) -> 0 | R30: =IF($I30=0,CONCATENATE("ZSM2_",$H30),VLOOKUP($I30,DRL!$B$4:$G$4400,2,FALSE)) -> Buchert, Harald | S30: =IF($I30=0,CONCATENATE("ZSM2_",$H30),VLOOKUP($I30,DRL!$B$4:$G$4400,4,FALSE)) -> MSC Bensheim-Auerbach | T30: =IF($J30="x",VLOOKUP($I30,Ges_HBSV!$B$4:$AI$255,31,FALSE),999)+$X30 -> 999.0027 | X30: 0.0027
B31: Verein Einzelsp 40 | D31: Verein Einzelsp 41 | F31: Verein Einzelsp 42 | H31: 103 | I31: =Teilnehmer!B43 -> 66043 | J31: =VLOOKUP($I31,Spt_1!$B$8:$C$229,2,FALSE) -> 0 | L31: =VLOOKUP($I31,Spt_2!$B$8:$C$229,2,FALSE) -> 0 | N31: =VLOOKUP($I31,Spt_3!$B$8:$C$229,2,FALSE) -> 0 | P31: =VLOOKUP($I31,Spt_4!$B$8:$C$229,2,FALSE) -> 0 | R31: =IF($I31=0,CONCATENATE("ZSM2_",$H31),VLOOKUP($I31,DRL!$B$4:$G$4400,2,FALSE)) -> Droste, Peter | S31: =IF($I31=0,CONCATENATE("ZSM2_",$H31),VLOOKUP($I31,DRL!$B$4:$G$4400,4,FALSE)) -> TSV Pfungstadt | T31: =IF($J31="x",VLOOKUP($I31,Ges_HBSV!$B$4:$AI$255,31,FALSE),999)+$X31 -> 999.0028 | X31: 0.0028
A32: 15. | B32: Einzelspieler 43 | D32: Einzelspieler 44 | F32: Einzelspieler 45 | H32: 104 | I32: =Teilnehmer!B44 -> 67313 | J32: =VLOOKUP($I32,Spt_1!$B$8:$C$229,2,FALSE) -> 0 | L32: =VLOOKUP($I32,Spt_2!$B$8:$C$229,2,FALSE) -> 0 | N32: =VLOOKUP($I32,Spt_3!$B$8:$C$229,2,FALSE) -> 0 | P32: =VLOOKUP($I32,Spt_4!$B$8:$C$229,2,FALSE) -> 0 | R32: =IF($I32=0,CONCATENATE("ZSM2_",$H32),VLOOKUP($I32,DRL!$B$4:$G$4400,2,FALSE)) -> Effenberger, Thomas | S32: =IF($I32=0,CONCATENATE("ZSM2_",$H32),VLOOKUP($I32,DRL!$B$4:$G$4400,4,FALSE)) -> MGC Bad Homburg | T32: =IF($J32="x",VLOOKUP($I32,Ges_HBSV!$B$4:$AI$255,31,FALSE),999)+$X32 -> 999.0029 | X32: 0.0029
B33: Verein Einzelsp 43 | D33: Verein Einzelsp 44 | F33: Verein Einzelsp 45 | H33: 105 | I33: =Teilnehmer!B45 -> 67059 | J33: =VLOOKUP($I33,Spt_1!$B$8:$C$229,2,FALSE) -> 0 | L33: =VLOOKUP($I33,Spt_2!$B$8:$C$229,2,FALSE) -> 0 | N33: =VLOOKUP($I33,Spt_3!$B$8:$C$229,2,FALSE) -> 0 | P33: =VLOOKUP($I33,Spt_4!$B$8:$C$229,2,FALSE) -> 0 | R33: =IF($I33=0,CONCATENATE("ZSM2_",$H33),VLOOKUP($I33,DRL!$B$4:$G$4400,2,FALSE)) -> Fiedler, Wolfgang | S33: =IF($I33=0,CONCATENATE("ZSM2_",$H33),VLOOKUP($I33,DRL!$B$4:$G$4400,4,FALSE)) -> BGSV Aßlar | T33: =IF($J33="x",VLOOKUP($I33,Ges_HBSV!$B$4:$AI$255,31,FALSE),999)+$X33 -> 999.003 | X33: 0.003
A34: 16. | B34: Einzelspieler 46 | D34: Einzelspieler 47 | F34: Einzelspieler 48 | H34: 106 | I34: =Teilnehmer!B46 -> 67995 | J34: =VLOOKUP($I34,Spt_1!$B$8:$C$229,2,FALSE) -> 0 | L34: =VLOOKUP($I34,Spt_2!$B$8:$C$229,2,FALSE) -> 0 | N34: =VLOOKUP($I34,Spt_3!$B$8:$C$229,2,FALSE) -> 0 | P34: =VLOOKUP($I34,Spt_4!$B$8:$C$229,2,FALSE) -> 0 | R34: =IF($I34=0,CONCATENATE("ZSM2_",$H34),VLOOKUP($I34,DRL!$B$4:$G$4400,2,FALSE)) -> Flanderka, Wolfgang | S34: =IF($I34=0,CONCATENATE("ZSM2_",$H34),VLOOKUP($I34,DRL!$B$4:$G$4400,4,FALSE)) -> MGC Kahler Sandhasen | T34: =IF($J34="x",VLOOKUP($I34,Ges_HBSV!$B$4:$AI$255,31,FALSE),999)+$X34 -> 999.0031 | X34: 0.0031
B35: Verein Einzelsp 46 | D35: Verein Einzelsp 47 | F35: Verein Einzelsp 48 | H35: 107 | I35: =Teilnehmer!B47 -> 38490 | J35: =VLOOKUP($I35,Spt_1!$B$8:$C$229,2,FALSE) -> 0 | L35: =VLOOKUP($I35,Spt_2!$B$8:$C$229,2,FALSE) -> 0 | N35: =VLOOKUP($I35,Spt_3!$B$8:$C$229,2,FALSE) -> 0 | P35: =VLOOKUP($I35,Spt_4!$B$8:$C$229,2,FALSE) -> 0 | R35: =IF($I35=0,CONCATENATE("ZSM2_",$H35),VLOOKUP($I35,DRL!$B$4:$G$4400,2,FALSE)) -> Frank, Rolf | S35: =IF($I35=0,CONCATENATE("ZSM2_",$H35),VLOOKUP($I35,DRL!$B$4:$G$4400,4,FALSE)) -> BGSV Bad Homburg | T35: =IF($J35="x",VLOOKUP($I35,Ges_HBSV!$B$4:$AI$255,31,FALSE),999)+$X35 -> 999.0032 | X35: 0.0032
A36: 17. | B36: Einzelspieler 49 | D36: Einzelspieler 50 | F36: Einzelspieler 51 | H36: 108 | I36: =Teilnehmer!B48 -> 27550 | J36: =VLOOKUP($I36,Spt_1!$B$8:$C$229,2,FALSE) -> 0 | L36: =VLOOKUP($I36,Spt_2!$B$8:$C$229,2,FALSE) -> 0 | N36: =VLOOKUP($I36,Spt_3!$B$8:$C$229,2,FALSE) -> 0 | P36: =VLOOKUP($I36,Spt_4!$B$8:$C$229,2,FALSE) -> 0 | R36: =IF($I36=0,CONCATENATE("ZSM2_",$H36),VLOOKUP($I36,DRL!$B$4:$G$4400,2,FALSE)) -> Fritsch, Hans-Peter | S36: =IF($I36=0,CONCATENATE("ZSM2_",$H36),VLOOKUP($I36,DRL!$B$4:$G$4400,4,FALSE)) -> MSC Bensheim-Auerbach | T36: =IF($J36="x",VLOOKUP($I36,Ges_HBSV!$B$4:$AI$255,31,FALSE),999)+$X36 -> 999.0033 | X36: 0.0033
B37: Verein Einzelsp 49 | D37: Verein Einzelsp 50 | F37: Verein Einzelsp 51 | H37: 109 | I37: =Teilnehmer!B49 -> 67788 | J37: =VLOOKUP($I37,Spt_1!$B$8:$C$229,2,FALSE) -> 0 | L37: =VLOOKUP($I37,Spt_2!$B$8:$C$229,2,FALSE) -> 0 | N37: =VLOOKUP($I37,Spt_3!$B$8:$C$229,2,FALSE) -> 0 | P37: =VLOOKUP($I37,Spt_4!$B$8:$C$229,2,FALSE) -> 0 | R37: =IF($I37=0,CONCATENATE("ZSM2_",$H37),VLOOKUP($I37,DRL!$B$4:$G$4400,2,FALSE)) -> Hartz, Detlef | S37: =IF($I37=0,CONCATENATE("ZSM2_",$H37),VLOOKUP($I37,DRL!$B$4:$G$4400,4,FALSE)) -> BGSV Bad Homburg | T37: =IF($J37="x",VLOOKUP($I37,Ges_HBSV!$B$4:$AI$255,31,FALSE),999)+$X37 -> 999.0034 | X37: 0.0034
A38: 18. | B38: Einzelspieler 52 | D38: Einzelspieler 53 | F38: Einzelspieler 54 | H38: 110 | I38: =Teilnehmer!B50 -> 67126 | J38: =VLOOKUP($I38,Spt_1!$B$8:$C$229,2,FALSE) -> 0 | L38: =VLOOKUP($I38,Spt_2!$B$8:$C$229,2,FALSE) -> 0 | N38: =VLOOKUP($I38,Spt_3!$B$8:$C$229,2,FALSE) -> 0 | P38: =VLOOKUP($I38,Spt_4!$B$8:$C$229,2,FALSE) -> 0 | R38: =IF($I38=0,CONCATENATE("ZSM2_",$H38),VLOOKUP($I38,DRL!$B$4:$G$4400,2,FALSE)) -> Heber, Bernd | S38: =IF($I38=0,CONCATENATE("ZSM2_",$H38),VLOOKUP($I38,DRL!$B$4:$G$4400,4,FALSE)) -> SG 1886 Weiterstadt | T38: =IF($J38="x",VLOOKUP($I38,Ges_HBSV!$B$4:$AI$255,31,FALSE),999)+$X38 -> 999.0035 | X38: 0.0035
B39: Verein Einzelsp 52 | D39: Verein Einzelsp 53 | F39: Verein Einzelsp 54 | H39: 111 | I39: =Teilnehmer!B51 -> 50172 | J39: =VLOOKUP($I39,Spt_1!$B$8:$C$229,2,FALSE) -> 0 | L39: =VLOOKUP($I39,Spt_2!$B$8:$C$229,2,FALSE) -> 0 | N39: =VLOOKUP($I39,Spt_3!$B$8:$C$229,2,FALSE) -> 0 | P39: =VLOOKUP($I39,Spt_4!$B$8:$C$229,2,FALSE) -> 0 | R39: =IF($I39=0,CONCATENATE("ZSM2_",$H39),VLOOKUP($I39,DRL!$B$4:$G$4400,2,FALSE)) -> Hilß, Reinhold | S39: =IF($I39=0,CONCATENATE("ZSM2_",$H39),VLOOKUP($I39,DRL!$B$4:$G$4400,4,FALSE)) -> MSC Bensheim-Auerbach | T39: =IF($J39="x",VLOOKUP($I39,Ges_HBSV!$B$4:$AI$255,31,FALSE),999)+$X39 -> 999.0036 | X39: 0.0036
A40: 19. | B40: Einzelspieler 55 | D40: Einzelspieler 56 | F40: Einzelspieler 57 | H40: 112 | I40: =Teilnehmer!B52 -> 34878 | J40: =VLOOKUP($I40,Spt_1!$B$8:$C$229,2,FALSE) -> 0 | L40: =VLOOKUP($I40,Spt_2!$B$8:$C$229,2,FALSE) -> 0 | N40: =VLOOKUP($I40,Spt_3!$B$8:$C$229,2,FALSE) -> 0 | P40: =VLOOKUP($I40,Spt_4!$B$8:$C$229,2,FALSE) -> 0 | R40: =IF($I40=0,CONCATENATE("ZSM2_",$H40),VLOOKUP($I40,DRL!$B$4:$G$4400,2,FALSE)) -> Jung, Horst | S40: =IF($I40=0,CONCATENATE("ZSM2_",$H40),VLOOKUP($I40,DRL!$B$4:$G$4400,4,FALSE)) -> MSC Bensheim-Auerbach | T40: =IF($J40="x",VLOOKUP($I40,Ges_HBSV!$B$4:$AI$255,31,FALSE),999)+$X40 -> 999.0037 | X40: 0.0037
B41: Verein Einzelsp 55 | D41: Verein Einzelsp 56 | F41: Verein Einzelsp 57 | H41: 113 | I41: =Teilnehmer!B53 -> 66302 | J41: =VLOOKUP($I41,Spt_1!$B$8:$C$229,2,FALSE) -> 0 | L41: =VLOOKUP($I41,Spt_2!$B$8:$C$229,2,FALSE) -> 0 | N41: =VLOOKUP($I41,Spt_3!$B$8:$C$229,2,FALSE) -> 0 | P41: =VLOOKUP($I41,Spt_4!$B$8:$C$229,2,FALSE) -> 0 | R41: =IF($I41=0,CONCATENATE("ZSM2_",$H41),VLOOKUP($I41,DRL!$B$4:$G$4400,2,FALSE)) -> Kaisr, Alois | S41: =IF($I41=0,CONCATENATE("ZSM2_",$H41),VLOOKUP($I41,DRL!$B$4:$G$4400,4,FALSE)) -> BGSV Aßlar | T41: =IF($J41="x",VLOOKUP($I41,Ges_HBSV!$B$4:$AI$255,31,FALSE),999)+$X41 -> 999.0038 | X41: 0.0038
A42: 20. | B42: Einzelspieler 58 | D42: Einzelspieler 59 | F42: Einzelspieler 60 | H42: 114 | I42: =Teilnehmer!B54 -> 38341 | J42: =VLOOKUP($I42,Spt_1!$B$8:$C$229,2,FALSE) -> 0 | L42: =VLOOKUP($I42,Spt_2!$B$8:$C$229,2,FALSE) -> 0 | N42: =VLOOKUP($I42,Spt_3!$B$8:$C$229,2,FALSE) -> 0 | P42: =VLOOKUP($I42,Spt_4!$B$8:$C$229,2,FALSE) -> 0 | R42: =IF($I42=0,CONCATENATE("ZSM2_",$H42),VLOOKUP($I42,DRL!$B$4:$G$4400,2,FALSE)) -> Kantor, Harald | S42: =IF($I42=0,CONCATENATE("ZSM2_",$H42),VLOOKUP($I42,DRL!$B$4:$G$4400,4,FALSE)) -> BGSV Bad Homburg | T42: =IF($J42="x",VLOOKUP($I42,Ges_HBSV!$B$4:$AI$255,31,FALSE),999)+$X42 -> 999.0039 | X42: 0.0039
B43: Verein Einzelsp 58 | D43: Verein Einzelsp 59 | F43: Verein Einzelsp 60 | H43: 115 | I43: =Teilnehmer!B55 -> 24092 | J43: =VLOOKUP($I43,Spt_1!$B$8:$C$229,2,FALSE) -> 0 | L43: =VLOOKUP($I43,Spt_2!$B$8:$C$229,2,FALSE) -> 0 | N43: =VLOOKUP($I43,Spt_3!$B$8:$C$229,2,FALSE) -> 0 | P43: =VLOOKUP($I43,Spt_4!$B$8:$C$229,2,FALSE) -> 0 | R43: =IF($I43=0,CONCATENATE("ZSM2_",$H43),VLOOKUP($I43,DRL!$B$4:$G$4400,2,FALSE)) -> Klee, Hannes | S43: =IF($I43=0,CONCATENATE("ZSM2_",$H43),VLOOKUP($I43,DRL!$B$4:$G$4400,4,FALSE)) -> MSC Bensheim-Auerbach | T43: =IF($J43="x",VLOOKUP($I43,Ges_HBSV!$B$4:$AI$255,31,FALSE),999)+$X43 -> 999.004 | X43: 0.004
H44: 116 | I44: =Teilnehmer!B56 -> 35781 | J44: =VLOOKUP($I44,Spt_1!$B$8:$C$229,2,FALSE) -> 0 | L44: =VLOOKUP($I44,Spt_2!$B$8:$C$229,2,FALSE) -> 0 | N44: =VLOOKUP($I44,Spt_3!$B$8:$C$229,2,FALSE) -> 0 | P44: =VLOOKUP($I44,Spt_4!$B$8:$C$229,2,FALSE) -> 0 | R44: =IF($I44=0,CONCATENATE("ZSM2_",$H44),VLOOKUP($I44,DRL!$B$4:$G$4400,2,FALSE)) -> Krieger, Andreas | S44: =IF($I44=0,CONCATENATE("ZSM2_",$H44),VLOOKUP($I44,DRL!$B$4:$G$4400,4,FALSE)) -> BGSV Bad Homburg | T44: =IF($J44="x",VLOOKUP($I44,Ges_HBSV!$B$4:$AI$255,31,FALSE),999)+$X44 -> 999.0041 | X44: 0.0041
D45: Einzelspieler Jugend und Allgemeine Klasse | H45: 117 | I45: =Teilnehmer!B57 -> 67117 | J45: =VLOOKUP($I45,Spt_1!$B$8:$C$229,2,FALSE) -> 0 | L45: =VLOOKUP($I45,Spt_2!$B$8:$C$229,2,FALSE) -> 0 | N45: =VLOOKUP($I45,Spt_3!$B$8:$C$229,2,FALSE) -> 0 | P45: =VLOOKUP($I45,Spt_4!$B$8:$C$229,2,FALSE) -> 0 | R45: =IF($I45=0,CONCATENATE("ZSM2_",$H45),VLOOKUP($I45,DRL!$B$4:$G$4400,2,FALSE)) -> Meyer, Werner | S45: =IF($I45=0,CONCATENATE("ZSM2_",$H45),VLOOKUP($I45,DRL!$B$4:$G$4400,4,FALSE)) -> SG Arheilgen | T45: =IF($J45="x",VLOOKUP($I45,Ges_HBSV!$B$4:$AI$255,31,FALSE),999)+$X45 -> 999.0042 | X45: 0.0042
A46: 1. | B46: =VLOOKUP(C46,$K$84:$S$143,8,FALSE) ->  | C46: 60 | D46: =VLOOKUP(E46,$K$84:$S$143,8,FALSE) ->  | E46: 59 | F46: =VLOOKUP(G46,$K$84:$S$143,8,FALSE) ->  | G46: 58 | H46: 118 | I46: =Teilnehmer!B58 -> 46152 | J46: =VLOOKUP($I46,Spt_1!$B$8:$C$229,2,FALSE) -> 0 | L46: =VLOOKUP($I46,Spt_2!$B$8:$C$229,2,FALSE) -> 0 | N46: =VLOOKUP($I46,Spt_3!$B$8:$C$229,2,FALSE) -> 0 | P46: =VLOOKUP($I46,Spt_4!$B$8:$C$229,2,FALSE) -> 0 | R46: =IF($I46=0,CONCATENATE("ZSM2_",$H46),VLOOKUP($I46,DRL!$B$4:$G$4400,2,FALSE)) -> Nickel, Gerhard | S46: =IF($I46=0,CONCATENATE("ZSM2_",$H46),VLOOKUP($I46,DRL!$B$4:$G$4400,4,FALSE)) -> MGC Wetzlar | T46: =IF($J46="x",VLOOKUP($I46,Ges_HBSV!$B$4:$AI$255,31,FALSE),999)+$X46 -> 999.0043 | X46: 0.0043
B47: =VLOOKUP(C47,$K$84:$S$143,9,FALSE) ->  | C47: 60 | D47: =VLOOKUP(E47,$K$84:$S$143,9,FALSE) ->  | E47: 59 | F47: =VLOOKUP(G47,$K$84:$S$143,9,FALSE) ->  | G47: 58 | H47: 119 | I47: =Teilnehmer!B59 -> 66529 | J47: =VLOOKUP($I47,Spt_1!$B$8:$C$229,2,FALSE) -> 0 | L47: =VLOOKUP($I47,Spt_2!$B$8:$C$229,2,FALSE) -> 0 | N47: =VLOOKUP($I47,Spt_3!$B$8:$C$229,2,FALSE) -> 0 | P47: =VLOOKUP($I47,Spt_4!$B$8:$C$229,2,FALSE) -> 0 | R47: =IF($I47=0,CONCATENATE("ZSM2_",$H47),VLOOKUP($I47,DRL!$B$4:$G$4400,2,FALSE)) -> Probost, Norbert | S47: =IF($I47=0,CONCATENATE("ZSM2_",$H47),VLOOKUP($I47,DRL!$B$4:$G$4400,4,FALSE)) -> MGC Wetzlar | T47: =IF($J47="x",VLOOKUP($I47,Ges_HBSV!$B$4:$AI$255,31,FALSE),999)+$X47 -> 999.0044 | X47: 0.0044
A48: 2. | B48: =VLOOKUP(C48,$K$84:$S$143,8,FALSE) ->  | C48: 57 | D48: =VLOOKUP(E48,$K$84:$S$143,8,FALSE) ->  | E48: 56 | F48: =VLOOKUP(G48,$K$84:$S$143,8,FALSE) ->  | G48: 55 | H48: 120 | I48: =Teilnehmer!B60 -> 19330 | J48: =VLOOKUP($I48,Spt_1!$B$8:$C$229,2,FALSE) -> 0 | L48: =VLOOKUP($I48,Spt_2!$B$8:$C$229,2,FALSE) -> 0 | N48: =VLOOKUP($I48,Spt_3!$B$8:$C$229,2,FALSE) -> 0 | P48: =VLOOKUP($I48,Spt_4!$B$8:$C$229,2,FALSE) -> 0 | R48: =IF($I48=0,CONCATENATE("ZSM2_",$H48),VLOOKUP($I48,DRL!$B$4:$G$4400,2,FALSE)) -> Rödiger, Peter | S48: =IF($I48=0,CONCATENATE("ZSM2_",$H48),VLOOKUP($I48,DRL!$B$4:$G$4400,4,FALSE)) -> MGC Wetzlar | T48: =IF($J48="x",VLOOKUP($I48,Ges_HBSV!$B$4:$AI$255,31,FALSE),999)+$X48 -> 999.0045 | X48: 0.0045
B49: =VLOOKUP(C49,$K$84:$S$143,9,FALSE) ->  | C49: 57 | D49: =VLOOKUP(E49,$K$84:$S$143,9,FALSE) ->  | E49: 56 | F49: =VLOOKUP(G49,$K$84:$S$143,9,FALSE) ->  | G49: 55 | H49: 121 | I49: =Teilnehmer!B61 -> 34054 | J49: =VLOOKUP($I49,Spt_1!$B$8:$C$229,2,FALSE) -> 0 | L49: =VLOOKUP($I49,Spt_2!$B$8:$C$229,2,FALSE) -> 0 | N49: =VLOOKUP($I49,Spt_3!$B$8:$C$229,2,FALSE) -> 0 | P49: =VLOOKUP($I49,Spt_4!$B$8:$C$229,2,FALSE) -> 0 | R49: =IF($I49=0,CONCATENATE("ZSM2_",$H49),VLOOKUP($I49,DRL!$B$4:$G$4400,2,FALSE)) -> Rothermel, Dieter | S49: =IF($I49=0,CONCATENATE("ZSM2_",$H49),VLOOKUP($I49,DRL!$B$4:$G$4400,4,FALSE)) -> MSC Bensheim-Auerbach | T49: =IF($J49="x",VLOOKUP($I49,Ges_HBSV!$B$4:$AI$255,31,FALSE),999)+$X49 -> 999.0046 | X49: 0.0046
A50: 3. | B50: =VLOOKUP(C50,$K$84:$S$143,8,FALSE) ->  | C50: 54 | D50: =VLOOKUP(E50,$K$84:$S$143,8,FALSE) ->  | E50: 53 | F50: =VLOOKUP(G50,$K$84:$S$143,8,FALSE) ->  | G50: 52 | H50: 122 | I50: =Teilnehmer!B62 -> 67429 | J50: =VLOOKUP($I50,Spt_1!$B$8:$C$229,2,FALSE) -> 0 | L50: =VLOOKUP($I50,Spt_2!$B$8:$C$229,2,FALSE) -> 0 | N50: =VLOOKUP($I50,Spt_3!$B$8:$C$229,2,FALSE) -> 0 | P50: =VLOOKUP($I50,Spt_4!$B$8:$C$229,2,FALSE) -> 0 | R50: =IF($I50=0,CONCATENATE("ZSM2_",$H50),VLOOKUP($I50,DRL!$B$4:$G$4400,2,FALSE)) -> Schmidt, Klaus | S50: =IF($I50=0,CONCATENATE("ZSM2_",$H50),VLOOKUP($I50,DRL!$B$4:$G$4400,4,FALSE)) -> BGSV Aßlar | T50: =IF($J50="x",VLOOKUP($I50,Ges_HBSV!$B$4:$AI$255,31,FALSE),999)+$X50 -> 999.0047 | X50: 0.0047
B51: =VLOOKUP(C51,$K$84:$S$143,9,FALSE) ->  | C51: 54 | D51: =VLOOKUP(E51,$K$84:$S$143,9,FALSE) ->  | E51: 53 | F51: =VLOOKUP(G51,$K$84:$S$143,9,FALSE) ->  | G51: 52 | H51: 123 | I51: =Teilnehmer!B63 -> 22127 | J51: =VLOOKUP($I51,Spt_1!$B$8:$C$229,2,FALSE) -> 0 | L51: =VLOOKUP($I51,Spt_2!$B$8:$C$229,2,FALSE) -> 0 | N51: =VLOOKUP($I51,Spt_3!$B$8:$C$229,2,FALSE) -> 0 | P51: =VLOOKUP($I51,Spt_4!$B$8:$C$229,2,FALSE) -> 0 | R51: =IF($I51=0,CONCATENATE("ZSM2_",$H51),VLOOKUP($I51,DRL!$B$4:$G$4400,2,FALSE)) -> Sic, Zoltan | S51: =IF($I51=0,CONCATENATE("ZSM2_",$H51),VLOOKUP($I51,DRL!$B$4:$G$4400,4,FALSE)) -> MGC Bad Homburg | T51: =IF($J51="x",VLOOKUP($I51,Ges_HBSV!$B$4:$AI$255,31,FALSE),999)+$X51 -> 999.0048 | X51: 0.0048
A52: 4. | B52: =VLOOKUP(C52,$K$84:$S$143,8,FALSE) ->  | C52: 51 | D52: =VLOOKUP(E52,$K$84:$S$143,8,FALSE) ->  | E52: 50 | F52: =VLOOKUP(G52,$K$84:$S$143,8,FALSE) ->  | G52: 49 | H52: 124 | I52: =Teilnehmer!B64 -> 34384 | J52: =VLOOKUP($I52,Spt_1!$B$8:$C$229,2,FALSE) -> 0 | L52: =VLOOKUP($I52,Spt_2!$B$8:$C$229,2,FALSE) -> 0 | N52: =VLOOKUP($I52,Spt_3!$B$8:$C$229,2,FALSE) -> 0 | P52: =VLOOKUP($I52,Spt_4!$B$8:$C$229,2,FALSE) -> 0 | R52: =IF($I52=0,CONCATENATE("ZSM2_",$H52),VLOOKUP($I52,DRL!$B$4:$G$4400,2,FALSE)) -> Siebert, Erich | S52: =IF($I52=0,CONCATENATE("ZSM2_",$H52),VLOOKUP($I52,DRL!$B$4:$G$4400,4,FALSE)) -> MGC Wetzlar | T52: =IF($J52="x",VLOOKUP($I52,Ges_HBSV!$B$4:$AI$255,31,FALSE),999)+$X52 -> 999.0049 | X52: 0.0049
B53: =VLOOKUP(C53,$K$84:$S$143,9,FALSE) ->  | C53: 51 | D53: =VLOOKUP(E53,$K$84:$S$143,9,FALSE) ->  | E53: 50 | F53: =VLOOKUP(G53,$K$84:$S$143,9,FALSE) ->  | G53: 49 | H53: 125 | I53: =Teilnehmer!B65 -> 67991 | J53: =VLOOKUP($I53,Spt_1!$B$8:$C$229,2,FALSE) -> 0 | L53: =VLOOKUP($I53,Spt_2!$B$8:$C$229,2,FALSE) -> 0 | N53: =VLOOKUP($I53,Spt_3!$B$8:$C$229,2,FALSE) -> 0 | P53: =VLOOKUP($I53,Spt_4!$B$8:$C$229,2,FALSE) -> 0 | R53: =IF($I53=0,CONCATENATE("ZSM2_",$H53),VLOOKUP($I53,DRL!$B$4:$G$4400,2,FALSE)) -> Weiß, Klaus | S53: =IF($I53=0,CONCATENATE("ZSM2_",$H53),VLOOKUP($I53,DRL!$B$4:$G$4400,4,FALSE)) -> MGC Kahler Sandhasen | T53: =IF($J53="x",VLOOKUP($I53,Ges_HBSV!$B$4:$AI$255,31,FALSE),999)+$X53 -> 999.005 | X53: 0.005
A54: 5. | B54: =VLOOKUP(C54,$K$84:$S$143,8,FALSE) ->  | C54: 48 | D54: =VLOOKUP(E54,$K$84:$S$143,8,FALSE) ->  | E54: 47 | F54: =VLOOKUP(G54,$K$84:$S$143,8,FALSE) ->  | G54: 46 | H54: 126 | I54: =Teilnehmer!B66 -> 0 | J54: =VLOOKUP($I54,Spt_1!$B$8:$C$229,2,FALSE) -> 0 | L54: =VLOOKUP($I54,Spt_2!$B$8:$C$229,2,FALSE) -> 0 | N54: =VLOOKUP($I54,Spt_3!$B$8:$C$229,2,FALSE) -> 0 | P54: =VLOOKUP($I54,Spt_4!$B$8:$C$229,2,FALSE) -> 0 | R54: =IF($I54=0,CONCATENATE("ZSM2_",$H54),VLOOKUP($I54,DRL!$B$4:$G$4400,2,FALSE)) -> ZSM2_126 | S54: =IF($I54=0,CONCATENATE("ZSM2_",$H54),VLOOKUP($I54,DRL!$B$4:$G$4400,4,FALSE)) -> ZSM2_126 | T54: =IF($J54="x",VLOOKUP($I54,Ges_HBSV!$B$4:$AI$255,31,FALSE),999)+$X54 -> 999.0051 | X54: 0.0051
B55: =VLOOKUP(C55,$K$84:$S$143,9,FALSE) ->  | C55: 48 | D55: =VLOOKUP(E55,$K$84:$S$143,9,FALSE) ->  | E55: 47 | F55: =VLOOKUP(G55,$K$84:$S$143,9,FALSE) ->  | G55: 46 | H55: 127 | I55: =Teilnehmer!B67 -> 0 | J55: =VLOOKUP($I55,Spt_1!$B$8:$C$229,2,FALSE) -> 0 | L55: =VLOOKUP($I55,Spt_2!$B$8:$C$229,2,FALSE) -> 0 | N55: =VLOOKUP($I55,Spt_3!$B$8:$C$229,2,FALSE) -> 0 | P55: =VLOOKUP($I55,Spt_4!$B$8:$C$229,2,FALSE) -> 0 | R55: =IF($I55=0,CONCATENATE("ZSM2_",$H55),VLOOKUP($I55,DRL!$B$4:$G$4400,2,FALSE)) -> ZSM2_127 | S55: =IF($I55=0,CONCATENATE("ZSM2_",$H55),VLOOKUP($I55,DRL!$B$4:$G$4400,4,FALSE)) -> ZSM2_127 | T55: =IF($J55="x",VLOOKUP($I55,Ges_HBSV!$B$4:$AI$255,31,FALSE),999)+$X55 -> 999.0052 | X55: 0.0052
A56: 6. | B56: =VLOOKUP(C56,$K$84:$S$143,8,FALSE) ->  | C56: 45 | D56: =VLOOKUP(E56,$K$84:$S$143,8,FALSE) ->  | E56: 44 | F56: =VLOOKUP(G56,$K$84:$S$143,8,FALSE) ->  | G56: 43 | H56: 128 | I56: =Teilnehmer!B68 -> 0 | J56: =VLOOKUP($I56,Spt_1!$B$8:$C$229,2,FALSE) -> 0 | L56: =VLOOKUP($I56,Spt_2!$B$8:$C$229,2,FALSE) -> 0 | N56: =VLOOKUP($I56,Spt_3!$B$8:$C$229,2,FALSE) -> 0 | P56: =VLOOKUP($I56,Spt_4!$B$8:$C$229,2,FALSE) -> 0 | R56: =IF($I56=0,CONCATENATE("ZSM2_",$H56),VLOOKUP($I56,DRL!$B$4:$G$4400,2,FALSE)) -> ZSM2_128 | S56: =IF($I56=0,CONCATENATE("ZSM2_",$H56),VLOOKUP($I56,DRL!$B$4:$G$4400,4,FALSE)) -> ZSM2_128 | T56: =IF($J56="x",VLOOKUP($I56,Ges_HBSV!$B$4:$AI$255,31,FALSE),999)+$X56 -> 999.0053 | X56: 0.0053
B57: =VLOOKUP(C57,$K$84:$S$143,9,FALSE) ->  | C57: 45 | D57: =VLOOKUP(E57,$K$84:$S$143,9,FALSE) ->  | E57: 44 | F57: =VLOOKUP(G57,$K$84:$S$143,9,FALSE) ->  | G57: 43 | H57: 129 | I57: =Teilnehmer!B69 -> 0 | J57: =VLOOKUP($I57,Spt_1!$B$8:$C$229,2,FALSE) -> 0 | L57: =VLOOKUP($I57,Spt_2!$B$8:$C$229,2,FALSE) -> 0 | N57: =VLOOKUP($I57,Spt_3!$B$8:$C$229,2,FALSE) -> 0 | P57: =VLOOKUP($I57,Spt_4!$B$8:$C$229,2,FALSE) -> 0 | R57: =IF($I57=0,CONCATENATE("ZSM2_",$H57),VLOOKUP($I57,DRL!$B$4:$G$4400,2,FALSE)) -> ZSM2_129 | S57: =IF($I57=0,CONCATENATE("ZSM2_",$H57),VLOOKUP($I57,DRL!$B$4:$G$4400,4,FALSE)) -> ZSM2_129 | T57: =IF($J57="x",VLOOKUP($I57,Ges_HBSV!$B$4:$AI$255,31,FALSE),999)+$X57 -> 999.0054 | X57: 0.0054
A58: 7. | B58: =VLOOKUP(C58,$K$84:$S$143,8,FALSE) ->  | C58: 42 | D58: =VLOOKUP(E58,$K$84:$S$143,8,FALSE) ->  | E58: 41 | F58: =VLOOKUP(G58,$K$84:$S$143,8,FALSE) ->  | G58: 40 | H58: 130 | I58: =Teilnehmer!B70 -> 0 | J58: =VLOOKUP($I58,Spt_1!$B$8:$C$229,2,FALSE) -> 0 | L58: =VLOOKUP($I58,Spt_2!$B$8:$C$229,2,FALSE) -> 0 | N58: =VLOOKUP($I58,Spt_3!$B$8:$C$229,2,FALSE) -> 0 | P58: =VLOOKUP($I58,Spt_4!$B$8:$C$229,2,FALSE) -> 0 | R58: =IF($I58=0,CONCATENATE("ZSM2_",$H58),VLOOKUP($I58,DRL!$B$4:$G$4400,2,FALSE)) -> ZSM2_130 | S58: =IF($I58=0,CONCATENATE("ZSM2_",$H58),VLOOKUP($I58,DRL!$B$4:$G$4400,4,FALSE)) -> ZSM2_130 | T58: =IF($J58="x",VLOOKUP($I58,Ges_HBSV!$B$4:$AI$255,31,FALSE),999)+$X58 -> 999.0055 | X58: 0.0055
B59: =VLOOKUP(C59,$K$84:$S$143,9,FALSE) ->  | C59: 42 | D59: =VLOOKUP(E59,$K$84:$S$143,9,FALSE) ->  | E59: 41 | F59: =VLOOKUP(G59,$K$84:$S$143,9,FALSE) ->  | G59: 40 | H59: 201 | I59: =Teilnehmer!B78 -> 47324 | J59: =VLOOKUP($I59,Spt_1!$B$8:$C$229,2,FALSE) -> 0 | L59: =VLOOKUP($I59,Spt_2!$B$8:$C$229,2,FALSE) -> 0 | N59: =VLOOKUP($I59,Spt_3!$B$8:$C$229,2,FALSE) -> 0 | P59: =VLOOKUP($I59,Spt_4!$B$8:$C$229,2,FALSE) -> 0 | R59: =IF($I59=0,CONCATENATE("ZSW1_",$H59),VLOOKUP($I59,DRL!$B$4:$G$4400,2,FALSE)) -> Arnold, Simone | S59: =IF($I59=0,CONCATENATE("ZSW1_",$H59),VLOOKUP($I59,DRL!$B$4:$G$4400,4,FALSE)) -> SG Arheilgen | T59: =IF($J59="x",VLOOKUP($I59,Ges_HBSV!$B$4:$AI$255,31,FALSE),999)+$X59 -> 999.0056 | X59: 0.0056
A60: 8. | B60: =VLOOKUP(C60,$K$84:$S$143,8,FALSE) ->  | C60: 39 | D60: =VLOOKUP(E60,$K$84:$S$143,8,FALSE) ->  | E60: 38 | F60: =VLOOKUP(G60,$K$84:$S$143,8,FALSE) ->  | G60: 37 | H60: 202 | I60: =Teilnehmer!B79 -> 24314 | J60: =VLOOKUP($I60,Spt_1!$B$8:$C$229,2,FALSE) -> 0 | L60: =VLOOKUP($I60,Spt_2!$B$8:$C$229,2,FALSE) -> 0 | N60: =VLOOKUP($I60,Spt_3!$B$8:$C$229,2,FALSE) -> 0 | P60: =VLOOKUP($I60,Spt_4!$B$8:$C$229,2,FALSE) -> 0 | R60: =IF($I60=0,CONCATENATE("ZSW1_",$H60),VLOOKUP($I60,DRL!$B$4:$G$4400,2,FALSE)) -> Geist, Michaela | S60: =IF($I60=0,CONCATENATE("ZSW1_",$H60),VLOOKUP($I60,DRL!$B$4:$G$4400,4,FALSE)) -> MSC Bensheim-Auerbach | T60: =IF($J60="x",VLOOKUP($I60,Ges_HBSV!$B$4:$AI$255,31,FALSE),999)+$X60 -> 999.0057 | X60: 0.0057
B61: =VLOOKUP(C61,$K$84:$S$143,9,FALSE) ->  | C61: 39 | D61: =VLOOKUP(E61,$K$84:$S$143,9,FALSE) ->  | E61: 38 | F61: =VLOOKUP(G61,$K$84:$S$143,9,FALSE) ->  | G61: 37 | H61: 203 | I61: =Teilnehmer!B80 -> 66636 | J61: =VLOOKUP($I61,Spt_1!$B$8:$C$229,2,FALSE) -> 0 | L61: =VLOOKUP($I61,Spt_2!$B$8:$C$229,2,FALSE) -> 0 | N61: =VLOOKUP($I61,Spt_3!$B$8:$C$229,2,FALSE) -> 0 | P61: =VLOOKUP($I61,Spt_4!$B$8:$C$229,2,FALSE) -> 0 | R61: =IF($I61=0,CONCATENATE("ZSW1_",$H61),VLOOKUP($I61,DRL!$B$4:$G$4400,2,FALSE)) -> Kober, Marion | S61: =IF($I61=0,CONCATENATE("ZSW1_",$H61),VLOOKUP($I61,DRL!$B$4:$G$4400,4,FALSE)) -> MSC Bensheim-Auerbach | T61: =IF($J61="x",VLOOKUP($I61,Ges_HBSV!$B$4:$AI$255,31,FALSE),999)+$X61 -> 999.0058 | X61: 0.0058
A62: 9. | B62: =VLOOKUP(C62,$K$84:$S$143,8,FALSE) ->  | C62: 36 | D62: =VLOOKUP(E62,$K$84:$S$143,8,FALSE) ->  | E62: 35 | F62: =VLOOKUP(G62,$K$84:$S$143,8,FALSE) ->  | G62: 34 | H62: 204 | I62: =Teilnehmer!B81 -> 33393 | J62: =VLOOKUP($I62,Spt_1!$B$8:$C$229,2,FALSE) -> 0 | L62: =VLOOKUP($I62,Spt_2!$B$8:$C$229,2,FALSE) -> 0 | N62: =VLOOKUP($I62,Spt_3!$B$8:$C$229,2,FALSE) -> 0 | P62: =VLOOKUP($I62,Spt_4!$B$8:$C$229,2,FALSE) -> 0 | R62: =IF($I62=0,CONCATENATE("ZSW1_",$H62),VLOOKUP($I62,DRL!$B$4:$G$4400,2,FALSE)) -> Parr, Susanne | S62: =IF($I62=0,CONCATENATE("ZSW1_",$H62),VLOOKUP($I62,DRL!$B$4:$G$4400,4,FALSE)) -> MSC Bensheim-Auerbach | T62: =IF($J62="x",VLOOKUP($I62,Ges_HBSV!$B$4:$AI$255,31,FALSE),999)+$X62 -> 999.0059 | X62: 0.0059
B63: =VLOOKUP(C63,$K$84:$S$143,9,FALSE) ->  | C63: 36 | D63: =VLOOKUP(E63,$K$84:$S$143,9,FALSE) ->  | E63: 35 | F63: =VLOOKUP(G63,$K$84:$S$143,9,FALSE) ->  | G63: 34 | H63: 205 | I63: =Teilnehmer!B82 -> 67993 | J63: =VLOOKUP($I63,Spt_1!$B$8:$C$229,2,FALSE) -> 0 | L63: =VLOOKUP($I63,Spt_2!$B$8:$C$229,2,FALSE) -> 0 | N63: =VLOOKUP($I63,Spt_3!$B$8:$C$229,2,FALSE) -> 0 | P63: =VLOOKUP($I63,Spt_4!$B$8:$C$229,2,FALSE) -> 0 | R63: =IF($I63=0,CONCATENATE("ZSW1_",$H63),VLOOKUP($I63,DRL!$B$4:$G$4400,2,FALSE)) -> Uhlmann, Petra | S63: =IF($I63=0,CONCATENATE("ZSW1_",$H63),VLOOKUP($I63,DRL!$B$4:$G$4400,4,FALSE)) -> MGC Kahler Sandhasen | T63: =IF($J63="x",VLOOKUP($I63,Ges_HBSV!$B$4:$AI$255,31,FALSE),999)+$X63 -> 999.006 | X63: 0.006
A64: 10. | B64: =VLOOKUP(C64,$K$84:$S$143,8,FALSE) ->  | C64: 33 | D64: =VLOOKUP(E64,$K$84:$S$143,8,FALSE) ->  | E64: 32 | F64: =VLOOKUP(G64,$K$84:$S$143,8,FALSE) ->  | G64: 31 | H64: 206 | I64: =Teilnehmer!B83 -> 0 | J64: =VLOOKUP($I64,Spt_1!$B$8:$C$229,2,FALSE) -> 0 | L64: =VLOOKUP($I64,Spt_2!$B$8:$C$229,2,FALSE) -> 0 | N64: =VLOOKUP($I64,Spt_3!$B$8:$C$229,2,FALSE) -> 0 | P64: =VLOOKUP($I64,Spt_4!$B$8:$C$229,2,FALSE) -> 0 | R64: =IF($I64=0,CONCATENATE("ZSW1_",$H64),VLOOKUP($I64,DRL!$B$4:$G$4400,2,FALSE)) -> ZSW1_206 | S64: =IF($I64=0,CONCATENATE("ZSW1_",$H64),VLOOKUP($I64,DRL!$B$4:$G$4400,4,FALSE)) -> ZSW1_206 | T64: =IF($J64="x",VLOOKUP($I64,Ges_HBSV!$B$4:$AI$255,31,FALSE),999)+$X64 -> 999.0061 | X64: 0.0061
B65: =VLOOKUP(C65,$K$84:$S$143,9,FALSE) ->  | C65: 33 | D65: =VLOOKUP(E65,$K$84:$S$143,9,FALSE) ->  | E65: 32 | F65: =VLOOKUP(G65,$K$84:$S$143,9,FALSE) ->  | G65: 31 | H65: 207 | I65: =Teilnehmer!B84 -> 0 | J65: =VLOOKUP($I65,Spt_1!$B$8:$C$229,2,FALSE) -> 0 | L65: =VLOOKUP($I65,Spt_2!$B$8:$C$229,2,FALSE) -> 0 | N65: =VLOOKUP($I65,Spt_3!$B$8:$C$229,2,FALSE) -> 0 | P65: =VLOOKUP($I65,Spt_4!$B$8:$C$229,2,FALSE) -> 0 | R65: =IF($I65=0,CONCATENATE("ZSW1_",$H65),VLOOKUP($I65,DRL!$B$4:$G$4400,2,FALSE)) -> ZSW1_207 | S65: =IF($I65=0,CONCATENATE("ZSW1_",$H65),VLOOKUP($I65,DRL!$B$4:$G$4400,4,FALSE)) -> ZSW1_207 | T65: =IF($J65="x",VLOOKUP($I65,Ges_HBSV!$B$4:$AI$255,31,FALSE),999)+$X65 -> 999.0062 | X65: 0.0062
A66: 11. | B66: =VLOOKUP(C66,$K$84:$S$143,8,FALSE) ->  | C66: 30 | D66: =VLOOKUP(E66,$K$84:$S$143,8,FALSE) ->  | E66: 29 | F66: =VLOOKUP(G66,$K$84:$S$143,8,FALSE) ->  | G66: 28 | H66: 208 | I66: =Teilnehmer!B85 -> 0 | J66: =VLOOKUP($I66,Spt_1!$B$8:$C$229,2,FALSE) -> 0 | L66: =VLOOKUP($I66,Spt_2!$B$8:$C$229,2,FALSE) -> 0 | N66: =VLOOKUP($I66,Spt_3!$B$8:$C$229,2,FALSE) -> 0 | P66: =VLOOKUP($I66,Spt_4!$B$8:$C$229,2,FALSE) -> 0 | R66: =IF($I66=0,CONCATENATE("ZSW1_",$H66),VLOOKUP($I66,DRL!$B$4:$G$4400,2,FALSE)) -> ZSW1_208 | S66: =IF($I66=0,CONCATENATE("ZSW1_",$H66),VLOOKUP($I66,DRL!$B$4:$G$4400,4,FALSE)) -> ZSW1_208 | T66: =IF($J66="x",VLOOKUP($I66,Ges_HBSV!$B$4:$AI$255,31,FALSE),999)+$X66 -> 999.0063 | X66: 0.0063
B67: =VLOOKUP(C67,$K$84:$S$143,9,FALSE) ->  | C67: 30 | D67: =VLOOKUP(E67,$K$84:$S$143,9,FALSE) ->  | E67: 29 | F67: =VLOOKUP(G67,$K$84:$S$143,9,FALSE) ->  | G67: 28 | H67: 209 | I67: =Teilnehmer!B86 -> 0 | J67: =VLOOKUP($I67,Spt_1!$B$8:$C$229,2,FALSE) -> 0 | L67: =VLOOKUP($I67,Spt_2!$B$8:$C$229,2,FALSE) -> 0 | N67: =VLOOKUP($I67,Spt_3!$B$8:$C$229,2,FALSE) -> 0 | P67: =VLOOKUP($I67,Spt_4!$B$8:$C$229,2,FALSE) -> 0 | R67: =IF($I67=0,CONCATENATE("ZSW1_",$H67),VLOOKUP($I67,DRL!$B$4:$G$4400,2,FALSE)) -> ZSW1_209 | S67: =IF($I67=0,CONCATENATE("ZSW1_",$H67),VLOOKUP($I67,DRL!$B$4:$G$4400,4,FALSE)) -> ZSW1_209 | T67: =IF($J67="x",VLOOKUP($I67,Ges_HBSV!$B$4:$AI$255,31,FALSE),999)+$X67 -> 999.0064 | X67: 0.0064
A68: 12. | B68: =VLOOKUP(C68,$K$84:$S$143,8,FALSE) ->  | C68: 27 | D68: =VLOOKUP(E68,$K$84:$S$143,8,FALSE) ->  | E68: 26 | F68: =VLOOKUP(G68,$K$84:$S$143,8,FALSE) ->  | G68: 25 | H68: 210 | I68: =Teilnehmer!B87 -> 0 | J68: =VLOOKUP($I68,Spt_1!$B$8:$C$229,2,FALSE) -> 0 | L68: =VLOOKUP($I68,Spt_2!$B$8:$C$229,2,FALSE) -> 0 | N68: =VLOOKUP($I68,Spt_3!$B$8:$C$229,2,FALSE) -> 0 | P68: =VLOOKUP($I68,Spt_4!$B$8:$C$229,2,FALSE) -> 0 | R68: =IF($I68=0,CONCATENATE("ZSW1_",$H68),VLOOKUP($I68,DRL!$B$4:$G$4400,2,FALSE)) -> ZSW1_210 | S68: =IF($I68=0,CONCATENATE("ZSW1_",$H68),VLOOKUP($I68,DRL!$B$4:$G$4400,4,FALSE)) -> ZSW1_210 | T68: =IF($J68="x",VLOOKUP($I68,Ges_HBSV!$B$4:$AI$255,31,FALSE),999)+$X68 -> 999.0065 | X68: 0.0065
B69: =VLOOKUP(C69,$K$84:$S$143,9,FALSE) ->  | C69: 27 | D69: =VLOOKUP(E69,$K$84:$S$143,9,FALSE) ->  | E69: 26 | F69: =VLOOKUP(G69,$K$84:$S$143,9,FALSE) ->  | G69: 25 | H69: 301 | I69: =Teilnehmer!B95 -> 35778 | J69: =VLOOKUP($I69,Spt_1!$B$8:$C$229,2,FALSE) -> 0 | K69: =IF($T69>=999,"",RANK($T69,$T$4:$T$83,1)) ->  | L69: =VLOOKUP($I69,Spt_2!$B$8:$C$229,2,FALSE) -> 0 | M69: =IF($U69>=999,"",RANK($U69,$U$4:$U$83,1)) ->  | N69: =VLOOKUP($I69,Spt_3!$B$8:$C$229,2,FALSE) -> 0 | O69: =IF($V69>=999,"",RANK($V69,$V$4:$V$83,1)) ->  | P69: =VLOOKUP($I69,Spt_4!$B$8:$C$229,2,FALSE) -> 0 | Q69: =IF($W69>=999,"",RANK($W69,$W$4:$W$83,1)) ->  | R69: =IF($I69=0,CONCATENATE("ZSW2_",$H69),VLOOKUP($I69,DRL!$B$4:$G$4400,2,FALSE)) -> Arnold, Franziska | S69: =IF($I69=0,CONCATENATE("ZSW2_",$H69),VLOOKUP($I69,DRL!$B$4:$G$4400,4,FALSE)) -> BGSV Aßlar | T69: =IF($J69="x",VLOOKUP($I69,Ges_HBSV!$B$4:$AI$255,31,FALSE),999)+$X69 -> 999.0066 | X69: 0.0066
A70: 13. | B70: =VLOOKUP(C70,$K$84:$S$143,8,FALSE) ->  | C70: 24 | D70: =VLOOKUP(E70,$K$84:$S$143,8,FALSE) ->  | E70: 23 | F70: =VLOOKUP(G70,$K$84:$S$143,8,FALSE) ->  | G70: 22 | H70: 302 | I70: =Teilnehmer!B96 -> 37249 | J70: =VLOOKUP($I70,Spt_1!$B$8:$C$229,2,FALSE) -> 0 | L70: =VLOOKUP($I70,Spt_2!$B$8:$C$229,2,FALSE) -> 0 | N70: =VLOOKUP($I70,Spt_3!$B$8:$C$229,2,FALSE) -> 0 | P70: =VLOOKUP($I70,Spt_4!$B$8:$C$229,2,FALSE) -> 0 | R70: =IF($I70=0,CONCATENATE("ZSW2_",$H70),VLOOKUP($I70,DRL!$B$4:$G$4400,2,FALSE)) -> Boock, Cornelia | S70: =IF($I70=0,CONCATENATE("ZSW2_",$H70),VLOOKUP($I70,DRL!$B$4:$G$4400,4,FALSE)) -> MSC Bensheim-Auerbach | T70: =IF($J70="x",VLOOKUP($I70,Ges_HBSV!$B$4:$AI$255,31,FALSE),999)+$X70 -> 999.0067 | X70: 0.0067
B71: =VLOOKUP(C71,$K$84:$S$143,9,FALSE) ->  | C71: 24 | D71: =VLOOKUP(E71,$K$84:$S$143,9,FALSE) ->  | E71: 23 | F71: =VLOOKUP(G71,$K$84:$S$143,9,FALSE) ->  | G71: 22 | H71: 303 | I71: =Teilnehmer!B97 -> 40091 | J71: =VLOOKUP($I71,Spt_1!$B$8:$C$229,2,FALSE) -> 0 | L71: =VLOOKUP($I71,Spt_2!$B$8:$C$229,2,FALSE) -> 0 | N71: =VLOOKUP($I71,Spt_3!$B$8:$C$229,2,FALSE) -> 0 | P71: =VLOOKUP($I71,Spt_4!$B$8:$C$229,2,FALSE) -> 0 | R71: =IF($I71=0,CONCATENATE("ZSW2_",$H71),VLOOKUP($I71,DRL!$B$4:$G$4400,2,FALSE)) -> Deck, Monika | S71: =IF($I71=0,CONCATENATE("ZSW2_",$H71),VLOOKUP($I71,DRL!$B$4:$G$4400,4,FALSE)) -> SG Arheilgen | T71: =IF($J71="x",VLOOKUP($I71,Ges_HBSV!$B$4:$AI$255,31,FALSE),999)+$X71 -> 999.0068 | X71: 0.0068
A72: 14. | B72: =VLOOKUP(C72,$K$84:$S$143,8,FALSE) ->  | C72: 21 | D72: =VLOOKUP(E72,$K$84:$S$143,8,FALSE) ->  | E72: 20 | F72: =VLOOKUP(G72,$K$84:$S$143,8,FALSE) ->  | G72: 19 | H72: 304 | I72: =Teilnehmer!B98 -> 66163 | J72: =VLOOKUP($I72,Spt_1!$B$8:$C$229,2,FALSE) -> 0 | L72: =VLOOKUP($I72,Spt_2!$B$8:$C$229,2,FALSE) -> 0 | N72: =VLOOKUP($I72,Spt_3!$B$8:$C$229,2,FALSE) -> 0 | P72: =VLOOKUP($I72,Spt_4!$B$8:$C$229,2,FALSE) -> 0 | R72: =IF($I72=0,CONCATENATE("ZSW2_",$H72),VLOOKUP($I72,DRL!$B$4:$G$4400,2,FALSE)) -> Drebert, Clementine | S72: =IF($I72=0,CONCATENATE("ZSW2_",$H72),VLOOKUP($I72,DRL!$B$4:$G$4400,4,FALSE)) -> SG 1886 Weiterstadt | T72: =IF($J72="x",VLOOKUP($I72,Ges_HBSV!$B$4:$AI$255,31,FALSE),999)+$X72 -> 999.0069 | X72: 0.0069
B73: =VLOOKUP(C73,$K$84:$S$143,9,FALSE) ->  | C73: 21 | D73: =VLOOKUP(E73,$K$84:$S$143,9,FALSE) ->  | E73: 20 | F73: =VLOOKUP(G73,$K$84:$S$143,9,FALSE) ->  | G73: 19 | H73: 305 | I73: =Teilnehmer!B99 -> 40148 | J73: =VLOOKUP($I73,Spt_1!$B$8:$C$229,2,FALSE) -> 0 | L73: =VLOOKUP($I73,Spt_2!$B$8:$C$229,2,FALSE) -> 0 | N73: =VLOOKUP($I73,Spt_3!$B$8:$C$229,2,FALSE) -> 0 | P73: =VLOOKUP($I73,Spt_4!$B$8:$C$229,2,FALSE) -> 0 | R73: =IF($I73=0,CONCATENATE("ZSW2_",$H73),VLOOKUP($I73,DRL!$B$4:$G$4400,2,FALSE)) -> Faust, Gabriele | S73: =IF($I73=0,CONCATENATE("ZSW2_",$H73),VLOOKUP($I73,DRL!$B$4:$G$4400,4,FALSE)) -> MSC Bensheim-Auerbach | T73: =IF($J73="x",VLOOKUP($I73,Ges_HBSV!$B$4:$AI$255,31,FALSE),999)+$X73 -> 999.007 | X73: 0.007
A74: 15. | B74: =VLOOKUP(C74,$K$84:$S$143,8,FALSE) ->  | C74: 18 | D74: =VLOOKUP(E74,$K$84:$S$143,8,FALSE) ->  | E74: 17 | F74: =VLOOKUP(G74,$K$84:$S$143,8,FALSE) ->  | G74: 16 | H74: 306 | I74: =Teilnehmer!B100 -> 68065 | J74: =VLOOKUP($I74,Spt_1!$B$8:$C$229,2,FALSE) -> 0 | L74: =VLOOKUP($I74,Spt_2!$B$8:$C$229,2,FALSE) -> 0 | N74: =VLOOKUP($I74,Spt_3!$B$8:$C$229,2,FALSE) -> 0 | P74: =VLOOKUP($I74,Spt_4!$B$8:$C$229,2,FALSE) -> 0 | R74: =IF($I74=0,CONCATENATE("ZSW2_",$H74),VLOOKUP($I74,DRL!$B$4:$G$4400,2,FALSE)) -> Heber, Heidi | S74: =IF($I74=0,CONCATENATE("ZSW2_",$H74),VLOOKUP($I74,DRL!$B$4:$G$4400,4,FALSE)) -> SG 1886 Weiterstadt | T74: =IF($J74="x",VLOOKUP($I74,Ges_HBSV!$B$4:$AI$255,31,FALSE),999)+$X74 -> 999.0071 | X74: 0.0071
B75: =VLOOKUP(C75,$K$84:$S$143,9,FALSE) ->  | C75: 18 | D75: =VLOOKUP(E75,$K$84:$S$143,9,FALSE) ->  | E75: 17 | F75: =VLOOKUP(G75,$K$84:$S$143,9,FALSE) ->  | G75: 16 | H75: 307 | I75: =Teilnehmer!B101 -> 34053 | J75: =VLOOKUP($I75,Spt_1!$B$8:$C$229,2,FALSE) -> 0 | L75: =VLOOKUP($I75,Spt_2!$B$8:$C$229,2,FALSE) -> 0 | N75: =VLOOKUP($I75,Spt_3!$B$8:$C$229,2,FALSE) -> 0 | P75: =VLOOKUP($I75,Spt_4!$B$8:$C$229,2,FALSE) -> 0 | R75: =IF($I75=0,CONCATENATE("ZSW2_",$H75),VLOOKUP($I75,DRL!$B$4:$G$4400,2,FALSE)) -> Rothermel, Ute | S75: =IF($I75=0,CONCATENATE("ZSW2_",$H75),VLOOKUP($I75,DRL!$B$4:$G$4400,4,FALSE)) -> MSC Bensheim-Auerbach | T75: =IF($J75="x",VLOOKUP($I75,Ges_HBSV!$B$4:$AI$255,31,FALSE),999)+$X75 -> 999.0072 | X75: 0.0072
A76: 16. | B76: =VLOOKUP(C76,$K$84:$S$143,8,FALSE) ->  | C76: 15 | D76: =VLOOKUP(E76,$K$84:$S$143,8,FALSE) ->  | E76: 14 | F76: =VLOOKUP(G76,$K$84:$S$143,8,FALSE) ->  | G76: 13 | H76: 308 | I76: =Teilnehmer!B102 -> 67428 | J76: =VLOOKUP($I76,Spt_1!$B$8:$C$229,2,FALSE) -> 0 | L76: =VLOOKUP($I76,Spt_2!$B$8:$C$229,2,FALSE) -> 0 | N76: =VLOOKUP($I76,Spt_3!$B$8:$C$229,2,FALSE) -> 0 | P76: =VLOOKUP($I76,Spt_4!$B$8:$C$229,2,FALSE) -> 0 | R76: =IF($I76=0,CONCATENATE("ZSW2_",$H76),VLOOKUP($I76,DRL!$B$4:$G$4400,2,FALSE)) -> Schmidt, Regina | S76: =IF($I76=0,CONCATENATE("ZSW2_",$H76),VLOOKUP($I76,DRL!$B$4:$G$4400,4,FALSE)) -> BGSV Aßlar | T76: =IF($J76="x",VLOOKUP($I76,Ges_HBSV!$B$4:$AI$255,31,FALSE),999)+$X76 -> 999.0073 | X76: 0.0073
B77: =VLOOKUP(C77,$K$84:$S$143,9,FALSE) ->  | C77: 15 | D77: =VLOOKUP(E77,$K$84:$S$143,9,FALSE) ->  | E77: 14 | F77: =VLOOKUP(G77,$K$84:$S$143,9,FALSE) ->  | G77: 13 | H77: 309 | I77: =Teilnehmer!B103 -> 67224 | J77: =VLOOKUP($I77,Spt_1!$B$8:$C$229,2,FALSE) -> 0 | L77: =VLOOKUP($I77,Spt_2!$B$8:$C$229,2,FALSE) -> 0 | N77: =VLOOKUP($I77,Spt_3!$B$8:$C$229,2,FALSE) -> 0 | P77: =VLOOKUP($I77,Spt_4!$B$8:$C$229,2,FALSE) -> 0 | R77: =IF($I77=0,CONCATENATE("ZSW2_",$H77),VLOOKUP($I77,DRL!$B$4:$G$4400,2,FALSE)) -> Vallot, Kerstin | S77: =IF($I77=0,CONCATENATE("ZSW2_",$H77),VLOOKUP($I77,DRL!$B$4:$G$4400,4,FALSE)) -> BGSV Aßlar | T77: =IF($J77="x",VLOOKUP($I77,Ges_HBSV!$B$4:$AI$255,31,FALSE),999)+$X77 -> 999.0074 | X77: 0.0074
A78: 17. | B78: =VLOOKUP(C78,$K$84:$S$143,8,FALSE) ->  | C78: 12 | D78: =VLOOKUP(E78,$K$84:$S$143,8,FALSE) ->  | E78: 11 | F78: =VLOOKUP(G78,$K$84:$S$143,8,FALSE) ->  | G78: 10 | H78: 310 | I78: =Teilnehmer!B104 -> 67787 | J78: =VLOOKUP($I78,Spt_1!$B$8:$C$229,2,FALSE) -> 0 | L78: =VLOOKUP($I78,Spt_2!$B$8:$C$229,2,FALSE) -> 0 | N78: =VLOOKUP($I78,Spt_3!$B$8:$C$229,2,FALSE) -> 0 | P78: =VLOOKUP($I78,Spt_4!$B$8:$C$229,2,FALSE) -> 0 | R78: =IF($I78=0,CONCATENATE("ZSW2_",$H78),VLOOKUP($I78,DRL!$B$4:$G$4400,2,FALSE)) -> Wedel, Carmen | S78: =IF($I78=0,CONCATENATE("ZSW2_",$H78),VLOOKUP($I78,DRL!$B$4:$G$4400,4,FALSE)) -> BGSV Bad Homburg | T78: =IF($J78="x",VLOOKUP($I78,Ges_HBSV!$B$4:$AI$255,31,FALSE),999)+$X78 -> 999.0075 | X78: 0.0075
B79: =VLOOKUP(C79,$K$84:$S$143,9,FALSE) ->  | C79: 12 | D79: =VLOOKUP(E79,$K$84:$S$143,9,FALSE) ->  | E79: 11 | F79: =VLOOKUP(G79,$K$84:$S$143,9,FALSE) ->  | G79: 10 | H79: 311 | I79: =Teilnehmer!B105 -> 68068 | J79: =VLOOKUP($I79,Spt_1!$B$8:$C$229,2,FALSE) -> 0 | L79: =VLOOKUP($I79,Spt_2!$B$8:$C$229,2,FALSE) -> 0 | N79: =VLOOKUP($I79,Spt_3!$B$8:$C$229,2,FALSE) -> 0 | P79: =VLOOKUP($I79,Spt_4!$B$8:$C$229,2,FALSE) -> 0 | R79: =IF($I79=0,CONCATENATE("ZSW2_",$H79),VLOOKUP($I79,DRL!$B$4:$G$4400,2,FALSE)) -> Weiß, Monika | S79: =IF($I79=0,CONCATENATE("ZSW2_",$H79),VLOOKUP($I79,DRL!$B$4:$G$4400,4,FALSE)) -> MGC Kahler Sandhasen | T79: =IF($J79="x",VLOOKUP($I79,Ges_HBSV!$B$4:$AI$255,31,FALSE),999)+$X79 -> 999.0076 | X79: 0.0076
A80: 18. | B80: =VLOOKUP(C80,$K$84:$S$143,8,FALSE) ->  | C80: 9 | D80: =VLOOKUP(E80,$K$84:$S$143,8,FALSE) ->  | E80: 8 | F80: =VLOOKUP(G80,$K$84:$S$143,8,FALSE) ->  | G80: 7 | H80: 312 | I80: =Teilnehmer!B106 -> 33708 | J80: =VLOOKUP($I80,Spt_1!$B$8:$C$229,2,FALSE) -> 0 | L80: =VLOOKUP($I80,Spt_2!$B$8:$C$229,2,FALSE) -> 0 | N80: =VLOOKUP($I80,Spt_3!$B$8:$C$229,2,FALSE) -> 0 | P80: =VLOOKUP($I80,Spt_4!$B$8:$C$229,2,FALSE) -> 0 | R80: =IF($I80=0,CONCATENATE("ZSW2_",$H80),VLOOKUP($I80,DRL!$B$4:$G$4400,2,FALSE)) -> Wimmer, Kirsten | S80: =IF($I80=0,CONCATENATE("ZSW2_",$H80),VLOOKUP($I80,DRL!$B$4:$G$4400,4,FALSE)) -> MSC Bensheim-Auerbach | T80: =IF($J80="x",VLOOKUP($I80,Ges_HBSV!$B$4:$AI$255,31,FALSE),999)+$X80 -> 999.0077 | X80: 0.0077
B81: =VLOOKUP(C81,$K$84:$S$143,9,FALSE) ->  | C81: 9 | D81: =VLOOKUP(E81,$K$84:$S$143,9,FALSE) ->  | E81: 8 | F81: =VLOOKUP(G81,$K$84:$S$143,9,FALSE) ->  | G81: 7 | H81: 313 | I81: =Teilnehmer!B107 -> 0 | J81: =VLOOKUP($I81,Spt_1!$B$8:$C$229,2,FALSE) -> 0 | L81: =VLOOKUP($I81,Spt_2!$B$8:$C$229,2,FALSE) -> 0 | N81: =VLOOKUP($I81,Spt_3!$B$8:$C$229,2,FALSE) -> 0 | P81: =VLOOKUP($I81,Spt_4!$B$8:$C$229,2,FALSE) -> 0 | R81: =IF($I81=0,CONCATENATE("ZSW2_",$H81),VLOOKUP($I81,DRL!$B$4:$G$4400,2,FALSE)) -> ZSW2_313 | S81: =IF($I81=0,CONCATENATE("ZSW2_",$H81),VLOOKUP($I81,DRL!$B$4:$G$4400,4,FALSE)) -> ZSW2_313 | T81: =IF($J81="x",VLOOKUP($I81,Ges_HBSV!$B$4:$AI$255,31,FALSE),999)+$X81 -> 999.0078 | X81: 0.0078
A82: 19. | B82: =VLOOKUP(C82,$K$84:$S$143,8,FALSE) ->  | C82: 6 | D82: =VLOOKUP(E82,$K$84:$S$143,8,FALSE) ->  | E82: 5 | F82: =VLOOKUP(G82,$K$84:$S$143,8,FALSE) ->  | G82: 4 | H82: 314 | I82: =Teilnehmer!B108 -> 0 | J82: =VLOOKUP($I82,Spt_1!$B$8:$C$229,2,FALSE) -> 0 | L82: =VLOOKUP($I82,Spt_2!$B$8:$C$229,2,FALSE) -> 0 | N82: =VLOOKUP($I82,Spt_3!$B$8:$C$229,2,FALSE) -> 0 | P82: =VLOOKUP($I82,Spt_4!$B$8:$C$229,2,FALSE) -> 0 | R82: =IF($I82=0,CONCATENATE("ZSW2_",$H82),VLOOKUP($I82,DRL!$B$4:$G$4400,2,FALSE)) -> ZSW2_314 | S82: =IF($I82=0,CONCATENATE("ZSW2_",$H82),VLOOKUP($I82,DRL!$B$4:$G$4400,4,FALSE)) -> ZSW2_314 | T82: =IF($J82="x",VLOOKUP($I82,Ges_HBSV!$B$4:$AI$255,31,FALSE),999)+$X82 -> 999.0079 | X82: 0.0079
B83: =VLOOKUP(C83,$K$84:$S$143,9,FALSE) ->  | C83: 6 | D83: =VLOOKUP(E83,$K$84:$S$143,9,FALSE) ->  | E83: 5 | F83: =VLOOKUP(G83,$K$84:$S$143,9,FALSE) ->  | G83: 4 | H83: 315 | I83: =Teilnehmer!B109 -> 0 | J83: =VLOOKUP($I83,Spt_1!$B$8:$C$229,2,FALSE) -> 0 | L83: =VLOOKUP($I83,Spt_2!$B$8:$C$229,2,FALSE) -> 0 | N83: =VLOOKUP($I83,Spt_3!$B$8:$C$229,2,FALSE) -> 0 | P83: =VLOOKUP($I83,Spt_4!$B$8:$C$229,2,FALSE) -> 0 | R83: =IF($I83=0,CONCATENATE("ZSW2_",$H83),VLOOKUP($I83,DRL!$B$4:$G$4400,2,FALSE)) -> ZSW2_315 | S83: =IF($I83=0,CONCATENATE("ZSW2_",$H83),VLOOKUP($I83,DRL!$B$4:$G$4400,4,FALSE)) -> ZSW2_315 | T83: =IF($J83="x",VLOOKUP($I83,Ges_HBSV!$B$4:$AI$255,31,FALSE),999)+$X83 -> 999.008 | X83: 0.008
A84: 20. | B84: =VLOOKUP(C84,$K$84:$S$143,8,FALSE) ->  | C84: 3 | D84: =VLOOKUP(E84,$K$84:$S$143,8,FALSE) ->  | E84: 2 | F84: =VLOOKUP(G84,$K$84:$S$143,8,FALSE) ->  | G84: 1 | H84: 401 | I84: =Teilnehmer!B131 -> 66828 | J84: =VLOOKUP($I84,Spt_1!$B$8:$C$229,2,FALSE) -> 0 | K84: =IF($T84>=999,"",RANK($T84,$T$84:$T$143,1)) ->  | L84: =VLOOKUP($I84,Spt_2!$B$8:$C$229,2,FALSE) -> 0 | M84: =IF($U84>=999,"",RANK($U84,$U$84:$U$143,1)) ->  | N84: =VLOOKUP($I84,Spt_3!$B$8:$C$229,2,FALSE) -> 0 | O84: =IF($V84>=999,"",RANK($V84,$V$84:$V$143,1)) ->  | P84: =VLOOKUP($I84,Spt_4!$B$8:$C$229,2,FALSE) -> 0 | Q84: =IF($W84>=999,"",RANK($W84,$W$84:$W$143,1)) ->  | R84: =IF($I84=0,CONCATENATE("ZJM_",$H84),VLOOKUP($I84,DRL!$B$4:$G$4400,2,FALSE)) -> Körner, Nils | S84: =IF($I84=0,CONCATENATE("ZJM_",$H84),VLOOKUP($I84,DRL!$B$4:$G$4400,4,FALSE)) -> TSV Pfungstadt | T84: =IF($J84="x",VLOOKUP($I84,Ges_HBSV!$B$4:$AI$255,31,FALSE),999)+$X84 -> 999.0001 | X84: 0.0001
B85: =VLOOKUP(C85,$K$84:$S$143,9,FALSE) ->  | C85: 3 | D85: =VLOOKUP(E85,$K$84:$S$143,9,FALSE) ->  | E85: 2 | F85: =VLOOKUP(G85,$K$84:$S$143,9,FALSE) ->  | G85: 1 | H85: 402 | I85: =Teilnehmer!B132 -> 67550 | J85: =VLOOKUP($I85,Spt_1!$B$8:$C$229,2,FALSE) -> 0 | K85: =IF($T85>=999,"",RANK($T85,$T$84:$T$143,1)) ->  | L85: =VLOOKUP($I85,Spt_2!$B$8:$C$229,2,FALSE) -> 0 | M85: =IF($U85>=999,"",RANK($U85,$U$84:$U$143,1)) ->  | N85: =VLOOKUP($I85,Spt_3!$B$8:$C$229,2,FALSE) -> 0 | O85: =IF($V85>=999,"",RANK($V85,$V$84:$V$143,1)) ->  | P85: =VLOOKUP($I85,Spt_4!$B$8:$C$229,2,FALSE) -> 0 | Q85: =IF($W85>=999,"",RANK($W85,$W$84:$W$143,1)) ->  | R85: =IF($I85=0,CONCATENATE("ZJM_",$H85),VLOOKUP($I85,DRL!$B$4:$G$4400,2,FALSE)) -> Reim, Leon | S85: =IF($I85=0,CONCATENATE("ZJM_",$H85),VLOOKUP($I85,DRL!$B$4:$G$4400,4,FALSE)) -> MGC Wetzlar | T85: =IF($J85="x",VLOOKUP($I85,Ges_HBSV!$B$4:$AI$255,31,FALSE),999)+$X85 -> 999.0002 | X85: 0.0002
H86: 403 | I86: =Teilnehmer!B133 -> 0 | J86: =VLOOKUP($I86,Spt_1!$B$8:$C$229,2,FALSE) -> 0 | L86: =VLOOKUP($I86,Spt_2!$B$8:$C$229,2,FALSE) -> 0 | N86: =VLOOKUP($I86,Spt_3!$B$8:$C$229,2,FALSE) -> 0 | P86: =VLOOKUP($I86,Spt_4!$B$8:$C$229,2,FALSE) -> 0 | R86: =IF($I86=0,CONCATENATE("ZJM_",$H86),VLOOKUP($I86,DRL!$B$4:$G$4400,2,FALSE)) -> ZJM_403 | S86: =IF($I86=0,CONCATENATE("ZJM_",$H86),VLOOKUP($I86,DRL!$B$4:$G$4400,4,FALSE)) -> ZJM_403 | T86: =IF($J86="x",VLOOKUP($I86,Ges_HBSV!$B$4:$AI$255,31,FALSE),999)+$X86 -> 999.0003 | X86: 0.0003
H87: 404 | I87: =Teilnehmer!B134 -> 0 | J87: =VLOOKUP($I87,Spt_1!$B$8:$C$229,2,FALSE) -> 0 | L87: =VLOOKUP($I87,Spt_2!$B$8:$C$229,2,FALSE) -> 0 | N87: =VLOOKUP($I87,Spt_3!$B$8:$C$229,2,FALSE) -> 0 | P87: =VLOOKUP($I87,Spt_4!$B$8:$C$229,2,FALSE) -> 0 | R87: =IF($I87=0,CONCATENATE("ZJM_",$H87),VLOOKUP($I87,DRL!$B$4:$G$4400,2,FALSE)) -> ZJM_404 | S87: =IF($I87=0,CONCATENATE("ZJM_",$H87),VLOOKUP($I87,DRL!$B$4:$G$4400,4,FALSE)) -> ZJM_404 | T87: =IF($J87="x",VLOOKUP($I87,Ges_HBSV!$B$4:$AI$255,31,FALSE),999)+$X87 -> 999.0004 | X87: 0.0004
D88: Einzelspieler Senioren | H88: 405 | I88: =Teilnehmer!B135 -> 0 | J88: =VLOOKUP($I88,Spt_1!$B$8:$C$229,2,FALSE) -> 0 | L88: =VLOOKUP($I88,Spt_2!$B$8:$C$229,2,FALSE) -> 0 | N88: =VLOOKUP($I88,Spt_3!$B$8:$C$229,2,FALSE) -> 0 | P88: =VLOOKUP($I88,Spt_4!$B$8:$C$229,2,FALSE) -> 0 | R88: =IF($I88=0,CONCATENATE("ZJM_",$H88),VLOOKUP($I88,DRL!$B$4:$G$4400,2,FALSE)) -> ZJM_405 | S88: =IF($I88=0,CONCATENATE("ZJM_",$H88),VLOOKUP($I88,DRL!$B$4:$G$4400,4,FALSE)) -> ZJM_405 | T88: =IF($J88="x",VLOOKUP($I88,Ges_HBSV!$B$4:$AI$255,31,FALSE),999)+$X88 -> 999.0005 | X88: 0.0005
A89: 1. | B89: =VLOOKUP(C89,$K$4:$S$83,8,FALSE) ->  | C89: 60 | D89: =VLOOKUP(E89,$K$4:$S$83,8,FALSE) ->  | E89: 59 | F89: =VLOOKUP(G89,$K$4:$S$83,8,FALSE) ->  | G89: 58 | H89: 406 | I89: =Teilnehmer!B136 -> 0 | J89: =VLOOKUP($I89,Spt_1!$B$8:$C$229,2,FALSE) -> 0 | L89: =VLOOKUP($I89,Spt_2!$B$8:$C$229,2,FALSE) -> 0 | N89: =VLOOKUP($I89,Spt_3!$B$8:$C$229,2,FALSE) -> 0 | P89: =VLOOKUP($I89,Spt_4!$B$8:$C$229,2,FALSE) -> 0 | R89: =IF($I89=0,CONCATENATE("ZJM_",$H89),VLOOKUP($I89,DRL!$B$4:$G$4400,2,FALSE)) -> ZJM_406 | S89: =IF($I89=0,CONCATENATE("ZJM_",$H89),VLOOKUP($I89,DRL!$B$4:$G$4400,4,FALSE)) -> ZJM_406 | T89: =IF($J89="x",VLOOKUP($I89,Ges_HBSV!$B$4:$AI$255,31,FALSE),999)+$X89 -> 999.0006 | X89: 0.0006
B90: =VLOOKUP(C90,$K$4:$S$83,9,FALSE) ->  | C90: 60 | D90: =VLOOKUP(E90,$K$4:$S$83,9,FALSE) ->  | E90: 59 | F90: =VLOOKUP(G90,$K$4:$S$83,9,FALSE) ->  | G90: 58 | H90: 407 | I90: =Teilnehmer!B137 -> 0 | J90: =VLOOKUP($I90,Spt_1!$B$8:$C$229,2,FALSE) -> 0 | L90: =VLOOKUP($I90,Spt_2!$B$8:$C$229,2,FALSE) -> 0 | N90: =VLOOKUP($I90,Spt_3!$B$8:$C$229,2,FALSE) -> 0 | P90: =VLOOKUP($I90,Spt_4!$B$8:$C$229,2,FALSE) -> 0 | R90: =IF($I90=0,CONCATENATE("ZJM_",$H90),VLOOKUP($I90,DRL!$B$4:$G$4400,2,FALSE)) -> ZJM_407 | S90: =IF($I90=0,CONCATENATE("ZJM_",$H90),VLOOKUP($I90,DRL!$B$4:$G$4400,4,FALSE)) -> ZJM_407 | T90: =IF($J90="x",VLOOKUP($I90,Ges_HBSV!$B$4:$AI$255,31,FALSE),999)+$X90 -> 999.0007 | X90: 0.0007
A91: 2. | B91: =VLOOKUP(C91,$K$4:$S$83,8,FALSE) ->  | C91: 57 | D91: =VLOOKUP(E91,$K$4:$S$83,8,FALSE) ->  | E91: 56 | F91: =VLOOKUP(G91,$K$4:$S$83,8,FALSE) ->  | G91: 55 | H91: 408 | I91: =Teilnehmer!B138 -> 0 | J91: =VLOOKUP($I91,Spt_1!$B$8:$C$229,2,FALSE) -> 0 | L91: =VLOOKUP($I91,Spt_2!$B$8:$C$229,2,FALSE) -> 0 | N91: =VLOOKUP($I91,Spt_3!$B$8:$C$229,2,FALSE) -> 0 | P91: =VLOOKUP($I91,Spt_4!$B$8:$C$229,2,FALSE) -> 0 | R91: =IF($I91=0,CONCATENATE("ZJM_",$H91),VLOOKUP($I91,DRL!$B$4:$G$4400,2,FALSE)) -> ZJM_408 | S91: =IF($I91=0,CONCATENATE("ZJM_",$H91),VLOOKUP($I91,DRL!$B$4:$G$4400,4,FALSE)) -> ZJM_408 | T91: =IF($J91="x",VLOOKUP($I91,Ges_HBSV!$B$4:$AI$255,31,FALSE),999)+$X91 -> 999.0008 | X91: 0.0008
B92: =VLOOKUP(C92,$K$4:$S$83,9,FALSE) ->  | C92: 57 | D92: =VLOOKUP(E92,$K$4:$S$83,9,FALSE) ->  | E92: 56 | F92: =VLOOKUP(G92,$K$4:$S$83,9,FALSE) ->  | G92: 55 | H92: 409 | I92: =Teilnehmer!B139 -> 0 | J92: =VLOOKUP($I92,Spt_1!$B$8:$C$229,2,FALSE) -> 0 | L92: =VLOOKUP($I92,Spt_2!$B$8:$C$229,2,FALSE) -> 0 | N92: =VLOOKUP($I92,Spt_3!$B$8:$C$229,2,FALSE) -> 0 | P92: =VLOOKUP($I92,Spt_4!$B$8:$C$229,2,FALSE) -> 0 | R92: =IF($I92=0,CONCATENATE("ZJM_",$H92),VLOOKUP($I92,DRL!$B$4:$G$4400,2,FALSE)) -> ZJM_409 | S92: =IF($I92=0,CONCATENATE("ZJM_",$H92),VLOOKUP($I92,DRL!$B$4:$G$4400,4,FALSE)) -> ZJM_409 | T92: =IF($J92="x",VLOOKUP($I92,Ges_HBSV!$B$4:$AI$255,31,FALSE),999)+$X92 -> 999.0009 | X92: 0.0009
A93: 3. | B93: =VLOOKUP(C93,$K$4:$S$83,8,FALSE) ->  | C93: 54 | D93: =VLOOKUP(E93,$K$4:$S$83,8,FALSE) ->  | E93: 53 | F93: =VLOOKUP(G93,$K$4:$S$83,8,FALSE) ->  | G93: 52 | H93: 410 | I93: =Teilnehmer!B140 -> 0 | J93: =VLOOKUP($I93,Spt_1!$B$8:$C$229,2,FALSE) -> 0 | L93: =VLOOKUP($I93,Spt_2!$B$8:$C$229,2,FALSE) -> 0 | N93: =VLOOKUP($I93,Spt_3!$B$8:$C$229,2,FALSE) -> 0 | P93: =VLOOKUP($I93,Spt_4!$B$8:$C$229,2,FALSE) -> 0 | R93: =IF($I93=0,CONCATENATE("ZJM_",$H93),VLOOKUP($I93,DRL!$B$4:$G$4400,2,FALSE)) -> ZJM_410 | S93: =IF($I93=0,CONCATENATE("ZJM_",$H93),VLOOKUP($I93,DRL!$B$4:$G$4400,4,FALSE)) -> ZJM_410 | T93: =IF($J93="x",VLOOKUP($I93,Ges_HBSV!$B$4:$AI$255,31,FALSE),999)+$X93 -> 999.001 | X93: 0.001
B94: =VLOOKUP(C94,$K$4:$S$83,9,FALSE) ->  | C94: 54 | D94: =VLOOKUP(E94,$K$4:$S$83,9,FALSE) ->  | E94: 53 | F94: =VLOOKUP(G94,$K$4:$S$83,9,FALSE) ->  | G94: 52 | H94: 501 | I94: =Teilnehmer!B149 -> 66640 | J94: =VLOOKUP($I94,Spt_1!$B$8:$C$229,2,FALSE) -> 0 | L94: =VLOOKUP($I94,Spt_2!$B$8:$C$229,2,FALSE) -> 0 | N94: =VLOOKUP($I94,Spt_3!$B$8:$C$229,2,FALSE) -> 0 | P94: =VLOOKUP($I94,Spt_4!$B$8:$C$229,2,FALSE) -> 0 | R94: =IF($I94=0,CONCATENATE("ZSCHM_",$H94),VLOOKUP($I94,DRL!$B$4:$G$4400,2,FALSE)) -> Tritsch, Levi | S94: =IF($I94=0,CONCATENATE("ZSCHM_",$H94),VLOOKUP($I94,DRL!$B$4:$G$4400,4,FALSE)) -> SG Arheilgen | T94: =IF($J94="x",VLOOKUP($I94,Ges_HBSV!$B$4:$AI$255,31,FALSE),999)+$X94 -> 999.0011 | X94: 0.0011
A95: 4. | B95: =VLOOKUP(C95,$K$4:$S$83,8,FALSE) ->  | C95: 51 | D95: =VLOOKUP(E95,$K$4:$S$83,8,FALSE) ->  | E95: 50 | F95: =VLOOKUP(G95,$K$4:$S$83,8,FALSE) ->  | G95: 49 | H95: 502 | I95: =Teilnehmer!B150 -> 67276 | J95: =VLOOKUP($I95,Spt_1!$B$8:$C$229,2,FALSE) -> 0 | L95: =VLOOKUP($I95,Spt_2!$B$8:$C$229,2,FALSE) -> 0 | N95: =VLOOKUP($I95,Spt_3!$B$8:$C$229,2,FALSE) -> 0 | P95: =VLOOKUP($I95,Spt_4!$B$8:$C$229,2,FALSE) -> 0 | R95: =IF($I95=0,CONCATENATE("ZSCHM_",$H95),VLOOKUP($I95,DRL!$B$4:$G$4400,2,FALSE)) -> Weiß, Damon | S95: =IF($I95=0,CONCATENATE("ZSCHM_",$H95),VLOOKUP($I95,DRL!$B$4:$G$4400,4,FALSE)) -> BGSV Bad Homburg | T95: =IF($J95="x",VLOOKUP($I95,Ges_HBSV!$B$4:$AI$255,31,FALSE),999)+$X95 -> 999.0012 | X95: 0.0012
B96: =VLOOKUP(C96,$K$4:$S$83,9,FALSE) ->  | C96: 51 | D96: =VLOOKUP(E96,$K$4:$S$83,9,FALSE) ->  | E96: 50 | F96: =VLOOKUP(G96,$K$4:$S$83,9,FALSE) ->  | G96: 49 | H96: 503 | I96: =Teilnehmer!B151 -> 68031 | J96: =VLOOKUP($I96,Spt_1!$B$8:$C$229,2,FALSE) -> 0 | L96: =VLOOKUP($I96,Spt_2!$B$8:$C$229,2,FALSE) -> 0 | N96: =VLOOKUP($I96,Spt_3!$B$8:$C$229,2,FALSE) -> 0 | P96: =VLOOKUP($I96,Spt_4!$B$8:$C$229,2,FALSE) -> 0 | R96: =IF($I96=0,CONCATENATE("ZSCHM_",$H96),VLOOKUP($I96,DRL!$B$4:$G$4400,2,FALSE)) -> Noll, Joshua | S96: =IF($I96=0,CONCATENATE("ZSCHM_",$H96),VLOOKUP($I96,DRL!$B$4:$G$4400,4,FALSE)) -> SV 1890 Dreieichenhain | T96: =IF($J96="x",VLOOKUP($I96,Ges_HBSV!$B$4:$AI$255,31,FALSE),999)+$X96 -> 999.0013 | X96: 0.0013
A97: 5. | B97: =VLOOKUP(C97,$K$4:$S$83,8,FALSE) ->  | C97: 48 | D97: =VLOOKUP(E97,$K$4:$S$83,8,FALSE) ->  | E97: 47 | F97: =VLOOKUP(G97,$K$4:$S$83,8,FALSE) ->  | G97: 46 | H97: 504 | I97: =Teilnehmer!B152 -> 0 | J97: =VLOOKUP($I97,Spt_1!$B$8:$C$229,2,FALSE) -> 0 | L97: =VLOOKUP($I97,Spt_2!$B$8:$C$229,2,FALSE) -> 0 | N97: =VLOOKUP($I97,Spt_3!$B$8:$C$229,2,FALSE) -> 0 | P97: =VLOOKUP($I97,Spt_4!$B$8:$C$229,2,FALSE) -> 0 | R97: =IF($I97=0,CONCATENATE("ZSCHM_",$H97),VLOOKUP($I97,DRL!$B$4:$G$4400,2,FALSE)) -> ZSCHM_504 | S97: =IF($I97=0,CONCATENATE("ZSCHM_",$H97),VLOOKUP($I97,DRL!$B$4:$G$4400,4,FALSE)) -> ZSCHM_504 | T97: =IF($J97="x",VLOOKUP($I97,Ges_HBSV!$B$4:$AI$255,31,FALSE),999)+$X97 -> 999.0014 | X97: 0.0014
B98: =VLOOKUP(C98,$K$4:$S$83,9,FALSE) ->  | C98: 48 | D98: =VLOOKUP(E98,$K$4:$S$83,9,FALSE) ->  | E98: 47 | F98: =VLOOKUP(G98,$K$4:$S$83,9,FALSE) ->  | G98: 46 | H98: 505 | I98: =Teilnehmer!B153 -> 0 | J98: =VLOOKUP($I98,Spt_1!$B$8:$C$229,2,FALSE) -> 0 | L98: =VLOOKUP($I98,Spt_2!$B$8:$C$229,2,FALSE) -> 0 | N98: =VLOOKUP($I98,Spt_3!$B$8:$C$229,2,FALSE) -> 0 | P98: =VLOOKUP($I98,Spt_4!$B$8:$C$229,2,FALSE) -> 0 | R98: =IF($I98=0,CONCATENATE("ZSCHM_",$H98),VLOOKUP($I98,DRL!$B$4:$G$4400,2,FALSE)) -> ZSCHM_505 | S98: =IF($I98=0,CONCATENATE("ZSCHM_",$H98),VLOOKUP($I98,DRL!$B$4:$G$4400,4,FALSE)) -> ZSCHM_505 | T98: =IF($J98="x",VLOOKUP($I98,Ges_HBSV!$B$4:$AI$255,31,FALSE),999)+$X98 -> 999.0015 | X98: 0.0015
A99: 6. | B99: =VLOOKUP(C99,$K$4:$S$83,8,FALSE) ->  | C99: 45 | D99: =VLOOKUP(E99,$K$4:$S$83,8,FALSE) ->  | E99: 44 | F99: =VLOOKUP(G99,$K$4:$S$83,8,FALSE) ->  | G99: 43 | H99: 506 | I99: =Teilnehmer!B154 -> 0 | J99: =VLOOKUP($I99,Spt_1!$B$8:$C$229,2,FALSE) -> 0 | L99: =VLOOKUP($I99,Spt_2!$B$8:$C$229,2,FALSE) -> 0 | N99: =VLOOKUP($I99,Spt_3!$B$8:$C$229,2,FALSE) -> 0 | P99: =VLOOKUP($I99,Spt_4!$B$8:$C$229,2,FALSE) -> 0 | R99: =IF($I99=0,CONCATENATE("ZSCHM_",$H99),VLOOKUP($I99,DRL!$B$4:$G$4400,2,FALSE)) -> ZSCHM_506 | S99: =IF($I99=0,CONCATENATE("ZSCHM_",$H99),VLOOKUP($I99,DRL!$B$4:$G$4400,4,FALSE)) -> ZSCHM_506 | T99: =IF($J99="x",VLOOKUP($I99,Ges_HBSV!$B$4:$AI$255,31,FALSE),999)+$X99 -> 999.0016 | X99: 0.0016
B100: =VLOOKUP(C100,$K$4:$S$83,9,FALSE) ->  | C100: 45 | D100: =VLOOKUP(E100,$K$4:$S$83,9,FALSE) ->  | E100: 44 | F100: =VLOOKUP(G100,$K$4:$S$83,9,FALSE) ->  | G100: 43 | H100: 507 | I100: =Teilnehmer!B155 -> 0 | J100: =VLOOKUP($I100,Spt_1!$B$8:$C$229,2,FALSE) -> 0 | L100: =VLOOKUP($I100,Spt_2!$B$8:$C$229,2,FALSE) -> 0 | N100: =VLOOKUP($I100,Spt_3!$B$8:$C$229,2,FALSE) -> 0 | P100: =VLOOKUP($I100,Spt_4!$B$8:$C$229,2,FALSE) -> 0 | R100: =IF($I100=0,CONCATENATE("ZSCHM_",$H100),VLOOKUP($I100,DRL!$B$4:$G$4400,2,FALSE)) -> ZSCHM_507 | S100: =IF($I100=0,CONCATENATE("ZSCHM_",$H100),VLOOKUP($I100,DRL!$B$4:$G$4400,4,FALSE)) -> ZSCHM_507 | T100: =IF($J100="x",VLOOKUP($I100,Ges_HBSV!$B$4:$AI$255,31,FALSE),999)+$X100 -> 999.0017 | X100: 0.0017
A101: 7. | B101: =VLOOKUP(C101,$K$4:$S$83,8,FALSE) ->  | C101: 42 | D101: =VLOOKUP(E101,$K$4:$S$83,8,FALSE) ->  | E101: 41 | F101: =VLOOKUP(G101,$K$4:$S$83,8,FALSE) ->  | G101: 40 | H101: 508 | I101: =Teilnehmer!B156 -> 0 | J101: =VLOOKUP($I101,Spt_1!$B$8:$C$229,2,FALSE) -> 0 | L101: =VLOOKUP($I101,Spt_2!$B$8:$C$229,2,FALSE) -> 0 | N101: =VLOOKUP($I101,Spt_3!$B$8:$C$229,2,FALSE) -> 0 | P101: =VLOOKUP($I101,Spt_4!$B$8:$C$229,2,FALSE) -> 0 | R101: =IF($I101=0,CONCATENATE("ZSCHM_",$H101),VLOOKUP($I101,DRL!$B$4:$G$4400,2,FALSE)) -> ZSCHM_508 | S101: =IF($I101=0,CONCATENATE("ZSCHM_",$H101),VLOOKUP($I101,DRL!$B$4:$G$4400,4,FALSE)) -> ZSCHM_508 | T101: =IF($J101="x",VLOOKUP($I101,Ges_HBSV!$B$4:$AI$255,31,FALSE),999)+$X101 -> 999.0018 | X101: 0.0018
B102: =VLOOKUP(C102,$K$4:$S$83,9,FALSE) ->  | C102: 42 | D102: =VLOOKUP(E102,$K$4:$S$83,9,FALSE) ->  | E102: 41 | F102: =VLOOKUP(G102,$K$4:$S$83,9,FALSE) ->  | G102: 40 | H102: 509 | I102: =Teilnehmer!B157 -> 0 | J102: =VLOOKUP($I102,Spt_1!$B$8:$C$229,2,FALSE) -> 0 | L102: =VLOOKUP($I102,Spt_2!$B$8:$C$229,2,FALSE) -> 0 | N102: =VLOOKUP($I102,Spt_3!$B$8:$C$229,2,FALSE) -> 0 | P102: =VLOOKUP($I102,Spt_4!$B$8:$C$229,2,FALSE) -> 0 | R102: =IF($I102=0,CONCATENATE("ZSCHM_",$H102),VLOOKUP($I102,DRL!$B$4:$G$4400,2,FALSE)) -> ZSCHM_509 | S102: =IF($I102=0,CONCATENATE("ZSCHM_",$H102),VLOOKUP($I102,DRL!$B$4:$G$4400,4,FALSE)) -> ZSCHM_509 | T102: =IF($J102="x",VLOOKUP($I102,Ges_HBSV!$B$4:$AI$255,31,FALSE),999)+$X102 -> 999.0019 | X102: 0.0019
A103: 8. | B103: =VLOOKUP(C103,$K$4:$S$83,8,FALSE) ->  | C103: 39 | D103: =VLOOKUP(E103,$K$4:$S$83,8,FALSE) ->  | E103: 38 | F103: =VLOOKUP(G103,$K$4:$S$83,8,FALSE) ->  | G103: 37 | H103: 510 | I103: =Teilnehmer!B158 -> 0 | J103: =VLOOKUP($I103,Spt_1!$B$8:$C$229,2,FALSE) -> 0 | L103: =VLOOKUP($I103,Spt_2!$B$8:$C$229,2,FALSE) -> 0 | N103: =VLOOKUP($I103,Spt_3!$B$8:$C$229,2,FALSE) -> 0 | P103: =VLOOKUP($I103,Spt_4!$B$8:$C$229,2,FALSE) -> 0 | R103: =IF($I103=0,CONCATENATE("ZSCHM_",$H103),VLOOKUP($I103,DRL!$B$4:$G$4400,2,FALSE)) -> ZSCHM_510 | S103: =IF($I103=0,CONCATENATE("ZSCHM_",$H103),VLOOKUP($I103,DRL!$B$4:$G$4400,4,FALSE)) -> ZSCHM_510 | T103: =IF($J103="x",VLOOKUP($I103,Ges_HBSV!$B$4:$AI$255,31,FALSE),999)+$X103 -> 999.002 | X103: 0.002
B104: =VLOOKUP(C104,$K$4:$S$83,9,FALSE) ->  | C104: 39 | D104: =VLOOKUP(E104,$K$4:$S$83,9,FALSE) ->  | E104: 38 | F104: =VLOOKUP(G104,$K$4:$S$83,9,FALSE) ->  | G104: 37 | H104: 601 | I104: =Teilnehmer!B166 -> 67538 | J104: =VLOOKUP($I104,Spt_1!$B$8:$C$229,2,FALSE) -> 0 | L104: =VLOOKUP($I104,Spt_2!$B$8:$C$229,2,FALSE) -> 0 | N104: =VLOOKUP($I104,Spt_3!$B$8:$C$229,2,FALSE) -> 0 | P104: =VLOOKUP($I104,Spt_4!$B$8:$C$229,2,FALSE) -> 0 | R104: =IF($I104=0,CONCATENATE("ZJW_",$H104),VLOOKUP($I104,DRL!$B$4:$G$4400,2,FALSE)) -> Schüßler, Sophie | S104: =IF($I104=0,CONCATENATE("ZJW_",$H104),VLOOKUP($I104,DRL!$B$4:$G$4400,4,FALSE)) -> MSC Bensheim-Auerbach | T104: =IF($J104="x",VLOOKUP($I104,Ges_HBSV!$B$4:$AI$255,31,FALSE),999)+$X104 -> 999.0021 | X104: 0.0021
A105: 9. | B105: =VLOOKUP(C105,$K$4:$S$83,8,FALSE) ->  | C105: 36 | D105: =VLOOKUP(E105,$K$4:$S$83,8,FALSE) ->  | E105: 35 | F105: =VLOOKUP(G105,$K$4:$S$83,8,FALSE) ->  | G105: 34 | H105: 602 | I105: =Teilnehmer!B167 -> 0 | J105: =VLOOKUP($I105,Spt_1!$B$8:$C$229,2,FALSE) -> 0 | L105: =VLOOKUP($I105,Spt_2!$B$8:$C$229,2,FALSE) -> 0 | N105: =VLOOKUP($I105,Spt_3!$B$8:$C$229,2,FALSE) -> 0 | P105: =VLOOKUP($I105,Spt_4!$B$8:$C$229,2,FALSE) -> 0 | R105: =IF($I105=0,CONCATENATE("ZJW_",$H105),VLOOKUP($I105,DRL!$B$4:$G$4400,2,FALSE)) -> ZJW_602 | S105: =IF($I105=0,CONCATENATE("ZJW_",$H105),VLOOKUP($I105,DRL!$B$4:$G$4400,4,FALSE)) -> ZJW_602 | T105: =IF($J105="x",VLOOKUP($I105,Ges_HBSV!$B$4:$AI$255,31,FALSE),999)+$X105 -> 999.0022 | X105: 0.0022
B106: =VLOOKUP(C106,$K$4:$S$83,9,FALSE) ->  | C106: 36 | D106: =VLOOKUP(E106,$K$4:$S$83,9,FALSE) ->  | E106: 35 | F106: =VLOOKUP(G106,$K$4:$S$83,9,FALSE) ->  | G106: 34 | H106: 603 | I106: =Teilnehmer!B168 -> 0 | J106: =VLOOKUP($I106,Spt_1!$B$8:$C$229,2,FALSE) -> 0 | L106: =VLOOKUP($I106,Spt_2!$B$8:$C$229,2,FALSE) -> 0 | N106: =VLOOKUP($I106,Spt_3!$B$8:$C$229,2,FALSE) -> 0 | P106: =VLOOKUP($I106,Spt_4!$B$8:$C$229,2,FALSE) -> 0 | R106: =IF($I106=0,CONCATENATE("ZJW_",$H106),VLOOKUP($I106,DRL!$B$4:$G$4400,2,FALSE)) -> ZJW_603 | S106: =IF($I106=0,CONCATENATE("ZJW_",$H106),VLOOKUP($I106,DRL!$B$4:$G$4400,4,FALSE)) -> ZJW_603 | T106: =IF($J106="x",VLOOKUP($I106,Ges_HBSV!$B$4:$AI$255,31,FALSE),999)+$X106 -> 999.0023 | X106: 0.0023
A107: 10. | B107: =VLOOKUP(C107,$K$4:$S$83,8,FALSE) ->  | C107: 33 | D107: =VLOOKUP(E107,$K$4:$S$83,8,FALSE) ->  | E107: 32 | F107: =VLOOKUP(G107,$K$4:$S$83,8,FALSE) ->  | G107: 31 | H107: 604 | I107: =Teilnehmer!B169 -> 0 | J107: =VLOOKUP($I107,Spt_1!$B$8:$C$229,2,FALSE) -> 0 | L107: =VLOOKUP($I107,Spt_2!$B$8:$C$229,2,FALSE) -> 0 | N107: =VLOOKUP($I107,Spt_3!$B$8:$C$229,2,FALSE) -> 0 | P107: =VLOOKUP($I107,Spt_4!$B$8:$C$229,2,FALSE) -> 0 | R107: =IF($I107=0,CONCATENATE("ZJW_",$H107),VLOOKUP($I107,DRL!$B$4:$G$4400,2,FALSE)) -> ZJW_604 | S107: =IF($I107=0,CONCATENATE("ZJW_",$H107),VLOOKUP($I107,DRL!$B$4:$G$4400,4,FALSE)) -> ZJW_604 | T107: =IF($J107="x",VLOOKUP($I107,Ges_HBSV!$B$4:$AI$255,31,FALSE),999)+$X107 -> 999.0024 | X107: 0.0024
B108: =VLOOKUP(C108,$K$4:$S$83,9,FALSE) ->  | C108: 33 | D108: =VLOOKUP(E108,$K$4:$S$83,9,FALSE) ->  | E108: 32 | F108: =VLOOKUP(G108,$K$4:$S$83,9,FALSE) ->  | G108: 31 | H108: 605 | I108: =Teilnehmer!B170 -> 0 | J108: =VLOOKUP($I108,Spt_1!$B$8:$C$229,2,FALSE) -> 0 | L108: =VLOOKUP($I108,Spt_2!$B$8:$C$229,2,FALSE) -> 0 | N108: =VLOOKUP($I108,Spt_3!$B$8:$C$229,2,FALSE) -> 0 | P108: =VLOOKUP($I108,Spt_4!$B$8:$C$229,2,FALSE) -> 0 | R108: =IF($I108=0,CONCATENATE("ZJW_",$H108),VLOOKUP($I108,DRL!$B$4:$G$4400,2,FALSE)) -> ZJW_605 | S108: =IF($I108=0,CONCATENATE("ZJW_",$H108),VLOOKUP($I108,DRL!$B$4:$G$4400,4,FALSE)) -> ZJW_605 | T108: =IF($J108="x",VLOOKUP($I108,Ges_HBSV!$B$4:$AI$255,31,FALSE),999)+$X108 -> 999.0025 | X108: 0.0025
A109: 11. | B109: =VLOOKUP(C109,$K$4:$S$83,8,FALSE) ->  | C109: 30 | D109: =VLOOKUP(E109,$K$4:$S$83,8,FALSE) ->  | E109: 29 | F109: =VLOOKUP(G109,$K$4:$S$83,8,FALSE) ->  | G109: 28 | H109: 701 | I109: =Teilnehmer!B179 -> 68080 | J109: =VLOOKUP($I109,Spt_1!$B$8:$C$229,2,FALSE) -> 0 | L109: =VLOOKUP($I109,Spt_2!$B$8:$C$229,2,FALSE) -> 0 | N109: =VLOOKUP($I109,Spt_3!$B$8:$C$229,2,FALSE) -> 0 | P109: =VLOOKUP($I109,Spt_4!$B$8:$C$229,2,FALSE) -> 0 | R109: =IF($I109=0,CONCATENATE("ZSCHW_",$H109),VLOOKUP($I109,DRL!$B$4:$G$4400,2,FALSE)) -> Wittstadt, Ida | S109: =IF($I109=0,CONCATENATE("ZSCHW_",$H109),VLOOKUP($I109,DRL!$B$4:$G$4400,4,FALSE)) -> SG Arheilgen | T109: =IF($J109="x",VLOOKUP($I109,Ges_HBSV!$B$4:$AI$255,31,FALSE),999)+$X109 -> 999.0026 | X109: 0.0026
B110: =VLOOKUP(C110,$K$4:$S$83,9,FALSE) ->  | C110: 30 | D110: =VLOOKUP(E110,$K$4:$S$83,9,FALSE) ->  | E110: 29 | F110: =VLOOKUP(G110,$K$4:$S$83,9,FALSE) ->  | G110: 28 | H110: 702 | I110: =Teilnehmer!B172 -> 0 | J110: =VLOOKUP($I110,Spt_1!$B$8:$C$229,2,FALSE) -> 0 | L110: =VLOOKUP($I110,Spt_2!$B$8:$C$229,2,FALSE) -> 0 | N110: =VLOOKUP($I110,Spt_3!$B$8:$C$229,2,FALSE) -> 0 | P110: =VLOOKUP($I110,Spt_4!$B$8:$C$229,2,FALSE) -> 0 | R110: =IF($I110=0,CONCATENATE("ZSCHW_",$H110),VLOOKUP($I110,DRL!$B$4:$G$4400,2,FALSE)) -> ZSCHW_702 | S110: =IF($I110=0,CONCATENATE("ZSCHW_",$H110),VLOOKUP($I110,DRL!$B$4:$G$4400,4,FALSE)) -> ZSCHW_702 | T110: =IF($J110="x",VLOOKUP($I110,Ges_HBSV!$B$4:$AI$255,31,FALSE),999)+$X110 -> 999.0027 | X110: 0.0027
A111: 12. | B111: =VLOOKUP(C111,$K$4:$S$83,8,FALSE) ->  | C111: 27 | D111: =VLOOKUP(E111,$K$4:$S$83,8,FALSE) ->  | E111: 26 | F111: =VLOOKUP(G111,$K$4:$S$83,8,FALSE) ->  | G111: 25 | H111: 703 | I111: =Teilnehmer!B173 -> 0 | J111: =VLOOKUP($I111,Spt_1!$B$8:$C$229,2,FALSE) -> 0 | L111: =VLOOKUP($I111,Spt_2!$B$8:$C$229,2,FALSE) -> 0 | N111: =VLOOKUP($I111,Spt_3!$B$8:$C$229,2,FALSE) -> 0 | P111: =VLOOKUP($I111,Spt_4!$B$8:$C$229,2,FALSE) -> 0 | R111: =IF($I111=0,CONCATENATE("ZSCHW_",$H111),VLOOKUP($I111,DRL!$B$4:$G$4400,2,FALSE)) -> ZSCHW_703 | S111: =IF($I111=0,CONCATENATE("ZSCHW_",$H111),VLOOKUP($I111,DRL!$B$4:$G$4400,4,FALSE)) -> ZSCHW_703 | T111: =IF($J111="x",VLOOKUP($I111,Ges_HBSV!$B$4:$AI$255,31,FALSE),999)+$X111 -> 999.0028 | X111: 0.0028
B112: =VLOOKUP(C112,$K$4:$S$83,9,FALSE) ->  | C112: 27 | D112: =VLOOKUP(E112,$K$4:$S$83,9,FALSE) ->  | E112: 26 | F112: =VLOOKUP(G112,$K$4:$S$83,9,FALSE) ->  | G112: 25 | H112: 704 | I112: =Teilnehmer!B174 -> 0 | J112: =VLOOKUP($I112,Spt_1!$B$8:$C$229,2,FALSE) -> 0 | L112: =VLOOKUP($I112,Spt_2!$B$8:$C$229,2,FALSE) -> 0 | N112: =VLOOKUP($I112,Spt_3!$B$8:$C$229,2,FALSE) -> 0 | P112: =VLOOKUP($I112,Spt_4!$B$8:$C$229,2,FALSE) -> 0 | R112: =IF($I112=0,CONCATENATE("ZSCHW_",$H112),VLOOKUP($I112,DRL!$B$4:$G$4400,2,FALSE)) -> ZSCHW_704 | S112: =IF($I112=0,CONCATENATE("ZSCHW_",$H112),VLOOKUP($I112,DRL!$B$4:$G$4400,4,FALSE)) -> ZSCHW_704 | T112: =IF($J112="x",VLOOKUP($I112,Ges_HBSV!$B$4:$AI$255,31,FALSE),999)+$X112 -> 999.0029 | X112: 0.0029
A113: 13. | B113: =VLOOKUP(C113,$K$4:$S$83,8,FALSE) ->  | C113: 24 | D113: =VLOOKUP(E113,$K$4:$S$83,8,FALSE) ->  | E113: 23 | F113: =VLOOKUP(G113,$K$4:$S$83,8,FALSE) ->  | G113: 22 | H113: 705 | I113: =Teilnehmer!B175 -> 0 | J113: =VLOOKUP($I113,Spt_1!$B$8:$C$229,2,FALSE) -> 0 | L113: =VLOOKUP($I113,Spt_2!$B$8:$C$229,2,FALSE) -> 0 | N113: =VLOOKUP($I113,Spt_3!$B$8:$C$229,2,FALSE) -> 0 | P113: =VLOOKUP($I113,Spt_4!$B$8:$C$229,2,FALSE) -> 0 | R113: =IF($I113=0,CONCATENATE("ZSCHW_",$H113),VLOOKUP($I113,DRL!$B$4:$G$4400,2,FALSE)) -> ZSCHW_705 | S113: =IF($I113=0,CONCATENATE("ZSCHW_",$H113),VLOOKUP($I113,DRL!$B$4:$G$4400,4,FALSE)) -> ZSCHW_705 | T113: =IF($J113="x",VLOOKUP($I113,Ges_HBSV!$B$4:$AI$255,31,FALSE),999)+$X113 -> 999.003 | X113: 0.003
B114: =VLOOKUP(C114,$K$4:$S$83,9,FALSE) ->  | C114: 24 | D114: =VLOOKUP(E114,$K$4:$S$83,9,FALSE) ->  | E114: 23 | F114: =VLOOKUP(G114,$K$4:$S$83,9,FALSE) ->  | G114: 22 | H114: 801 | I114: =Teilnehmer!B192 -> 35780 | J114: =VLOOKUP($I114,Spt_1!$B$8:$C$229,2,FALSE) -> 0 | L114: =VLOOKUP($I114,Spt_2!$B$8:$C$229,2,FALSE) -> 0 | N114: =VLOOKUP($I114,Spt_3!$B$8:$C$229,2,FALSE) -> 0 | P114: =VLOOKUP($I114,Spt_4!$B$8:$C$229,2,FALSE) -> 0 | R114: =IF($I114=0,CONCATENATE("ZH_",$H114),VLOOKUP($I114,DRL!$B$4:$G$4400,2,FALSE)) -> Arnold, Mark | S114: =IF($I114=0,CONCATENATE("ZH_",$H114),VLOOKUP($I114,DRL!$B$4:$G$4400,4,FALSE)) -> SG Arheilgen | T114: =IF($J114="x",VLOOKUP($I114,Ges_HBSV!$B$4:$AI$255,31,FALSE),999)+$X114 -> 999.0031 | X114: 0.0031
A115: 14. | B115: =VLOOKUP(C115,$K$4:$S$83,8,FALSE) ->  | C115: 21 | D115: =VLOOKUP(E115,$K$4:$S$83,8,FALSE) ->  | E115: 20 | F115: =VLOOKUP(G115,$K$4:$S$83,8,FALSE) ->  | G115: 19 | H115: 802 | I115: =Teilnehmer!B193 -> 25206 | J115: =VLOOKUP($I115,Spt_1!$B$8:$C$229,2,FALSE) -> 0 | L115: =VLOOKUP($I115,Spt_2!$B$8:$C$229,2,FALSE) -> 0 | N115: =VLOOKUP($I115,Spt_3!$B$8:$C$229,2,FALSE) -> 0 | P115: =VLOOKUP($I115,Spt_4!$B$8:$C$229,2,FALSE) -> 0 | R115: =IF($I115=0,CONCATENATE("ZH_",$H115),VLOOKUP($I115,DRL!$B$4:$G$4400,2,FALSE)) -> Giebenhain, Thomas | S115: =IF($I115=0,CONCATENATE("ZH_",$H115),VLOOKUP($I115,DRL!$B$4:$G$4400,4,FALSE)) -> MSC Bensheim-Auerbach | T115: =IF($J115="x",VLOOKUP($I115,Ges_HBSV!$B$4:$AI$255,31,FALSE),999)+$X115 -> 999.0032 | X115: 0.0032
B116: =VLOOKUP(C116,$K$4:$S$83,9,FALSE) ->  | C116: 21 | D116: =VLOOKUP(E116,$K$4:$S$83,9,FALSE) ->  | E116: 20 | F116: =VLOOKUP(G116,$K$4:$S$83,9,FALSE) ->  | G116: 19 | H116: 803 | I116: =Teilnehmer!B194 -> 68105 | J116: =VLOOKUP($I116,Spt_1!$B$8:$C$229,2,FALSE) -> 0 | L116: =VLOOKUP($I116,Spt_2!$B$8:$C$229,2,FALSE) -> 0 | N116: =VLOOKUP($I116,Spt_3!$B$8:$C$229,2,FALSE) -> 0 | P116: =VLOOKUP($I116,Spt_4!$B$8:$C$229,2,FALSE) -> 0 | R116: =IF($I116=0,CONCATENATE("ZH_",$H116),VLOOKUP($I116,DRL!$B$4:$G$4400,2,FALSE)) -> Haase, Oliver | S116: =IF($I116=0,CONCATENATE("ZH_",$H116),VLOOKUP($I116,DRL!$B$4:$G$4400,4,FALSE)) -> MSC Bensheim-Auerbach | T116: =IF($J116="x",VLOOKUP($I116,Ges_HBSV!$B$4:$AI$255,31,FALSE),999)+$X116 -> 999.0033 | X116: 0.0033
A117: 15. | B117: =VLOOKUP(C117,$K$4:$S$83,8,FALSE) ->  | C117: 18 | D117: =VLOOKUP(E117,$K$4:$S$83,8,FALSE) ->  | E117: 17 | F117: =VLOOKUP(G117,$K$4:$S$83,8,FALSE) ->  | G117: 16 | H117: 804 | I117: =Teilnehmer!B195 -> 67248 | J117: =VLOOKUP($I117,Spt_1!$B$8:$C$229,2,FALSE) -> 0 | L117: =VLOOKUP($I117,Spt_2!$B$8:$C$229,2,FALSE) -> 0 | N117: =VLOOKUP($I117,Spt_3!$B$8:$C$229,2,FALSE) -> 0 | P117: =VLOOKUP($I117,Spt_4!$B$8:$C$229,2,FALSE) -> 0 | R117: =IF($I117=0,CONCATENATE("ZH_",$H117),VLOOKUP($I117,DRL!$B$4:$G$4400,2,FALSE)) -> Hudert, Luca | S117: =IF($I117=0,CONCATENATE("ZH_",$H117),VLOOKUP($I117,DRL!$B$4:$G$4400,4,FALSE)) -> BGSV Bad Homburg | T117: =IF($J117="x",VLOOKUP($I117,Ges_HBSV!$B$4:$AI$255,31,FALSE),999)+$X117 -> 999.0034 | X117: 0.0034
B118: =VLOOKUP(C118,$K$4:$S$83,9,FALSE) ->  | C118: 18 | D118: =VLOOKUP(E118,$K$4:$S$83,9,FALSE) ->  | E118: 17 | F118: =VLOOKUP(G118,$K$4:$S$83,9,FALSE) ->  | G118: 16 | H118: 805 | I118: =Teilnehmer!B196 -> 67792 | J118: =VLOOKUP($I118,Spt_1!$B$8:$C$229,2,FALSE) -> 0 | L118: =VLOOKUP($I118,Spt_2!$B$8:$C$229,2,FALSE) -> 0 | N118: =VLOOKUP($I118,Spt_3!$B$8:$C$229,2,FALSE) -> 0 | P118: =VLOOKUP($I118,Spt_4!$B$8:$C$229,2,FALSE) -> 0 | R118: =IF($I118=0,CONCATENATE("ZH_",$H118),VLOOKUP($I118,DRL!$B$4:$G$4400,2,FALSE)) -> Joch, Niklas | S118: =IF($I118=0,CONCATENATE("ZH_",$H118),VLOOKUP($I118,DRL!$B$4:$G$4400,4,FALSE)) -> MSC Bensheim-Auerbach | T118: =IF($J118="x",VLOOKUP($I118,Ges_HBSV!$B$4:$AI$255,31,FALSE),999)+$X118 -> 999.0035 | X118: 0.0035
A119: 16. | B119: =VLOOKUP(C119,$K$4:$S$83,8,FALSE) ->  | C119: 15 | D119: =VLOOKUP(E119,$K$4:$S$83,8,FALSE) ->  | E119: 14 | F119: =VLOOKUP(G119,$K$4:$S$83,8,FALSE) ->  | G119: 13 | H119: 806 | I119: =Teilnehmer!B197 -> 65955 | J119: =VLOOKUP($I119,Spt_1!$B$8:$C$229,2,FALSE) -> 0 | L119: =VLOOKUP($I119,Spt_2!$B$8:$C$229,2,FALSE) -> 0 | N119: =VLOOKUP($I119,Spt_3!$B$8:$C$229,2,FALSE) -> 0 | P119: =VLOOKUP($I119,Spt_4!$B$8:$C$229,2,FALSE) -> 0 | R119: =IF($I119=0,CONCATENATE("ZH_",$H119),VLOOKUP($I119,DRL!$B$4:$G$4400,2,FALSE)) -> Klotz, Sascha | S119: =IF($I119=0,CONCATENATE("ZH_",$H119),VLOOKUP($I119,DRL!$B$4:$G$4400,4,FALSE)) -> BGSV Aßlar | T119: =IF($J119="x",VLOOKUP($I119,Ges_HBSV!$B$4:$AI$255,31,FALSE),999)+$X119 -> 999.0036 | X119: 0.0036
B120: =VLOOKUP(C120,$K$4:$S$83,9,FALSE) ->  | C120: 15 | D120: =VLOOKUP(E120,$K$4:$S$83,9,FALSE) ->  | E120: 14 | F120: =VLOOKUP(G120,$K$4:$S$83,9,FALSE) ->  | G120: 13 | H120: 807 | I120: =Teilnehmer!B198 -> 67381 | J120: =VLOOKUP($I120,Spt_1!$B$8:$C$229,2,FALSE) -> 0 | L120: =VLOOKUP($I120,Spt_2!$B$8:$C$229,2,FALSE) -> 0 | N120: =VLOOKUP($I120,Spt_3!$B$8:$C$229,2,FALSE) -> 0 | P120: =VLOOKUP($I120,Spt_4!$B$8:$C$229,2,FALSE) -> 0 | R120: =IF($I120=0,CONCATENATE("ZH_",$H120),VLOOKUP($I120,DRL!$B$4:$G$4400,2,FALSE)) -> Koch, Dennis | S120: =IF($I120=0,CONCATENATE("ZH_",$H120),VLOOKUP($I120,DRL!$B$4:$G$4400,4,FALSE)) -> BGSV Bad Homburg | T120: =IF($J120="x",VLOOKUP($I120,Ges_HBSV!$B$4:$AI$255,31,FALSE),999)+$X120 -> 999.0037 | X120: 0.0037
A121: 17. | B121: =VLOOKUP(C121,$K$4:$S$83,8,FALSE) ->  | C121: 12 | D121: =VLOOKUP(E121,$K$4:$S$83,8,FALSE) ->  | E121: 11 | F121: =VLOOKUP(G121,$K$4:$S$83,8,FALSE) ->  | G121: 10 | H121: 808 | I121: =Teilnehmer!B199 -> 67612 | J121: =VLOOKUP($I121,Spt_1!$B$8:$C$229,2,FALSE) -> 0 | L121: =VLOOKUP($I121,Spt_2!$B$8:$C$229,2,FALSE) -> 0 | N121: =VLOOKUP($I121,Spt_3!$B$8:$C$229,2,FALSE) -> 0 | P121: =VLOOKUP($I121,Spt_4!$B$8:$C$229,2,FALSE) -> 0 | R121: =IF($I121=0,CONCATENATE("ZH_",$H121),VLOOKUP($I121,DRL!$B$4:$G$4400,2,FALSE)) -> Mähler, Rudolf | S121: =IF($I121=0,CONCATENATE("ZH_",$H121),VLOOKUP($I121,DRL!$B$4:$G$4400,4,FALSE)) -> SG Arheilgen | T121: =IF($J121="x",VLOOKUP($I121,Ges_HBSV!$B$4:$AI$255,31,FALSE),999)+$X121 -> 999.0038 | X121: 0.0038
B122: =VLOOKUP(C122,$K$4:$S$83,9,FALSE) ->  | C122: 12 | D122: =VLOOKUP(E122,$K$4:$S$83,9,FALSE) ->  | E122: 11 | F122: =VLOOKUP(G122,$K$4:$S$83,9,FALSE) ->  | G122: 10 | H122: 809 | I122: =Teilnehmer!B200 -> 67730 | J122: =VLOOKUP($I122,Spt_1!$B$8:$C$229,2,FALSE) -> 0 | L122: =VLOOKUP($I122,Spt_2!$B$8:$C$229,2,FALSE) -> 0 | N122: =VLOOKUP($I122,Spt_3!$B$8:$C$229,2,FALSE) -> 0 | P122: =VLOOKUP($I122,Spt_4!$B$8:$C$229,2,FALSE) -> 0 | R122: =IF($I122=0,CONCATENATE("ZH_",$H122),VLOOKUP($I122,DRL!$B$4:$G$4400,2,FALSE)) -> Mally, Brain | S122: =IF($I122=0,CONCATENATE("ZH_",$H122),VLOOKUP($I122,DRL!$B$4:$G$4400,4,FALSE)) -> MSC Bensheim-Auerbach | T122: =IF($J122="x",VLOOKUP($I122,Ges_HBSV!$B$4:$AI$255,31,FALSE),999)+$X122 -> 999.0039 | X122: 0.0039
A123: 18. | B123: =VLOOKUP(C123,$K$4:$S$83,8,FALSE) ->  | C123: 9 | D123: =VLOOKUP(E123,$K$4:$S$83,8,FALSE) ->  | E123: 8 | F123: =VLOOKUP(G123,$K$4:$S$83,8,FALSE) ->  | G123: 7 | H123: 810 | I123: =Teilnehmer!B201 -> 38005 | J123: =VLOOKUP($I123,Spt_1!$B$8:$C$229,2,FALSE) -> 0 | L123: =VLOOKUP($I123,Spt_2!$B$8:$C$229,2,FALSE) -> 0 | N123: =VLOOKUP($I123,Spt_3!$B$8:$C$229,2,FALSE) -> 0 | P123: =VLOOKUP($I123,Spt_4!$B$8:$C$229,2,FALSE) -> 0 | R123: =IF($I123=0,CONCATENATE("ZH_",$H123),VLOOKUP($I123,DRL!$B$4:$G$4400,2,FALSE)) -> Nickel, Dustin | S123: =IF($I123=0,CONCATENATE("ZH_",$H123),VLOOKUP($I123,DRL!$B$4:$G$4400,4,FALSE)) -> MGC Wetzlar | T123: =IF($J123="x",VLOOKUP($I123,Ges_HBSV!$B$4:$AI$255,31,FALSE),999)+$X123 -> 999.004 | X123: 0.004
B124: =VLOOKUP(C124,$K$4:$S$83,9,FALSE) ->  | C124: 9 | D124: =VLOOKUP(E124,$K$4:$S$83,9,FALSE) ->  | E124: 8 | F124: =VLOOKUP(G124,$K$4:$S$83,9,FALSE) ->  | G124: 7 | H124: 811 | I124: =Teilnehmer!B202 -> 26809 | J124: =VLOOKUP($I124,Spt_1!$B$8:$C$229,2,FALSE) -> 0 | L124: =VLOOKUP($I124,Spt_2!$B$8:$C$229,2,FALSE) -> 0 | N124: =VLOOKUP($I124,Spt_3!$B$8:$C$229,2,FALSE) -> 0 | P124: =VLOOKUP($I124,Spt_4!$B$8:$C$229,2,FALSE) -> 0 | R124: =IF($I124=0,CONCATENATE("ZH_",$H124),VLOOKUP($I124,DRL!$B$4:$G$4400,2,FALSE)) -> Pester, Manfred | S124: =IF($I124=0,CONCATENATE("ZH_",$H124),VLOOKUP($I124,DRL!$B$4:$G$4400,4,FALSE)) -> TSV Pfungstadt | T124: =IF($J124="x",VLOOKUP($I124,Ges_HBSV!$B$4:$AI$255,31,FALSE),999)+$X124 -> 999.0041 | X124: 0.0041
A125: 19. | B125: =VLOOKUP(C125,$K$4:$S$83,8,FALSE) ->  | C125: 6 | D125: =VLOOKUP(E125,$K$4:$S$83,8,FALSE) ->  | E125: 5 | F125: =VLOOKUP(G125,$K$4:$S$83,8,FALSE) ->  | G125: 4 | H125: 812 | I125: =Teilnehmer!B203 -> 66410 | J125: =VLOOKUP($I125,Spt_1!$B$8:$C$229,2,FALSE) -> 0 | L125: =VLOOKUP($I125,Spt_2!$B$8:$C$229,2,FALSE) -> 0 | N125: =VLOOKUP($I125,Spt_3!$B$8:$C$229,2,FALSE) -> 0 | P125: =VLOOKUP($I125,Spt_4!$B$8:$C$229,2,FALSE) -> 0 | R125: =IF($I125=0,CONCATENATE("ZH_",$H125),VLOOKUP($I125,DRL!$B$4:$G$4400,2,FALSE)) -> Rinker, Lukas | S125: =IF($I125=0,CONCATENATE("ZH_",$H125),VLOOKUP($I125,DRL!$B$4:$G$4400,4,FALSE)) -> MGC Wetzlar | T125: =IF($J125="x",VLOOKUP($I125,Ges_HBSV!$B$4:$AI$255,31,FALSE),999)+$X125 -> 999.0042 | X125: 0.0042
B126: =VLOOKUP(C126,$K$4:$S$83,9,FALSE) ->  | C126: 6 | D126: =VLOOKUP(E126,$K$4:$S$83,9,FALSE) ->  | E126: 5 | F126: =VLOOKUP(G126,$K$4:$S$83,9,FALSE) ->  | G126: 4 | H126: 813 | I126: =Teilnehmer!B204 -> 67042 | J126: =VLOOKUP($I126,Spt_1!$B$8:$C$229,2,FALSE) -> 0 | L126: =VLOOKUP($I126,Spt_2!$B$8:$C$229,2,FALSE) -> 0 | N126: =VLOOKUP($I126,Spt_3!$B$8:$C$229,2,FALSE) -> 0 | P126: =VLOOKUP($I126,Spt_4!$B$8:$C$229,2,FALSE) -> 0 | R126: =IF($I126=0,CONCATENATE("ZH_",$H126),VLOOKUP($I126,DRL!$B$4:$G$4400,2,FALSE)) -> Stübiger, Connor | S126: =IF($I126=0,CONCATENATE("ZH_",$H126),VLOOKUP($I126,DRL!$B$4:$G$4400,4,FALSE)) -> BGSV Aßlar | T126: =IF($J126="x",VLOOKUP($I126,Ges_HBSV!$B$4:$AI$255,31,FALSE),999)+$X126 -> 999.0043 | X126: 0.0043
A127: 20. | B127: =VLOOKUP(C127,$K$4:$S$83,8,FALSE) ->  | C127: 3 | D127: =VLOOKUP(E127,$K$4:$S$83,8,FALSE) ->  | E127: 2 | F127: =VLOOKUP(G127,$K$4:$S$83,8,FALSE) ->  | G127: 1 | H127: 814 | I127: =Teilnehmer!B205 -> 38201 | J127: =VLOOKUP($I127,Spt_1!$B$8:$C$229,2,FALSE) -> 0 | L127: =VLOOKUP($I127,Spt_2!$B$8:$C$229,2,FALSE) -> 0 | N127: =VLOOKUP($I127,Spt_3!$B$8:$C$229,2,FALSE) -> 0 | P127: =VLOOKUP($I127,Spt_4!$B$8:$C$229,2,FALSE) -> 0 | R127: =IF($I127=0,CONCATENATE("ZH_",$H127),VLOOKUP($I127,DRL!$B$4:$G$4400,2,FALSE)) -> Winter, Simon Leon | S127: =IF($I127=0,CONCATENATE("ZH_",$H127),VLOOKUP($I127,DRL!$B$4:$G$4400,4,FALSE)) -> MGC Wetzlar | T127: =IF($J127="x",VLOOKUP($I127,Ges_HBSV!$B$4:$AI$255,31,FALSE),999)+$X127 -> 999.0044 | X127: 0.0044
B128: =VLOOKUP(C128,$K$4:$S$83,9,FALSE) ->  | C128: 3 | D128: =VLOOKUP(E128,$K$4:$S$83,9,FALSE) ->  | E128: 2 | F128: =VLOOKUP(G128,$K$4:$S$83,9,FALSE) ->  | G128: 1 | H128: 815 | I128: =Teilnehmer!B206 -> 66515 | J128: =VLOOKUP($I128,Spt_1!$B$8:$C$229,2,FALSE) -> 0 | L128: =VLOOKUP($I128,Spt_2!$B$8:$C$229,2,FALSE) -> 0 | N128: =VLOOKUP($I128,Spt_3!$B$8:$C$229,2,FALSE) -> 0 | P128: =VLOOKUP($I128,Spt_4!$B$8:$C$229,2,FALSE) -> 0 | R128: =IF($I128=0,CONCATENATE("ZH_",$H128),VLOOKUP($I128,DRL!$B$4:$G$4400,2,FALSE)) -> Wonka, Hans Joachim | S128: =IF($I128=0,CONCATENATE("ZH_",$H128),VLOOKUP($I128,DRL!$B$4:$G$4400,4,FALSE)) -> TSV Pfungstadt | T128: =IF($J128="x",VLOOKUP($I128,Ges_HBSV!$B$4:$AI$255,31,FALSE),999)+$X128 -> 999.0045 | X128: 0.0045
H129: 816 | I129: =Teilnehmer!B207 -> 0 | J129: =VLOOKUP($I129,Spt_1!$B$8:$C$229,2,FALSE) -> 0 | L129: =VLOOKUP($I129,Spt_2!$B$8:$C$229,2,FALSE) -> 0 | N129: =VLOOKUP($I129,Spt_3!$B$8:$C$229,2,FALSE) -> 0 | P129: =VLOOKUP($I129,Spt_4!$B$8:$C$229,2,FALSE) -> 0 | R129: =IF($I129=0,CONCATENATE("ZH_",$H129),VLOOKUP($I129,DRL!$B$4:$G$4400,2,FALSE)) -> ZH_816 | S129: =IF($I129=0,CONCATENATE("ZH_",$H129),VLOOKUP($I129,DRL!$B$4:$G$4400,4,FALSE)) -> ZH_816 | T129: =IF($J129="x",VLOOKUP($I129,Ges_HBSV!$B$4:$AI$255,31,FALSE),999)+$X129 -> 999.0046 | X129: 0.0046
H130: 817 | I130: =Teilnehmer!B208 -> 0 | J130: =VLOOKUP($I130,Spt_1!$B$8:$C$229,2,FALSE) -> 0 | L130: =VLOOKUP($I130,Spt_2!$B$8:$C$229,2,FALSE) -> 0 | N130: =VLOOKUP($I130,Spt_3!$B$8:$C$229,2,FALSE) -> 0 | P130: =VLOOKUP($I130,Spt_4!$B$8:$C$229,2,FALSE) -> 0 | R130: =IF($I130=0,CONCATENATE("ZH_",$H130),VLOOKUP($I130,DRL!$B$4:$G$4400,2,FALSE)) -> ZH_817 | S130: =IF($I130=0,CONCATENATE("ZH_",$H130),VLOOKUP($I130,DRL!$B$4:$G$4400,4,FALSE)) -> ZH_817 | T130: =IF($J130="x",VLOOKUP($I130,Ges_HBSV!$B$4:$AI$255,31,FALSE),999)+$X130 -> 999.0047 | X130: 0.0047
H131: 818 | I131: =Teilnehmer!B209 -> 0 | J131: =VLOOKUP($I131,Spt_1!$B$8:$C$229,2,FALSE) -> 0 | L131: =VLOOKUP($I131,Spt_2!$B$8:$C$229,2,FALSE) -> 0 | N131: =VLOOKUP($I131,Spt_3!$B$8:$C$229,2,FALSE) -> 0 | P131: =VLOOKUP($I131,Spt_4!$B$8:$C$229,2,FALSE) -> 0 | R131: =IF($I131=0,CONCATENATE("ZH_",$H131),VLOOKUP($I131,DRL!$B$4:$G$4400,2,FALSE)) -> ZH_818 | S131: =IF($I131=0,CONCATENATE("ZH_",$H131),VLOOKUP($I131,DRL!$B$4:$G$4400,4,FALSE)) -> ZH_818 | T131: =IF($J131="x",VLOOKUP($I131,Ges_HBSV!$B$4:$AI$255,31,FALSE),999)+$X131 -> 999.0048 | X131: 0.0048
H132: 819 | I132: =Teilnehmer!B210 -> 0 | J132: =VLOOKUP($I132,Spt_1!$B$8:$C$229,2,FALSE) -> 0 | L132: =VLOOKUP($I132,Spt_2!$B$8:$C$229,2,FALSE) -> 0 | N132: =VLOOKUP($I132,Spt_3!$B$8:$C$229,2,FALSE) -> 0 | P132: =VLOOKUP($I132,Spt_4!$B$8:$C$229,2,FALSE) -> 0 | R132: =IF($I132=0,CONCATENATE("ZH_",$H132),VLOOKUP($I132,DRL!$B$4:$G$4400,2,FALSE)) -> ZH_819 | S132: =IF($I132=0,CONCATENATE("ZH_",$H132),VLOOKUP($I132,DRL!$B$4:$G$4400,4,FALSE)) -> ZH_819 | T132: =IF($J132="x",VLOOKUP($I132,Ges_HBSV!$B$4:$AI$255,31,FALSE),999)+$X132 -> 999.0049 | X132: 0.0049
H133: 820 | I133: =Teilnehmer!B211 -> 0 | J133: =VLOOKUP($I133,Spt_1!$B$8:$C$229,2,FALSE) -> 0 | L133: =VLOOKUP($I133,Spt_2!$B$8:$C$229,2,FALSE) -> 0 | N133: =VLOOKUP($I133,Spt_3!$B$8:$C$229,2,FALSE) -> 0 | P133: =VLOOKUP($I133,Spt_4!$B$8:$C$229,2,FALSE) -> 0 | R133: =IF($I133=0,CONCATENATE("ZH_",$H133),VLOOKUP($I133,DRL!$B$4:$G$4400,2,FALSE)) -> ZH_820 | S133: =IF($I133=0,CONCATENATE("ZH_",$H133),VLOOKUP($I133,DRL!$B$4:$G$4400,4,FALSE)) -> ZH_820 | T133: =IF($J133="x",VLOOKUP($I133,Ges_HBSV!$B$4:$AI$255,31,FALSE),999)+$X133 -> 999.005 | X133: 0.005
H134: 901 | I134: =Teilnehmer!B220 -> 67789 | J134: =VLOOKUP($I134,Spt_1!$B$8:$C$229,2,FALSE) -> 0 | L134: =VLOOKUP($I134,Spt_2!$B$8:$C$229,2,FALSE) -> 0 | N134: =VLOOKUP($I134,Spt_3!$B$8:$C$229,2,FALSE) -> 0 | P134: =VLOOKUP($I134,Spt_4!$B$8:$C$229,2,FALSE) -> 0 | R134: =IF($I134=0,CONCATENATE("ZD_",$H134),VLOOKUP($I134,DRL!$B$4:$G$4400,2,FALSE)) -> Hawryluk, Stefanie | S134: =IF($I134=0,CONCATENATE("ZD_",$H134),VLOOKUP($I134,DRL!$B$4:$G$4400,4,FALSE)) -> BGSV Aßlar | T134: =IF($J134="x",VLOOKUP($I134,Ges_HBSV!$B$4:$AI$255,31,FALSE),999)+$X134 -> 999.0051 | X134: 0.0051
H135: 902 | I135: =Teilnehmer!B221 -> 42429 | J135: =VLOOKUP($I135,Spt_1!$B$8:$C$229,2,FALSE) -> 0 | L135: =VLOOKUP($I135,Spt_2!$B$8:$C$229,2,FALSE) -> 0 | N135: =VLOOKUP($I135,Spt_3!$B$8:$C$229,2,FALSE) -> 0 | P135: =VLOOKUP($I135,Spt_4!$B$8:$C$229,2,FALSE) -> 0 | R135: =IF($I135=0,CONCATENATE("ZD_",$H135),VLOOKUP($I135,DRL!$B$4:$G$4400,2,FALSE)) -> Krumay, Patricia | S135: =IF($I135=0,CONCATENATE("ZD_",$H135),VLOOKUP($I135,DRL!$B$4:$G$4400,4,FALSE)) -> TSV Pfungstadt | T135: =IF($J135="x",VLOOKUP($I135,Ges_HBSV!$B$4:$AI$255,31,FALSE),999)+$X135 -> 999.0052 | X135: 0.0052
H136: 903 | I136: =Teilnehmer!B222 -> 67347 | J136: =VLOOKUP($I136,Spt_1!$B$8:$C$229,2,FALSE) -> 0 | L136: =VLOOKUP($I136,Spt_2!$B$8:$C$229,2,FALSE) -> 0 | N136: =VLOOKUP($I136,Spt_3!$B$8:$C$229,2,FALSE) -> 0 | P136: =VLOOKUP($I136,Spt_4!$B$8:$C$229,2,FALSE) -> 0 | R136: =IF($I136=0,CONCATENATE("ZD_",$H136),VLOOKUP($I136,DRL!$B$4:$G$4400,2,FALSE)) -> Schüßler, Jana | S136: =IF($I136=0,CONCATENATE("ZD_",$H136),VLOOKUP($I136,DRL!$B$4:$G$4400,4,FALSE)) -> MSC Bensheim-Auerbach | T136: =IF($J136="x",VLOOKUP($I136,Ges_HBSV!$B$4:$AI$255,31,FALSE),999)+$X136 -> 999.0053 | X136: 0.0053
H137: 904 | I137: =Teilnehmer!B223 -> 0 | J137: =VLOOKUP($I137,Spt_1!$B$8:$C$229,2,FALSE) -> 0 | L137: =VLOOKUP($I137,Spt_2!$B$8:$C$229,2,FALSE) -> 0 | N137: =VLOOKUP($I137,Spt_3!$B$8:$C$229,2,FALSE) -> 0 | P137: =VLOOKUP($I137,Spt_4!$B$8:$C$229,2,FALSE) -> 0 | R137: =IF($I137=0,CONCATENATE("ZD_",$H137),VLOOKUP($I137,DRL!$B$4:$G$4400,2,FALSE)) -> ZD_904 | S137: =IF($I137=0,CONCATENATE("ZD_",$H137),VLOOKUP($I137,DRL!$B$4:$G$4400,4,FALSE)) -> ZD_904 | T137: =IF($J137="x",VLOOKUP($I137,Ges_HBSV!$B$4:$AI$255,31,FALSE),999)+$X137 -> 999.0054 | X137: 0.0054
H138: 905 | I138: =Teilnehmer!B224 -> 0 | J138: =VLOOKUP($I138,Spt_1!$B$8:$C$229,2,FALSE) -> 0 | L138: =VLOOKUP($I138,Spt_2!$B$8:$C$229,2,FALSE) -> 0 | N138: =VLOOKUP($I138,Spt_3!$B$8:$C$229,2,FALSE) -> 0 | P138: =VLOOKUP($I138,Spt_4!$B$8:$C$229,2,FALSE) -> 0 | R138: =IF($I138=0,CONCATENATE("ZD_",$H138),VLOOKUP($I138,DRL!$B$4:$G$4400,2,FALSE)) -> ZD_905 | S138: =IF($I138=0,CONCATENATE("ZD_",$H138),VLOOKUP($I138,DRL!$B$4:$G$4400,4,FALSE)) -> ZD_905 | T138: =IF($J138="x",VLOOKUP($I138,Ges_HBSV!$B$4:$AI$255,31,FALSE),999)+$X138 -> 999.0055 | X138: 0.0055
H139: 906 | I139: =Teilnehmer!B225 -> 0 | J139: =VLOOKUP($I139,Spt_1!$B$8:$C$229,2,FALSE) -> 0 | L139: =VLOOKUP($I139,Spt_2!$B$8:$C$229,2,FALSE) -> 0 | N139: =VLOOKUP($I139,Spt_3!$B$8:$C$229,2,FALSE) -> 0 | P139: =VLOOKUP($I139,Spt_4!$B$8:$C$229,2,FALSE) -> 0 | R139: =IF($I139=0,CONCATENATE("ZD_",$H139),VLOOKUP($I139,DRL!$B$4:$G$4400,2,FALSE)) -> ZD_906 | S139: =IF($I139=0,CONCATENATE("ZD_",$H139),VLOOKUP($I139,DRL!$B$4:$G$4400,4,FALSE)) -> ZD_906 | T139: =IF($J139="x",VLOOKUP($I139,Ges_HBSV!$B$4:$AI$255,31,FALSE),999)+$X139 -> 999.0056 | X139: 0.0056
H140: 907 | I140: =Teilnehmer!B226 -> 0 | J140: =VLOOKUP($I140,Spt_1!$B$8:$C$229,2,FALSE) -> 0 | L140: =VLOOKUP($I140,Spt_2!$B$8:$C$229,2,FALSE) -> 0 | N140: =VLOOKUP($I140,Spt_3!$B$8:$C$229,2,FALSE) -> 0 | P140: =VLOOKUP($I140,Spt_4!$B$8:$C$229,2,FALSE) -> 0 | R140: =IF($I140=0,CONCATENATE("ZD_",$H140),VLOOKUP($I140,DRL!$B$4:$G$4400,2,FALSE)) -> ZD_907 | S140: =IF($I140=0,CONCATENATE("ZD_",$H140),VLOOKUP($I140,DRL!$B$4:$G$4400,4,FALSE)) -> ZD_907 | T140: =IF($J140="x",VLOOKUP($I140,Ges_HBSV!$B$4:$AI$255,31,FALSE),999)+$X140 -> 999.0057 | X140: 0.0057
H141: 908 | I141: =Teilnehmer!B227 -> 0 | J141: =VLOOKUP($I141,Spt_1!$B$8:$C$229,2,FALSE) -> 0 | L141: =VLOOKUP($I141,Spt_2!$B$8:$C$229,2,FALSE) -> 0 | N141: =VLOOKUP($I141,Spt_3!$B$8:$C$229,2,FALSE) -> 0 | P141: =VLOOKUP($I141,Spt_4!$B$8:$C$229,2,FALSE) -> 0 | R141: =IF($I141=0,CONCATENATE("ZD_",$H141),VLOOKUP($I141,DRL!$B$4:$G$4400,2,FALSE)) -> ZD_908 | S141: =IF($I141=0,CONCATENATE("ZD_",$H141),VLOOKUP($I141,DRL!$B$4:$G$4400,4,FALSE)) -> ZD_908 | T141: =IF($J141="x",VLOOKUP($I141,Ges_HBSV!$B$4:$AI$255,31,FALSE),999)+$X141 -> 999.0058 | X141: 0.0058
H142: 909 | I142: =Teilnehmer!B228 -> 0 | J142: =VLOOKUP($I142,Spt_1!$B$8:$C$229,2,FALSE) -> 0 | L142: =VLOOKUP($I142,Spt_2!$B$8:$C$229,2,FALSE) -> 0 | N142: =VLOOKUP($I142,Spt_3!$B$8:$C$229,2,FALSE) -> 0 | P142: =VLOOKUP($I142,Spt_4!$B$8:$C$229,2,FALSE) -> 0 | R142: =IF($I142=0,CONCATENATE("ZD_",$H142),VLOOKUP($I142,DRL!$B$4:$G$4400,2,FALSE)) -> ZD_909 | S142: =IF($I142=0,CONCATENATE("ZD_",$H142),VLOOKUP($I142,DRL!$B$4:$G$4400,4,FALSE)) -> ZD_909 | T142: =IF($J142="x",VLOOKUP($I142,Ges_HBSV!$B$4:$AI$255,31,FALSE),999)+$X142 -> 999.0059 | X142: 0.0059
H143: 910 | I143: =Teilnehmer!B229 -> 0 | J143: =VLOOKUP($I143,Spt_1!$B$8:$C$229,2,FALSE) -> 0 | L143: =VLOOKUP($I143,Spt_2!$B$8:$C$229,2,FALSE) -> 0 | N143: =VLOOKUP($I143,Spt_3!$B$8:$C$229,2,FALSE) -> 0 | P143: =VLOOKUP($I143,Spt_4!$B$8:$C$229,2,FALSE) -> 0 | R143: =IF($I143=0,CONCATENATE("ZD_",$H143),VLOOKUP($I143,DRL!$B$4:$G$4400,2,FALSE)) -> ZD_910 | S143: =IF($I143=0,CONCATENATE("ZD_",$H143),VLOOKUP($I143,DRL!$B$4:$G$4400,4,FALSE)) -> ZD_910 | T143: =IF($J143="x",VLOOKUP($I143,Ges_HBSV!$B$4:$AI$255,31,FALSE),999)+$X143 -> 999.006 | X143: 0.006

Sheet Startliste (hidden)
C1: Spieltag: | E1: 1
B2: =CONCATENATE(Teilnehmer!E2," ",Teilnehmer!G2) -> Senioren-Rangliste 2024
B3: =CONCATENATE(E1,". Spieltag in ",VLOOKUP($E$1,Teilnehmer!$M$8:$N$13,2,FALSE)," am ") -> 1. Spieltag in Pfungstadt am | G3: =VLOOKUP(E1,Teilnehmer!$M$8:$P$11,4,FALSE) -> 2024-03-24
B5: Schiedsgericht
B7: OS: | C7: Name OS | E7: BGSV Bad Homburg
B8: S: | C8: Name S1 | E8: TSV Pfungstadt
B9: S: | C9: Name S2 | E9: BGSV Aßlar
B11: TL: | C11: Name TL | E11: MGC Wetzlar
A13: Start- bahn | B13: Start gruppe | E13: Startliste | H13: 9 Mannschaften
E14: Massenstart
A15: 17 | B15: 1. | C15: Einzelspieler 1 | E15: Einzelspieler 2 | G15: Einzelspieler 3
C16: Verein Einzelsp 1 | E16: Verein Einzelsp 2 | G16: Verein Einzelsp 3
A17: 15 | B17: 2. | C17: Einzelspieler 4 | E17: Einzelspieler 5 | G17: Einzelspieler 6
C18: Verein Einzelsp 4 | E18: Verein Einzelsp 5 | G18: Verein Einzelsp 6 | M18: Aktuelle Mannschaftsaufstellung | Q18: Spt_1 | U18: Spt_2 | Y18: Spt_3 | AC18: Spt_4
A19: 13 | B19: 3. | C19: Einzelspieler 7 | E19: Einzelspieler 8 | G19: Einzelspieler 9 | J19: Tabelle nach letztem Spieltag | L19: Kürzel | M19: 1 | N19: 2 | O19: 3 | P19: 4 | Q19: 1 | R19: 2 | S19: 3 | T19: 4 | U19: 1 | V19: 2 | W19: 3 | X19: 4 | Y19: 1 | Z19: 2 | AA19: 3 | AB19: 4 | AC19: 1 | AD19: 2 | AE19: 3 | AF19: 4
C20: Verein Einzelsp 7 | E20: Verein Einzelsp 8 | G20: Verein Einzelsp 9
A21: 11 | B21: 4. | C21: Einzelspieler 10 | E21: Einzelspieler 11 | G21: Einzelspieler 12 | J21: 1 | K21: =IF($E$1=2,M_1!M6,IF($E$1=3,M_2!M6,IF($E$1=4,M_3!M6,K2))) -> 0 | L21: =VLOOKUP($K21,Teilnehmer!$J$8:$K$23,2,FALSE) ->  | M21: =IF($E$1=1,Q21,IF($E$1=2,U21,IF($E$1=3,Y21,IF($E$1=4,AC21,"")))) ->  | Q21: =VLOOKUP(CONCATENATE($L21,Q$19),Spt_1!$C$8:$H$130,3,FALSE) ->  | R21: =VLOOKUP(CONCATENATE($L21,R$19),Spt_1!$C$8:$H$130,3,FALSE) ->  | S21: =VLOOKUP(CONCATENATE($L21,S$19),Spt_1!$C$8:$H$130,3,FALSE) ->  | T21: =VLOOKUP(CONCATENATE($L21,T$19),Spt_1!$C$8:$H$130,3,FALSE) ->  | U21: =VLOOKUP(CONCATENATE($L21,U$19),Spt_2!$C$8:$H$130,3,FALSE) ->  | V21: =VLOOKUP(CONCATENATE($L21,V$19),Spt_2!$C$8:$H$130,3,FALSE) ->  | W21: =VLOOKUP(CONCATENATE($L21,W$19),Spt_2!$C$8:$H$130,3,FALSE) ->  | X21: =VLOOKUP(CONCATENATE($L21,X$19),Spt_2!$C$8:$H$130,3,FALSE) ->  | Y21: =VLOOKUP(CONCATENATE($L21,Y$19),Spt_3!$C$8:$H$129,3,FALSE) ->  | Z21: =VLOOKUP(CONCATENATE($L21,Z$19),Spt_3!$C$8:$H$129,3,FALSE) ->  | AA21: =VLOOKUP(CONCATENATE($L21,AA$19),Spt_3!$C$8:$H$129,3,FALSE) ->  | AB21: =VLOOKUP(CONCATENATE($L21,AB$19),Spt_3!$C$8:$H$129,3,FALSE) ->  | AC21: =VLOOKUP(CONCATENATE($L21,AC$19),Spt_4!$C$8:$H$129,3,FALSE) ->  | AD21: =VLOOKUP(CONCATENATE($L21,AD$19),Spt_4!$C$8:$H$129,3,FALSE) ->  | AE21: =VLOOKUP(CONCATENATE($L21,AE$19),Spt_4!$C$8:$H$129,3,FALSE) ->  | AF21: =VLOOKUP(CONCATENATE($L21,AF$19),Spt_4!$C$8:$H$129,3,FALSE) -> 
C22: Verein Einzelsp 10 | E22: Verein Einzelsp 11 | G22: Verein Einzelsp 12
A23: 9 | B23: 5. | C23: Einzelspieler 13 | E23: Einzelspieler 14 | G23: Einzelspieler 15 | J23: 2 | K23: =IF($E$1=2,M_1!M7,IF($E$1=3,M_2!M7,IF($E$1=4,M_3!M7,K3))) -> 0 | L23: =VLOOKUP($K23,Teilnehmer!$J$8:$K$23,2,FALSE) ->  | Q23: =VLOOKUP(CONCATENATE($L23,Q$19),Spt_1!$C$8:$H$130,3,FALSE) ->  | R23: =VLOOKUP(CONCATENATE($L23,R$19),Spt_1!$C$8:$H$130,3,FALSE) ->  | S23: =VLOOKUP(CONCATENATE($L23,S$19),Spt_1!$C$8:$H$130,3,FALSE) ->  | T23: =VLOOKUP(CONCATENATE($L23,T$19),Spt_1!$C$8:$H$130,3,FALSE) ->  | U23: =VLOOKUP(CONCATENATE($L23,U$19),Spt_2!$C$8:$H$130,3,FALSE) ->  | V23: =VLOOKUP(CONCATENATE($L23,V$19),Spt_2!$C$8:$H$130,3,FALSE) ->  | W23: =VLOOKUP(CONCATENATE($L23,W$19),Spt_2!$C$8:$H$130,3,FALSE) ->  | X23: =VLOOKUP(CONCATENATE($L23,X$19),Spt_2!$C$8:$H$130,3,FALSE) ->  | Y23: =VLOOKUP(CONCATENATE($L23,Y$19),Spt_3!$C$8:$H$129,3,FALSE) ->  | Z23: =VLOOKUP(CONCATENATE($L23,Z$19),Spt_3!$C$8:$H$129,3,FALSE) ->  | AA23: =VLOOKUP(CONCATENATE($L23,AA$19),Spt_3!$C$8:$H$129,3,FALSE) ->  | AB23: =VLOOKUP(CONCATENATE($L23,AB$19),Spt_3!$C$8:$H$129,3,FALSE) ->  | AC23: =VLOOKUP(CONCATENATE($L23,AC$19),Spt_4!$C$8:$H$129,3,FALSE) ->  | AD23: =VLOOKUP(CONCATENATE($L23,AD$19),Spt_4!$C$8:$H$129,3,FALSE) ->  | AE23: =VLOOKUP(CONCATENATE($L23,AE$19),Spt_4!$C$8:$H$129,3,FALSE) ->  | AF23: =VLOOKUP(CONCATENATE($L23,AF$19),Spt_4!$C$8:$H$129,3,FALSE) -> 
C24: Verein Einzelsp 13 | E24: Verein Einzelsp 14 | G24: Verein Einzelsp 15
A25: 7 | B25: 6. | C25: Einzelspieler 16 | E25: Einzelspieler 17 | G25: Einzelspieler 18 | J25: 3 | K25: =IF($E$1=2,M_1!M8,IF($E$1=3,M_2!M8,IF($E$1=4,M_3!M8,K4))) -> 0 | L25: =VLOOKUP($K25,Teilnehmer!$J$8:$K$23,2,FALSE) ->  | M25: =IF($E$1=1,Q25,IF($E$1=2,U25,IF($E$1=3,Y25,IF($E$1=4,AC25,"")))) ->  | N25: =IF($E$1=1,R25,IF($E$1=2,V25,IF($E$1=3,Z25,IF($E$1=4,AD25,"")))) ->  | O25: =IF($E$1=1,S25,IF($E$1=2,W25,IF($E$1=3,AA25,IF($E$1=4,AE25,"")))) ->  | P25: =IF($E$1=1,T25,IF($E$1=2,X25,IF($E$1=3,AB25,IF($E$1=4,AF25,"")))) ->  | Q25: =VLOOKUP(CONCATENATE($L25,Q$19),Spt_1!$C$8:$H$130,3,FALSE) ->  | R25: =VLOOKUP(CONCATENATE($L25,R$19),Spt_1!$C$8:$H$130,3,FALSE) ->  | S25: =VLOOKUP(CONCATENATE($L25,S$19),Spt_1!$C$8:$H$130,3,FALSE) ->  | T25: =VLOOKUP(CONCATENATE($L25,T$19),Spt_1!$C$8:$H$130,3,FALSE) ->  | U25: =VLOOKUP(CONCATENATE($L25,U$19),Spt_2!$C$8:$H$130,3,FALSE) ->  | V25: =VLOOKUP(CONCATENATE($L25,V$19),Spt_2!$C$8:$H$130,3,FALSE) ->  | W25: =VLOOKUP(CONCATENATE($L25,W$19),Spt_2!$C$8:$H$130,3,FALSE) ->  | X25: =VLOOKUP(CONCATENATE($L25,X$19),Spt_2!$C$8:$H$130,3,FALSE) ->  | Y25: =VLOOKUP(CONCATENATE($L25,Y$19),Spt_3!$C$8:$H$129,3,FALSE) ->  | Z25: =VLOOKUP(CONCATENATE($L25,Z$19),Spt_3!$C$8:$H$129,3,FALSE) ->  | AA25: =VLOOKUP(CONCATENATE($L25,AA$19),Spt_3!$C$8:$H$129,3,FALSE) ->  | AB25: =VLOOKUP(CONCATENATE($L25,AB$19),Spt_3!$C$8:$H$129,3,FALSE) ->  | AC25: =VLOOKUP(CONCATENATE($L25,AC$19),Spt_4!$C$8:$H$129,3,FALSE) ->  | AD25: =VLOOKUP(CONCATENATE($L25,AD$19),Spt_4!$C$8:$H$129,3,FALSE) ->  | AE25: =VLOOKUP(CONCATENATE($L25,AE$19),Spt_4!$C$8:$H$129,3,FALSE) ->  | AF25: =VLOOKUP(CONCATENATE($L25,AF$19),Spt_4!$C$8:$H$129,3,FALSE) -> 
C26: Verein Einzelsp 16 | E26: Verein Einzelsp 17 | G26: Verein Einzelsp 18
A27: 5 | B27: 7. | C27: Einzelspieler 19 | E27: Einzelspieler 20 | G27: Einzelspieler 21 | J27: 4 | K27: =IF($E$1=2,M_1!M9,IF($E$1=3,M_2!M9,IF($E$1=4,M_3!M9,K5))) -> 0 | L27: =VLOOKUP($K27,Teilnehmer!$J$8:$K$23,2,FALSE) ->  | M27: =IF($E$1=1,Q27,IF($E$1=2,U27,IF($E$1=3,Y27,IF($E$1=4,AC27,"")))) ->  | N27: =IF($E$1=1,R27,IF($E$1=2,V27,IF($E$1=3,Z27,IF($E$1=4,AD27,"")))) ->  | O27: =IF($E$1=1,S27,IF($E$1=2,W27,IF($E$1=3,AA27,IF($E$1=4,AE27,"")))) ->  | P27: =IF($E$1=1,T27,IF($E$1=2,X27,IF($E$1=3,AB27,IF($E$1=4,AF27,"")))) ->  | Q27: =VLOOKUP(CONCATENATE($L27,Q$19),Spt_1!$C$8:$H$130,3,FALSE) ->  | R27: =VLOOKUP(CONCATENATE($L27,R$19),Spt_1!$C$8:$H$130,3,FALSE) ->  | S27: =VLOOKUP(CONCATENATE($L27,S$19),Spt_1!$C$8:$H$130,3,FALSE) ->  | T27: =VLOOKUP(CONCATENATE($L27,T$19),Spt_1!$C$8:$H$130,3,FALSE) ->  | U27: =VLOOKUP(CONCATENATE($L27,U$19),Spt_2!$C$8:$H$130,3,FALSE) ->  | V27: =VLOOKUP(CONCATENATE($L27,V$19),Spt_2!$C$8:$H$130,3,FALSE) ->  | W27: =VLOOKUP(CONCATENATE($L27,W$19),Spt_2!$C$8:$H$130,3,FALSE) ->  | X27: =VLOOKUP(CONCATENATE($L27,X$19),Spt_2!$C$8:$H$130,3,FALSE) ->  | Y27: =VLOOKUP(CONCATENATE($L27,Y$19),Spt_3!$C$8:$H$129,3,FALSE) ->  | Z27: =VLOOKUP(CONCATENATE($L27,Z$19),Spt_3!$C$8:$H$129,3,FALSE) ->  | AA27: =VLOOKUP(CONCATENATE($L27,AA$19),Spt_3!$C$8:$H$129,3,FALSE) ->  | AB27: =VLOOKUP(CONCATENATE($L27,AB$19),Spt_3!$C$8:$H$129,3,FALSE) ->  | AC27: =VLOOKUP(CONCATENATE($L27,AC$19),Spt_4!$C$8:$H$129,3,FALSE) ->  | AD27: =VLOOKUP(CONCATENATE($L27,AD$19),Spt_4!$C$8:$H$129,3,FALSE) ->  | AE27: =VLOOKUP(CONCATENATE($L27,AE$19),Spt_4!$C$8:$H$129,3,FALSE) ->  | AF27: =VLOOKUP(CONCATENATE($L27,AF$19),Spt_4!$C$8:$H$129,3,FALSE) -> 
C28: Verein Einzelsp 19 | E28: Verein Einzelsp 20 | G28: Verein Einzelsp 21
A29: 3 | B29: 8. | C29: Einzelspieler 22 | E29: Einzelspieler 23 | G29: Einzelspieler 24 | J29: 5 | K29: =IF($E$1=2,M_1!M10,IF($E$1=3,M_2!M10,IF($E$1=4,M_3!M10,K6))) -> 0 | L29: =VLOOKUP($K29,Teilnehmer!$J$8:$K$23,2,FALSE) ->  | M29: =IF($E$1=1,Q29,IF($E$1=2,U29,IF($E$1=3,Y29,IF($E$1=4,AC29,"")))) ->  | N29: =IF($E$1=1,R29,IF($E$1=2,V29,IF($E$1=3,Z29,IF($E$1=4,AD29,"")))) ->  | O29: =IF($E$1=1,S29,IF($E$1=2,W29,IF($E$1=3,AA29,IF($E$1=4,AE29,"")))) ->  | P29: =IF($E$1=1,T29,IF($E$1=2,X29,IF($E$1=3,AB29,IF($E$1=4,AF29,"")))) ->  | Q29: =VLOOKUP(CONCATENATE($L29,Q$19),Spt_1!$C$8:$H$130,3,FALSE) ->  | R29: =VLOOKUP(CONCATENATE($L29,R$19),Spt_1!$C$8:$H$130,3,FALSE) ->  | S29: =VLOOKUP(CONCATENATE($L29,S$19),Spt_1!$C$8:$H$130,3,FALSE) ->  | T29: =VLOOKUP(CONCATENATE($L29,T$19),Spt_1!$C$8:$H$130,3,FALSE) ->  | U29: =VLOOKUP(CONCATENATE($L29,U$19),Spt_2!$C$8:$H$130,3,FALSE) ->  | V29: =VLOOKUP(CONCATENATE($L29,V$19),Spt_2!$C$8:$H$130,3,FALSE) ->  | W29: =VLOOKUP(CONCATENATE($L29,W$19),Spt_2!$C$8:$H$130,3,FALSE) ->  | X29: =VLOOKUP(CONCATENATE($L29,X$19),Spt_2!$C$8:$H$130,3,FALSE) ->  | Y29: =VLOOKUP(CONCATENATE($L29,Y$19),Spt_3!$C$8:$H$129,3,FALSE) ->  | Z29: =VLOOKUP(CONCATENATE($L29,Z$19),Spt_3!$C$8:$H$129,3,FALSE) ->  | AA29: =VLOOKUP(CONCATENATE($L29,AA$19),Spt_3!$C$8:$H$129,3,FALSE) ->  | AB29: =VLOOKUP(CONCATENATE($L29,AB$19),Spt_3!$C$8:$H$129,3,FALSE) ->  | AC29: =VLOOKUP(CONCATENATE($L29,AC$19),Spt_4!$C$8:$H$129,3,FALSE) ->  | AD29: =VLOOKUP(CONCATENATE($L29,AD$19),Spt_4!$C$8:$H$129,3,FALSE) ->  | AE29: =VLOOKUP(CONCATENATE($L29,AE$19),Spt_4!$C$8:$H$129,3,FALSE) ->  | AF29: =VLOOKUP(CONCATENATE($L29,AF$19),Spt_4!$C$8:$H$129,3,FALSE) -> 
C30: Verein Einzelsp 22 | E30: Verein Einzelsp 23 | G30: Verein Einzelsp 24
A31: 1 | B31: 9. | C31: Einzelspieler 25 | E31: Einzelspieler 26 | G31: Einzelspieler 27 | J31: 6 | K31: =IF($E$1=2,M_1!M11,IF($E$1=3,M_2!M11,IF($E$1=4,M_3!M11,K7))) -> 0 | L31: =VLOOKUP($K31,Teilnehmer!$J$8:$K$23,2,FALSE) ->  | M31: =IF($E$1=1,Q31,IF($E$1=2,U31,IF($E$1=3,Y31,IF($E$1=4,AC31,"")))) ->  | N31: =IF($E$1=1,R31,IF($E$1=2,V31,IF($E$1=3,Z31,IF($E$1=4,AD31,"")))) ->  | O31: =IF($E$1=1,S31,IF($E$1=2,W31,IF($E$1=3,AA31,IF($E$1=4,AE31,"")))) ->  | P31: =IF($E$1=1,T31,IF($E$1=2,X31,IF($E$1=3,AB31,IF($E$1=4,AF31,"")))) ->  | Q31: =VLOOKUP(CONCATENATE($L31,Q$19),Spt_1!$C$8:$H$130,3,FALSE) ->  | R31: =VLOOKUP(CONCATENATE($L31,R$19),Spt_1!$C$8:$H$130,3,FALSE) ->  | S31: =VLOOKUP(CONCATENATE($L31,S$19),Spt_1!$C$8:$H$130,3,FALSE) ->  | T31: =VLOOKUP(CONCATENATE($L31,T$19),Spt_1!$C$8:$H$130,3,FALSE) ->  | U31: =VLOOKUP(CONCATENATE($L31,U$19),Spt_2!$C$8:$H$130,3,FALSE) ->  | V31: =VLOOKUP(CONCATENATE($L31,V$19),Spt_2!$C$8:$H$130,3,FALSE) ->  | W31: =VLOOKUP(CONCATENATE($L31,W$19),Spt_2!$C$8:$H$130,3,FALSE) ->  | X31: =VLOOKUP(CONCATENATE($L31,X$19),Spt_2!$C$8:$H$130,3,FALSE) ->  | Y31: =VLOOKUP(CONCATENATE($L31,Y$19),Spt_3!$C$8:$H$119,3,FALSE) ->  | Z31: =VLOOKUP(CONCATENATE($L31,Z$19),Spt_3!$C$8:$H$129,3,FALSE) ->  | AA31: =VLOOKUP(CONCATENATE($L31,AA$19),Spt_3!$C$8:$H$129,3,FALSE) ->  | AB31: =VLOOKUP(CONCATENATE($L31,AB$19),Spt_3!$C$8:$H$129,3,FALSE) ->  | AC31: =VLOOKUP(CONCATENATE($L31,AC$19),Spt_4!$C$8:$H$129,3,FALSE) ->  | AD31: =VLOOKUP(CONCATENATE($L31,AD$19),Spt_4!$C$8:$H$129,3,FALSE) ->  | AE31: =VLOOKUP(CONCATENATE($L31,AE$19),Spt_4!$C$8:$H$129,3,FALSE) ->  | AF31: =VLOOKUP(CONCATENATE($L31,AF$19),Spt_4!$C$8:$H$129,3,FALSE) -> 
C32: Verein Einzelsp 25 | E32: Verein Einzelsp 26 | G32: Verein Einzelsp 27
A33: 1 | B33: 10. | C33: Einzelspieler 28 | E33: Einzelspieler 29 | G33: Einzelspieler 30 | J33: 7 | K33: =IF($E$1=2,M_1!M12,IF($E$1=3,M_2!M12,IF($E$1=4,M_3!M12,K8))) -> 0 | L33: =VLOOKUP($K33,Teilnehmer!$J$8:$K$23,2,FALSE) ->  | M33: =IF($E$1=1,Q33,IF($E$1=2,U33,IF($E$1=3,Y33,IF($E$1=4,AC33,"")))) ->  | N33: =IF($E$1=1,R33,IF($E$1=2,V33,IF($E$1=3,Z33,IF($E$1=4,AD33,"")))) ->  | O33: =IF($E$1=1,S33,IF($E$1=2,W33,IF($E$1=3,AA33,IF($E$1=4,AE33,"")))) ->  | P33: =IF($E$1=1,T33,IF($E$1=2,X33,IF($E$1=3,AB33,IF($E$1=4,AF33,"")))) ->  | Q33: =VLOOKUP(CONCATENATE($L33,Q$19),Spt_1!$C$8:$H$130,3,FALSE) ->  | R33: =VLOOKUP(CONCATENATE($L33,R$19),Spt_1!$C$8:$H$130,3,FALSE) ->  | S33: =VLOOKUP(CONCATENATE($L33,S$19),Spt_1!$C$8:$H$130,3,FALSE) ->  | T33: =VLOOKUP(CONCATENATE($L33,T$19),Spt_1!$C$8:$H$130,3,FALSE) ->  | U33: =VLOOKUP(CONCATENATE($L33,U$19),Spt_2!$C$8:$H$130,3,FALSE) ->  | V33: =VLOOKUP(CONCATENATE($L33,V$19),Spt_2!$C$8:$H$130,3,FALSE) ->  | W33: =VLOOKUP(CONCATENATE($L33,W$19),Spt_2!$C$8:$H$130,3,FALSE) ->  | X33: =VLOOKUP(CONCATENATE($L33,X$19),Spt_2!$C$8:$H$130,3,FALSE) ->  | Y33: =VLOOKUP(CONCATENATE($L33,Y$19),Spt_3!$C$8:$H$129,3,FALSE) ->  | Z33: =VLOOKUP(CONCATENATE($L33,Z$19),Spt_3!$C$8:$H$129,3,FALSE) ->  | AA33: =VLOOKUP(CONCATENATE($L33,AA$19),Spt_3!$C$8:$H$129,3,FALSE) ->  | AB33: =VLOOKUP(CONCATENATE($L33,AB$19),Spt_3!$C$8:$H$129,3,FALSE) ->  | AC33: =VLOOKUP(CONCATENATE($L33,AC$19),Spt_4!$C$8:$H$129,3,FALSE) ->  | AD33: =VLOOKUP(CONCATENATE($L33,AD$19),Spt_4!$C$8:$H$129,3,FALSE) ->  | AE33: =VLOOKUP(CONCATENATE($L33,AE$19),Spt_4!$C$8:$H$129,3,FALSE) ->  | AF33: =VLOOKUP(CONCATENATE($L33,AF$19),Spt_4!$C$8:$H$129,3,FALSE) -> 
C34: Verein Einzelsp 28 | E34: Verein Einzelsp 29 | G34: Verein Einzelsp 30
A35: 1 | B35: 11. | C35: Einzelspieler 31 | E35: Einzelspieler 32 | G35: Einzelspieler 33 | J35: 8 | K35: =IF($E$1=2,M_1!M13,IF($E$1=3,M_2!M13,IF($E$1=4,M_3!M13,K9))) -> 0 | L35: =VLOOKUP($K35,Teilnehmer!$J$8:$K$23,2,FALSE) ->  | M35: =IF($E$1=1,Q35,IF($E$1=2,U35,IF($E$1=3,Y35,IF($E$1=4,AC35,"")))) ->  | N35: =IF($E$1=1,R35,IF($E$1=2,V35,IF($E$1=3,Z35,IF($E$1=4,AD35,"")))) ->  | O35: =IF($E$1=1,S35,IF($E$1=2,W35,IF($E$1=3,AA35,IF($E$1=4,AE35,"")))) ->  | P35: =IF($E$1=1,T35,IF($E$1=2,X35,IF($E$1=3,AB35,IF($E$1=4,AF35,"")))) ->  | Q35: =VLOOKUP(CONCATENATE($L35,Q$19),Spt_1!$C$8:$H$130,3,FALSE) ->  | R35: =VLOOKUP(CONCATENATE($L35,R$19),Spt_1!$C$8:$H$130,3,FALSE) ->  | S35: =VLOOKUP(CONCATENATE($L35,S$19),Spt_1!$C$8:$H$130,3,FALSE) ->  | T35: =VLOOKUP(CONCATENATE($L35,T$19),Spt_1!$C$8:$H$130,3,FALSE) ->  | U35: =VLOOKUP(CONCATENATE($L35,U$19),Spt_2!$C$8:$H$130,3,FALSE) ->  | V35: =VLOOKUP(CONCATENATE($L35,V$19),Spt_2!$C$8:$H$130,3,FALSE) ->  | W35: =VLOOKUP(CONCATENATE($L35,W$19),Spt_2!$C$8:$H$130,3,FALSE) ->  | X35: =VLOOKUP(CONCATENATE($L35,X$19),Spt_2!$C$8:$H$130,3,FALSE) ->  | Y35: =VLOOKUP(CONCATENATE($L35,Y$19),Spt_3!$C$8:$H$129,3,FALSE) ->  | Z35: =VLOOKUP(CONCATENATE($L35,Z$19),Spt_3!$C$8:$H$129,3,FALSE) ->  | AA35: =VLOOKUP(CONCATENATE($L35,AA$19),Spt_3!$C$8:$H$129,3,FALSE) ->  | AB35: =VLOOKUP(CONCATENATE($L35,AB$19),Spt_3!$C$8:$H$129,3,FALSE) ->  | AC35: =VLOOKUP(CONCATENATE($L35,AC$19),Spt_4!$C$8:$H$129,3,FALSE) ->  | AD35: =VLOOKUP(CONCATENATE($L35,AD$19),Spt_4!$C$8:$H$129,3,FALSE) ->  | AE35: =VLOOKUP(CONCATENATE($L35,AE$19),Spt_4!$C$8:$H$129,3,FALSE) ->  | AF35: =VLOOKUP(CONCATENATE($L35,AF$19),Spt_4!$C$8:$H$129,3,FALSE) -> 
C36: Verein Einzelsp 31 | E36: Verein Einzelsp 32 | G36: Verein Einzelsp 33
A37: 1 | B37: 12. | C37: Einzelspieler 34 | E37: Einzelspieler 35 | G37: Einzelspieler 36 | J37: 9 | K37: =IF($E$1=2,M_1!M14,IF($E$1=3,M_2!M14,IF($E$1=4,M_3!M14,K10))) -> 0 | L37: =VLOOKUP($K37,Teilnehmer!$J$8:$K$23,2,FALSE) ->  | M37: =IF($E$1=1,Q37,IF($E$1=2,U37,IF($E$1=3,Y37,IF($E$1=4,AC37,"")))) ->  | N37: =IF($E$1=1,R37,IF($E$1=2,V37,IF($E$1=3,Z37,IF($E$1=4,AD37,"")))) ->  | O37: =IF($E$1=1,S37,IF($E$1=2,W37,IF($E$1=3,AA37,IF($E$1=4,AE37,"")))) ->  | P37: =IF($E$1=1,T37,IF($E$1=2,X37,IF($E$1=3,AB37,IF($E$1=4,AF37,"")))) ->  | Q37: =VLOOKUP(CONCATENATE($L37,Q$19),Spt_1!$C$8:$H$130,3,FALSE) ->  | R37: =VLOOKUP(CONCATENATE($L37,R$19),Spt_1!$C$8:$H$130,3,FALSE) ->  | S37: =VLOOKUP(CONCATENATE($L37,S$19),Spt_1!$C$8:$H$130,3,FALSE) ->  | T37: =VLOOKUP(CONCATENATE($L37,T$19),Spt_1!$C$8:$H$130,3,FALSE) ->  | U37: =VLOOKUP(CONCATENATE($L37,U$19),Spt_2!$C$8:$H$130,3,FALSE) ->  | V37: =VLOOKUP(CONCATENATE($L37,V$19),Spt_2!$C$8:$H$130,3,FALSE) ->  | W37: =VLOOKUP(CONCATENATE($L37,W$19),Spt_2!$C$8:$H$130,3,FALSE) ->  | X37: =VLOOKUP(CONCATENATE($L37,X$19),Spt_2!$C$8:$H$130,3,FALSE) ->  | Y37: =VLOOKUP(CONCATENATE($L37,Y$19),Spt_3!$C$8:$H$129,3,FALSE) ->  | Z37: =VLOOKUP(CONCATENATE($L37,Z$19),Spt_3!$C$8:$H$129,3,FALSE) ->  | AA37: =VLOOKUP(CONCATENATE($L37,AA$19),Spt_3!$C$8:$H$129,3,FALSE) ->  | AB37: =VLOOKUP(CONCATENATE($L37,AB$19),Spt_3!$C$8:$H$129,3,FALSE) ->  | AC37: =VLOOKUP(CONCATENATE($L37,AC$19),Spt_4!$C$8:$H$129,3,FALSE) ->  | AD37: =VLOOKUP(CONCATENATE($L37,AD$19),Spt_4!$C$8:$H$129,3,FALSE) ->  | AE37: =VLOOKUP(CONCATENATE($L37,AE$19),Spt_4!$C$8:$H$129,3,FALSE) ->  | AF37: =VLOOKUP(CONCATENATE($L37,AF$19),Spt_4!$C$8:$H$129,3,FALSE) -> 
C38: Verein Einzelsp 34 | E38: Verein Einzelsp 35 | G38: Verein Einzelsp 36
A39: 1 | B39: 13. | C39: Einzelspieler 37 | E39: Einzelspieler 38 | G39: Einzelspieler 39 | J39: 10 | K39: =IF($E$1=2,M_1!M15,IF($E$1=3,M_2!M15,IF($E$1=4,M_3!M15,K11))) -> 0 | L39: =VLOOKUP($K39,Teilnehmer!$J$8:$K$23,2,FALSE) ->  | M39: =IF($E$1=1,Q39,IF($E$1=2,U39,IF($E$1=3,Y39,IF($E$1=4,AC39,"")))) ->  | N39: =IF($E$1=1,R39,IF($E$1=2,V39,IF($E$1=3,Z39,IF($E$1=4,AD39,"")))) ->  | O39: =IF($E$1=1,S39,IF($E$1=2,W39,IF($E$1=3,AA39,IF($E$1=4,AE39,"")))) ->  | P39: =IF($E$1=1,T39,IF($E$1=2,X39,IF($E$1=3,AB39,IF($E$1=4,AF39,"")))) ->  | Q39: =VLOOKUP(CONCATENATE($L39,Q$19),Spt_1!$C$8:$H$130,3,FALSE) ->  | R39: =VLOOKUP(CONCATENATE($L39,R$19),Spt_1!$C$8:$H$130,3,FALSE) ->  | S39: =VLOOKUP(CONCATENATE($L39,S$19),Spt_1!$C$8:$H$130,3,FALSE) ->  | T39: =VLOOKUP(CONCATENATE($L39,T$19),Spt_1!$C$8:$H$130,3,FALSE) ->  | U39: =VLOOKUP(CONCATENATE($L39,U$19),Spt_2!$C$8:$H$130,3,FALSE) ->  | V39: =VLOOKUP(CONCATENATE($L39,V$19),Spt_2!$C$8:$H$130,3,FALSE) ->  | W39: =VLOOKUP(CONCATENATE($L39,W$19),Spt_2!$C$8:$H$130,3,FALSE) ->  | X39: =VLOOKUP(CONCATENATE($L39,X$19),Spt_2!$C$8:$H$130,3,FALSE) ->  | Y39: =VLOOKUP(CONCATENATE($L39,Y$19),Spt_3!$C$8:$H$129,3,FALSE) ->  | Z39: =VLOOKUP(CONCATENATE($L39,Z$19),Spt_3!$C$8:$H$129,3,FALSE) ->  | AA39: =VLOOKUP(CONCATENATE($L39,AA$19),Spt_3!$C$8:$H$129,3,FALSE) ->  | AB39: =VLOOKUP(CONCATENATE($L39,AB$19),Spt_3!$C$8:$H$129,3,FALSE) ->  | AC39: =VLOOKUP(CONCATENATE($L39,AC$19),Spt_4!$C$8:$H$129,3,FALSE) ->  | AD39: =VLOOKUP(CONCATENATE($L39,AD$19),Spt_4!$C$8:$H$129,3,FALSE) ->  | AE39: =VLOOKUP(CONCATENATE($L39,AE$19),Spt_4!$C$8:$H$129,3,FALSE) ->  | AF39: =VLOOKUP(CONCATENATE($L39,AF$19),Spt_4!$C$8:$H$129,3,FALSE) -> 
C40: Verein Einzelsp 37 | E40: Verein Einzelsp 38 | G40: Verein Einzelsp 39
A41: 1 | B41: 14. | C41: Einzelspieler 40 | E41: Einzelspieler 41 | G41: Einzelspieler 42 | J41: 11 | K41: =IF($E$1=2,M_1!M16,IF($E$1=3,M_2!M16,IF($E$1=4,M_3!M16,K12))) -> 0 | L41: =VLOOKUP($K41,Teilnehmer!$J$8:$K$23,2,FALSE) ->  | M41: =IF($E$1=1,Q41,IF($E$1=2,U41,IF($E$1=3,Y41,IF($E$1=4,AC41,"")))) ->  | N41: =IF($E$1=1,R41,IF($E$1=2,V41,IF($E$1=3,Z41,IF($E$1=4,AD41,"")))) ->  | O41: =IF($E$1=1,S41,IF($E$1=2,W41,IF($E$1=3,AA41,IF($E$1=4,AE41,"")))) ->  | P41: =IF($E$1=1,T41,IF($E$1=2,X41,IF($E$1=3,AB41,IF($E$1=4,AF41,"")))) ->  | Q41: =VLOOKUP(CONCATENATE($L41,Q$19),Spt_1!$C$8:$H$130,3,FALSE) ->  | R41: =VLOOKUP(CONCATENATE($L41,R$19),Spt_1!$C$8:$H$130,3,FALSE) ->  | S41: =VLOOKUP(CONCATENATE($L41,S$19),Spt_1!$C$8:$H$130,3,FALSE) ->  | T41: =VLOOKUP(CONCATENATE($L41,T$19),Spt_1!$C$8:$H$130,3,FALSE) ->  | U41: =VLOOKUP(CONCATENATE($L41,U$19),Spt_2!$C$8:$H$130,3,FALSE) ->  | V41: =VLOOKUP(CONCATENATE($L41,V$19),Spt_2!$C$8:$H$130,3,FALSE) ->  | W41: =VLOOKUP(CONCATENATE($L41,W$19),Spt_2!$C$8:$H$130,3,FALSE) ->  | X41: =VLOOKUP(CONCATENATE($L41,X$19),Spt_2!$C$8:$H$130,3,FALSE) ->  | Y41: =VLOOKUP(CONCATENATE($L41,Y$19),Spt_3!$C$8:$H$129,3,FALSE) ->  | Z41: =VLOOKUP(CONCATENATE($L41,Z$19),Spt_3!$C$8:$H$129,3,FALSE) ->  | AA41: =VLOOKUP(CONCATENATE($L41,AA$19),Spt_3!$C$8:$H$129,3,FALSE) ->  | AB41: =VLOOKUP(CONCATENATE($L41,AB$19),Spt_3!$C$8:$H$129,3,FALSE) ->  | AC41: =VLOOKUP(CONCATENATE($L41,AC$19),Spt_4!$C$8:$H$129,3,FALSE) ->  | AD41: =VLOOKUP(CONCATENATE($L41,AD$19),Spt_4!$C$8:$H$129,3,FALSE) ->  | AE41: =VLOOKUP(CONCATENATE($L41,AE$19),Spt_4!$C$8:$H$129,3,FALSE) ->  | AF41: =VLOOKUP(CONCATENATE($L41,AF$19),Spt_4!$C$8:$H$129,3,FALSE) -> 
C42: Verein Einzelsp 40 | E42: Verein Einzelsp 41 | G42: Verein Einzelsp 42
A43: 1 | B43: 15. | C43: Einzelspieler 43 | E43: Einzelspieler 44 | G43: Einzelspieler 45 | J43: 12 | K43: =IF($E$1=2,M_1!M17,IF($E$1=3,M_2!M17,IF($E$1=4,M_3!M17,K13))) -> 0 | L43: =VLOOKUP($K43,Teilnehmer!$J$8:$K$23,2,FALSE) ->  | M43: =IF($E$1=1,Q43,IF($E$1=2,U43,IF($E$1=3,Y43,IF($E$1=4,AC43,"")))) ->  | N43: =IF($E$1=1,R43,IF($E$1=2,V43,IF($E$1=3,Z43,IF($E$1=4,AD43,"")))) ->  | O43: =IF($E$1=1,S43,IF($E$1=2,W43,IF($E$1=3,AA43,IF($E$1=4,AE43,"")))) ->  | P43: =IF($E$1=1,T43,IF($E$1=2,X43,IF($E$1=3,AB43,IF($E$1=4,AF43,"")))) ->  | Q43: =VLOOKUP(CONCATENATE($L43,Q$19),Spt_1!$C$8:$H$130,3,FALSE) ->  | R43: =VLOOKUP(CONCATENATE($L43,R$19),Spt_1!$C$8:$H$130,3,FALSE) ->  | S43: =VLOOKUP(CONCATENATE($L43,S$19),Spt_1!$C$8:$H$130,3,FALSE) ->  | T43: =VLOOKUP(CONCATENATE($L43,T$19),Spt_1!$C$8:$H$130,3,FALSE) ->  | U43: =VLOOKUP(CONCATENATE($L43,U$19),Spt_2!$C$8:$H$130,3,FALSE) ->  | V43: =VLOOKUP(CONCATENATE($L43,V$19),Spt_2!$C$8:$H$130,3,FALSE) ->  | W43: =VLOOKUP(CONCATENATE($L43,W$19),Spt_2!$C$8:$H$130,3,FALSE) ->  | X43: =VLOOKUP(CONCATENATE($L43,X$19),Spt_2!$C$8:$H$130,3,FALSE) ->  | Y43: =VLOOKUP(CONCATENATE($L43,Y$19),Spt_3!$C$8:$H$129,3,FALSE) ->  | Z43: =VLOOKUP(CONCATENATE($L43,Z$19),Spt_3!$C$8:$H$129,3,FALSE) ->  | AA43: =VLOOKUP(CONCATENATE($L43,AA$19),Spt_3!$C$8:$H$129,3,FALSE) ->  | AB43: =VLOOKUP(CONCATENATE($L43,AB$19),Spt_3!$C$8:$H$129,3,FALSE) ->  | AC43: =VLOOKUP(CONCATENATE($L43,AC$19),Spt_4!$C$8:$H$129,3,FALSE) ->  | AD43: =VLOOKUP(CONCATENATE($L43,AD$19),Spt_4!$C$8:$H$129,3,FALSE) ->  | AE43: =VLOOKUP(CONCATENATE($L43,AE$19),Spt_4!$C$8:$H$129,3,FALSE) ->  | AF43: =VLOOKUP(CONCATENATE($L43,AF$19),Spt_4!$C$8:$H$129,3,FALSE) -> 
C44: Verein Einzelsp 43 | E44: Verein Einzelsp 44 | G44: Verein Einzelsp 45
A45: 1 | B45: 16. | C45: Einzelspieler 46 | E45: Einzelspieler 47 | G45: Einzelspieler 48 | J45: 13 | K45: =IF($E$1=2,M_1!M18,IF($E$1=3,M_2!M18,IF($E$1=4,M_3!M18,K14))) -> 0 | L45: =VLOOKUP($K45,Teilnehmer!$J$8:$K$23,2,FALSE) ->  | M45: =IF($E$1=1,Q45,IF($E$1=2,U45,IF($E$1=3,Y45,IF($E$1=4,AC45,"")))) ->  | N45: =IF($E$1=1,R45,IF($E$1=2,V45,IF($E$1=3,Z45,IF($E$1=4,AD45,"")))) ->  | O45: =IF($E$1=1,S45,IF($E$1=2,W45,IF($E$1=3,AA45,IF($E$1=4,AE45,"")))) ->  | P45: =IF($E$1=1,T45,IF($E$1=2,X45,IF($E$1=3,AB45,IF($E$1=4,AF45,"")))) ->  | Q45: =VLOOKUP(CONCATENATE($L45,Q$19),Spt_1!$C$8:$H$130,3,FALSE) ->  | R45: =VLOOKUP(CONCATENATE($L45,R$19),Spt_1!$C$8:$H$130,3,FALSE) ->  | S45: =VLOOKUP(CONCATENATE($L45,S$19),Spt_1!$C$8:$H$130,3,FALSE) ->  | T45: =VLOOKUP(CONCATENATE($L45,T$19),Spt_1!$C$8:$H$130,3,FALSE) ->  | U45: =VLOOKUP(CONCATENATE($L45,U$19),Spt_2!$C$8:$H$130,3,FALSE) ->  | V45: =VLOOKUP(CONCATENATE($L45,V$19),Spt_2!$C$8:$H$130,3,FALSE) ->  | W45: =VLOOKUP(CONCATENATE($L45,W$19),Spt_2!$C$8:$H$130,3,FALSE) ->  | X45: =VLOOKUP(CONCATENATE($L45,X$19),Spt_2!$C$8:$H$130,3,FALSE) ->  | Y45: =VLOOKUP(CONCATENATE($L45,Y$19),Spt_3!$C$8:$H$129,3,FALSE) ->  | Z45: =VLOOKUP(CONCATENATE($L45,Z$19),Spt_3!$C$8:$H$129,3,FALSE) ->  | AA45: =VLOOKUP(CONCATENATE($L45,AA$19),Spt_3!$C$8:$H$129,3,FALSE) ->  | AB45: =VLOOKUP(CONCATENATE($L45,AB$19),Spt_3!$C$8:$H$129,3,FALSE) ->  | AC45: =VLOOKUP(CONCATENATE($L45,AC$19),Spt_4!$C$8:$H$129,3,FALSE) ->  | AD45: =VLOOKUP(CONCATENATE($L45,AD$19),Spt_4!$C$8:$H$129,3,FALSE) ->  | AE45: =VLOOKUP(CONCATENATE($L45,AE$19),Spt_4!$C$8:$H$129,3,FALSE) ->  | AF45: =VLOOKUP(CONCATENATE($L45,AF$19),Spt_4!$C$8:$H$129,3,FALSE) -> 
C46: Verein Einzelsp 46 | E46: Verein Einzelsp 47 | G46: Verein Einzelsp 48
A47: 1 | B47: 17. | C47: Einzelspieler 49 | E47: Einzelspieler 50 | G47: Einzelspieler 51 | J47: 14 | K47: =IF($E$1=2,M_1!M19,IF($E$1=3,M_2!M19,IF($E$1=4,M_3!M19,K15))) -> 0 | L47: =VLOOKUP($K47,Teilnehmer!$J$8:$K$23,2,FALSE) ->  | M47: =IF($E$1=1,Q47,IF($E$1=2,U47,IF($E$1=3,Y47,IF($E$1=4,AC47,"")))) ->  | N47: =IF($E$1=1,R47,IF($E$1=2,V47,IF($E$1=3,Z47,IF($E$1=4,AD47,"")))) ->  | O47: =IF($E$1=1,S47,IF($E$1=2,W47,IF($E$1=3,AA47,IF($E$1=4,AE47,"")))) ->  | P47: =IF($E$1=1,T47,IF($E$1=2,X47,IF($E$1=3,AB47,IF($E$1=4,AF47,"")))) ->  | Q47: =VLOOKUP(CONCATENATE($L47,Q$19),Spt_1!$C$8:$H$130,3,FALSE) ->  | R47: =VLOOKUP(CONCATENATE($L47,R$19),Spt_1!$C$8:$H$130,3,FALSE) ->  | S47: =VLOOKUP(CONCATENATE($L47,S$19),Spt_1!$C$8:$H$130,3,FALSE) ->  | T47: =VLOOKUP(CONCATENATE($L47,T$19),Spt_1!$C$8:$H$130,3,FALSE) ->  | U47: =VLOOKUP(CONCATENATE($L47,U$19),Spt_2!$C$8:$H$130,3,FALSE) ->  | V47: =VLOOKUP(CONCATENATE($L47,V$19),Spt_2!$C$8:$H$130,3,FALSE) ->  | W47: =VLOOKUP(CONCATENATE($L47,W$19),Spt_2!$C$8:$H$130,3,FALSE) ->  | X47: =VLOOKUP(CONCATENATE($L47,X$19),Spt_2!$C$8:$H$130,3,FALSE) ->  | Y47: =VLOOKUP(CONCATENATE($L47,Y$19),Spt_3!$C$8:$H$129,3,FALSE) ->  | Z47: =VLOOKUP(CONCATENATE($L47,Z$19),Spt_3!$C$8:$H$129,3,FALSE) ->  | AA47: =VLOOKUP(CONCATENATE($L47,AA$19),Spt_3!$C$8:$H$129,3,FALSE) ->  | AB47: =VLOOKUP(CONCATENATE($L47,AB$19),Spt_3!$C$8:$H$129,3,FALSE) ->  | AC47: =VLOOKUP(CONCATENATE($L47,AC$19),Spt_4!$C$8:$H$129,3,FALSE) ->  | AD47: =VLOOKUP(CONCATENATE($L47,AD$19),Spt_4!$C$8:$H$129,3,FALSE) ->  | AE47: =VLOOKUP(CONCATENATE($L47,AE$19),Spt_4!$C$8:$H$129,3,FALSE) ->  | AF47: =VLOOKUP(CONCATENATE($L47,AF$19),Spt_4!$C$8:$H$129,3,FALSE) -> 
C48: Verein Einzelsp 49 | E48: Verein Einzelsp 50 | G48: Verein Einzelsp 51
A49: 1 | B49: 18. | C49: Einzelspieler 52 | E49: Einzelspieler 53 | G49: Einzelspieler 54
C50: Verein Einzelsp 52 | E50: Verein Einzelsp 53 | G50: Verein Einzelsp 54
A51: 1 | B51: 19. | C51: =+Sp2m9s1 ->  | E51: =+Sp2m8s1 ->  | G51: =+Sp2m7s1 -> 
C52: =CONCATENATE(+Sp2Ma9," / Sp1") -> 0 / Sp1 | E52: =CONCATENATE(+Sp2Ma8," / Sp1") -> 0 / Sp1 | G52: =CONCATENATE(+Sp2Ma7," / Sp1") -> 0 / Sp1
A53: 1 | B53: 20. | C53: =+Sp2m6s1 ->  | E53: =Sp2m5s1 ->  | G53: =+Sp2m4s1 -> 
C54: =CONCATENATE(+Sp2Ma6," / Sp1") -> 0 / Sp1 | E54: =CONCATENATE(+Sp2Ma5," / Sp1") -> 0 / Sp1 | G54: =CONCATENATE(+Sp2Ma4," / Sp1") -> 0 / Sp1
A55: 1 | B55: 21. | C55: =+Sp2m3s1 ->  | E55: =+Sp2m2s1 ->  | G55: =+Sp2m1s1 -> 
C56: =CONCATENATE(+Sp2Ma3," / Sp1") -> 0 / Sp1 | E56: =CONCATENATE(+Sp2MA2," / Sp1") -> 0 / Sp1 | G56: =CONCATENATE(+Sp2Ma1," / Sp1") -> 0 / Sp1
A57: 1 | B57: 22. | C57: =+Sp2m9s2 ->  | E57: =+Sp2m8s2 ->  | G57: =+Sp2m7s2 -> 
C58: =CONCATENATE(+Sp2Ma9," / Sp2") -> 0 / Sp2 | E58: =CONCATENATE(+Sp2Ma8," / Sp2") -> 0 / Sp2 | G58: =CONCATENATE(+Sp2Ma7," / Sp2") -> 0 / Sp2
A59: 1 | B59: 23. | C59: =+Sp2m6s2 ->  | E59: =+Sp2m5s2 ->  | G59: =+sp2m4s2 -> 
C60: =CONCATENATE(+Sp2Ma6," / Sp2") -> 0 / Sp2 | E60: =CONCATENATE(+Sp2Ma5," / Sp2") -> 0 / Sp2 | G60: =CONCATENATE(+Sp2Ma4," / Sp2") -> 0 / Sp2
A61: 1 | B61: 24. | C61: =+Sp2m3s2 ->  | E61: =+Sp2m2s2 ->  | G61: =+Sp2m1s2 -> 
C62: =CONCATENATE(+Sp2Ma3," / Sp2") -> 0 / Sp2 | E62: =CONCATENATE(+Sp2MA2," / Sp2") -> 0 / Sp2 | G62: =CONCATENATE(+Sp2Ma1," / Sp2") -> 0 / Sp2
A63: 1 | B63: 25. | C63: =+Sp2m9s3 ->  | E63: =+Sp2m8s3 ->  | G63: =+Sp2m7s3 -> 
C64: =CONCATENATE(+Sp2Ma9," / Sp3") -> 0 / Sp3 | E64: =CONCATENATE(+Sp2Ma8," / Sp3") -> 0 / Sp3 | G64: =CONCATENATE(+Sp2Ma7," / Sp3") -> 0 / Sp3
A65: 1 | B65: 26. | C65: =+Sp2m6s3 ->  | E65: =+Sp2m5s3 ->  | G65: =+Sp2m4s3 -> 
C66: =CONCATENATE(+Sp2Ma6," / Sp3") -> 0 / Sp3 | E66: =CONCATENATE(+Sp2Ma5," / Sp3") -> 0 / Sp3 | G66: =CONCATENATE(+Sp2Ma4," / Sp3") -> 0 / Sp3
A67: 1 | B67: 27. | C67: =+Sp2m3s3 ->  | E67: =+Sp2m2s3 ->  | G67: =+Sp2m1s3 -> 
C68: =CONCATENATE(+Sp2Ma3," / Sp3") -> 0 / Sp3 | E68: =CONCATENATE(+Sp2MA2," / Sp3") -> 0 / Sp3 | G68: =CONCATENATE(+Sp2Ma1," / Sp3") -> 0 / Sp3
A69: 1 | B69: 28. | C69: =+Sp2m9s4 ->  | E69: =+Sp2m8s4 ->  | G69: =+Sp2m7s4 -> 
C70: =CONCATENATE(+Sp2Ma9," / Sp4") -> 0 / Sp4 | E70: =CONCATENATE(+Sp2Ma8," / Sp4") -> 0 / Sp4 | G70: =CONCATENATE(+Sp2Ma7," / Sp4") -> 0 / Sp4
A71: 1 | B71: 29. | C71: =+Sp2m6s4 ->  | E71: =+Sp2m5S4 ->  | G71: =+Sp2m4s4 -> 
C72: =CONCATENATE(+Sp2Ma6," / Sp4") -> 0 / Sp4 | E72: =CONCATENATE(+Sp2Ma5," / Sp4") -> 0 / Sp4 | G72: =CONCATENATE(+Sp2Ma4," / Sp4") -> 0 / Sp4
A73: 1 | B73: 30. | C73: =+Sp2m3s4 ->  | E73: =+Sp2m2s4 ->  | G73: =+Sp2m1s4 -> 
C74: =CONCATENATE(+Sp2Ma3," / Sp4") -> 0 / Sp4 | E74: =CONCATENATE(+Sp2MA2," / Sp4") -> 0 / Sp4 | G74: =CONCATENATE(+Sp2Ma1," / Sp4") -> 0 / Sp4
A76: Start- bahn | B76: Start gruppe | E76: Startliste | H76: 8 Mannschaften
E77: Massenstart
A78: 17 | B78: 1. | C78: Einzelspieler 1 | E78: Einzelspieler 2 | G78: Einzelspieler 3
C79: Verein Einzelsp 1 | E79: Verein Einzelsp 2 | G79: Verein Einzelsp 3
A80: 15 | B80: 2. | C80: Einzelspieler 4 | E80: Einzelspieler 5 | G80: Einzelspieler 6
C81: Verein Einzelsp 4 | E81: Verein Einzelsp 5 | G81: Verein Einzelsp 6
A82: 13 | B82: 3. | C82: Einzelspieler 7 | E82: Einzelspieler 8 | G82: Einzelspieler 9
C83: Verein Einzelsp 7 | E83: Verein Einzelsp 8 | G83: Verein Einzelsp 9
A84: 11 | B84: 4. | C84: Einzelspieler 10 | E84: Einzelspieler 11 | G84: Einzelspieler 12
C85: Verein Einzelsp 10 | E85: Verein Einzelsp 11 | G85: Verein Einzelsp 12
A86: 9 | B86: 5. | C86: Einzelspieler 13 | E86: Einzelspieler 14 | G86: Einzelspieler 15
C87: Verein Einzelsp 13 | E87: Verein Einzelsp 14 | G87: Verein Einzelsp 15
A88: 7 | B88: 6. | C88: Einzelspieler 16 | E88: Einzelspieler 17 | G88: Einzelspieler 18
C89: Verein Einzelsp 16 | E89: Verein Einzelsp 17 | G89: Verein Einzelsp 18
A90: 5 | B90: 7. | C90: Einzelspieler 19 | E90: Einzelspieler 20 | G90: Einzelspieler 21
C91: Verein Einzelsp 19 | E91: Verein Einzelsp 20 | G91: Verein Einzelsp 21
A92: 3 | B92: 8. | C92: Einzelspieler 22 | E92: Einzelspieler 23 | G92: Einzelspieler 24
C93: Verein Einzelsp 22 | E93: Verein Einzelsp 23 | G93: Verein Einzelsp 24
A94: 1 | B94: 9. | C94: Einzelspieler 25 | E94: Einzelspieler 26 | G94: Einzelspieler 27
C95: Verein Einzelsp 25 | E95: Verein Einzelsp 26 | G95: Verein Einzelsp 27
A96: 1 | B96: 10. | C96: Einzelspieler 28 | E96: Einzelspieler 29 | G96: Einzelspieler 30
C97: Verein Einzelsp 28 | E97: Verein Einzelsp 29 | G97: Verein Einzelsp 30
A98: 1 | B98: 11. | C98: Einzelspieler 31 | E98: Einzelspieler 32 | G98: Einzelspieler 33
C99: Verein Einzelsp 31 | E99: Verein Einzelsp 32 | G99: Verein Einzelsp 33
A100: 1 | B100: 12. | C100: Einzelspieler 34 | E100: Einzelspieler 35 | G100: Einzelspieler 36
C101: Verein Einzelsp 34 | E101: Verein Einzelsp 35 | G101: Verein Einzelsp 36
A102: 1 | B102: 13. | C102: Einzelspieler 37 | E102: Einzelspieler 38 | G102: Einzelspieler 39
C103: Verein Einzelsp 37 | E103: Verein Einzelsp 38 | G103: Verein Einzelsp 39
A104: 1 | B104: 14. | C104: Einzelspieler 40 | E104: Einzelspieler 41 | G104: Einzelspieler 42
C105: Verein Einzelsp 40 | E105: Verein Einzelsp 41 | G105: Verein Einzelsp 42
A106: 1 | B106: 15. | C106: Einzelspieler 43 | E106: Einzelspieler 44 | G106: Einzelspieler 45
C107: Verein Einzelsp 43 | E107: Verein Einzelsp 44 | G107: Verein Einzelsp 45
A108: 1 | B108: 16. | C108: Einzelspieler 46 | E108: Einzelspieler 47 | G108: Einzelspieler 48
C109: Verein Einzelsp 46 | E109: Verein Einzelsp 47 | G109: Verein Einzelsp 48
A110: 1 | B110: 17. | C110: Einzelspieler 49 | E110: Einzelspieler 50 | G110: Einzelspieler 51
C111: Verein Einzelsp 49 | E111: Verein Einzelsp 50 | G111: Verein Einzelsp 51
A112: 1 | B112: 18. | C112: Einzelspieler 52 | E112: Einzelspieler 53 | G112: Einzelspieler 54
C113: Verein Einzelsp 52 | E113: Verein Einzelsp 53 | G113: Verein Einzelsp 54
A114: 1 | B114: 19. | E114: =+Sp2m8s1 ->  | G114: =+Sp2m7s1 -> 
E115: =CONCATENATE(+Sp2Ma8," / Sp1") -> 0 / Sp1 | G115: =CONCATENATE(+Sp2Ma7," / Sp1") -> 0 / Sp1
A116: 1 | B116: 20. | C116: =+Sp2m6s1 ->  | E116: =+Sp2m5s1 ->  | G116: =+Sp2m4s1 -> 
C117: =CONCATENATE(+Sp2Ma6," / Sp1") -> 0 / Sp1 | E117: =CONCATENATE(+Sp2Ma5," / Sp1") -> 0 / Sp1 | G117: =CONCATENATE(+Sp2Ma4," / Sp1") -> 0 / Sp1
A118: 1 | B118: 21. | C118: =+Sp2m3s1 ->  | E118: =+Sp2m2s1 ->  | G118: =+Sp2m1s1 -> 
C119: =CONCATENATE(+Sp2Ma3," / Sp1") -> 0 / Sp1 | E119: =CONCATENATE(+Sp2MA2," / Sp1") -> 0 / Sp1 | G119: =CONCATENATE(+Sp2Ma1," / Sp1") -> 0 / Sp1
A120: 1 | B120: 22. | E120: =+Sp2m8s2 ->  | G120: =+Sp2m7s2 -> 
E121: =CONCATENATE(+Sp2Ma8," / Sp2") -> 0 / Sp2 | G121: =CONCATENATE(+Sp2Ma7," / Sp2") -> 0 / Sp2
A122: 1 | B122: 23. | C122: =+Sp2m6s2 ->  | E122: =+Sp2m5s2 ->  | G122: =+sp2m4s2 -> 
C123: =CONCATENATE(+Sp2Ma6," / Sp2") -> 0 / Sp2 | E123: =CONCATENATE(+Sp2Ma5," / Sp2") -> 0 / Sp2 | G123: =CONCATENATE(+Sp2Ma4," / Sp2") -> 0 / Sp2
A124: 1 | B124: 24. | C124: =+Sp2m3s2 ->  | E124: =+Sp2m2s2 ->  | G124: =+Sp2m1s2 -> 
C125: =CONCATENATE(+Sp2Ma3," / Sp2") -> 0 / Sp2 | E125: =CONCATENATE(+Sp2MA2," / Sp2") -> 0 / Sp2 | G125: =CONCATENATE(+Sp2Ma1," / Sp2") -> 0 / Sp2
A126: 1 | B126: 25. | E126: =+Sp2m8s3 ->  | G126: =+Sp2m7s3 -> 
E127: =CONCATENATE(+Sp2Ma8," / Sp3") -> 0 / Sp3 | G127: =CONCATENATE(+Sp2Ma7," / Sp3") -> 0 / Sp3
A128: 1 | B128: 26. | C128: =+Sp2m6s3 ->  | E128: =+Sp2m5s3 ->  | G128: =+Sp2m4s3 -> 
C129: =CONCATENATE(+Sp2Ma6," / Sp3") -> 0 / Sp3 | E129: =CONCATENATE(+Sp2Ma5," / Sp3") -> 0 / Sp3 | G129: =CONCATENATE(+Sp2Ma4," / Sp3") -> 0 / Sp3
A130: 1 | B130: 27. | C130: =+Sp2m3s3 ->  | E130: =+Sp2m2s3 ->  | G130: =+Sp2m1s3 -> 
C131: =CONCATENATE(+Sp2Ma3," / Sp3") -> 0 / Sp3 | E131: =CONCATENATE(+Sp2MA2," / Sp3") -> 0 / Sp3 | G131: =CONCATENATE(+Sp2Ma1," / Sp3") -> 0 / Sp3
A132: 1 | B132: 28. | E132: =+Sp2m8s4 ->  | G132: =+Sp2m7s4 -> 
E133: =CONCATENATE(+Sp2Ma8," / Sp4") -> 0 / Sp4 | G133: =CONCATENATE(+Sp2Ma7," / Sp4") -> 0 / Sp4
A134: 1 | B134: 29. | C134: =+Sp2m6s4 ->  | E134: =+Sp2m5S4 ->  | G134: =+Sp2m4s4 -> 
C135: =CONCATENATE(+Sp2Ma6," / Sp4") -> 0 / Sp4 | E135: =CONCATENATE(+Sp2Ma5," / Sp4") -> 0 / Sp4 | G135: =CONCATENATE(+Sp2Ma4," / Sp4") -> 0 / Sp4
A136: 1 | B136: 30. | C136: =+Sp2m3s4 ->  | E136: =+Sp2m2s4 ->  | G136: =+Sp2m1s4 -> 
C137: =CONCATENATE(+Sp2Ma3," / Sp4") -> 0 / Sp4 | E137: =CONCATENATE(+Sp2MA2," / Sp4") -> 0 / Sp4 | G137: =CONCATENATE(+Sp2Ma1," / Sp4") -> 0 / Sp4
A139: Start- bahn | B139: Start gruppe | E139: Startliste | H139: 7 Mannschaften
E140: Massenstart
A141: 17 | B141: 1. | C141: Einzelspieler 1 | E141: Einzelspieler 2 | G141: Einzelspieler 3
C142: Verein Einzelsp 1 | E142: Verein Einzelsp 2 | G142: Verein Einzelsp 3
A143: 15 | B143: 2. | C143: Einzelspieler 4 | E143: Einzelspieler 5 | G143: Einzelspieler 6
C144: Verein Einzelsp 4 | E144: Verein Einzelsp 5 | G144: Verein Einzelsp 6
A145: 13 | B145: 3. | C145: Einzelspieler 7 | E145: Einzelspieler 8 | G145: Einzelspieler 9
C146: Verein Einzelsp 7 | E146: Verein Einzelsp 8 | G146: Verein Einzelsp 9
A147: 11 | B147: 4. | C147: Einzelspieler 10 | E147: Einzelspieler 11 | G147: Einzelspieler 12
C148: Verein Einzelsp 10 | E148: Verein Einzelsp 11 | G148: Verein Einzelsp 12
A149: 9 | B149: 5. | C149: Einzelspieler 13 | E149: Einzelspieler 14 | G149: Einzelspieler 15
C150: Verein Einzelsp 13 | E150: Verein Einzelsp 14 | G150: Verein Einzelsp 15
A151: 7 | B151: 6. | C151: Einzelspieler 16 | E151: Einzelspieler 17 | G151: Einzelspieler 18
C152: Verein Einzelsp 16 | E152: Verein Einzelsp 17 | G152: Verein Einzelsp 18
A153: 5 | B153: 7. | C153: Einzelspieler 19 | E153: Einzelspieler 20 | G153: Einzelspieler 21
C154: Verein Einzelsp 19 | E154: Verein Einzelsp 20 | G154: Verein Einzelsp 21
A155: 3 | B155: 8. | C155: Einzelspieler 22 | E155: Einzelspieler 23 | G155: Einzelspieler 24
C156: Verein Einzelsp 22 | E156: Verein Einzelsp 23 | G156: Verein Einzelsp 24
A157: 1 | B157: 9. | C157: Einzelspieler 25 | E157: Einzelspieler 26 | G157: Einzelspieler 27
C158: Verein Einzelsp 25 | E158: Verein Einzelsp 26 | G158: Verein Einzelsp 27
A159: 1 | B159: 10. | C159: Einzelspieler 28 | E159: Einzelspieler 29 | G159: Einzelspieler 30
C160: Verein Einzelsp 28 | E160: Verein Einzelsp 29 | G160: Verein Einzelsp 30
A161: 1 | B161: 11. | C161: Einzelspieler 31 | E161: Einzelspieler 32 | G161: Einzelspieler 33
C162: Verein Einzelsp 31 | E162: Verein Einzelsp 32 | G162: Verein Einzelsp 33
A163: 1 | B163: 12. | C163: Einzelspieler 34 | E163: Einzelspieler 35 | G163: Einzelspieler 36
C164: Verein Einzelsp 34 | E164: Verein Einzelsp 35 | G164: Verein Einzelsp 36
A165: 1 | B165: 13. | C165: Einzelspieler 37 | E165: Einzelspieler 38 | G165: Einzelspieler 39
C166: Verein Einzelsp 37 | E166: Verein Einzelsp 38 | G166: Verein Einzelsp 39
A167: 1 | B167: 14. | C167: Einzelspieler 40 | E167: Einzelspieler 41 | G167: Einzelspieler 42
C168: Verein Einzelsp 40 | E168: Verein Einzelsp 41 | G168: Verein Einzelsp 42
A169: 1 | B169: 15. | C169: Einzelspieler 43 | E169: Einzelspieler 44 | G169: Einzelspieler 45
C170: Verein Einzelsp 43 | E170: Verein Einzelsp 44 | G170: Verein Einzelsp 45
A171: 1 | B171: 16. | C171: Einzelspieler 46 | E171: Einzelspieler 47 | G171: Einzelspieler 48
C172: Verein Einzelsp 46 | E172: Verein Einzelsp 47 | G172: Verein Einzelsp 48
A173: 1 | B173: 17. | C173: Einzelspieler 49 | E173: Einzelspieler 50 | G173: Einzelspieler 51
C174: Verein Einzelsp 49 | E174: Verein Einzelsp 50 | G174: Verein Einzelsp 51
A175: 1 | B175: 18. | C175: Einzelspieler 52 | E175: Einzelspieler 53 | G175: Einzelspieler 54
C176: Verein Einzelsp 52 | E176: Verein Einzelsp 53 | G176: Verein Einzelsp 54
A177: 1 | B177: 19. | C177: =+Sp2m7s1 ->  | G177: =+Sp2m6s1 -> 
C178: =CONCATENATE(+Sp2Ma7," / Sp1") -> 0 / Sp1 | G178: =CONCATENATE(+Sp2Ma6," / Sp1") -> 0 / Sp1
A179: 1 | B179: 20. | C179: =+Sp2m5s1 ->  | G179: =+Sp2m4s1 -> 
C180: =CONCATENATE(+Sp2Ma5," / Sp1") -> 0 / Sp1 | G180: =CONCATENATE(+Sp2Ma4," / Sp1") -> 0 / Sp1
A181: 1 | B181: 21. | C181: =+Sp2m3s1 ->  | E181: =+Sp2m2s1 ->  | G181: =+Sp2m1s1 -> 
C182: =CONCATENATE(+Sp2Ma3," / Sp1") -> 0 / Sp1 | E182: =CONCATENATE(+Sp2MA2," / Sp1") -> 0 / Sp1 | G182: =CONCATENATE(+Sp2Ma1," / Sp1") -> 0 / Sp1
A183: 1 | B183: 22. | C183: =+Sp2m7s2 ->  | G183: =+Sp2m6s2 -> 
C184: =CONCATENATE(+Sp2Ma7," / SP2") -> 0 / SP2 | G184: =CONCATENATE(+Sp2Ma6," / SP2") -> 0 / SP2
A185: 1 | B185: 23. | C185: =+Sp2m5s2 ->  | G185: =+sp2m4s2 -> 
C186: =CONCATENATE(+Sp2Ma5," / SP2") -> 0 / SP2 | G186: =CONCATENATE(+Sp2Ma4," / SP2") -> 0 / SP2
A187: 1 | B187: 24. | C187: =+Sp2m3s2 ->  | E187: =+Sp2m2s2 ->  | G187: =+Sp2m1s2 -> 
C188: =CONCATENATE(+Sp2Ma3," / SP2") -> 0 / SP2 | E188: =CONCATENATE(+Sp2MA2," / SP2") -> 0 / SP2 | G188: =CONCATENATE(+Sp2Ma1," / SP2") -> 0 / SP2
A189: 1 | B189: 25. | C189: =+Sp2m7s3 ->  | G189: =+Sp2m6s3 -> 
C190: =CONCATENATE(+Sp2Ma7," / SP3") -> 0 / SP3 | G190: =CONCATENATE(+Sp2Ma6," / SP3") -> 0 / SP3
A191: 1 | B191: 26. | C191: =+Sp2m5s3 ->  | G191: =+Sp2m4s3 -> 
C192: =CONCATENATE(+Sp2Ma5," / SP3") -> 0 / SP3 | G192: =CONCATENATE(+Sp2Ma4," / SP3") -> 0 / SP3
A193: 1 | B193: 27. | C193: =+Sp2m3s3 ->  | E193: =+Sp2m2s3 ->  | G193: =+Sp2m1s3 -> 
C194: =CONCATENATE(+Sp2Ma3," / SP3") -> 0 / SP3 | E194: =CONCATENATE(+Sp2MA2," / SP3") -> 0 / SP3 | G194: =CONCATENATE(+Sp2Ma1," / SP3") -> 0 / SP3
A195: 1 | B195: 28. | C195: =+Sp2m7s4 ->  | G195: =+Sp2m6s4 -> 
C196: =CONCATENATE(+Sp2Ma7," / SP4") -> 0 / SP4 | G196: =CONCATENATE(+Sp2Ma6," / SP4") -> 0 / SP4
A197: 1 | B197: 29. | C197: =+Sp2m5S4 ->  | G197: =+Sp2m4s4 -> 
C198: =CONCATENATE(+Sp2Ma5," / SP4") -> 0 / SP4 | G198: =CONCATENATE(+Sp2Ma4," / SP4") -> 0 / SP4
A199: 1 | B199: 30. | C199: =+Sp2m3s4 ->  | E199: =+Sp2m2s4 ->  | G199: =+Sp2m1s4 -> 
C200: =CONCATENATE(+Sp2Ma3," / Sp4") -> 0 / Sp4 | E200: =CONCATENATE(+Sp2MA2," / Sp4") -> 0 / Sp4 | G200: =CONCATENATE(+Sp2Ma1," / Sp4") -> 0 / Sp4
A202: Start- bahn | B202: Start gruppe | E202: Startliste | H202: 10 Mannschaften
E203: Massenstart
A204: 17 | B204: 1. | C204: Einzelspieler 1 | E204: Einzelspieler 2 | G204: Einzelspieler 3
C205: Verein Einzelsp 1 | E205: Verein Einzelsp 2 | G205: Verein Einzelsp 3
A206: 15 | B206: 2. | C206: Einzelspieler 4 | E206: Einzelspieler 5 | G206: Einzelspieler 6
C207: Verein Einzelsp 4 | E207: Verein Einzelsp 5 | G207: Verein Einzelsp 6
... 56 more rows

Sheet Spt_1
W1: Anleitung zum Ausfüllen der Spalte C "Mannschaft" und "Teilnahme"
E2: =CONCATENATE(Teilnehmer!E2," ",Teilnehmer!G2) -> Senioren-Rangliste 2024 | W2: Mannschaftsspieler: In Spalte C wird das Kürzel für die Mannschaft und die Position eingetragen. Bsp 1: Der erste Spieler der Mannschaft SG Arheilgen bekommt das Kürzel A11. Bsp 2: der vierte Spieler der Mannschaft Bensheim 2 bekommt das Kürzel B24. Einzelspieler: Bei allen Teilnehmern des Spieltages ein x eintragen.
D3: Datum: | E3: =Teilnehmer!P8 -> 2024-03-24 | F3: Spieltag: | G3: =Teilnehmer!M8 -> 1 | O3: HBSV-Rangliste
D4: Ort: | E4: =Teilnehmer!N8 -> Pfungstadt | F4: Kategorie: | G4: =Teilnehmer!E4 -> Sm I | O4: X
D5: Anlage | E5: =Teilnehmer!O8 -> Miniaturgolf
A6: Rang | B6: Pass # | C6: Mannschaft Teilnahme | D6: Markierung | E6: Name, Vorname | F6: Verein | G6: 1.Rd. | H6: 2.Rd. | I6: 1-2 | J6: 3.Rd. | K6: 1-3 | L6: 4.Rd. | M6: Ges. | N6: Schnitt | O6: =Teilnehmer!N8 -> Pfungstadt | S6: =Teilnehmer!S3 -> Rundenfarben
E7: Top-Ergebnis SM1 + SM 2 ohne Kaderspieler -> | F7: =MIN($Z$8:$Z$65) -> 0 | L7: Top-Ergebnis -> | O7: =MIN($M8:$M32) -> 0 | P7: Diff 1 | Q7: Diff 2 | R7: Bemerkungen | S7: =Teilnehmer!S7 -> 1 Runde | U7: =E5 -> Miniaturgolf
A8: =IF(M8<>"",IF(M8=M7,$A7,COUNT($M$8:M8)),$A7+1) -> 1 | B8: =Teilnehmer!B8 -> 67990 | D8: =VLOOKUP(B8,TLN_SM1,3,FALSE) -> 0 | E8: =VLOOKUP(B8,TLN_SM1,4,FALSE) -> Bohlig, Jörg | F8: =VLOOKUP(B8,TLN_SM1,6,FALSE) -> MGC Kahler Sandhasen | I8: =IF(H8>0,G8+H8,"") ->  | K8: =IF(J8>0,I8+J8,"") ->  | M8: =IF(L8>0,K8+L8,"") ->  | N8: =IF(B8=0,"",IF(O8="a.K.","a.K.",IF(G8="","",AVERAGE(G8:H8,J8,L8)))) ->  | O8: =IF($D8="_nur Mannsch.","a.K.",IF($M8="","XXX",$M8-O$7)) -> XXX | P8: =IF($M8="","",LARGE((($G8:$H8),$J8,$L8),1)-SMALL((($G8:$H8),$J8,$L8),1)) ->  | Q8: =IF(M8="","",LARGE((($G8:$H8),$J8,$L8),2)-SMALL((($G8:$H8),$J8,$L8),2)) ->  | S8: =Teilnehmer!S8 -> Blau | T8: =Teilnehmer!T8 -> < | U8: =IF($U$7=Teilnehmer!$U$6,Teilnehmer!$U8,IF($U$7=Teilnehmer!$V$6,Teilnehmer!$V8,Teilnehmer!$W8)) -> 20 | Z8: =IF(ISNA(D8)=TRUE,"",M8) -> 
A9: =IF(M9<>"",IF(M9=M8,$A8,COUNT($M$8:M9)),$A8+1) -> 2 | B9: =Teilnehmer!B9 -> 66852 | D9: 0 | E9: Cech, Andree | F9: BGSV Aßlar | O9: XXX | P9: =IF($M9="","",LARGE((($G9:$H9),$J9,$L9),1)-SMALL((($G9:$H9),$J9,$L9),1)) ->  | Q9: =IF(M9="","",LARGE((($G9:$H9),$J9,$L9),2)-SMALL((($G9:$H9),$J9,$L9),2)) ->  | S9: =Teilnehmer!S9 -> Grün | T9: =Teilnehmer!T9 -> < | U9: =IF($U$7=Teilnehmer!$U$6,Teilnehmer!$U9,IF($U$7=Teilnehmer!$V$6,Teilnehmer!$V9,Teilnehmer!$W9)) -> 25
A10: =IF(M10<>"",IF(M10=M9,$A9,COUNT($M$8:M10)),$A9+1) -> 3 | B10: =Teilnehmer!B10 -> 38329 | D10: 0 | E10: Dittrich, Michael | F10: MGC putter Künzell | O10: XXX | P10: =IF($M10="","",LARGE((($G10:$H10),$J10,$L10),1)-SMALL((($G10:$H10),$J10,$L10),1)) ->  | Q10: =IF(M10="","",LARGE((($G10:$H10),$J10,$L10),2)-SMALL((($G10:$H10),$J10,$L10),2)) ->  | S10: =Teilnehmer!S10 -> Rot | T10: =Teilnehmer!T10 -> < | U10: =IF($U$7=Teilnehmer!$U$6,Teilnehmer!$U10,IF($U$7=Teilnehmer!$V$6,Teilnehmer!$V10,Teilnehmer!$W10)) -> 30
A11: =IF(M11<>"",IF(M11=M10,$A10,COUNT($M$8:M11)),$A10+1) -> 4 | B11: =Teilnehmer!B11 -> 37864 | D11: 0 | E11: Drebert, Erich | F11: SG 1886 Weiterstadt | O11: XXX | P11: =IF($M11="","",LARGE((($G11:$H11),$J11,$L11),1)-SMALL((($G11:$H11),$J11,$L11),1)) ->  | Q11: =IF(M11="","",LARGE((($G11:$H11),$J11,$L11),2)-SMALL((($G11:$H11),$J11,$L11),2)) ->  | S11: =Teilnehmer!S11 -> Schwarz | T11: =Teilnehmer!T11 -> >= | U11: =IF($U$7=Teilnehmer!$U$6,Teilnehmer!$U11,IF($U$7=Teilnehmer!$V$6,Teilnehmer!$V11,Teilnehmer!$W11)) -> 30 | W11: Mannschaftskürzel:
A12: =IF(M12<>"",IF(M12=M11,$A11,COUNT($M$8:M12)),$A11+1) -> 5 | B12: =Teilnehmer!B12 -> 46823 | D12: 0 | E12: Herzog, Ralf | F12: TSV Pfungstadt | O12: XXX | P12: =IF($M12="","",LARGE((($G12:$H12),$J12,$L12),1)-SMALL((($G12:$H12),$J12,$L12),1)) ->  | Q12: =IF(M12="","",LARGE((($G12:$H12),$J12,$L12),2)-SMALL((($G12:$H12),$J12,$L12),2)) ->  | W12: SG Arheilgen | X12: A1
A13: =IF(M13<>"",IF(M13=M12,$A12,COUNT($M$8:M13)),$A12+1) -> 6 | B13: =Teilnehmer!B13 -> 44929 | D13: 0 | E13: Hess, Rainer | F13: SG Arheilgen | O13: XXX | P13: =IF($M13="","",LARGE((($G13:$H13),$J13,$L13),1)-SMALL((($G13:$H13),$J13,$L13),1)) ->  | Q13: =IF(M13="","",LARGE((($G13:$H13),$J13,$L13),2)-SMALL((($G13:$H13),$J13,$L13),2)) ->  | S13: =Teilnehmer!S13 -> 2 Runden | W13: BGSV Aßlar | X13: ß1
A14: =IF(M14<>"",IF(M14=M13,$A13,COUNT($M$8:M14)),$A13+1) -> 7 | B14: =Teilnehmer!B14 -> 40541 | D14: 0 | E14: Isenbiel, Oliver | F14: MSC Bensheim-Auerbach | O14: XXX | P14: =IF($M14="","",LARGE((($G14:$H14),$J14,$L14),1)-SMALL((($G14:$H14),$J14,$L14),1)) ->  | Q14: =IF(M14="","",LARGE((($G14:$H14),$J14,$L14),2)-SMALL((($G14:$H14),$J14,$L14),2)) ->  | S14: =Teilnehmer!S14 -> Blau | T14: =Teilnehmer!T14 -> < | U14: =IF($U$7=Teilnehmer!$U$6,Teilnehmer!$U14,IF($U$7=Teilnehmer!$V$6,Teilnehmer!$V14,Teilnehmer!$W14)) -> 40 | W14: MSC Bensheim-A 1 | X14: B1
A15: =IF(M15<>"",IF(M15=M14,$A14,COUNT($M$8:M15)),$A14+1) -> 8 | B15: =Teilnehmer!B15 -> 67793 | D15: 0 | E15: Joch, Peter | F15: MSC Bensheim-Auerbach | O15: XXX | P15: =IF($M15="","",LARGE((($G15:$H15),$J15,$L15),1)-SMALL((($G15:$H15),$J15,$L15),1)) ->  | Q15: =IF(M15="","",LARGE((($G15:$H15),$J15,$L15),2)-SMALL((($G15:$H15),$J15,$L15),2)) ->  | S15: =Teilnehmer!S15 -> Grün | T15: =Teilnehmer!T15 -> < | U15: =IF($U$7=Teilnehmer!$U$6,Teilnehmer!$U15,IF($U$7=Teilnehmer!$V$6,Teilnehmer!$V15,Teilnehmer!$W15)) -> 50 | W15: MSC Bensheim-A 2 | X15: B2
A16: =IF(M16<>"",IF(M16=M15,$A15,COUNT($M$8:M16)),$A15+1) -> 9 | B16: =Teilnehmer!B16 -> 37865 | D16: 0 | E16: Mally, Joachim | F16: MSC Bensheim-Auerbach | O16: XXX | P16: =IF($M16="","",LARGE((($G16:$H16),$J16,$L16),1)-SMALL((($G16:$H16),$J16,$L16),1)) ->  | Q16: =IF(M16="","",LARGE((($G16:$H16),$J16,$L16),2)-SMALL((($G16:$H16),$J16,$L16),2)) ->  | S16: =Teilnehmer!S16 -> Rot | T16: =Teilnehmer!T16 -> < | U16: =IF($U$7=Teilnehmer!$U$6,Teilnehmer!$U16,IF($U$7=Teilnehmer!$V$6,Teilnehmer!$V16,Teilnehmer!$W16)) -> 60 | W16: MSC Bensheim-A 3 | X16: B3
A17: =IF(M17<>"",IF(M17=M16,$A16,COUNT($M$8:M17)),$A16+1) -> 10 | B17: =Teilnehmer!B17 -> 67213 | D17: 0 | E17: Paul, Gerd | F17: MGC Bad Homburg | O17: XXX | P17: =IF($M17="","",LARGE((($G17:$H17),$J17,$L17),1)-SMALL((($G17:$H17),$J17,$L17),1)) ->  | Q17: =IF(M17="","",LARGE((($G17:$H17),$J17,$L17),2)-SMALL((($G17:$H17),$J17,$L17),2)) ->  | S17: =Teilnehmer!S17 -> Schwarz | T17: =Teilnehmer!T17 -> >= | U17: =IF($U$7=Teilnehmer!$U$6,Teilnehmer!$U17,IF($U$7=Teilnehmer!$V$6,Teilnehmer!$V17,Teilnehmer!$W17)) -> 60 | W17: MGC Kahler Sandhasen | X17: K1
A18: =IF(M18<>"",IF(M18=M17,$A17,COUNT($M$8:M18)),$A17+1) -> 11 | B18: =Teilnehmer!B18 -> 66666 | D18: 0 | E18: Schneider, Timm | F18: SG Arheilgen | O18: XXX | P18: =IF($M18="","",LARGE((($G18:$H18),$J18,$L18),1)-SMALL((($G18:$H18),$J18,$L18),1)) ->  | Q18: =IF(M18="","",LARGE((($G18:$H18),$J18,$L18),2)-SMALL((($G18:$H18),$J18,$L18),2)) ->  | W18: SG Weiterstadt | X18: W1
A19: =IF(M19<>"",IF(M19=M18,$A18,COUNT($M$8:M19)),$A18+1) -> 12 | B19: =Teilnehmer!B19 -> 48644 | D19: 0 | E19: Timm, Axel Eric | F19: TSV Pfungstadt | O19: XXX | P19: =IF($M19="","",LARGE((($G19:$H19),$J19,$L19),1)-SMALL((($G19:$H19),$J19,$L19),1)) ->  | Q19: =IF(M19="","",LARGE((($G19:$H19),$J19,$L19),2)-SMALL((($G19:$H19),$J19,$L19),2)) ->  | S19: =Teilnehmer!S19 -> 3 Runden
A20: =IF(M20<>"",IF(M20=M19,$A19,COUNT($M$8:M20)),$A19+1) -> 13 | B20: =Teilnehmer!B20 -> 30869 | D20: 0 | E20: Träger, Andreas | F20: MSC Bensheim-Auerbach | O20: XXX | P20: =IF($M20="","",LARGE((($G20:$H20),$J20,$L20),1)-SMALL((($G20:$H20),$J20,$L20),1)) ->  | Q20: =IF(M20="","",LARGE((($G20:$H20),$J20,$L20),2)-SMALL((($G20:$H20),$J20,$L20),2)) ->  | S20: =Teilnehmer!S20 -> Blau | T20: =Teilnehmer!T20 -> < | U20: =IF($U$7=Teilnehmer!$U$6,Teilnehmer!$U20,IF($U$7=Teilnehmer!$V$6,Teilnehmer!$V20,Teilnehmer!$W20)) -> 60 | W20: Die Ergebnisse der markierten Spieler werden automatisch in das Mannschaftstabellenblatt übernommen.
A21: =IF(M21<>"",IF(M21=M20,$A20,COUNT($M$8:M21)),$A20+1) -> 14 | B21: =Teilnehmer!B21 -> 38133 | D21: 0 | E21: Tröller, Jürgen | F21: MSC Bensheim-Auerbach | O21: XXX | P21: =IF($M21="","",LARGE((($G21:$H21),$J21,$L21),1)-SMALL((($G21:$H21),$J21,$L21),1)) ->  | Q21: =IF(M21="","",LARGE((($G21:$H21),$J21,$L21),2)-SMALL((($G21:$H21),$J21,$L21),2)) ->  | S21: =Teilnehmer!S21 -> Grün | T21: =Teilnehmer!T21 -> < | U21: =IF($U$7=Teilnehmer!$U$6,Teilnehmer!$U21,IF($U$7=Teilnehmer!$V$6,Teilnehmer!$V21,Teilnehmer!$W21)) -> 75
A22: =IF(M22<>"",IF(M22=M21,$A21,COUNT($M$8:M22)),$A21+1) -> 15 | B22: =Teilnehmer!B22 -> 67992 | D22: 0 | E22: Uhlmann, Torsten | F22: MGC Kahler Sandhasen | O22: XXX | P22: =IF($M22="","",LARGE((($G22:$H22),$J22,$L22),1)-SMALL((($G22:$H22),$J22,$L22),1)) ->  | Q22: =IF(M22="","",LARGE((($G22:$H22),$J22,$L22),2)-SMALL((($G22:$H22),$J22,$L22),2)) ->  | S22: =Teilnehmer!S22 -> Rot | T22: =Teilnehmer!T22 -> < | U22: =IF($U$7=Teilnehmer!$U$6,Teilnehmer!$U22,IF($U$7=Teilnehmer!$V$6,Teilnehmer!$V22,Teilnehmer!$W22)) -> 90
A23: =IF(M23<>"",IF(M23=M22,$A22,COUNT($M$8:M23)),$A22+1) -> 16 | B23: =Teilnehmer!B23 -> 0 | P23: =IF($M23="","",LARGE((($G23:$H23),$J23,$L23),1)-SMALL((($G23:$H23),$J23,$L23),1)) ->  | Q23: =IF(M23="","",LARGE((($G23:$H23),$J23,$L23),2)-SMALL((($G23:$H23),$J23,$L23),2)) ->  | S23: =Teilnehmer!S23 -> Schwarz | T23: =Teilnehmer!T23 -> >= | U23: =IF($U$7=Teilnehmer!$U$6,Teilnehmer!$U23,IF($U$7=Teilnehmer!$V$6,Teilnehmer!$V23,Teilnehmer!$W23)) -> 90
A24: =IF(M24<>"",IF(M24=M23,$A23,COUNT($M$8:M24)),$A23+1) -> 17 | B24: =Teilnehmer!B24 -> 0 | P24: =IF($M24="","",LARGE((($G24:$H24),$J24,$L24),1)-SMALL((($G24:$H24),$J24,$L24),1)) ->  | Q24: =IF(M24="","",LARGE((($G24:$H24),$J24,$L24),2)-SMALL((($G24:$H24),$J24,$L24),2)) -> 
A25: =IF(M25<>"",IF(M25=M24,$A24,COUNT($M$8:M25)),$A24+1) -> 18 | B25: =Teilnehmer!B25 -> 0 | P25: =IF($M25="","",LARGE((($G25:$H25),$J25,$L25),1)-SMALL((($G25:$H25),$J25,$L25),1)) ->  | Q25: =IF(M25="","",LARGE((($G25:$H25),$J25,$L25),2)-SMALL((($G25:$H25),$J25,$L25),2)) ->  | S25: =Teilnehmer!S25 -> 4 Runden
A26: =IF(M26<>"",IF(M26=M25,$A25,COUNT($M$8:M26)),$A25+1) -> 19 | B26: =Teilnehmer!B26 -> 0 | P26: =IF($M26="","",LARGE((($G26:$H26),$J26,$L26),1)-SMALL((($G26:$H26),$J26,$L26),1)) ->  | Q26: =IF(M26="","",LARGE((($G26:$H26),$J26,$L26),2)-SMALL((($G26:$H26),$J26,$L26),2)) ->  | S26: =Teilnehmer!S26 -> Blau | T26: =Teilnehmer!T26 -> < | U26: =IF($U$7=Teilnehmer!$U$6,Teilnehmer!$U26,IF($U$7=Teilnehmer!$V$6,Teilnehmer!$V26,Teilnehmer!$W26)) -> 80
A27: =IF(M27<>"",IF(M27=M26,$A26,COUNT($M$8:M27)),$A26+1) -> 20 | B27: =Teilnehmer!B27 -> 0 | P27: =IF($M27="","",LARGE((($G27:$H27),$J27,$L27),1)-SMALL((($G27:$H27),$J27,$L27),1)) ->  | Q27: =IF(M27="","",LARGE((($G27:$H27),$J27,$L27),2)-SMALL((($G27:$H27),$J27,$L27),2)) ->  | S27: =Teilnehmer!S27 -> Grün | T27: =Teilnehmer!T27 -> < | U27: =IF($U$7=Teilnehmer!$U$6,Teilnehmer!$U27,IF($U$7=Teilnehmer!$V$6,Teilnehmer!$V27,Teilnehmer!$W27)) -> 100
